Workbook

Sheet Control
A1: Sheets | B1: Text File Names | C1: Description | E1: Notes: 50 sheets maximum
A2: EP_Pore_Conc | B2: Pits\Concentrations\EP_Pore_Concs_Output.txt | C2: Project concentrations for the East Pit porewater | E2: Referenced text files must be in same root folder as this spreadsheet
A3: EP_Wetland_Conc | B3: Pits\Concentrations\EP_Wetland_Concs_Output.txt | C3: Project concentrations for the East Pit upper wetland water
A4: WP_Conc | B4: PIts\Concentrations\WP_Concs_Output.txt | C4: Project concentrations for the West Pit water
A5: WWTF_Outflow_Conc | B5: Other\Concentrations\WWTF_Effluent_Conc_PostClos.txt | C5: Project concentrations for the Long-term WWTF effluent
A6: Cat1SP_Conc | B6: Stockpiles\Concentrations\Cat1SP_Conc_Output.txt | C6: Project concentrations for the Category 1 Stockpile seepage
A8: EP_PoreLow_Flow | B8: Pits\Flows\EastPitlower_Flow_toWWTF.txt | C8: Project flows for the East Pit porewater (dewatering of lower portion to WWTF)
A9: EP_PoreUp_Flow | B9: Pits\Flows\EastPitupper_Flow_toWWTF.txt | C9: Project flows for the East Pit porewater (dewatering of upper portion to WWTF) | F9: Run Time Min: | G9: =MIN(EP_Pore_Conc!B5,EP_Wetland_Conc!B5,WP_Conc!B5,Cat1SP_Conc!B5) -> 2014-12-15T22:56:18
A10: EP_Wetland_Flow | B10: Pits\Flows\EastPit_Flow_toWP.txt | C10: Project flows for the East Pit upper wetland water (overflow to West Pit) | F10: Run Time Max: | G10: =MAX(EP_Pore_Conc!B5,EP_Wetland_Conc!B5,WP_Conc!B5,Cat1SP_Conc!B5) -> 2014-12-15T22:56:18
A11: WP_Flow | B11: PIts\Flows\WestPit_Flow_toWWTF.txt | C11: Project flows for the West Pit water (dewatering to WWTF)
A12: WWTF_Flow | B12: Other\Flows\WWTF_Clos_Flows.txt | C12: Project flows for the long-term WWTF (discharge to Partridge River)
A13: Cat1SP_Flow | B13: Stockpiles\Flows\Cat1SP_Flow_Total_toWWTF.txt | C13: Project flows for the Category 1 Stockpile seepage (total contained flow to WWTF)

Sheet PlotControl
A2: Model Name: | B2: Mine Site Version 6.0
A4: Plot: | B4: Annual Average | C4: =B2 & " Model " & IF(B4="Annual Max", "Annual Maximum", B4) & " of Concentration Statistics " & B6 & " in the " & B8 -> Mine Site Version 6.0 Model Annual Average of Concentration Statistics Be in the West Pit | V4: Directory to save PDFs to: | W4: C:\Users\jem4\Desktop\temp
C5: =B2 & " Model Monthly Concentration and Flow Statistics " & B6 & " in the " & B8 -> Mine Site Version 6.0 Model Monthly Concentration and Flow Statistics Be in the West Pit | V5: Starting figure caption | W5: Figure H-11-10.2
A6: Constituent to Plot (dropdown): | B6: Be | C6: =MATCH(B6,$A$25:$A$51,0) -> 7
V7: Note: This loops through the plots, constituent, and location drop down menus.
A8: Location to Plot (dropdown): | B8: West Pit | C8: =MATCH(B8,$A$15:$A$19,0) -> 3
A10: Initial Time for Monthly Plot (yr): | B10: 40
B11: =B10+20 -> 60
A14: Locations | C14: Number
A15: East Pit Lower Porewater | C15: 9
A16: East Pit Upper/Wetland Porewater | C16: 10
A17: West Pit | C17: 11
A18: Long-term WWTF Effluent | C18: 999 | D18: Note: Hardness-based standards are computed based on the observed median hardness at the receiving location (Partridge River SW-004a); a different hardness may be used to set WWTF effluent limits. | L18: Note: Sulfate SW standard shown (10 mg/L wild rice standard) applies at SW-005, not at the discharge location (Partridge River SW-004a); a different value may be used to set WWTF effluent limits.
A19: Category 1 Stockpile Drainage | C19: 7
I23: Annual Project Results (Concentration) | M23: Annual Project Results (Flow) | R23: Monthly Project Results (Concentration) | V23: Monthly Project Results (Flow)
A24: Constituent | B24: Partridge Standard (ug/L) | C24: Colby Standard (ug/L) | D24: Hardness Based "A" | E24: Hardness Based "B" | F24: Hardness Based at SW-004a hardness (ug/L) | H24: Time | I24: P10 | J24: P50 | K24: P90 | L24: SW Standard at SW-004a | M24: P10 | N24: P50 | O24: P90 | Q24: Time | R24: P10 | S24: P50 | T24: P90 | U24: SW Standard at SW-004a | V24: P10 | W24: P50 | X24: P90
A25: Ag | B25: 1 | C25: 1 | F25: =EXP(D25*LN(102)+E25) ->  | H25: 1 | I25: =VLOOKUP($H25,Conc_All!$A$5:$P$204,3*($C$8-1)+2) -> 0.3209941667 | J25: =VLOOKUP($H25,Conc_All!$A$5:$P$204,3*($C$8-1)+3) -> 0.3272741667 | K25: =VLOOKUP($H25,Conc_All!$A$5:$P$204,3*($C$8-1)+4) -> 0.3333333333 | L25: =IF(ISNA(VLOOKUP($B$6,$A$25:$F$52,2,FALSE)),VLOOKUP($B$6,$A$25:$F$52,6,FALSE),VLOOKUP($B$6,$A$25:$F$52,2,FALSE)) ->  | M25: =VLOOKUP($H25,Flow_All!$A$5:$P$204,3*($C$8-1)+2) -> 7.099491667 | N25: =VLOOKUP($H25,Flow_All!$A$5:$P$204,3*($C$8-1)+3) -> 8.87495 | O25: =VLOOKUP($H25,Flow_All!$A$5:$P$204,3*($C$8-1)+4) -> 10.81306667 | Q25: =B10 -> 40 | R25: =VLOOKUP($Q25,Conc_All!$R$5:$AG$245,3*($C$8-1)+2) -> 0.38588 | S25: =VLOOKUP($Q25,Conc_All!$R$5:$AG$245,3*($C$8-1)+3) -> 0.4 | T25: =VLOOKUP($Q25,Conc_All!$R$5:$AG$245,3*($C$8-1)+4) -> 0.4 | U25: =IF(ISNA(VLOOKUP($B$6,$A$25:$F$52,2,FALSE)),VLOOKUP($B$6,$A$25:$F$52,6,FALSE),VLOOKUP($B$6,$A$25:$F$52,2,FALSE)) ->  | V25: =VLOOKUP($Q25,Flow_All!$R$5:$AG$245,3*($C$8-1)+2) -> 0 | W25: =VLOOKUP($Q25,Flow_All!$R$5:$AG$245,3*($C$8-1)+3) -> 0 | X25: =VLOOKUP($Q25,Flow_All!$R$5:$AG$245,3*($C$8-1)+4) -> 0
A26: Al | B26: 125 | C26: 125 | H26: 2 | I26: =VLOOKUP($H26,Conc_All!$A$5:$P$204,3*($C$8-1)+2) -> 0.3832375 | J26: =VLOOKUP($H26,Conc_All!$A$5:$P$204,3*($C$8-1)+3) -> 0.4 | K26: =VLOOKUP($H26,Conc_All!$A$5:$P$204,3*($C$8-1)+4) -> 0.4 | L26: =IF(ISNA(VLOOKUP($B$6,$A$25:$F$52,2,FALSE)),VLOOKUP($B$6,$A$25:$F$52,6,FALSE),VLOOKUP($B$6,$A$25:$F$52,2,FALSE)) ->  | M26: =VLOOKUP($H26,Flow_All!$A$5:$P$204,3*($C$8-1)+2) -> 52.99653333 | N26: =VLOOKUP($H26,Flow_All!$A$5:$P$204,3*($C$8-1)+3) -> 63.79244167 | O26: =VLOOKUP($H26,Flow_All!$A$5:$P$204,3*($C$8-1)+4) -> 79.107575 | Q26: =Q25+1/12 -> 40.08333333 | R26: =VLOOKUP($Q26,Conc_All!$R$5:$AG$245,3*($C$8-1)+2) -> 0.38609 | S26: =VLOOKUP($Q26,Conc_All!$R$5:$AG$245,3*($C$8-1)+3) -> 0.4 | T26: =VLOOKUP($Q26,Conc_All!$R$5:$AG$245,3*($C$8-1)+4) -> 0.4 | U26: =IF(ISNA(VLOOKUP($B$6,$A$25:$F$52,2,FALSE)),VLOOKUP($B$6,$A$25:$F$52,6,FALSE),VLOOKUP($B$6,$A$25:$F$52,2,FALSE)) ->  | V26: =VLOOKUP($Q26,Flow_All!$R$5:$AG$245,3*($C$8-1)+2) -> 0 | W26: =VLOOKUP($Q26,Flow_All!$R$5:$AG$245,3*($C$8-1)+3) -> 0 | X26: =VLOOKUP($Q26,Flow_All!$R$5:$AG$245,3*($C$8-1)+4) -> 0
A27: Alkalinity | H27: 3 | I27: =VLOOKUP($H27,Conc_All!$A$5:$P$204,3*($C$8-1)+2) -> 0.3470391667 | J27: =VLOOKUP($H27,Conc_All!$A$5:$P$204,3*($C$8-1)+3) -> 0.3690908333 | K27: =VLOOKUP($H27,Conc_All!$A$5:$P$204,3*($C$8-1)+4) -> 0.3870291667 | M27: =VLOOKUP($H27,Flow_All!$A$5:$P$204,3*($C$8-1)+2) -> 105.9480833 | N27: =VLOOKUP($H27,Flow_All!$A$5:$P$204,3*($C$8-1)+3) -> 127.3359167 | O27: =VLOOKUP($H27,Flow_All!$A$5:$P$204,3*($C$8-1)+4) -> 159.6983333 | Q27: =Q26+1/12 -> 40.16666667 | R27: =VLOOKUP($Q27,Conc_All!$R$5:$AG$245,3*($C$8-1)+2) -> 0.38618 | S27: =VLOOKUP($Q27,Conc_All!$R$5:$AG$245,3*($C$8-1)+3) -> 0.4 | T27: =VLOOKUP($Q27,Conc_All!$R$5:$AG$245,3*($C$8-1)+4) -> 0.4 | V27: =VLOOKUP($Q27,Flow_All!$R$5:$AG$245,3*($C$8-1)+2) -> 0 | W27: =VLOOKUP($Q27,Flow_All!$R$5:$AG$245,3*($C$8-1)+3) -> 0 | X27: =VLOOKUP($Q27,Flow_All!$R$5:$AG$245,3*($C$8-1)+4) -> 0
A28: As | B28: 53 | C28: 2 | H28: 4 | I28: =VLOOKUP($H28,Conc_All!$A$5:$P$204,3*($C$8-1)+2) -> 0.3352675 | J28: =VLOOKUP($H28,Conc_All!$A$5:$P$204,3*($C$8-1)+3) -> 0.3609033333 | K28: =VLOOKUP($H28,Conc_All!$A$5:$P$204,3*($C$8-1)+4) -> 0.3832533333 | M28: =VLOOKUP($H28,Flow_All!$A$5:$P$204,3*($C$8-1)+2) -> 105.6645 | N28: =VLOOKUP($H28,Flow_All!$A$5:$P$204,3*($C$8-1)+3) -> 126.6471667 | O28: =VLOOKUP($H28,Flow_All!$A$5:$P$204,3*($C$8-1)+4) -> 160.9625833 | Q28: 40.25 | R28: =VLOOKUP($Q28,Conc_All!$R$5:$AG$245,3*($C$8-1)+2) -> 0.38617 | S28: =VLOOKUP($Q28,Conc_All!$R$5:$AG$245,3*($C$8-1)+3) -> 0.4 | T28: =VLOOKUP($Q28,Conc_All!$R$5:$AG$245,3*($C$8-1)+4) -> 0.4 | V28: =VLOOKUP($Q28,Flow_All!$R$5:$AG$245,3*($C$8-1)+2) -> 0 | W28: =VLOOKUP($Q28,Flow_All!$R$5:$AG$245,3*($C$8-1)+3) -> 0 | X28: =VLOOKUP($Q28,Flow_All!$R$5:$AG$245,3*($C$8-1)+4) -> 0
A29: B | B29: 500 | C29: 500 | H29: 5 | I29: =VLOOKUP($H29,Conc_All!$A$5:$P$204,3*($C$8-1)+2) -> 0.3277525 | J29: =VLOOKUP($H29,Conc_All!$A$5:$P$204,3*($C$8-1)+3) -> 0.3566525 | K29: =VLOOKUP($H29,Conc_All!$A$5:$P$204,3*($C$8-1)+4) -> 0.3815633333 | M29: =VLOOKUP($H29,Flow_All!$A$5:$P$204,3*($C$8-1)+2) -> 111.1761667 | N29: =VLOOKUP($H29,Flow_All!$A$5:$P$204,3*($C$8-1)+3) -> 135.6310833 | O29: =VLOOKUP($H29,Flow_All!$A$5:$P$204,3*($C$8-1)+4) -> 166.4216667 | Q29: 40.33333333 | R29: =VLOOKUP($Q29,Conc_All!$R$5:$AG$245,3*($C$8-1)+2) -> 0.38371 | S29: =VLOOKUP($Q29,Conc_All!$R$5:$AG$245,3*($C$8-1)+3) -> 0.4 | T29: =VLOOKUP($Q29,Conc_All!$R$5:$AG$245,3*($C$8-1)+4) -> 0.4 | V29: =VLOOKUP($Q29,Flow_All!$R$5:$AG$245,3*($C$8-1)+2) -> 0 | W29: =VLOOKUP($Q29,Flow_All!$R$5:$AG$245,3*($C$8-1)+3) -> 0 | X29: =VLOOKUP($Q29,Flow_All!$R$5:$AG$245,3*($C$8-1)+4) -> 0
A30: Ba | C30: 2000 | H30: 6 | I30: =VLOOKUP($H30,Conc_All!$A$5:$P$204,3*($C$8-1)+2) -> 0.3265758333 | J30: =VLOOKUP($H30,Conc_All!$A$5:$P$204,3*($C$8-1)+3) -> 0.353905 | K30: =VLOOKUP($H30,Conc_All!$A$5:$P$204,3*($C$8-1)+4) -> 0.3781466667 | M30: =VLOOKUP($H30,Flow_All!$A$5:$P$204,3*($C$8-1)+2) -> 134.65525 | N30: =VLOOKUP($H30,Flow_All!$A$5:$P$204,3*($C$8-1)+3) -> 162.5954167 | O30: =VLOOKUP($H30,Flow_All!$A$5:$P$204,3*($C$8-1)+4) -> 206.1856667 | Q30: 40.41666667 | R30: =VLOOKUP($Q30,Conc_All!$R$5:$AG$245,3*($C$8-1)+2) -> 0.38366 | S30: =VLOOKUP($Q30,Conc_All!$R$5:$AG$245,3*($C$8-1)+3) -> 0.4 | T30: =VLOOKUP($Q30,Conc_All!$R$5:$AG$245,3*($C$8-1)+4) -> 0.4 | V30: =VLOOKUP($Q30,Flow_All!$R$5:$AG$245,3*($C$8-1)+2) -> 0 | W30: =VLOOKUP($Q30,Flow_All!$R$5:$AG$245,3*($C$8-1)+3) -> 0 | X30: =VLOOKUP($Q30,Flow_All!$R$5:$AG$245,3*($C$8-1)+4) -> 0
A31: Be | C31: 4 | H31: 7 | I31: =VLOOKUP($H31,Conc_All!$A$5:$P$204,3*($C$8-1)+2) -> 0.324895 | J31: =VLOOKUP($H31,Conc_All!$A$5:$P$204,3*($C$8-1)+3) -> 0.34953 | K31: =VLOOKUP($H31,Conc_All!$A$5:$P$204,3*($C$8-1)+4) -> 0.3706883333 | M31: =VLOOKUP($H31,Flow_All!$A$5:$P$204,3*($C$8-1)+2) -> 157.4090833 | N31: =VLOOKUP($H31,Flow_All!$A$5:$P$204,3*($C$8-1)+3) -> 192.5421667 | O31: =VLOOKUP($H31,Flow_All!$A$5:$P$204,3*($C$8-1)+4) -> 240.5245833 | Q31: 40.5 | R31: =VLOOKUP($Q31,Conc_All!$R$5:$AG$245,3*($C$8-1)+2) -> 0.38335 | S31: =VLOOKUP($Q31,Conc_All!$R$5:$AG$245,3*($C$8-1)+3) -> 0.4 | T31: =VLOOKUP($Q31,Conc_All!$R$5:$AG$245,3*($C$8-1)+4) -> 0.4 | V31: =VLOOKUP($Q31,Flow_All!$R$5:$AG$245,3*($C$8-1)+2) -> 0 | W31: =VLOOKUP($Q31,Flow_All!$R$5:$AG$245,3*($C$8-1)+3) -> 0 | X31: =VLOOKUP($Q31,Flow_All!$R$5:$AG$245,3*($C$8-1)+4) -> 0
A32: Ca | H32: 8 | I32: =VLOOKUP($H32,Conc_All!$A$5:$P$204,3*($C$8-1)+2) -> 0.3217316667 | J32: =VLOOKUP($H32,Conc_All!$A$5:$P$204,3*($C$8-1)+3) -> 0.3449933333 | K32: =VLOOKUP($H32,Conc_All!$A$5:$P$204,3*($C$8-1)+4) -> 0.3626791667 | M32: =VLOOKUP($H32,Flow_All!$A$5:$P$204,3*($C$8-1)+2) -> 169.9015 | N32: =VLOOKUP($H32,Flow_All!$A$5:$P$204,3*($C$8-1)+3) -> 207.8881667 | O32: =VLOOKUP($H32,Flow_All!$A$5:$P$204,3*($C$8-1)+4) -> 259.4715833 | Q32: 40.58333333 | R32: =VLOOKUP($Q32,Conc_All!$R$5:$AG$245,3*($C$8-1)+2) -> 0.38336 | S32: =VLOOKUP($Q32,Conc_All!$R$5:$AG$245,3*($C$8-1)+3) -> 0.4 | T32: =VLOOKUP($Q32,Conc_All!$R$5:$AG$245,3*($C$8-1)+4) -> 0.4 | V32: =VLOOKUP($Q32,Flow_All!$R$5:$AG$245,3*($C$8-1)+2) -> 0 | W32: =VLOOKUP($Q32,Flow_All!$R$5:$AG$245,3*($C$8-1)+3) -> 0 | X32: =VLOOKUP($Q32,Flow_All!$R$5:$AG$245,3*($C$8-1)+4) -> 0
A33: Cd | C33: 5 | D33: 0.7852 | E33: -2.715 | F33: =EXP(D33*LN(102)+E33) -> 2.500594874 | H33: 9 | I33: =VLOOKUP($H33,Conc_All!$A$5:$P$204,3*($C$8-1)+2) -> 0.3169908333 | J33: =VLOOKUP($H33,Conc_All!$A$5:$P$204,3*($C$8-1)+3) -> 0.34112 | K33: =VLOOKUP($H33,Conc_All!$A$5:$P$204,3*($C$8-1)+4) -> 0.3581916667 | M33: =VLOOKUP($H33,Flow_All!$A$5:$P$204,3*($C$8-1)+2) -> 183.7745 | N33: =VLOOKUP($H33,Flow_All!$A$5:$P$204,3*($C$8-1)+3) -> 226.387 | O33: =VLOOKUP($H33,Flow_All!$A$5:$P$204,3*($C$8-1)+4) -> 279.9620833 | Q33: 40.66666667 | R33: =VLOOKUP($Q33,Conc_All!$R$5:$AG$245,3*($C$8-1)+2) -> 0.38306 | S33: =VLOOKUP($Q33,Conc_All!$R$5:$AG$245,3*($C$8-1)+3) -> 0.4 | T33: =VLOOKUP($Q33,Conc_All!$R$5:$AG$245,3*($C$8-1)+4) -> 0.4 | V33: =VLOOKUP($Q33,Flow_All!$R$5:$AG$245,3*($C$8-1)+2) -> 0 | W33: =VLOOKUP($Q33,Flow_All!$R$5:$AG$245,3*($C$8-1)+3) -> 0 | X33: =VLOOKUP($Q33,Flow_All!$R$5:$AG$245,3*($C$8-1)+4) -> 0
A34: Cl | B34: 230000 | C34: 230000 | F34: =EXP(D34*LN(102)+E34) ->  | H34: 10 | I34: =VLOOKUP($H34,Conc_All!$A$5:$P$204,3*($C$8-1)+2) -> 0.3119958333 | J34: =VLOOKUP($H34,Conc_All!$A$5:$P$204,3*($C$8-1)+3) -> 0.3377016667 | K34: =VLOOKUP($H34,Conc_All!$A$5:$P$204,3*($C$8-1)+4) -> 0.3533133333 | M34: =VLOOKUP($H34,Flow_All!$A$5:$P$204,3*($C$8-1)+2) -> 198.2949167 | N34: =VLOOKUP($H34,Flow_All!$A$5:$P$204,3*($C$8-1)+3) -> 245.3741667 | O34: =VLOOKUP($H34,Flow_All!$A$5:$P$204,3*($C$8-1)+4) -> 308.3095833 | Q34: 40.75 | R34: =VLOOKUP($Q34,Conc_All!$R$5:$AG$245,3*($C$8-1)+2) -> 0.38247 | S34: =VLOOKUP($Q34,Conc_All!$R$5:$AG$245,3*($C$8-1)+3) -> 0.4 | T34: =VLOOKUP($Q34,Conc_All!$R$5:$AG$245,3*($C$8-1)+4) -> 0.4 | V34: =VLOOKUP($Q34,Flow_All!$R$5:$AG$245,3*($C$8-1)+2) -> 0 | W34: =VLOOKUP($Q34,Flow_All!$R$5:$AG$245,3*($C$8-1)+3) -> 0 | X34: =VLOOKUP($Q34,Flow_All!$R$5:$AG$245,3*($C$8-1)+4) -> 0
A35: Co | B35: 5 | C35: 2.8 | H35: 11 | I35: =VLOOKUP($H35,Conc_All!$A$5:$P$204,3*($C$8-1)+2) -> 0.3107783333 | J35: =VLOOKUP($H35,Conc_All!$A$5:$P$204,3*($C$8-1)+3) -> 0.34093 | K35: =VLOOKUP($H35,Conc_All!$A$5:$P$204,3*($C$8-1)+4) -> 0.3545083333 | M35: =VLOOKUP($H35,Flow_All!$A$5:$P$204,3*($C$8-1)+2) -> 257.4475 | N35: =VLOOKUP($H35,Flow_All!$A$5:$P$204,3*($C$8-1)+3) -> 312.9839167 | O35: =VLOOKUP($H35,Flow_All!$A$5:$P$204,3*($C$8-1)+4) -> 386.6926667 | Q35: 40.83333333 | R35: =VLOOKUP($Q35,Conc_All!$R$5:$AG$245,3*($C$8-1)+2) -> 0.38202 | S35: =VLOOKUP($Q35,Conc_All!$R$5:$AG$245,3*($C$8-1)+3) -> 0.4 | T35: =VLOOKUP($Q35,Conc_All!$R$5:$AG$245,3*($C$8-1)+4) -> 0.4 | V35: =VLOOKUP($Q35,Flow_All!$R$5:$AG$245,3*($C$8-1)+2) -> 0 | W35: =VLOOKUP($Q35,Flow_All!$R$5:$AG$245,3*($C$8-1)+3) -> 0 | X35: =VLOOKUP($Q35,Flow_All!$R$5:$AG$245,3*($C$8-1)+4) -> 0
A36: Cr | B36: 11 | C36: 11 | H36: 12 | I36: =VLOOKUP($H36,Conc_All!$A$5:$P$204,3*($C$8-1)+2) -> 0.3022933333 | J36: =VLOOKUP($H36,Conc_All!$A$5:$P$204,3*($C$8-1)+3) -> 0.339885 | K36: =VLOOKUP($H36,Conc_All!$A$5:$P$204,3*($C$8-1)+4) -> 0.3529541667 | M36: =VLOOKUP($H36,Flow_All!$A$5:$P$204,3*($C$8-1)+2) -> 271.7886667 | N36: =VLOOKUP($H36,Flow_All!$A$5:$P$204,3*($C$8-1)+3) -> 330.5363333 | O36: =VLOOKUP($H36,Flow_All!$A$5:$P$204,3*($C$8-1)+4) -> 411.3975 | Q36: 40.91666667 | R36: =VLOOKUP($Q36,Conc_All!$R$5:$AG$245,3*($C$8-1)+2) -> 0.38198 | S36: =VLOOKUP($Q36,Conc_All!$R$5:$AG$245,3*($C$8-1)+3) -> 0.4 | T36: =VLOOKUP($Q36,Conc_All!$R$5:$AG$245,3*($C$8-1)+4) -> 0.4 | V36: =VLOOKUP($Q36,Flow_All!$R$5:$AG$245,3*($C$8-1)+2) -> 0 | W36: =VLOOKUP($Q36,Flow_All!$R$5:$AG$245,3*($C$8-1)+3) -> 0 | X36: =VLOOKUP($Q36,Flow_All!$R$5:$AG$245,3*($C$8-1)+4) -> 0
A37: Cu | D37: 0.8545 | E37: -1.702 | F37: =EXP(D37*LN(102)+E37) -> 9.488108417 | H37: 13 | I37: =VLOOKUP($H37,Conc_All!$A$5:$P$204,3*($C$8-1)+2) -> 0.28433525 | J37: =VLOOKUP($H37,Conc_All!$A$5:$P$204,3*($C$8-1)+3) -> 0.3376175 | K37: =VLOOKUP($H37,Conc_All!$A$5:$P$204,3*($C$8-1)+4) -> 0.3513475 | M37: =VLOOKUP($H37,Flow_All!$A$5:$P$204,3*($C$8-1)+2) -> 256.8433333 | N37: =VLOOKUP($H37,Flow_All!$A$5:$P$204,3*($C$8-1)+3) -> 313.0644167 | O37: =VLOOKUP($H37,Flow_All!$A$5:$P$204,3*($C$8-1)+4) -> 391.5250833 | Q37: 41 | R37: =VLOOKUP($Q37,Conc_All!$R$5:$AG$245,3*($C$8-1)+2) -> 0.38198 | S37: =VLOOKUP($Q37,Conc_All!$R$5:$AG$245,3*($C$8-1)+3) -> 0.4 | T37: =VLOOKUP($Q37,Conc_All!$R$5:$AG$245,3*($C$8-1)+4) -> 0.4 | V37: =VLOOKUP($Q37,Flow_All!$R$5:$AG$245,3*($C$8-1)+2) -> 0 | W37: =VLOOKUP($Q37,Flow_All!$R$5:$AG$245,3*($C$8-1)+3) -> 0 | X37: =VLOOKUP($Q37,Flow_All!$R$5:$AG$245,3*($C$8-1)+4) -> 0
A38: F | C38: 4000 | H38: 14 | I38: =VLOOKUP($H38,Conc_All!$A$5:$P$204,3*($C$8-1)+2) -> 0.2623631667 | J38: =VLOOKUP($H38,Conc_All!$A$5:$P$204,3*($C$8-1)+3) -> 0.33616 | K38: =VLOOKUP($H38,Conc_All!$A$5:$P$204,3*($C$8-1)+4) -> 0.3495266667 | M38: =VLOOKUP($H38,Flow_All!$A$5:$P$204,3*($C$8-1)+2) -> 239.0753333 | N38: =VLOOKUP($H38,Flow_All!$A$5:$P$204,3*($C$8-1)+3) -> 298.34375 | O38: =VLOOKUP($H38,Flow_All!$A$5:$P$204,3*($C$8-1)+4) -> 377.1443333 | Q38: 41.08333333 | R38: =VLOOKUP($Q38,Conc_All!$R$5:$AG$245,3*($C$8-1)+2) -> 0.38207 | S38: =VLOOKUP($Q38,Conc_All!$R$5:$AG$245,3*($C$8-1)+3) -> 0.4 | T38: =VLOOKUP($Q38,Conc_All!$R$5:$AG$245,3*($C$8-1)+4) -> 0.4 | V38: =VLOOKUP($Q38,Flow_All!$R$5:$AG$245,3*($C$8-1)+2) -> 0 | W38: =VLOOKUP($Q38,Flow_All!$R$5:$AG$245,3*($C$8-1)+3) -> 0 | X38: =VLOOKUP($Q38,Flow_All!$R$5:$AG$245,3*($C$8-1)+4) -> 0
A39: Fe | C39: 300 | H39: 15 | I39: =VLOOKUP($H39,Conc_All!$A$5:$P$204,3*($C$8-1)+2) -> 0.25606225 | J39: =VLOOKUP($H39,Conc_All!$A$5:$P$204,3*($C$8-1)+3) -> 0.3353566667 | K39: =VLOOKUP($H39,Conc_All!$A$5:$P$204,3*($C$8-1)+4) -> 0.3483508333 | M39: =VLOOKUP($H39,Flow_All!$A$5:$P$204,3*($C$8-1)+2) -> 240.2104167 | N39: =VLOOKUP($H39,Flow_All!$A$5:$P$204,3*($C$8-1)+3) -> 294.3421667 | O39: =VLOOKUP($H39,Flow_All!$A$5:$P$204,3*($C$8-1)+4) -> 371.1275 | Q39: 41.16666667 | R39: =VLOOKUP($Q39,Conc_All!$R$5:$AG$245,3*($C$8-1)+2) -> 0.38204 | S39: =VLOOKUP($Q39,Conc_All!$R$5:$AG$245,3*($C$8-1)+3) -> 0.4 | T39: =VLOOKUP($Q39,Conc_All!$R$5:$AG$245,3*($C$8-1)+4) -> 0.4 | V39: =VLOOKUP($Q39,Flow_All!$R$5:$AG$245,3*($C$8-1)+2) -> 0 | W39: =VLOOKUP($Q39,Flow_All!$R$5:$AG$245,3*($C$8-1)+3) -> 0 | X39: =VLOOKUP($Q39,Flow_All!$R$5:$AG$245,3*($C$8-1)+4) -> 0
A40: K | H40: 16 | I40: =VLOOKUP($H40,Conc_All!$A$5:$P$204,3*($C$8-1)+2) -> 0.2558043333 | J40: =VLOOKUP($H40,Conc_All!$A$5:$P$204,3*($C$8-1)+3) -> 0.3342958333 | K40: =VLOOKUP($H40,Conc_All!$A$5:$P$204,3*($C$8-1)+4) -> 0.3468233333 | M40: =VLOOKUP($H40,Flow_All!$A$5:$P$204,3*($C$8-1)+2) -> 232.97 | N40: =VLOOKUP($H40,Flow_All!$A$5:$P$204,3*($C$8-1)+3) -> 285.0553333 | O40: =VLOOKUP($H40,Flow_All!$A$5:$P$204,3*($C$8-1)+4) -> 357.1990833 | Q40: 41.25 | R40: =VLOOKUP($Q40,Conc_All!$R$5:$AG$245,3*($C$8-1)+2) -> 0.38214 | S40: =VLOOKUP($Q40,Conc_All!$R$5:$AG$245,3*($C$8-1)+3) -> 0.4 | T40: =VLOOKUP($Q40,Conc_All!$R$5:$AG$245,3*($C$8-1)+4) -> 0.4 | V40: =VLOOKUP($Q40,Flow_All!$R$5:$AG$245,3*($C$8-1)+2) -> 0 | W40: =VLOOKUP($Q40,Flow_All!$R$5:$AG$245,3*($C$8-1)+3) -> 0 | X40: =VLOOKUP($Q40,Flow_All!$R$5:$AG$245,3*($C$8-1)+4) -> 0
A41: Mg | H41: 17 | I41: =VLOOKUP($H41,Conc_All!$A$5:$P$204,3*($C$8-1)+2) -> 0.25410625 | J41: =VLOOKUP($H41,Conc_All!$A$5:$P$204,3*($C$8-1)+3) -> 0.3339133333 | K41: =VLOOKUP($H41,Conc_All!$A$5:$P$204,3*($C$8-1)+4) -> 0.3468316667 | M41: =VLOOKUP($H41,Flow_All!$A$5:$P$204,3*($C$8-1)+2) -> 230.0514167 | N41: =VLOOKUP($H41,Flow_All!$A$5:$P$204,3*($C$8-1)+3) -> 282.2984167 | O41: =VLOOKUP($H41,Flow_All!$A$5:$P$204,3*($C$8-1)+4) -> 354.8715833 | Q41: 41.33333333 | R41: =VLOOKUP($Q41,Conc_All!$R$5:$AG$245,3*($C$8-1)+2) -> 0.38315 | S41: =VLOOKUP($Q41,Conc_All!$R$5:$AG$245,3*($C$8-1)+3) -> 0.4 | T41: =VLOOKUP($Q41,Conc_All!$R$5:$AG$245,3*($C$8-1)+4) -> 0.4 | V41: =VLOOKUP($Q41,Flow_All!$R$5:$AG$245,3*($C$8-1)+2) -> 0 | W41: =VLOOKUP($Q41,Flow_All!$R$5:$AG$245,3*($C$8-1)+3) -> 0 | X41: =VLOOKUP($Q41,Flow_All!$R$5:$AG$245,3*($C$8-1)+4) -> 0
A42: Mn | C42: 50 | H42: 18 | I42: =VLOOKUP($H42,Conc_All!$A$5:$P$204,3*($C$8-1)+2) -> 0.2560740833 | J42: =VLOOKUP($H42,Conc_All!$A$5:$P$204,3*($C$8-1)+3) -> 0.3332916667 | K42: =VLOOKUP($H42,Conc_All!$A$5:$P$204,3*($C$8-1)+4) -> 0.3464083333 | M42: =VLOOKUP($H42,Flow_All!$A$5:$P$204,3*($C$8-1)+2) -> 223.1068333 | N42: =VLOOKUP($H42,Flow_All!$A$5:$P$204,3*($C$8-1)+3) -> 281.0325 | O42: =VLOOKUP($H42,Flow_All!$A$5:$P$204,3*($C$8-1)+4) -> 354.4343333 | Q42: 41.41666667 | R42: =VLOOKUP($Q42,Conc_All!$R$5:$AG$245,3*($C$8-1)+2) -> 0.38274 | S42: =VLOOKUP($Q42,Conc_All!$R$5:$AG$245,3*($C$8-1)+3) -> 0.4 | T42: =VLOOKUP($Q42,Conc_All!$R$5:$AG$245,3*($C$8-1)+4) -> 0.4 | V42: =VLOOKUP($Q42,Flow_All!$R$5:$AG$245,3*($C$8-1)+2) -> 0 | W42: =VLOOKUP($Q42,Flow_All!$R$5:$AG$245,3*($C$8-1)+3) -> 0 | X42: =VLOOKUP($Q42,Flow_All!$R$5:$AG$245,3*($C$8-1)+4) -> 0
A43: Na | H43: 19 | I43: =VLOOKUP($H43,Conc_All!$A$5:$P$204,3*($C$8-1)+2) -> 0.257151 | J43: =VLOOKUP($H43,Conc_All!$A$5:$P$204,3*($C$8-1)+3) -> 0.3334141667 | K43: =VLOOKUP($H43,Conc_All!$A$5:$P$204,3*($C$8-1)+4) -> 0.3471316667 | M43: =VLOOKUP($H43,Flow_All!$A$5:$P$204,3*($C$8-1)+2) -> 221.7708333 | N43: =VLOOKUP($H43,Flow_All!$A$5:$P$204,3*($C$8-1)+3) -> 278.9143333 | O43: =VLOOKUP($H43,Flow_All!$A$5:$P$204,3*($C$8-1)+4) -> 351.0005833 | Q43: 41.5 | R43: =VLOOKUP($Q43,Conc_All!$R$5:$AG$245,3*($C$8-1)+2) -> 0.38253 | S43: =VLOOKUP($Q43,Conc_All!$R$5:$AG$245,3*($C$8-1)+3) -> 0.4 | T43: =VLOOKUP($Q43,Conc_All!$R$5:$AG$245,3*($C$8-1)+4) -> 0.4 | V43: =VLOOKUP($Q43,Flow_All!$R$5:$AG$245,3*($C$8-1)+2) -> 0 | W43: =VLOOKUP($Q43,Flow_All!$R$5:$AG$245,3*($C$8-1)+3) -> 0 | X43: =VLOOKUP($Q43,Flow_All!$R$5:$AG$245,3*($C$8-1)+4) -> 0
A44: Ni | D44: 0.846 | E44: 0.0584 | F44: 53.04427807 | H44: 20 | I44: =VLOOKUP($H44,Conc_All!$A$5:$P$204,3*($C$8-1)+2) -> 0.2622844167 | J44: =VLOOKUP($H44,Conc_All!$A$5:$P$204,3*($C$8-1)+3) -> 0.3335083333 | K44: =VLOOKUP($H44,Conc_All!$A$5:$P$204,3*($C$8-1)+4) -> 0.352455 | M44: =VLOOKUP($H44,Flow_All!$A$5:$P$204,3*($C$8-1)+2) -> 220.335 | N44: =VLOOKUP($H44,Flow_All!$A$5:$P$204,3*($C$8-1)+3) -> 274.3488333 | O44: =VLOOKUP($H44,Flow_All!$A$5:$P$204,3*($C$8-1)+4) -> 346.33825 | Q44: 41.58333333 | R44: =VLOOKUP($Q44,Conc_All!$R$5:$AG$245,3*($C$8-1)+2) -> 0.38241 | S44: =VLOOKUP($Q44,Conc_All!$R$5:$AG$245,3*($C$8-1)+3) -> 0.4 | T44: =VLOOKUP($Q44,Conc_All!$R$5:$AG$245,3*($C$8-1)+4) -> 0.4 | V44: =VLOOKUP($Q44,Flow_All!$R$5:$AG$245,3*($C$8-1)+2) -> 0 | W44: =VLOOKUP($Q44,Flow_All!$R$5:$AG$245,3*($C$8-1)+3) -> 0 | X44: =VLOOKUP($Q44,Flow_All!$R$5:$AG$245,3*($C$8-1)+4) -> 0
A45: Pb | D45: 1.273 | E45: -4.705 | F45: 3.262815234 | H45: 21 | I45: =VLOOKUP($H45,Conc_All!$A$5:$P$204,3*($C$8-1)+2) -> 0.4 | J45: =VLOOKUP($H45,Conc_All!$A$5:$P$204,3*($C$8-1)+3) -> 0.4 | K45: =VLOOKUP($H45,Conc_All!$A$5:$P$204,3*($C$8-1)+4) -> 0.4 | M45: =VLOOKUP($H45,Flow_All!$A$5:$P$204,3*($C$8-1)+2) -> 248.7404167 | N45: =VLOOKUP($H45,Flow_All!$A$5:$P$204,3*($C$8-1)+3) -> 375.9235833 | O45: =VLOOKUP($H45,Flow_All!$A$5:$P$204,3*($C$8-1)+4) -> 520.8041667 | Q45: 41.66666667 | R45: =VLOOKUP($Q45,Conc_All!$R$5:$AG$245,3*($C$8-1)+2) -> 0.38217 | S45: =VLOOKUP($Q45,Conc_All!$R$5:$AG$245,3*($C$8-1)+3) -> 0.4 | T45: =VLOOKUP($Q45,Conc_All!$R$5:$AG$245,3*($C$8-1)+4) -> 0.4 | V45: =VLOOKUP($Q45,Flow_All!$R$5:$AG$245,3*($C$8-1)+2) -> 0 | W45: =VLOOKUP($Q45,Flow_All!$R$5:$AG$245,3*($C$8-1)+3) -> 0 | X45: =VLOOKUP($Q45,Flow_All!$R$5:$AG$245,3*($C$8-1)+4) -> 0
A46: Sb | B46: 31 | C46: 5.5 | H46: 22 | I46: =VLOOKUP($H46,Conc_All!$A$5:$P$204,3*($C$8-1)+2) -> 0.4 | J46: =VLOOKUP($H46,Conc_All!$A$5:$P$204,3*($C$8-1)+3) -> 0.4 | K46: =VLOOKUP($H46,Conc_All!$A$5:$P$204,3*($C$8-1)+4) -> 0.4 | M46: =VLOOKUP($H46,Flow_All!$A$5:$P$204,3*($C$8-1)+2) -> 0 | N46: =VLOOKUP($H46,Flow_All!$A$5:$P$204,3*($C$8-1)+3) -> 0 | O46: =VLOOKUP($H46,Flow_All!$A$5:$P$204,3*($C$8-1)+4) -> 0 | Q46: 41.75 | R46: =VLOOKUP($Q46,Conc_All!$R$5:$AG$245,3*($C$8-1)+2) -> 0.38166 | S46: =VLOOKUP($Q46,Conc_All!$R$5:$AG$245,3*($C$8-1)+3) -> 0.4 | T46: =VLOOKUP($Q46,Conc_All!$R$5:$AG$245,3*($C$8-1)+4) -> 0.4 | V46: =VLOOKUP($Q46,Flow_All!$R$5:$AG$245,3*($C$8-1)+2) -> 0 | W46: =VLOOKUP($Q46,Flow_All!$R$5:$AG$245,3*($C$8-1)+3) -> 0 | X46: =VLOOKUP($Q46,Flow_All!$R$5:$AG$245,3*($C$8-1)+4) -> 0
A47: Se | B47: 5 | C47: 5 | H47: 23 | I47: =VLOOKUP($H47,Conc_All!$A$5:$P$204,3*($C$8-1)+2) -> 0.4 | J47: =VLOOKUP($H47,Conc_All!$A$5:$P$204,3*($C$8-1)+3) -> 0.4 | K47: =VLOOKUP($H47,Conc_All!$A$5:$P$204,3*($C$8-1)+4) -> 0.4 | M47: =VLOOKUP($H47,Flow_All!$A$5:$P$204,3*($C$8-1)+2) -> 0 | N47: =VLOOKUP($H47,Flow_All!$A$5:$P$204,3*($C$8-1)+3) -> 0 | O47: =VLOOKUP($H47,Flow_All!$A$5:$P$204,3*($C$8-1)+4) -> 0 | Q47: 41.83333333 | R47: =VLOOKUP($Q47,Conc_All!$R$5:$AG$245,3*($C$8-1)+2) -> 0.38119 | S47: =VLOOKUP($Q47,Conc_All!$R$5:$AG$245,3*($C$8-1)+3) -> 0.4 | T47: =VLOOKUP($Q47,Conc_All!$R$5:$AG$245,3*($C$8-1)+4) -> 0.4 | V47: =VLOOKUP($Q47,Flow_All!$R$5:$AG$245,3*($C$8-1)+2) -> 0 | W47: =VLOOKUP($Q47,Flow_All!$R$5:$AG$245,3*($C$8-1)+3) -> 0 | X47: =VLOOKUP($Q47,Flow_All!$R$5:$AG$245,3*($C$8-1)+4) -> 0
A48: SO4 | C48: 250000 | H48: 24 | I48: =VLOOKUP($H48,Conc_All!$A$5:$P$204,3*($C$8-1)+2) -> 0.4 | J48: =VLOOKUP($H48,Conc_All!$A$5:$P$204,3*($C$8-1)+3) -> 0.4 | K48: =VLOOKUP($H48,Conc_All!$A$5:$P$204,3*($C$8-1)+4) -> 0.4 | M48: =VLOOKUP($H48,Flow_All!$A$5:$P$204,3*($C$8-1)+2) -> 0 | N48: =VLOOKUP($H48,Flow_All!$A$5:$P$204,3*($C$8-1)+3) -> 0 | O48: =VLOOKUP($H48,Flow_All!$A$5:$P$204,3*($C$8-1)+4) -> 0 | Q48: 41.91666667 | R48: =VLOOKUP($Q48,Conc_All!$R$5:$AG$245,3*($C$8-1)+2) -> 0.38127 | S48: =VLOOKUP($Q48,Conc_All!$R$5:$AG$245,3*($C$8-1)+3) -> 0.4 | T48: =VLOOKUP($Q48,Conc_All!$R$5:$AG$245,3*($C$8-1)+4) -> 0.4 | V48: =VLOOKUP($Q48,Flow_All!$R$5:$AG$245,3*($C$8-1)+2) -> 0 | W48: =VLOOKUP($Q48,Flow_All!$R$5:$AG$245,3*($C$8-1)+3) -> 0 | X48: =VLOOKUP($Q48,Flow_All!$R$5:$AG$245,3*($C$8-1)+4) -> 0
A49: Tl | B49: 0.56 | C49: 0.28 | H49: 25 | I49: =VLOOKUP($H49,Conc_All!$A$5:$P$204,3*($C$8-1)+2) -> 0.4 | J49: =VLOOKUP($H49,Conc_All!$A$5:$P$204,3*($C$8-1)+3) -> 0.4 | K49: =VLOOKUP($H49,Conc_All!$A$5:$P$204,3*($C$8-1)+4) -> 0.4 | M49: =VLOOKUP($H49,Flow_All!$A$5:$P$204,3*($C$8-1)+2) -> 0 | N49: =VLOOKUP($H49,Flow_All!$A$5:$P$204,3*($C$8-1)+3) -> 0 | O49: =VLOOKUP($H49,Flow_All!$A$5:$P$204,3*($C$8-1)+4) -> 0 | Q49: 42 | R49: =VLOOKUP($Q49,Conc_All!$R$5:$AG$245,3*($C$8-1)+2) -> 0.38126 | S49: =VLOOKUP($Q49,Conc_All!$R$5:$AG$245,3*($C$8-1)+3) -> 0.4 | T49: =VLOOKUP($Q49,Conc_All!$R$5:$AG$245,3*($C$8-1)+4) -> 0.4 | V49: =VLOOKUP($Q49,Flow_All!$R$5:$AG$245,3*($C$8-1)+2) -> 0 | W49: =VLOOKUP($Q49,Flow_All!$R$5:$AG$245,3*($C$8-1)+3) -> 0 | X49: =VLOOKUP($Q49,Flow_All!$R$5:$AG$245,3*($C$8-1)+4) -> 0
A50: V | H50: 26 | I50: =VLOOKUP($H50,Conc_All!$A$5:$P$204,3*($C$8-1)+2) -> 0.4 | J50: =VLOOKUP($H50,Conc_All!$A$5:$P$204,3*($C$8-1)+3) -> 0.4 | K50: =VLOOKUP($H50,Conc_All!$A$5:$P$204,3*($C$8-1)+4) -> 0.4 | M50: =VLOOKUP($H50,Flow_All!$A$5:$P$204,3*($C$8-1)+2) -> 0 | N50: =VLOOKUP($H50,Flow_All!$A$5:$P$204,3*($C$8-1)+3) -> 0 | O50: =VLOOKUP($H50,Flow_All!$A$5:$P$204,3*($C$8-1)+4) -> 0 | Q50: 42.08333333 | R50: =VLOOKUP($Q50,Conc_All!$R$5:$AG$245,3*($C$8-1)+2) -> 0.38127 | S50: =VLOOKUP($Q50,Conc_All!$R$5:$AG$245,3*($C$8-1)+3) -> 0.4 | T50: =VLOOKUP($Q50,Conc_All!$R$5:$AG$245,3*($C$8-1)+4) -> 0.4 | V50: =VLOOKUP($Q50,Flow_All!$R$5:$AG$245,3*($C$8-1)+2) -> 0 | W50: =VLOOKUP($Q50,Flow_All!$R$5:$AG$245,3*($C$8-1)+3) -> 0 | X50: =VLOOKUP($Q50,Flow_All!$R$5:$AG$245,3*($C$8-1)+4) -> 0
A51: Zn | D51: 0.8473 | E51: 0.884 | F51: 121.8437474 | H51: 27 | I51: =VLOOKUP($H51,Conc_All!$A$5:$P$204,3*($C$8-1)+2) -> 0.4 | J51: =VLOOKUP($H51,Conc_All!$A$5:$P$204,3*($C$8-1)+3) -> 0.4 | K51: =VLOOKUP($H51,Conc_All!$A$5:$P$204,3*($C$8-1)+4) -> 0.4 | M51: =VLOOKUP($H51,Flow_All!$A$5:$P$204,3*($C$8-1)+2) -> 0 | N51: =VLOOKUP($H51,Flow_All!$A$5:$P$204,3*($C$8-1)+3) -> 0 | O51: =VLOOKUP($H51,Flow_All!$A$5:$P$204,3*($C$8-1)+4) -> 0 | Q51: 42.16666667 | R51: =VLOOKUP($Q51,Conc_All!$R$5:$AG$245,3*($C$8-1)+2) -> 0.38128 | S51: =VLOOKUP($Q51,Conc_All!$R$5:$AG$245,3*($C$8-1)+3) -> 0.4 | T51: =VLOOKUP($Q51,Conc_All!$R$5:$AG$245,3*($C$8-1)+4) -> 0.4 | V51: =VLOOKUP($Q51,Flow_All!$R$5:$AG$245,3*($C$8-1)+2) -> 0 | W51: =VLOOKUP($Q51,Flow_All!$R$5:$AG$245,3*($C$8-1)+3) -> 0 | X51: =VLOOKUP($Q51,Flow_All!$R$5:$AG$245,3*($C$8-1)+4) -> 0
H52: 28 | I52: =VLOOKUP($H52,Conc_All!$A$5:$P$204,3*($C$8-1)+2) -> 0.4 | J52: =VLOOKUP($H52,Conc_All!$A$5:$P$204,3*($C$8-1)+3) -> 0.4 | K52: =VLOOKUP($H52,Conc_All!$A$5:$P$204,3*($C$8-1)+4) -> 0.4 | M52: =VLOOKUP($H52,Flow_All!$A$5:$P$204,3*($C$8-1)+2) -> 0 | N52: =VLOOKUP($H52,Flow_All!$A$5:$P$204,3*($C$8-1)+3) -> 0 | O52: =VLOOKUP($H52,Flow_All!$A$5:$P$204,3*($C$8-1)+4) -> 0 | Q52: 42.25 | R52: =VLOOKUP($Q52,Conc_All!$R$5:$AG$245,3*($C$8-1)+2) -> 0.38126 | S52: =VLOOKUP($Q52,Conc_All!$R$5:$AG$245,3*($C$8-1)+3) -> 0.4 | T52: =VLOOKUP($Q52,Conc_All!$R$5:$AG$245,3*($C$8-1)+4) -> 0.4 | V52: =VLOOKUP($Q52,Flow_All!$R$5:$AG$245,3*($C$8-1)+2) -> 0 | W52: =VLOOKUP($Q52,Flow_All!$R$5:$AG$245,3*($C$8-1)+3) -> 0 | X52: =VLOOKUP($Q52,Flow_All!$R$5:$AG$245,3*($C$8-1)+4) -> 0
H53: 29 | I53: =VLOOKUP($H53,Conc_All!$A$5:$P$204,3*($C$8-1)+2) -> 0.4 | J53: =VLOOKUP($H53,Conc_All!$A$5:$P$204,3*($C$8-1)+3) -> 0.4 | K53: =VLOOKUP($H53,Conc_All!$A$5:$P$204,3*($C$8-1)+4) -> 0.4 | M53: =VLOOKUP($H53,Flow_All!$A$5:$P$204,3*($C$8-1)+2) -> 0 | N53: =VLOOKUP($H53,Flow_All!$A$5:$P$204,3*($C$8-1)+3) -> 0 | O53: =VLOOKUP($H53,Flow_All!$A$5:$P$204,3*($C$8-1)+4) -> 0 | Q53: 42.33333333 | R53: =VLOOKUP($Q53,Conc_All!$R$5:$AG$245,3*($C$8-1)+2) -> 0.37983 | S53: =VLOOKUP($Q53,Conc_All!$R$5:$AG$245,3*($C$8-1)+3) -> 0.4 | T53: =VLOOKUP($Q53,Conc_All!$R$5:$AG$245,3*($C$8-1)+4) -> 0.4 | V53: =VLOOKUP($Q53,Flow_All!$R$5:$AG$245,3*($C$8-1)+2) -> 0 | W53: =VLOOKUP($Q53,Flow_All!$R$5:$AG$245,3*($C$8-1)+3) -> 0 | X53: =VLOOKUP($Q53,Flow_All!$R$5:$AG$245,3*($C$8-1)+4) -> 0
H54: 30 | I54: =VLOOKUP($H54,Conc_All!$A$5:$P$204,3*($C$8-1)+2) -> 0.4 | J54: =VLOOKUP($H54,Conc_All!$A$5:$P$204,3*($C$8-1)+3) -> 0.4 | K54: =VLOOKUP($H54,Conc_All!$A$5:$P$204,3*($C$8-1)+4) -> 0.4 | M54: =VLOOKUP($H54,Flow_All!$A$5:$P$204,3*($C$8-1)+2) -> 0 | N54: =VLOOKUP($H54,Flow_All!$A$5:$P$204,3*($C$8-1)+3) -> 0 | O54: =VLOOKUP($H54,Flow_All!$A$5:$P$204,3*($C$8-1)+4) -> 0 | Q54: 42.41666667 | R54: =VLOOKUP($Q54,Conc_All!$R$5:$AG$245,3*($C$8-1)+2) -> 0.37988 | S54: =VLOOKUP($Q54,Conc_All!$R$5:$AG$245,3*($C$8-1)+3) -> 0.4 | T54: =VLOOKUP($Q54,Conc_All!$R$5:$AG$245,3*($C$8-1)+4) -> 0.4 | V54: =VLOOKUP($Q54,Flow_All!$R$5:$AG$245,3*($C$8-1)+2) -> 0 | W54: =VLOOKUP($Q54,Flow_All!$R$5:$AG$245,3*($C$8-1)+3) -> 0 | X54: =VLOOKUP($Q54,Flow_All!$R$5:$AG$245,3*($C$8-1)+4) -> 0
A55: Locations | H55: 31 | I55: =VLOOKUP($H55,Conc_All!$A$5:$P$204,3*($C$8-1)+2) -> 0.4 | J55: =VLOOKUP($H55,Conc_All!$A$5:$P$204,3*($C$8-1)+3) -> 0.4 | K55: =VLOOKUP($H55,Conc_All!$A$5:$P$204,3*($C$8-1)+4) -> 0.4 | M55: =VLOOKUP($H55,Flow_All!$A$5:$P$204,3*($C$8-1)+2) -> 0 | N55: =VLOOKUP($H55,Flow_All!$A$5:$P$204,3*($C$8-1)+3) -> 0 | O55: =VLOOKUP($H55,Flow_All!$A$5:$P$204,3*($C$8-1)+4) -> 0 | Q55: 42.5 | R55: =VLOOKUP($Q55,Conc_All!$R$5:$AG$245,3*($C$8-1)+2) -> 0.37974 | S55: =VLOOKUP($Q55,Conc_All!$R$5:$AG$245,3*($C$8-1)+3) -> 0.4 | T55: =VLOOKUP($Q55,Conc_All!$R$5:$AG$245,3*($C$8-1)+4) -> 0.4 | V55: =VLOOKUP($Q55,Flow_All!$R$5:$AG$245,3*($C$8-1)+2) -> 0 | W55: =VLOOKUP($Q55,Flow_All!$R$5:$AG$245,3*($C$8-1)+3) -> 0 | X55: =VLOOKUP($Q55,Flow_All!$R$5:$AG$245,3*($C$8-1)+4) -> 0
A56: Annual Max | H56: 32 | I56: =VLOOKUP($H56,Conc_All!$A$5:$P$204,3*($C$8-1)+2) -> 0.4 | J56: =VLOOKUP($H56,Conc_All!$A$5:$P$204,3*($C$8-1)+3) -> 0.4 | K56: =VLOOKUP($H56,Conc_All!$A$5:$P$204,3*($C$8-1)+4) -> 0.4 | M56: =VLOOKUP($H56,Flow_All!$A$5:$P$204,3*($C$8-1)+2) -> 0 | N56: =VLOOKUP($H56,Flow_All!$A$5:$P$204,3*($C$8-1)+3) -> 0 | O56: =VLOOKUP($H56,Flow_All!$A$5:$P$204,3*($C$8-1)+4) -> 0 | Q56: 42.58333333 | R56: =VLOOKUP($Q56,Conc_All!$R$5:$AG$245,3*($C$8-1)+2) -> 0.37942 | S56: =VLOOKUP($Q56,Conc_All!$R$5:$AG$245,3*($C$8-1)+3) -> 0.4 | T56: =VLOOKUP($Q56,Conc_All!$R$5:$AG$245,3*($C$8-1)+4) -> 0.4 | V56: =VLOOKUP($Q56,Flow_All!$R$5:$AG$245,3*($C$8-1)+2) -> 0 | W56: =VLOOKUP($Q56,Flow_All!$R$5:$AG$245,3*($C$8-1)+3) -> 0 | X56: =VLOOKUP($Q56,Flow_All!$R$5:$AG$245,3*($C$8-1)+4) -> 0
A57: Annual Average | H57: 33 | I57: =VLOOKUP($H57,Conc_All!$A$5:$P$204,3*($C$8-1)+2) -> 0.4 | J57: =VLOOKUP($H57,Conc_All!$A$5:$P$204,3*($C$8-1)+3) -> 0.4 | K57: =VLOOKUP($H57,Conc_All!$A$5:$P$204,3*($C$8-1)+4) -> 0.4 | M57: =VLOOKUP($H57,Flow_All!$A$5:$P$204,3*($C$8-1)+2) -> 0 | N57: =VLOOKUP($H57,Flow_All!$A$5:$P$204,3*($C$8-1)+3) -> 0 | O57: =VLOOKUP($H57,Flow_All!$A$5:$P$204,3*($C$8-1)+4) -> 0 | Q57: 42.66666667 | R57: =VLOOKUP($Q57,Conc_All!$R$5:$AG$245,3*($C$8-1)+2) -> 0.37893 | S57: =VLOOKUP($Q57,Conc_All!$R$5:$AG$245,3*($C$8-1)+3) -> 0.4 | T57: =VLOOKUP($Q57,Conc_All!$R$5:$AG$245,3*($C$8-1)+4) -> 0.4 | V57: =VLOOKUP($Q57,Flow_All!$R$5:$AG$245,3*($C$8-1)+2) -> 0 | W57: =VLOOKUP($Q57,Flow_All!$R$5:$AG$245,3*($C$8-1)+3) -> 0 | X57: =VLOOKUP($Q57,Flow_All!$R$5:$AG$245,3*($C$8-1)+4) -> 0
H58: 34 | I58: =VLOOKUP($H58,Conc_All!$A$5:$P$204,3*($C$8-1)+2) -> 0.4 | J58: =VLOOKUP($H58,Conc_All!$A$5:$P$204,3*($C$8-1)+3) -> 0.4 | K58: =VLOOKUP($H58,Conc_All!$A$5:$P$204,3*($C$8-1)+4) -> 0.4 | M58: =VLOOKUP($H58,Flow_All!$A$5:$P$204,3*($C$8-1)+2) -> 0 | N58: =VLOOKUP($H58,Flow_All!$A$5:$P$204,3*($C$8-1)+3) -> 0 | O58: =VLOOKUP($H58,Flow_All!$A$5:$P$204,3*($C$8-1)+4) -> 0 | Q58: 42.75 | R58: =VLOOKUP($Q58,Conc_All!$R$5:$AG$245,3*($C$8-1)+2) -> 0.37807 | S58: =VLOOKUP($Q58,Conc_All!$R$5:$AG$245,3*($C$8-1)+3) -> 0.4 | T58: =VLOOKUP($Q58,Conc_All!$R$5:$AG$245,3*($C$8-1)+4) -> 0.4 | V58: =VLOOKUP($Q58,Flow_All!$R$5:$AG$245,3*($C$8-1)+2) -> 0 | W58: =VLOOKUP($Q58,Flow_All!$R$5:$AG$245,3*($C$8-1)+3) -> 0 | X58: =VLOOKUP($Q58,Flow_All!$R$5:$AG$245,3*($C$8-1)+4) -> 0
H59: 35 | I59: =VLOOKUP($H59,Conc_All!$A$5:$P$204,3*($C$8-1)+2) -> 0.4 | J59: =VLOOKUP($H59,Conc_All!$A$5:$P$204,3*($C$8-1)+3) -> 0.4 | K59: =VLOOKUP($H59,Conc_All!$A$5:$P$204,3*($C$8-1)+4) -> 0.4 | M59: =VLOOKUP($H59,Flow_All!$A$5:$P$204,3*($C$8-1)+2) -> 0 | N59: =VLOOKUP($H59,Flow_All!$A$5:$P$204,3*($C$8-1)+3) -> 0 | O59: =VLOOKUP($H59,Flow_All!$A$5:$P$204,3*($C$8-1)+4) -> 0 | Q59: 42.83333333 | R59: =VLOOKUP($Q59,Conc_All!$R$5:$AG$245,3*($C$8-1)+2) -> 0.37759 | S59: =VLOOKUP($Q59,Conc_All!$R$5:$AG$245,3*($C$8-1)+3) -> 0.4 | T59: =VLOOKUP($Q59,Conc_All!$R$5:$AG$245,3*($C$8-1)+4) -> 0.4 | V59: =VLOOKUP($Q59,Flow_All!$R$5:$AG$245,3*($C$8-1)+2) -> 0 | W59: =VLOOKUP($Q59,Flow_All!$R$5:$AG$245,3*($C$8-1)+3) -> 0 | X59: =VLOOKUP($Q59,Flow_All!$R$5:$AG$245,3*($C$8-1)+4) -> 0
H60: 36 | I60: =VLOOKUP($H60,Conc_All!$A$5:$P$204,3*($C$8-1)+2) -> 0.4 | J60: =VLOOKUP($H60,Conc_All!$A$5:$P$204,3*($C$8-1)+3) -> 0.4 | K60: =VLOOKUP($H60,Conc_All!$A$5:$P$204,3*($C$8-1)+4) -> 0.4 | M60: =VLOOKUP($H60,Flow_All!$A$5:$P$204,3*($C$8-1)+2) -> 0 | N60: =VLOOKUP($H60,Flow_All!$A$5:$P$204,3*($C$8-1)+3) -> 0 | O60: =VLOOKUP($H60,Flow_All!$A$5:$P$204,3*($C$8-1)+4) -> 0 | Q60: 42.91666667 | R60: =VLOOKUP($Q60,Conc_All!$R$5:$AG$245,3*($C$8-1)+2) -> 0.37879 | S60: =VLOOKUP($Q60,Conc_All!$R$5:$AG$245,3*($C$8-1)+3) -> 0.4 | T60: =VLOOKUP($Q60,Conc_All!$R$5:$AG$245,3*($C$8-1)+4) -> 0.4 | V60: =VLOOKUP($Q60,Flow_All!$R$5:$AG$245,3*($C$8-1)+2) -> 0 | W60: =VLOOKUP($Q60,Flow_All!$R$5:$AG$245,3*($C$8-1)+3) -> 0 | X60: =VLOOKUP($Q60,Flow_All!$R$5:$AG$245,3*($C$8-1)+4) -> 0
H61: 37 | I61: =VLOOKUP($H61,Conc_All!$A$5:$P$204,3*($C$8-1)+2) -> 0.4 | J61: =VLOOKUP($H61,Conc_All!$A$5:$P$204,3*($C$8-1)+3) -> 0.4 | K61: =VLOOKUP($H61,Conc_All!$A$5:$P$204,3*($C$8-1)+4) -> 0.4 | M61: =VLOOKUP($H61,Flow_All!$A$5:$P$204,3*($C$8-1)+2) -> 0 | N61: =VLOOKUP($H61,Flow_All!$A$5:$P$204,3*($C$8-1)+3) -> 0 | O61: =VLOOKUP($H61,Flow_All!$A$5:$P$204,3*($C$8-1)+4) -> 0 | Q61: 43 | R61: =VLOOKUP($Q61,Conc_All!$R$5:$AG$245,3*($C$8-1)+2) -> 0.37868 | S61: =VLOOKUP($Q61,Conc_All!$R$5:$AG$245,3*($C$8-1)+3) -> 0.4 | T61: =VLOOKUP($Q61,Conc_All!$R$5:$AG$245,3*($C$8-1)+4) -> 0.4 | V61: =VLOOKUP($Q61,Flow_All!$R$5:$AG$245,3*($C$8-1)+2) -> 0 | W61: =VLOOKUP($Q61,Flow_All!$R$5:$AG$245,3*($C$8-1)+3) -> 0 | X61: =VLOOKUP($Q61,Flow_All!$R$5:$AG$245,3*($C$8-1)+4) -> 0
H62: 38 | I62: =VLOOKUP($H62,Conc_All!$A$5:$P$204,3*($C$8-1)+2) -> 0.398125 | J62: =VLOOKUP($H62,Conc_All!$A$5:$P$204,3*($C$8-1)+3) -> 0.4 | K62: =VLOOKUP($H62,Conc_All!$A$5:$P$204,3*($C$8-1)+4) -> 0.4 | M62: =VLOOKUP($H62,Flow_All!$A$5:$P$204,3*($C$8-1)+2) -> 0 | N62: =VLOOKUP($H62,Flow_All!$A$5:$P$204,3*($C$8-1)+3) -> 0 | O62: =VLOOKUP($H62,Flow_All!$A$5:$P$204,3*($C$8-1)+4) -> 0 | Q62: 43.08333333 | R62: =VLOOKUP($Q62,Conc_All!$R$5:$AG$245,3*($C$8-1)+2) -> 0.37876 | S62: =VLOOKUP($Q62,Conc_All!$R$5:$AG$245,3*($C$8-1)+3) -> 0.4 | T62: =VLOOKUP($Q62,Conc_All!$R$5:$AG$245,3*($C$8-1)+4) -> 0.4 | V62: =VLOOKUP($Q62,Flow_All!$R$5:$AG$245,3*($C$8-1)+2) -> 0 | W62: =VLOOKUP($Q62,Flow_All!$R$5:$AG$245,3*($C$8-1)+3) -> 0 | X62: =VLOOKUP($Q62,Flow_All!$R$5:$AG$245,3*($C$8-1)+4) -> 0
H63: 39 | I63: =VLOOKUP($H63,Conc_All!$A$5:$P$204,3*($C$8-1)+2) -> 0.3935241667 | J63: =VLOOKUP($H63,Conc_All!$A$5:$P$204,3*($C$8-1)+3) -> 0.4 | K63: =VLOOKUP($H63,Conc_All!$A$5:$P$204,3*($C$8-1)+4) -> 0.4 | M63: =VLOOKUP($H63,Flow_All!$A$5:$P$204,3*($C$8-1)+2) -> 0 | N63: =VLOOKUP($H63,Flow_All!$A$5:$P$204,3*($C$8-1)+3) -> 0 | O63: =VLOOKUP($H63,Flow_All!$A$5:$P$204,3*($C$8-1)+4) -> 0 | Q63: 43.16666667 | R63: =VLOOKUP($Q63,Conc_All!$R$5:$AG$245,3*($C$8-1)+2) -> 0.37884 | S63: =VLOOKUP($Q63,Conc_All!$R$5:$AG$245,3*($C$8-1)+3) -> 0.4 | T63: =VLOOKUP($Q63,Conc_All!$R$5:$AG$245,3*($C$8-1)+4) -> 0.4 | V63: =VLOOKUP($Q63,Flow_All!$R$5:$AG$245,3*($C$8-1)+2) -> 0 | W63: =VLOOKUP($Q63,Flow_All!$R$5:$AG$245,3*($C$8-1)+3) -> 0 | X63: =VLOOKUP($Q63,Flow_All!$R$5:$AG$245,3*($C$8-1)+4) -> 0
H64: 40 | I64: =VLOOKUP($H64,Conc_All!$A$5:$P$204,3*($C$8-1)+2) -> 0.3886866667 | J64: =VLOOKUP($H64,Conc_All!$A$5:$P$204,3*($C$8-1)+3) -> 0.4 | K64: =VLOOKUP($H64,Conc_All!$A$5:$P$204,3*($C$8-1)+4) -> 0.4 | M64: =VLOOKUP($H64,Flow_All!$A$5:$P$204,3*($C$8-1)+2) -> 0 | N64: =VLOOKUP($H64,Flow_All!$A$5:$P$204,3*($C$8-1)+3) -> 0 | O64: =VLOOKUP($H64,Flow_All!$A$5:$P$204,3*($C$8-1)+4) -> 0 | Q64: 43.25 | R64: =VLOOKUP($Q64,Conc_All!$R$5:$AG$245,3*($C$8-1)+2) -> 0.37867 | S64: =VLOOKUP($Q64,Conc_All!$R$5:$AG$245,3*($C$8-1)+3) -> 0.4 | T64: =VLOOKUP($Q64,Conc_All!$R$5:$AG$245,3*($C$8-1)+4) -> 0.4 | V64: =VLOOKUP($Q64,Flow_All!$R$5:$AG$245,3*($C$8-1)+2) -> 0 | W64: =VLOOKUP($Q64,Flow_All!$R$5:$AG$245,3*($C$8-1)+3) -> 0 | X64: =VLOOKUP($Q64,Flow_All!$R$5:$AG$245,3*($C$8-1)+4) -> 0
H65: 41 | I65: =VLOOKUP($H65,Conc_All!$A$5:$P$204,3*($C$8-1)+2) -> 0.3839941667 | J65: =VLOOKUP($H65,Conc_All!$A$5:$P$204,3*($C$8-1)+3) -> 0.4 | K65: =VLOOKUP($H65,Conc_All!$A$5:$P$204,3*($C$8-1)+4) -> 0.4 | M65: =VLOOKUP($H65,Flow_All!$A$5:$P$204,3*($C$8-1)+2) -> 0 | N65: =VLOOKUP($H65,Flow_All!$A$5:$P$204,3*($C$8-1)+3) -> 0 | O65: =VLOOKUP($H65,Flow_All!$A$5:$P$204,3*($C$8-1)+4) -> 0 | Q65: 43.33333333 | R65: =VLOOKUP($Q65,Conc_All!$R$5:$AG$245,3*($C$8-1)+2) -> 0.37714 | S65: =VLOOKUP($Q65,Conc_All!$R$5:$AG$245,3*($C$8-1)+3) -> 0.4 | T65: =VLOOKUP($Q65,Conc_All!$R$5:$AG$245,3*($C$8-1)+4) -> 0.4 | V65: =VLOOKUP($Q65,Flow_All!$R$5:$AG$245,3*($C$8-1)+2) -> 0 | W65: =VLOOKUP($Q65,Flow_All!$R$5:$AG$245,3*($C$8-1)+3) -> 0 | X65: =VLOOKUP($Q65,Flow_All!$R$5:$AG$245,3*($C$8-1)+4) -> 0
H66: 42 | I66: =VLOOKUP($H66,Conc_All!$A$5:$P$204,3*($C$8-1)+2) -> 0.3821125 | J66: =VLOOKUP($H66,Conc_All!$A$5:$P$204,3*($C$8-1)+3) -> 0.4 | K66: =VLOOKUP($H66,Conc_All!$A$5:$P$204,3*($C$8-1)+4) -> 0.4 | M66: =VLOOKUP($H66,Flow_All!$A$5:$P$204,3*($C$8-1)+2) -> 0 | N66: =VLOOKUP($H66,Flow_All!$A$5:$P$204,3*($C$8-1)+3) -> 0 | O66: =VLOOKUP($H66,Flow_All!$A$5:$P$204,3*($C$8-1)+4) -> 0 | Q66: 43.41666667 | R66: =VLOOKUP($Q66,Conc_All!$R$5:$AG$245,3*($C$8-1)+2) -> 0.37687 | S66: =VLOOKUP($Q66,Conc_All!$R$5:$AG$245,3*($C$8-1)+3) -> 0.4 | T66: =VLOOKUP($Q66,Conc_All!$R$5:$AG$245,3*($C$8-1)+4) -> 0.4 | V66: =VLOOKUP($Q66,Flow_All!$R$5:$AG$245,3*($C$8-1)+2) -> 0 | W66: =VLOOKUP($Q66,Flow_All!$R$5:$AG$245,3*($C$8-1)+3) -> 0 | X66: =VLOOKUP($Q66,Flow_All!$R$5:$AG$245,3*($C$8-1)+4) -> 0
H67: 43 | I67: =VLOOKUP($H67,Conc_All!$A$5:$P$204,3*($C$8-1)+2) -> 0.3797766667 | J67: =VLOOKUP($H67,Conc_All!$A$5:$P$204,3*($C$8-1)+3) -> 0.4 | K67: =VLOOKUP($H67,Conc_All!$A$5:$P$204,3*($C$8-1)+4) -> 0.4 | M67: =VLOOKUP($H67,Flow_All!$A$5:$P$204,3*($C$8-1)+2) -> 0 | N67: =VLOOKUP($H67,Flow_All!$A$5:$P$204,3*($C$8-1)+3) -> 0 | O67: =VLOOKUP($H67,Flow_All!$A$5:$P$204,3*($C$8-1)+4) -> 0 | Q67: 43.5 | R67: =VLOOKUP($Q67,Conc_All!$R$5:$AG$245,3*($C$8-1)+2) -> 0.37666 | S67: =VLOOKUP($Q67,Conc_All!$R$5:$AG$245,3*($C$8-1)+3) -> 0.4 | T67: =VLOOKUP($Q67,Conc_All!$R$5:$AG$245,3*($C$8-1)+4) -> 0.4 | V67: =VLOOKUP($Q67,Flow_All!$R$5:$AG$245,3*($C$8-1)+2) -> 0 | W67: =VLOOKUP($Q67,Flow_All!$R$5:$AG$245,3*($C$8-1)+3) -> 0 | X67: =VLOOKUP($Q67,Flow_All!$R$5:$AG$245,3*($C$8-1)+4) -> 0
H68: 44 | I68: =VLOOKUP($H68,Conc_All!$A$5:$P$204,3*($C$8-1)+2) -> 0.37704 | J68: =VLOOKUP($H68,Conc_All!$A$5:$P$204,3*($C$8-1)+3) -> 0.4 | K68: =VLOOKUP($H68,Conc_All!$A$5:$P$204,3*($C$8-1)+4) -> 0.4 | M68: =VLOOKUP($H68,Flow_All!$A$5:$P$204,3*($C$8-1)+2) -> 0 | N68: =VLOOKUP($H68,Flow_All!$A$5:$P$204,3*($C$8-1)+3) -> 0 | O68: =VLOOKUP($H68,Flow_All!$A$5:$P$204,3*($C$8-1)+4) -> 0 | Q68: 43.58333333 | R68: =VLOOKUP($Q68,Conc_All!$R$5:$AG$245,3*($C$8-1)+2) -> 0.37623 | S68: =VLOOKUP($Q68,Conc_All!$R$5:$AG$245,3*($C$8-1)+3) -> 0.4 | T68: =VLOOKUP($Q68,Conc_All!$R$5:$AG$245,3*($C$8-1)+4) -> 0.4 | V68: =VLOOKUP($Q68,Flow_All!$R$5:$AG$245,3*($C$8-1)+2) -> 0 | W68: =VLOOKUP($Q68,Flow_All!$R$5:$AG$245,3*($C$8-1)+3) -> 0 | X68: =VLOOKUP($Q68,Flow_All!$R$5:$AG$245,3*($C$8-1)+4) -> 0
H69: 45 | I69: =VLOOKUP($H69,Conc_All!$A$5:$P$204,3*($C$8-1)+2) -> 0.3741633333 | J69: =VLOOKUP($H69,Conc_All!$A$5:$P$204,3*($C$8-1)+3) -> 0.4 | K69: =VLOOKUP($H69,Conc_All!$A$5:$P$204,3*($C$8-1)+4) -> 0.4 | M69: =VLOOKUP($H69,Flow_All!$A$5:$P$204,3*($C$8-1)+2) -> 0 | N69: =VLOOKUP($H69,Flow_All!$A$5:$P$204,3*($C$8-1)+3) -> 0 | O69: =VLOOKUP($H69,Flow_All!$A$5:$P$204,3*($C$8-1)+4) -> 0 | Q69: 43.66666667 | R69: =VLOOKUP($Q69,Conc_All!$R$5:$AG$245,3*($C$8-1)+2) -> 0.376 | S69: =VLOOKUP($Q69,Conc_All!$R$5:$AG$245,3*($C$8-1)+3) -> 0.4 | T69: =VLOOKUP($Q69,Conc_All!$R$5:$AG$245,3*($C$8-1)+4) -> 0.4 | V69: =VLOOKUP($Q69,Flow_All!$R$5:$AG$245,3*($C$8-1)+2) -> 0 | W69: =VLOOKUP($Q69,Flow_All!$R$5:$AG$245,3*($C$8-1)+3) -> 0 | X69: =VLOOKUP($Q69,Flow_All!$R$5:$AG$245,3*($C$8-1)+4) -> 0
H70: 46 | I70: =VLOOKUP($H70,Conc_All!$A$5:$P$204,3*($C$8-1)+2) -> 0.3711291667 | J70: =VLOOKUP($H70,Conc_All!$A$5:$P$204,3*($C$8-1)+3) -> 0.4 | K70: =VLOOKUP($H70,Conc_All!$A$5:$P$204,3*($C$8-1)+4) -> 0.4 | M70: =VLOOKUP($H70,Flow_All!$A$5:$P$204,3*($C$8-1)+2) -> 0 | N70: =VLOOKUP($H70,Flow_All!$A$5:$P$204,3*($C$8-1)+3) -> 0 | O70: =VLOOKUP($H70,Flow_All!$A$5:$P$204,3*($C$8-1)+4) -> 0 | Q70: 43.75 | R70: =VLOOKUP($Q70,Conc_All!$R$5:$AG$245,3*($C$8-1)+2) -> 0.37575 | S70: =VLOOKUP($Q70,Conc_All!$R$5:$AG$245,3*($C$8-1)+3) -> 0.4 | T70: =VLOOKUP($Q70,Conc_All!$R$5:$AG$245,3*($C$8-1)+4) -> 0.4 | V70: =VLOOKUP($Q70,Flow_All!$R$5:$AG$245,3*($C$8-1)+2) -> 0 | W70: =VLOOKUP($Q70,Flow_All!$R$5:$AG$245,3*($C$8-1)+3) -> 0 | X70: =VLOOKUP($Q70,Flow_All!$R$5:$AG$245,3*($C$8-1)+4) -> 0
H71: 47 | I71: =VLOOKUP($H71,Conc_All!$A$5:$P$204,3*($C$8-1)+2) -> 0.3678066667 | J71: =VLOOKUP($H71,Conc_All!$A$5:$P$204,3*($C$8-1)+3) -> 0.4 | K71: =VLOOKUP($H71,Conc_All!$A$5:$P$204,3*($C$8-1)+4) -> 0.4 | M71: =VLOOKUP($H71,Flow_All!$A$5:$P$204,3*($C$8-1)+2) -> 0 | N71: =VLOOKUP($H71,Flow_All!$A$5:$P$204,3*($C$8-1)+3) -> 0 | O71: =VLOOKUP($H71,Flow_All!$A$5:$P$204,3*($C$8-1)+4) -> 0 | Q71: 43.83333333 | R71: =VLOOKUP($Q71,Conc_All!$R$5:$AG$245,3*($C$8-1)+2) -> 0.37545 | S71: =VLOOKUP($Q71,Conc_All!$R$5:$AG$245,3*($C$8-1)+3) -> 0.4 | T71: =VLOOKUP($Q71,Conc_All!$R$5:$AG$245,3*($C$8-1)+4) -> 0.4 | V71: =VLOOKUP($Q71,Flow_All!$R$5:$AG$245,3*($C$8-1)+2) -> 0 | W71: =VLOOKUP($Q71,Flow_All!$R$5:$AG$245,3*($C$8-1)+3) -> 0 | X71: =VLOOKUP($Q71,Flow_All!$R$5:$AG$245,3*($C$8-1)+4) -> 0
H72: 48 | I72: =VLOOKUP($H72,Conc_All!$A$5:$P$204,3*($C$8-1)+2) -> 0.3654 | J72: =VLOOKUP($H72,Conc_All!$A$5:$P$204,3*($C$8-1)+3) -> 0.4 | K72: =VLOOKUP($H72,Conc_All!$A$5:$P$204,3*($C$8-1)+4) -> 0.4 | M72: =VLOOKUP($H72,Flow_All!$A$5:$P$204,3*($C$8-1)+2) -> 0 | N72: =VLOOKUP($H72,Flow_All!$A$5:$P$204,3*($C$8-1)+3) -> 0 | O72: =VLOOKUP($H72,Flow_All!$A$5:$P$204,3*($C$8-1)+4) -> 0 | Q72: 43.91666667 | R72: =VLOOKUP($Q72,Conc_All!$R$5:$AG$245,3*($C$8-1)+2) -> 0.37543 | S72: =VLOOKUP($Q72,Conc_All!$R$5:$AG$245,3*($C$8-1)+3) -> 0.4 | T72: =VLOOKUP($Q72,Conc_All!$R$5:$AG$245,3*($C$8-1)+4) -> 0.4 | V72: =VLOOKUP($Q72,Flow_All!$R$5:$AG$245,3*($C$8-1)+2) -> 0 | W72: =VLOOKUP($Q72,Flow_All!$R$5:$AG$245,3*($C$8-1)+3) -> 0 | X72: =VLOOKUP($Q72,Flow_All!$R$5:$AG$245,3*($C$8-1)+4) -> 0
H73: 49 | I73: =VLOOKUP($H73,Conc_All!$A$5:$P$204,3*($C$8-1)+2) -> 0.3626525 | J73: =VLOOKUP($H73,Conc_All!$A$5:$P$204,3*($C$8-1)+3) -> 0.4 | K73: =VLOOKUP($H73,Conc_All!$A$5:$P$204,3*($C$8-1)+4) -> 0.4 | M73: =VLOOKUP($H73,Flow_All!$A$5:$P$204,3*($C$8-1)+2) -> 0 | N73: =VLOOKUP($H73,Flow_All!$A$5:$P$204,3*($C$8-1)+3) -> 0 | O73: =VLOOKUP($H73,Flow_All!$A$5:$P$204,3*($C$8-1)+4) -> 61.72833333 | Q73: 44 | R73: =VLOOKUP($Q73,Conc_All!$R$5:$AG$245,3*($C$8-1)+2) -> 0.37544 | S73: =VLOOKUP($Q73,Conc_All!$R$5:$AG$245,3*($C$8-1)+3) -> 0.4 | T73: =VLOOKUP($Q73,Conc_All!$R$5:$AG$245,3*($C$8-1)+4) -> 0.4 | V73: =VLOOKUP($Q73,Flow_All!$R$5:$AG$245,3*($C$8-1)+2) -> 0 | W73: =VLOOKUP($Q73,Flow_All!$R$5:$AG$245,3*($C$8-1)+3) -> 0 | X73: =VLOOKUP($Q73,Flow_All!$R$5:$AG$245,3*($C$8-1)+4) -> 0
H74: 50 | I74: =VLOOKUP($H74,Conc_All!$A$5:$P$204,3*($C$8-1)+2) -> 0.3603141667 | J74: =VLOOKUP($H74,Conc_All!$A$5:$P$204,3*($C$8-1)+3) -> 0.4 | K74: =VLOOKUP($H74,Conc_All!$A$5:$P$204,3*($C$8-1)+4) -> 0.4 | M74: =VLOOKUP($H74,Flow_All!$A$5:$P$204,3*($C$8-1)+2) -> 0 | N74: =VLOOKUP($H74,Flow_All!$A$5:$P$204,3*($C$8-1)+3) -> 0 | O74: =VLOOKUP($H74,Flow_All!$A$5:$P$204,3*($C$8-1)+4) -> 294.625 | Q74: 44.08333333 | R74: =VLOOKUP($Q74,Conc_All!$R$5:$AG$245,3*($C$8-1)+2) -> 0.37549 | S74: =VLOOKUP($Q74,Conc_All!$R$5:$AG$245,3*($C$8-1)+3) -> 0.4 | T74: =VLOOKUP($Q74,Conc_All!$R$5:$AG$245,3*($C$8-1)+4) -> 0.4 | V74: =VLOOKUP($Q74,Flow_All!$R$5:$AG$245,3*($C$8-1)+2) -> 0 | W74: =VLOOKUP($Q74,Flow_All!$R$5:$AG$245,3*($C$8-1)+3) -> 0 | X74: =VLOOKUP($Q74,Flow_All!$R$5:$AG$245,3*($C$8-1)+4) -> 0
H75: 51 | I75: =VLOOKUP($H75,Conc_All!$A$5:$P$204,3*($C$8-1)+2) -> 0.3582091667 | J75: =VLOOKUP($H75,Conc_All!$A$5:$P$204,3*($C$8-1)+3) -> 0.4 | K75: =VLOOKUP($H75,Conc_All!$A$5:$P$204,3*($C$8-1)+4) -> 0.4 | M75: =VLOOKUP($H75,Flow_All!$A$5:$P$204,3*($C$8-1)+2) -> 0 | N75: =VLOOKUP($H75,Flow_All!$A$5:$P$204,3*($C$8-1)+3) -> 0 | O75: =VLOOKUP($H75,Flow_All!$A$5:$P$204,3*($C$8-1)+4) -> 298.3466667 | Q75: 44.16666667 | R75: =VLOOKUP($Q75,Conc_All!$R$5:$AG$245,3*($C$8-1)+2) -> 0.37553 | S75: =VLOOKUP($Q75,Conc_All!$R$5:$AG$245,3*($C$8-1)+3) -> 0.4 | T75: =VLOOKUP($Q75,Conc_All!$R$5:$AG$245,3*($C$8-1)+4) -> 0.4 | V75: =VLOOKUP($Q75,Flow_All!$R$5:$AG$245,3*($C$8-1)+2) -> 0 | W75: =VLOOKUP($Q75,Flow_All!$R$5:$AG$245,3*($C$8-1)+3) -> 0 | X75: =VLOOKUP($Q75,Flow_All!$R$5:$AG$245,3*($C$8-1)+4) -> 0
H76: 52 | I76: =VLOOKUP($H76,Conc_All!$A$5:$P$204,3*($C$8-1)+2) -> 0.3561408333 | J76: =VLOOKUP($H76,Conc_All!$A$5:$P$204,3*($C$8-1)+3) -> 0.4 | K76: =VLOOKUP($H76,Conc_All!$A$5:$P$204,3*($C$8-1)+4) -> 0.4 | M76: =VLOOKUP($H76,Flow_All!$A$5:$P$204,3*($C$8-1)+2) -> 0 | N76: =VLOOKUP($H76,Flow_All!$A$5:$P$204,3*($C$8-1)+3) -> 117.7416667 | O76: =VLOOKUP($H76,Flow_All!$A$5:$P$204,3*($C$8-1)+4) -> 298.8016667 | Q76: 44.25 | R76: =VLOOKUP($Q76,Conc_All!$R$5:$AG$245,3*($C$8-1)+2) -> 0.37546 | S76: =VLOOKUP($Q76,Conc_All!$R$5:$AG$245,3*($C$8-1)+3) -> 0.4 | T76: =VLOOKUP($Q76,Conc_All!$R$5:$AG$245,3*($C$8-1)+4) -> 0.4 | V76: =VLOOKUP($Q76,Flow_All!$R$5:$AG$245,3*($C$8-1)+2) -> 0 | W76: =VLOOKUP($Q76,Flow_All!$R$5:$AG$245,3*($C$8-1)+3) -> 0 | X76: =VLOOKUP($Q76,Flow_All!$R$5:$AG$245,3*($C$8-1)+4) -> 0
H77: 53 | I77: =VLOOKUP($H77,Conc_All!$A$5:$P$204,3*($C$8-1)+2) -> 0.3541558333 | J77: =VLOOKUP($H77,Conc_All!$A$5:$P$204,3*($C$8-1)+3) -> 0.4 | K77: =VLOOKUP($H77,Conc_All!$A$5:$P$204,3*($C$8-1)+4) -> 0.4 | M77: =VLOOKUP($H77,Flow_All!$A$5:$P$204,3*($C$8-1)+2) -> 0 | N77: =VLOOKUP($H77,Flow_All!$A$5:$P$204,3*($C$8-1)+3) -> 257.025 | O77: =VLOOKUP($H77,Flow_All!$A$5:$P$204,3*($C$8-1)+4) -> 299.0116667 | Q77: 44.33333333 | R77: =VLOOKUP($Q77,Conc_All!$R$5:$AG$245,3*($C$8-1)+2) -> 0.3745 | S77: =VLOOKUP($Q77,Conc_All!$R$5:$AG$245,3*($C$8-1)+3) -> 0.4 | T77: =VLOOKUP($Q77,Conc_All!$R$5:$AG$245,3*($C$8-1)+4) -> 0.4 | V77: =VLOOKUP($Q77,Flow_All!$R$5:$AG$245,3*($C$8-1)+2) -> 0 | W77: =VLOOKUP($Q77,Flow_All!$R$5:$AG$245,3*($C$8-1)+3) -> 0 | X77: =VLOOKUP($Q77,Flow_All!$R$5:$AG$245,3*($C$8-1)+4) -> 0
H78: 54 | I78: =VLOOKUP($H78,Conc_All!$A$5:$P$204,3*($C$8-1)+2) -> 0.35198 | J78: =VLOOKUP($H78,Conc_All!$A$5:$P$204,3*($C$8-1)+3) -> 0.4 | K78: =VLOOKUP($H78,Conc_All!$A$5:$P$204,3*($C$8-1)+4) -> 0.4 | M78: =VLOOKUP($H78,Flow_All!$A$5:$P$204,3*($C$8-1)+2) -> 0 | N78: =VLOOKUP($H78,Flow_All!$A$5:$P$204,3*($C$8-1)+3) -> 296.0375 | O78: =VLOOKUP($H78,Flow_All!$A$5:$P$204,3*($C$8-1)+4) -> 299.2341667 | Q78: 44.41666667 | R78: =VLOOKUP($Q78,Conc_All!$R$5:$AG$245,3*($C$8-1)+2) -> 0.37424 | S78: =VLOOKUP($Q78,Conc_All!$R$5:$AG$245,3*($C$8-1)+3) -> 0.4 | T78: =VLOOKUP($Q78,Conc_All!$R$5:$AG$245,3*($C$8-1)+4) -> 0.4 | V78: =VLOOKUP($Q78,Flow_All!$R$5:$AG$245,3*($C$8-1)+2) -> 0 | W78: =VLOOKUP($Q78,Flow_All!$R$5:$AG$245,3*($C$8-1)+3) -> 0 | X78: =VLOOKUP($Q78,Flow_All!$R$5:$AG$245,3*($C$8-1)+4) -> 0
H79: 55 | I79: =VLOOKUP($H79,Conc_All!$A$5:$P$204,3*($C$8-1)+2) -> 0.3496433333 | J79: =VLOOKUP($H79,Conc_All!$A$5:$P$204,3*($C$8-1)+3) -> 0.4 | K79: =VLOOKUP($H79,Conc_All!$A$5:$P$204,3*($C$8-1)+4) -> 0.4 | M79: =VLOOKUP($H79,Flow_All!$A$5:$P$204,3*($C$8-1)+2) -> 94.85333333 | N79: =VLOOKUP($H79,Flow_All!$A$5:$P$204,3*($C$8-1)+3) -> 297.065 | O79: =VLOOKUP($H79,Flow_All!$A$5:$P$204,3*($C$8-1)+4) -> 299.3183333 | Q79: 44.5 | R79: =VLOOKUP($Q79,Conc_All!$R$5:$AG$245,3*($C$8-1)+2) -> 0.37375 | S79: =VLOOKUP($Q79,Conc_All!$R$5:$AG$245,3*($C$8-1)+3) -> 0.4 | T79: =VLOOKUP($Q79,Conc_All!$R$5:$AG$245,3*($C$8-1)+4) -> 0.4 | V79: =VLOOKUP($Q79,Flow_All!$R$5:$AG$245,3*($C$8-1)+2) -> 0 | W79: =VLOOKUP($Q79,Flow_All!$R$5:$AG$245,3*($C$8-1)+3) -> 0 | X79: =VLOOKUP($Q79,Flow_All!$R$5:$AG$245,3*($C$8-1)+4) -> 0
H80: 56 | I80: =VLOOKUP($H80,Conc_All!$A$5:$P$204,3*($C$8-1)+2) -> 0.3478766667 | J80: =VLOOKUP($H80,Conc_All!$A$5:$P$204,3*($C$8-1)+3) -> 0.4 | K80: =VLOOKUP($H80,Conc_All!$A$5:$P$204,3*($C$8-1)+4) -> 0.4 | M80: =VLOOKUP($H80,Flow_All!$A$5:$P$204,3*($C$8-1)+2) -> 205.3258333 | N80: =VLOOKUP($H80,Flow_All!$A$5:$P$204,3*($C$8-1)+3) -> 297.3075 | O80: =VLOOKUP($H80,Flow_All!$A$5:$P$204,3*($C$8-1)+4) -> 299.3691667 | Q80: 44.58333333 | R80: =VLOOKUP($Q80,Conc_All!$R$5:$AG$245,3*($C$8-1)+2) -> 0.37376 | S80: =VLOOKUP($Q80,Conc_All!$R$5:$AG$245,3*($C$8-1)+3) -> 0.4 | T80: =VLOOKUP($Q80,Conc_All!$R$5:$AG$245,3*($C$8-1)+4) -> 0.4 | V80: =VLOOKUP($Q80,Flow_All!$R$5:$AG$245,3*($C$8-1)+2) -> 0 | W80: =VLOOKUP($Q80,Flow_All!$R$5:$AG$245,3*($C$8-1)+3) -> 0 | X80: =VLOOKUP($Q80,Flow_All!$R$5:$AG$245,3*($C$8-1)+4) -> 0
H81: 57 | I81: =VLOOKUP($H81,Conc_All!$A$5:$P$204,3*($C$8-1)+2) -> 0.3461883333 | J81: =VLOOKUP($H81,Conc_All!$A$5:$P$204,3*($C$8-1)+3) -> 0.4 | K81: =VLOOKUP($H81,Conc_All!$A$5:$P$204,3*($C$8-1)+4) -> 0.4 | M81: =VLOOKUP($H81,Flow_All!$A$5:$P$204,3*($C$8-1)+2) -> 220.7141667 | N81: =VLOOKUP($H81,Flow_All!$A$5:$P$204,3*($C$8-1)+3) -> 297.4 | O81: =VLOOKUP($H81,Flow_All!$A$5:$P$204,3*($C$8-1)+4) -> 299.4525 | Q81: 44.66666667 | R81: =VLOOKUP($Q81,Conc_All!$R$5:$AG$245,3*($C$8-1)+2) -> 0.37355 | S81: =VLOOKUP($Q81,Conc_All!$R$5:$AG$245,3*($C$8-1)+3) -> 0.4 | T81: =VLOOKUP($Q81,Conc_All!$R$5:$AG$245,3*($C$8-1)+4) -> 0.4 | V81: =VLOOKUP($Q81,Flow_All!$R$5:$AG$245,3*($C$8-1)+2) -> 0 | W81: =VLOOKUP($Q81,Flow_All!$R$5:$AG$245,3*($C$8-1)+3) -> 0 | X81: =VLOOKUP($Q81,Flow_All!$R$5:$AG$245,3*($C$8-1)+4) -> 0
H82: 58 | I82: =VLOOKUP($H82,Conc_All!$A$5:$P$204,3*($C$8-1)+2) -> 0.3446916667 | J82: =VLOOKUP($H82,Conc_All!$A$5:$P$204,3*($C$8-1)+3) -> 0.4 | K82: =VLOOKUP($H82,Conc_All!$A$5:$P$204,3*($C$8-1)+4) -> 0.4 | M82: =VLOOKUP($H82,Flow_All!$A$5:$P$204,3*($C$8-1)+2) -> 227.94 | N82: =VLOOKUP($H82,Flow_All!$A$5:$P$204,3*($C$8-1)+3) -> 297.3941667 | O82: =VLOOKUP($H82,Flow_All!$A$5:$P$204,3*($C$8-1)+4) -> 310.3308333 | Q82: 44.75 | R82: =VLOOKUP($Q82,Conc_All!$R$5:$AG$245,3*($C$8-1)+2) -> 0.37306 | S82: =VLOOKUP($Q82,Conc_All!$R$5:$AG$245,3*($C$8-1)+3) -> 0.4 | T82: =VLOOKUP($Q82,Conc_All!$R$5:$AG$245,3*($C$8-1)+4) -> 0.4 | V82: =VLOOKUP($Q82,Flow_All!$R$5:$AG$245,3*($C$8-1)+2) -> 0 | W82: =VLOOKUP($Q82,Flow_All!$R$5:$AG$245,3*($C$8-1)+3) -> 0 | X82: =VLOOKUP($Q82,Flow_All!$R$5:$AG$245,3*($C$8-1)+4) -> 0
H83: 59 | I83: =VLOOKUP($H83,Conc_All!$A$5:$P$204,3*($C$8-1)+2) -> 0.34351 | J83: =VLOOKUP($H83,Conc_All!$A$5:$P$204,3*($C$8-1)+3) -> 0.4 | K83: =VLOOKUP($H83,Conc_All!$A$5:$P$204,3*($C$8-1)+4) -> 0.4 | M83: =VLOOKUP($H83,Flow_All!$A$5:$P$204,3*($C$8-1)+2) -> 239.6658333 | N83: =VLOOKUP($H83,Flow_All!$A$5:$P$204,3*($C$8-1)+3) -> 297.565 | O83: =VLOOKUP($H83,Flow_All!$A$5:$P$204,3*($C$8-1)+4) -> 348.25 | Q83: 44.83333333 | R83: =VLOOKUP($Q83,Conc_All!$R$5:$AG$245,3*($C$8-1)+2) -> 0.3726 | S83: =VLOOKUP($Q83,Conc_All!$R$5:$AG$245,3*($C$8-1)+3) -> 0.4 | T83: =VLOOKUP($Q83,Conc_All!$R$5:$AG$245,3*($C$8-1)+4) -> 0.4 | V83: =VLOOKUP($Q83,Flow_All!$R$5:$AG$245,3*($C$8-1)+2) -> 0 | W83: =VLOOKUP($Q83,Flow_All!$R$5:$AG$245,3*($C$8-1)+3) -> 0 | X83: =VLOOKUP($Q83,Flow_All!$R$5:$AG$245,3*($C$8-1)+4) -> 0
H84: 60 | I84: =VLOOKUP($H84,Conc_All!$A$5:$P$204,3*($C$8-1)+2) -> 0.3417308333 | J84: =VLOOKUP($H84,Conc_All!$A$5:$P$204,3*($C$8-1)+3) -> 0.4 | K84: =VLOOKUP($H84,Conc_All!$A$5:$P$204,3*($C$8-1)+4) -> 0.4 | M84: =VLOOKUP($H84,Flow_All!$A$5:$P$204,3*($C$8-1)+2) -> 250.81 | N84: =VLOOKUP($H84,Flow_All!$A$5:$P$204,3*($C$8-1)+3) -> 297.53 | O84: =VLOOKUP($H84,Flow_All!$A$5:$P$204,3*($C$8-1)+4) -> 348.8041667 | Q84: 44.91666667 | R84: =VLOOKUP($Q84,Conc_All!$R$5:$AG$245,3*($C$8-1)+2) -> 0.37258 | S84: =VLOOKUP($Q84,Conc_All!$R$5:$AG$245,3*($C$8-1)+3) -> 0.4 | T84: =VLOOKUP($Q84,Conc_All!$R$5:$AG$245,3*($C$8-1)+4) -> 0.4 | V84: =VLOOKUP($Q84,Flow_All!$R$5:$AG$245,3*($C$8-1)+2) -> 0 | W84: =VLOOKUP($Q84,Flow_All!$R$5:$AG$245,3*($C$8-1)+3) -> 0 | X84: =VLOOKUP($Q84,Flow_All!$R$5:$AG$245,3*($C$8-1)+4) -> 0
H85: 61 | I85: =VLOOKUP($H85,Conc_All!$A$5:$P$204,3*($C$8-1)+2) -> 0.3400683333 | J85: =VLOOKUP($H85,Conc_All!$A$5:$P$204,3*($C$8-1)+3) -> 0.4 | K85: =VLOOKUP($H85,Conc_All!$A$5:$P$204,3*($C$8-1)+4) -> 0.4 | M85: =VLOOKUP($H85,Flow_All!$A$5:$P$204,3*($C$8-1)+2) -> 264.775 | N85: =VLOOKUP($H85,Flow_All!$A$5:$P$204,3*($C$8-1)+3) -> 297.6091667 | O85: =VLOOKUP($H85,Flow_All!$A$5:$P$204,3*($C$8-1)+4) -> 372.4041667 | Q85: 45 | R85: =VLOOKUP($Q85,Conc_All!$R$5:$AG$245,3*($C$8-1)+2) -> 0.37251 | S85: =VLOOKUP($Q85,Conc_All!$R$5:$AG$245,3*($C$8-1)+3) -> 0.4 | T85: =VLOOKUP($Q85,Conc_All!$R$5:$AG$245,3*($C$8-1)+4) -> 0.4 | V85: =VLOOKUP($Q85,Flow_All!$R$5:$AG$245,3*($C$8-1)+2) -> 0 | W85: =VLOOKUP($Q85,Flow_All!$R$5:$AG$245,3*($C$8-1)+3) -> 0 | X85: =VLOOKUP($Q85,Flow_All!$R$5:$AG$245,3*($C$8-1)+4) -> 0
H86: 62 | I86: =VLOOKUP($H86,Conc_All!$A$5:$P$204,3*($C$8-1)+2) -> 0.3388041667 | J86: =VLOOKUP($H86,Conc_All!$A$5:$P$204,3*($C$8-1)+3) -> 0.4 | K86: =VLOOKUP($H86,Conc_All!$A$5:$P$204,3*($C$8-1)+4) -> 0.4 | M86: =VLOOKUP($H86,Flow_All!$A$5:$P$204,3*($C$8-1)+2) -> 265.7408333 | N86: =VLOOKUP($H86,Flow_All!$A$5:$P$204,3*($C$8-1)+3) -> 297.6725 | O86: =VLOOKUP($H86,Flow_All!$A$5:$P$204,3*($C$8-1)+4) -> 348.9608333 | Q86: 45.08333333 | R86: =VLOOKUP($Q86,Conc_All!$R$5:$AG$245,3*($C$8-1)+2) -> 0.37275 | S86: =VLOOKUP($Q86,Conc_All!$R$5:$AG$245,3*($C$8-1)+3) -> 0.4 | T86: =VLOOKUP($Q86,Conc_All!$R$5:$AG$245,3*($C$8-1)+4) -> 0.4 | V86: =VLOOKUP($Q86,Flow_All!$R$5:$AG$245,3*($C$8-1)+2) -> 0 | W86: =VLOOKUP($Q86,Flow_All!$R$5:$AG$245,3*($C$8-1)+3) -> 0 | X86: =VLOOKUP($Q86,Flow_All!$R$5:$AG$245,3*($C$8-1)+4) -> 0
H87: 63 | I87: =VLOOKUP($H87,Conc_All!$A$5:$P$204,3*($C$8-1)+2) -> 0.3372341667 | J87: =VLOOKUP($H87,Conc_All!$A$5:$P$204,3*($C$8-1)+3) -> 0.4 | K87: =VLOOKUP($H87,Conc_All!$A$5:$P$204,3*($C$8-1)+4) -> 0.4 | M87: =VLOOKUP($H87,Flow_All!$A$5:$P$204,3*($C$8-1)+2) -> 265.9583333 | N87: =VLOOKUP($H87,Flow_All!$A$5:$P$204,3*($C$8-1)+3) -> 297.7341667 | O87: =VLOOKUP($H87,Flow_All!$A$5:$P$204,3*($C$8-1)+4) -> 372.3683333 | Q87: 45.16666667 | R87: =VLOOKUP($Q87,Conc_All!$R$5:$AG$245,3*($C$8-1)+2) -> 0.37272 | S87: =VLOOKUP($Q87,Conc_All!$R$5:$AG$245,3*($C$8-1)+3) -> 0.4 | T87: =VLOOKUP($Q87,Conc_All!$R$5:$AG$245,3*($C$8-1)+4) -> 0.4 | V87: =VLOOKUP($Q87,Flow_All!$R$5:$AG$245,3*($C$8-1)+2) -> 0 | W87: =VLOOKUP($Q87,Flow_All!$R$5:$AG$245,3*($C$8-1)+3) -> 0 | X87: =VLOOKUP($Q87,Flow_All!$R$5:$AG$245,3*($C$8-1)+4) -> 0
H88: 64 | I88: =VLOOKUP($H88,Conc_All!$A$5:$P$204,3*($C$8-1)+2) -> 0.3359016667 | J88: =VLOOKUP($H88,Conc_All!$A$5:$P$204,3*($C$8-1)+3) -> 0.4 | K88: =VLOOKUP($H88,Conc_All!$A$5:$P$204,3*($C$8-1)+4) -> 0.4 | M88: =VLOOKUP($H88,Flow_All!$A$5:$P$204,3*($C$8-1)+2) -> 266.2308333 | N88: =VLOOKUP($H88,Flow_All!$A$5:$P$204,3*($C$8-1)+3) -> 297.74 | O88: =VLOOKUP($H88,Flow_All!$A$5:$P$204,3*($C$8-1)+4) -> 372.7466667 | Q88: 45.25 | R88: =VLOOKUP($Q88,Conc_All!$R$5:$AG$245,3*($C$8-1)+2) -> 0.37268 | S88: =VLOOKUP($Q88,Conc_All!$R$5:$AG$245,3*($C$8-1)+3) -> 0.4 | T88: =VLOOKUP($Q88,Conc_All!$R$5:$AG$245,3*($C$8-1)+4) -> 0.4 | V88: =VLOOKUP($Q88,Flow_All!$R$5:$AG$245,3*($C$8-1)+2) -> 0 | W88: =VLOOKUP($Q88,Flow_All!$R$5:$AG$245,3*($C$8-1)+3) -> 0 | X88: =VLOOKUP($Q88,Flow_All!$R$5:$AG$245,3*($C$8-1)+4) -> 0
H89: 65 | I89: =VLOOKUP($H89,Conc_All!$A$5:$P$204,3*($C$8-1)+2) -> 0.334645 | J89: =VLOOKUP($H89,Conc_All!$A$5:$P$204,3*($C$8-1)+3) -> 0.4 | K89: =VLOOKUP($H89,Conc_All!$A$5:$P$204,3*($C$8-1)+4) -> 0.4 | M89: =VLOOKUP($H89,Flow_All!$A$5:$P$204,3*($C$8-1)+2) -> 278.2391667 | N89: =VLOOKUP($H89,Flow_All!$A$5:$P$204,3*($C$8-1)+3) -> 297.6991667 | O89: =VLOOKUP($H89,Flow_All!$A$5:$P$204,3*($C$8-1)+4) -> 372.8991667 | Q89: 45.33333333 | R89: =VLOOKUP($Q89,Conc_All!$R$5:$AG$245,3*($C$8-1)+2) -> 0.37132 | S89: =VLOOKUP($Q89,Conc_All!$R$5:$AG$245,3*($C$8-1)+3) -> 0.4 | T89: =VLOOKUP($Q89,Conc_All!$R$5:$AG$245,3*($C$8-1)+4) -> 0.4 | V89: =VLOOKUP($Q89,Flow_All!$R$5:$AG$245,3*($C$8-1)+2) -> 0 | W89: =VLOOKUP($Q89,Flow_All!$R$5:$AG$245,3*($C$8-1)+3) -> 0 | X89: =VLOOKUP($Q89,Flow_All!$R$5:$AG$245,3*($C$8-1)+4) -> 0
H90: 66 | I90: =VLOOKUP($H90,Conc_All!$A$5:$P$204,3*($C$8-1)+2) -> 0.3334866667 | J90: =VLOOKUP($H90,Conc_All!$A$5:$P$204,3*($C$8-1)+3) -> 0.4 | K90: =VLOOKUP($H90,Conc_All!$A$5:$P$204,3*($C$8-1)+4) -> 0.4 | L90: =IF(ISNA(VLOOKUP($B$6,$A$25:$F$52,2,FALSE)),VLOOKUP($B$6,$A$25:$F$52,6,FALSE),VLOOKUP($B$6,$A$25:$F$52,2,FALSE)) ->  | M90: =VLOOKUP($H90,Flow_All!$A$5:$P$204,3*($C$8-1)+2) -> 278.1433333 | N90: =VLOOKUP($H90,Flow_All!$A$5:$P$204,3*($C$8-1)+3) -> 297.8266667 | O90: =VLOOKUP($H90,Flow_All!$A$5:$P$204,3*($C$8-1)+4) -> 384.3175 | Q90: 45.41666667 | R90: =VLOOKUP($Q90,Conc_All!$R$5:$AG$245,3*($C$8-1)+2) -> 0.37112 | S90: =VLOOKUP($Q90,Conc_All!$R$5:$AG$245,3*($C$8-1)+3) -> 0.4 | T90: =VLOOKUP($Q90,Conc_All!$R$5:$AG$245,3*($C$8-1)+4) -> 0.4 | U90: =IF(ISNA(VLOOKUP($B$6,$A$25:$F$52,2,FALSE)),VLOOKUP($B$6,$A$25:$F$52,6,FALSE),VLOOKUP($B$6,$A$25:$F$52,2,FALSE)) ->  | V90: =VLOOKUP($Q90,Flow_All!$R$5:$AG$245,3*($C$8-1)+2) -> 0 | W90: =VLOOKUP($Q90,Flow_All!$R$5:$AG$245,3*($C$8-1)+3) -> 0 | X90: =VLOOKUP($Q90,Flow_All!$R$5:$AG$245,3*($C$8-1)+4) -> 0
H91: 67 | I91: =VLOOKUP($H91,Conc_All!$A$5:$P$204,3*($C$8-1)+2) -> 0.3321725 | J91: =VLOOKUP($H91,Conc_All!$A$5:$P$204,3*($C$8-1)+3) -> 0.4 | K91: =VLOOKUP($H91,Conc_All!$A$5:$P$204,3*($C$8-1)+4) -> 0.4 | M91: =VLOOKUP($H91,Flow_All!$A$5:$P$204,3*($C$8-1)+2) -> 266.6933333 | N91: =VLOOKUP($H91,Flow_All!$A$5:$P$204,3*($C$8-1)+3) -> 297.8616667 | O91: =VLOOKUP($H91,Flow_All!$A$5:$P$204,3*($C$8-1)+4) -> 397.2975 | Q91: =Q90+1/12 -> 45.5 | R91: =VLOOKUP($Q91,Conc_All!$R$5:$AG$245,3*($C$8-1)+2) -> 0.37095 | S91: =VLOOKUP($Q91,Conc_All!$R$5:$AG$245,3*($C$8-1)+3) -> 0.4 | T91: =VLOOKUP($Q91,Conc_All!$R$5:$AG$245,3*($C$8-1)+4) -> 0.4 | V91: =VLOOKUP($Q91,Flow_All!$R$5:$AG$245,3*($C$8-1)+2) -> 0 | W91: =VLOOKUP($Q91,Flow_All!$R$5:$AG$245,3*($C$8-1)+3) -> 0 | X91: =VLOOKUP($Q91,Flow_All!$R$5:$AG$245,3*($C$8-1)+4) -> 0
H92: 68 | I92: =VLOOKUP($H92,Conc_All!$A$5:$P$204,3*($C$8-1)+2) -> 0.3303716667 | J92: =VLOOKUP($H92,Conc_All!$A$5:$P$204,3*($C$8-1)+3) -> 0.4 | K92: =VLOOKUP($H92,Conc_All!$A$5:$P$204,3*($C$8-1)+4) -> 0.4 | M92: =VLOOKUP($H92,Flow_All!$A$5:$P$204,3*($C$8-1)+2) -> 288.895 | N92: =VLOOKUP($H92,Flow_All!$A$5:$P$204,3*($C$8-1)+3) -> 297.8 | O92: =VLOOKUP($H92,Flow_All!$A$5:$P$204,3*($C$8-1)+4) -> 409.9341667 | Q92: 45.58333333 | R92: =VLOOKUP($Q92,Conc_All!$R$5:$AG$245,3*($C$8-1)+2) -> 0.37086 | S92: =VLOOKUP($Q92,Conc_All!$R$5:$AG$245,3*($C$8-1)+3) -> 0.4 | T92: =VLOOKUP($Q92,Conc_All!$R$5:$AG$245,3*($C$8-1)+4) -> 0.4 | V92: =VLOOKUP($Q92,Flow_All!$R$5:$AG$245,3*($C$8-1)+2) -> 0 | W92: =VLOOKUP($Q92,Flow_All!$R$5:$AG$245,3*($C$8-1)+3) -> 0 | X92: =VLOOKUP($Q92,Flow_All!$R$5:$AG$245,3*($C$8-1)+4) -> 0
H93: 69 | I93: =VLOOKUP($H93,Conc_All!$A$5:$P$204,3*($C$8-1)+2) -> 0.3289433333 | J93: =VLOOKUP($H93,Conc_All!$A$5:$P$204,3*($C$8-1)+3) -> 0.4 | K93: =VLOOKUP($H93,Conc_All!$A$5:$P$204,3*($C$8-1)+4) -> 0.4 | M93: =VLOOKUP($H93,Flow_All!$A$5:$P$204,3*($C$8-1)+2) -> 290.1425 | N93: =VLOOKUP($H93,Flow_All!$A$5:$P$204,3*($C$8-1)+3) -> 297.9108333 | O93: =VLOOKUP($H93,Flow_All!$A$5:$P$204,3*($C$8-1)+4) -> 397.9175 | Q93: 45.66666667 | R93: =VLOOKUP($Q93,Conc_All!$R$5:$AG$245,3*($C$8-1)+2) -> 0.37041 | S93: =VLOOKUP($Q93,Conc_All!$R$5:$AG$245,3*($C$8-1)+3) -> 0.4 | T93: =VLOOKUP($Q93,Conc_All!$R$5:$AG$245,3*($C$8-1)+4) -> 0.4 | V93: =VLOOKUP($Q93,Flow_All!$R$5:$AG$245,3*($C$8-1)+2) -> 0 | W93: =VLOOKUP($Q93,Flow_All!$R$5:$AG$245,3*($C$8-1)+3) -> 0 | X93: =VLOOKUP($Q93,Flow_All!$R$5:$AG$245,3*($C$8-1)+4) -> 0
H94: 70 | I94: =VLOOKUP($H94,Conc_All!$A$5:$P$204,3*($C$8-1)+2) -> 0.3280158333 | J94: =VLOOKUP($H94,Conc_All!$A$5:$P$204,3*($C$8-1)+3) -> 0.4 | K94: =VLOOKUP($H94,Conc_All!$A$5:$P$204,3*($C$8-1)+4) -> 0.4 | M94: =VLOOKUP($H94,Flow_All!$A$5:$P$204,3*($C$8-1)+2) -> 290.7175 | N94: =VLOOKUP($H94,Flow_All!$A$5:$P$204,3*($C$8-1)+3) -> 297.9 | O94: =VLOOKUP($H94,Flow_All!$A$5:$P$204,3*($C$8-1)+4) -> 422.29 | Q94: 45.75 | R94: =VLOOKUP($Q94,Conc_All!$R$5:$AG$245,3*($C$8-1)+2) -> 0.3697 | S94: =VLOOKUP($Q94,Conc_All!$R$5:$AG$245,3*($C$8-1)+3) -> 0.4 | T94: =VLOOKUP($Q94,Conc_All!$R$5:$AG$245,3*($C$8-1)+4) -> 0.4 | V94: =VLOOKUP($Q94,Flow_All!$R$5:$AG$245,3*($C$8-1)+2) -> 0 | W94: =VLOOKUP($Q94,Flow_All!$R$5:$AG$245,3*($C$8-1)+3) -> 0 | X94: =VLOOKUP($Q94,Flow_All!$R$5:$AG$245,3*($C$8-1)+4) -> 0
H95: 71 | I95: =VLOOKUP($H95,Conc_All!$A$5:$P$204,3*($C$8-1)+2) -> 0.3270575 | J95: =VLOOKUP($H95,Conc_All!$A$5:$P$204,3*($C$8-1)+3) -> 0.4 | K95: =VLOOKUP($H95,Conc_All!$A$5:$P$204,3*($C$8-1)+4) -> 0.4 | M95: =VLOOKUP($H95,Flow_All!$A$5:$P$204,3*($C$8-1)+2) -> 291.3366667 | N95: =VLOOKUP($H95,Flow_All!$A$5:$P$204,3*($C$8-1)+3) -> 297.8658333 | O95: =VLOOKUP($H95,Flow_All!$A$5:$P$204,3*($C$8-1)+4) -> 396.8608333 | Q95: 45.83333333 | R95: =VLOOKUP($Q95,Conc_All!$R$5:$AG$245,3*($C$8-1)+2) -> 0.36928 | S95: =VLOOKUP($Q95,Conc_All!$R$5:$AG$245,3*($C$8-1)+3) -> 0.4 | T95: =VLOOKUP($Q95,Conc_All!$R$5:$AG$245,3*($C$8-1)+4) -> 0.4 | V95: =VLOOKUP($Q95,Flow_All!$R$5:$AG$245,3*($C$8-1)+2) -> 0 | W95: =VLOOKUP($Q95,Flow_All!$R$5:$AG$245,3*($C$8-1)+3) -> 0 | X95: =VLOOKUP($Q95,Flow_All!$R$5:$AG$245,3*($C$8-1)+4) -> 0
H96: 72 | I96: =VLOOKUP($H96,Conc_All!$A$5:$P$204,3*($C$8-1)+2) -> 0.32557 | J96: =VLOOKUP($H96,Conc_All!$A$5:$P$204,3*($C$8-1)+3) -> 0.4 | K96: =VLOOKUP($H96,Conc_All!$A$5:$P$204,3*($C$8-1)+4) -> 0.4 | M96: =VLOOKUP($H96,Flow_All!$A$5:$P$204,3*($C$8-1)+2) -> 290.7558333 | N96: =VLOOKUP($H96,Flow_All!$A$5:$P$204,3*($C$8-1)+3) -> 297.8408333 | O96: =VLOOKUP($H96,Flow_All!$A$5:$P$204,3*($C$8-1)+4) -> 397.7591667 | Q96: 45.91666667 | R96: =VLOOKUP($Q96,Conc_All!$R$5:$AG$245,3*($C$8-1)+2) -> 0.36925 | S96: =VLOOKUP($Q96,Conc_All!$R$5:$AG$245,3*($C$8-1)+3) -> 0.4 | T96: =VLOOKUP($Q96,Conc_All!$R$5:$AG$245,3*($C$8-1)+4) -> 0.4 | V96: =VLOOKUP($Q96,Flow_All!$R$5:$AG$245,3*($C$8-1)+2) -> 0 | W96: =VLOOKUP($Q96,Flow_All!$R$5:$AG$245,3*($C$8-1)+3) -> 0 | X96: =VLOOKUP($Q96,Flow_All!$R$5:$AG$245,3*($C$8-1)+4) -> 0
H97: 73 | I97: =VLOOKUP($H97,Conc_All!$A$5:$P$204,3*($C$8-1)+2) -> 0.3239166667 | J97: =VLOOKUP($H97,Conc_All!$A$5:$P$204,3*($C$8-1)+3) -> 0.4 | K97: =VLOOKUP($H97,Conc_All!$A$5:$P$204,3*($C$8-1)+4) -> 0.4 | M97: =VLOOKUP($H97,Flow_All!$A$5:$P$204,3*($C$8-1)+2) -> 290.195 | N97: =VLOOKUP($H97,Flow_All!$A$5:$P$204,3*($C$8-1)+3) -> 297.7858333 | O97: =VLOOKUP($H97,Flow_All!$A$5:$P$204,3*($C$8-1)+4) -> 385.3 | Q97: 46 | R97: =VLOOKUP($Q97,Conc_All!$R$5:$AG$245,3*($C$8-1)+2) -> 0.36934 | S97: =VLOOKUP($Q97,Conc_All!$R$5:$AG$245,3*($C$8-1)+3) -> 0.4 | T97: =VLOOKUP($Q97,Conc_All!$R$5:$AG$245,3*($C$8-1)+4) -> 0.4 | V97: =VLOOKUP($Q97,Flow_All!$R$5:$AG$245,3*($C$8-1)+2) -> 0 | W97: =VLOOKUP($Q97,Flow_All!$R$5:$AG$245,3*($C$8-1)+3) -> 0 | X97: =VLOOKUP($Q97,Flow_All!$R$5:$AG$245,3*($C$8-1)+4) -> 0
H98: 74 | I98: =VLOOKUP($H98,Conc_All!$A$5:$P$204,3*($C$8-1)+2) -> 0.3224216667 | J98: =VLOOKUP($H98,Conc_All!$A$5:$P$204,3*($C$8-1)+3) -> 0.4 | K98: =VLOOKUP($H98,Conc_All!$A$5:$P$204,3*($C$8-1)+4) -> 0.4 | M98: =VLOOKUP($H98,Flow_All!$A$5:$P$204,3*($C$8-1)+2) -> 290.66 | N98: =VLOOKUP($H98,Flow_All!$A$5:$P$204,3*($C$8-1)+3) -> 297.8991667 | O98: =VLOOKUP($H98,Flow_All!$A$5:$P$204,3*($C$8-1)+4) -> 422.6291667 | Q98: 46.08333333 | R98: =VLOOKUP($Q98,Conc_All!$R$5:$AG$245,3*($C$8-1)+2) -> 0.36929 | S98: =VLOOKUP($Q98,Conc_All!$R$5:$AG$245,3*($C$8-1)+3) -> 0.4 | T98: =VLOOKUP($Q98,Conc_All!$R$5:$AG$245,3*($C$8-1)+4) -> 0.4 | V98: =VLOOKUP($Q98,Flow_All!$R$5:$AG$245,3*($C$8-1)+2) -> 0 | W98: =VLOOKUP($Q98,Flow_All!$R$5:$AG$245,3*($C$8-1)+3) -> 0 | X98: =VLOOKUP($Q98,Flow_All!$R$5:$AG$245,3*($C$8-1)+4) -> 0
H99: 75 | I99: =VLOOKUP($H99,Conc_All!$A$5:$P$204,3*($C$8-1)+2) -> 0.3204866667 | J99: =VLOOKUP($H99,Conc_All!$A$5:$P$204,3*($C$8-1)+3) -> 0.4 | K99: =VLOOKUP($H99,Conc_All!$A$5:$P$204,3*($C$8-1)+4) -> 0.4 | M99: =VLOOKUP($H99,Flow_All!$A$5:$P$204,3*($C$8-1)+2) -> 291.5091667 | N99: =VLOOKUP($H99,Flow_All!$A$5:$P$204,3*($C$8-1)+3) -> 297.9308333 | O99: =VLOOKUP($H99,Flow_All!$A$5:$P$204,3*($C$8-1)+4) -> 397.1483333 | Q99: 46.16666667 | R99: =VLOOKUP($Q99,Conc_All!$R$5:$AG$245,3*($C$8-1)+2) -> 0.36923 | S99: =VLOOKUP($Q99,Conc_All!$R$5:$AG$245,3*($C$8-1)+3) -> 0.4 | T99: =VLOOKUP($Q99,Conc_All!$R$5:$AG$245,3*($C$8-1)+4) -> 0.4 | V99: =VLOOKUP($Q99,Flow_All!$R$5:$AG$245,3*($C$8-1)+2) -> 0 | W99: =VLOOKUP($Q99,Flow_All!$R$5:$AG$245,3*($C$8-1)+3) -> 0 | X99: =VLOOKUP($Q99,Flow_All!$R$5:$AG$245,3*($C$8-1)+4) -> 0
H100: 76 | I100: =VLOOKUP($H100,Conc_All!$A$5:$P$204,3*($C$8-1)+2) -> 0.3192233333 | J100: =VLOOKUP($H100,Conc_All!$A$5:$P$204,3*($C$8-1)+3) -> 0.4 | K100: =VLOOKUP($H100,Conc_All!$A$5:$P$204,3*($C$8-1)+4) -> 0.4 | M100: =VLOOKUP($H100,Flow_All!$A$5:$P$204,3*($C$8-1)+2) -> 291.17 | N100: =VLOOKUP($H100,Flow_All!$A$5:$P$204,3*($C$8-1)+3) -> 297.8216667 | O100: =VLOOKUP($H100,Flow_All!$A$5:$P$204,3*($C$8-1)+4) -> 373.4566667 | Q100: 46.25 | R100: =VLOOKUP($Q100,Conc_All!$R$5:$AG$245,3*($C$8-1)+2) -> 0.36912 | S100: =VLOOKUP($Q100,Conc_All!$R$5:$AG$245,3*($C$8-1)+3) -> 0.4 | T100: =VLOOKUP($Q100,Conc_All!$R$5:$AG$245,3*($C$8-1)+4) -> 0.4 | V100: =VLOOKUP($Q100,Flow_All!$R$5:$AG$245,3*($C$8-1)+2) -> 0 | W100: =VLOOKUP($Q100,Flow_All!$R$5:$AG$245,3*($C$8-1)+3) -> 0 | X100: =VLOOKUP($Q100,Flow_All!$R$5:$AG$245,3*($C$8-1)+4) -> 0
H101: 77 | I101: =VLOOKUP($H101,Conc_All!$A$5:$P$204,3*($C$8-1)+2) -> 0.3179716667 | J101: =VLOOKUP($H101,Conc_All!$A$5:$P$204,3*($C$8-1)+3) -> 0.4 | K101: =VLOOKUP($H101,Conc_All!$A$5:$P$204,3*($C$8-1)+4) -> 0.4 | M101: =VLOOKUP($H101,Flow_All!$A$5:$P$204,3*($C$8-1)+2) -> 291.1933333 | N101: =VLOOKUP($H101,Flow_All!$A$5:$P$204,3*($C$8-1)+3) -> 297.8166667 | O101: =VLOOKUP($H101,Flow_All!$A$5:$P$204,3*($C$8-1)+4) -> 397.2325 | Q101: 46.33333333 | R101: =VLOOKUP($Q101,Conc_All!$R$5:$AG$245,3*($C$8-1)+2) -> 0.36771 | S101: =VLOOKUP($Q101,Conc_All!$R$5:$AG$245,3*($C$8-1)+3) -> 0.4 | T101: =VLOOKUP($Q101,Conc_All!$R$5:$AG$245,3*($C$8-1)+4) -> 0.4 | V101: =VLOOKUP($Q101,Flow_All!$R$5:$AG$245,3*($C$8-1)+2) -> 0 | W101: =VLOOKUP($Q101,Flow_All!$R$5:$AG$245,3*($C$8-1)+3) -> 0 | X101: =VLOOKUP($Q101,Flow_All!$R$5:$AG$245,3*($C$8-1)+4) -> 0
H102: 78 | I102: =VLOOKUP($H102,Conc_All!$A$5:$P$204,3*($C$8-1)+2) -> 0.31582 | J102: =VLOOKUP($H102,Conc_All!$A$5:$P$204,3*($C$8-1)+3) -> 0.4 | K102: =VLOOKUP($H102,Conc_All!$A$5:$P$204,3*($C$8-1)+4) -> 0.4 | M102: =VLOOKUP($H102,Flow_All!$A$5:$P$204,3*($C$8-1)+2) -> 291.0433333 | N102: =VLOOKUP($H102,Flow_All!$A$5:$P$204,3*($C$8-1)+3) -> 297.875 | O102: =VLOOKUP($H102,Flow_All!$A$5:$P$204,3*($C$8-1)+4) -> 422.3758333 | Q102: 46.41666667 | R102: =VLOOKUP($Q102,Conc_All!$R$5:$AG$245,3*($C$8-1)+2) -> 0.36757 | S102: =VLOOKUP($Q102,Conc_All!$R$5:$AG$245,3*($C$8-1)+3) -> 0.4 | T102: =VLOOKUP($Q102,Conc_All!$R$5:$AG$245,3*($C$8-1)+4) -> 0.4 | V102: =VLOOKUP($Q102,Flow_All!$R$5:$AG$245,3*($C$8-1)+2) -> 0 | W102: =VLOOKUP($Q102,Flow_All!$R$5:$AG$245,3*($C$8-1)+3) -> 0 | X102: =VLOOKUP($Q102,Flow_All!$R$5:$AG$245,3*($C$8-1)+4) -> 0
H103: 79 | I103: =VLOOKUP($H103,Conc_All!$A$5:$P$204,3*($C$8-1)+2) -> 0.3142866667 | J103: =VLOOKUP($H103,Conc_All!$A$5:$P$204,3*($C$8-1)+3) -> 0.4 | K103: =VLOOKUP($H103,Conc_All!$A$5:$P$204,3*($C$8-1)+4) -> 0.4 | M103: =VLOOKUP($H103,Flow_All!$A$5:$P$204,3*($C$8-1)+2) -> 290.7958333 | N103: =VLOOKUP($H103,Flow_All!$A$5:$P$204,3*($C$8-1)+3) -> 297.8458333 | O103: =VLOOKUP($H103,Flow_All!$A$5:$P$204,3*($C$8-1)+4) -> 422.7066667 | Q103: 46.5 | R103: =VLOOKUP($Q103,Conc_All!$R$5:$AG$245,3*($C$8-1)+2) -> 0.36743 | S103: =VLOOKUP($Q103,Conc_All!$R$5:$AG$245,3*($C$8-1)+3) -> 0.4 | T103: =VLOOKUP($Q103,Conc_All!$R$5:$AG$245,3*($C$8-1)+4) -> 0.4 | V103: =VLOOKUP($Q103,Flow_All!$R$5:$AG$245,3*($C$8-1)+2) -> 0 | W103: =VLOOKUP($Q103,Flow_All!$R$5:$AG$245,3*($C$8-1)+3) -> 0 | X103: =VLOOKUP($Q103,Flow_All!$R$5:$AG$245,3*($C$8-1)+4) -> 0
H104: 80 | I104: =VLOOKUP($H104,Conc_All!$A$5:$P$204,3*($C$8-1)+2) -> 0.312585 | J104: =VLOOKUP($H104,Conc_All!$A$5:$P$204,3*($C$8-1)+3) -> 0.4 | K104: =VLOOKUP($H104,Conc_All!$A$5:$P$204,3*($C$8-1)+4) -> 0.4 | M104: =VLOOKUP($H104,Flow_All!$A$5:$P$204,3*($C$8-1)+2) -> 291.8825 | N104: =VLOOKUP($H104,Flow_All!$A$5:$P$204,3*($C$8-1)+3) -> 297.9125 | O104: =VLOOKUP($H104,Flow_All!$A$5:$P$204,3*($C$8-1)+4) -> 422.3058333 | Q104: 46.58333333 | R104: =VLOOKUP($Q104,Conc_All!$R$5:$AG$245,3*($C$8-1)+2) -> 0.36733 | S104: =VLOOKUP($Q104,Conc_All!$R$5:$AG$245,3*($C$8-1)+3) -> 0.4 | T104: =VLOOKUP($Q104,Conc_All!$R$5:$AG$245,3*($C$8-1)+4) -> 0.4 | V104: =VLOOKUP($Q104,Flow_All!$R$5:$AG$245,3*($C$8-1)+2) -> 0 | W104: =VLOOKUP($Q104,Flow_All!$R$5:$AG$245,3*($C$8-1)+3) -> 0 | X104: =VLOOKUP($Q104,Flow_All!$R$5:$AG$245,3*($C$8-1)+4) -> 0
H105: 81 | I105: =VLOOKUP($H105,Conc_All!$A$5:$P$204,3*($C$8-1)+2) -> 0.3105991667 | J105: =VLOOKUP($H105,Conc_All!$A$5:$P$204,3*($C$8-1)+3) -> 0.4 | K105: =VLOOKUP($H105,Conc_All!$A$5:$P$204,3*($C$8-1)+4) -> 0.4 | M105: =VLOOKUP($H105,Flow_All!$A$5:$P$204,3*($C$8-1)+2) -> 291.1875 | N105: =VLOOKUP($H105,Flow_All!$A$5:$P$204,3*($C$8-1)+3) -> 297.845 | O105: =VLOOKUP($H105,Flow_All!$A$5:$P$204,3*($C$8-1)+4) -> 422.5941667 | Q105: 46.66666667 | R105: =VLOOKUP($Q105,Conc_All!$R$5:$AG$245,3*($C$8-1)+2) -> 0.36704 | S105: =VLOOKUP($Q105,Conc_All!$R$5:$AG$245,3*($C$8-1)+3) -> 0.4 | T105: =VLOOKUP($Q105,Conc_All!$R$5:$AG$245,3*($C$8-1)+4) -> 0.4 | V105: =VLOOKUP($Q105,Flow_All!$R$5:$AG$245,3*($C$8-1)+2) -> 0 | W105: =VLOOKUP($Q105,Flow_All!$R$5:$AG$245,3*($C$8-1)+3) -> 0 | X105: =VLOOKUP($Q105,Flow_All!$R$5:$AG$245,3*($C$8-1)+4) -> 0
H106: 82 | I106: =VLOOKUP($H106,Conc_All!$A$5:$P$204,3*($C$8-1)+2) -> 0.30894 | J106: =VLOOKUP($H106,Conc_All!$A$5:$P$204,3*($C$8-1)+3) -> 0.4 | K106: =VLOOKUP($H106,Conc_All!$A$5:$P$204,3*($C$8-1)+4) -> 0.4 | M106: =VLOOKUP($H106,Flow_All!$A$5:$P$204,3*($C$8-1)+2) -> 291.7683333 | N106: =VLOOKUP($H106,Flow_All!$A$5:$P$204,3*($C$8-1)+3) -> 297.855 | O106: =VLOOKUP($H106,Flow_All!$A$5:$P$204,3*($C$8-1)+4) -> 397.9608333 | Q106: 46.75 | R106: =VLOOKUP($Q106,Conc_All!$R$5:$AG$245,3*($C$8-1)+2) -> 0.3667 | S106: =VLOOKUP($Q106,Conc_All!$R$5:$AG$245,3*($C$8-1)+3) -> 0.4 | T106: =VLOOKUP($Q106,Conc_All!$R$5:$AG$245,3*($C$8-1)+4) -> 0.4 | V106: =VLOOKUP($Q106,Flow_All!$R$5:$AG$245,3*($C$8-1)+2) -> 0 | W106: =VLOOKUP($Q106,Flow_All!$R$5:$AG$245,3*($C$8-1)+3) -> 0 | X106: =VLOOKUP($Q106,Flow_All!$R$5:$AG$245,3*($C$8-1)+4) -> 0
H107: 83 | I107: =VLOOKUP($H107,Conc_All!$A$5:$P$204,3*($C$8-1)+2) -> 0.3074691667 | J107: =VLOOKUP($H107,Conc_All!$A$5:$P$204,3*($C$8-1)+3) -> 0.4 | K107: =VLOOKUP($H107,Conc_All!$A$5:$P$204,3*($C$8-1)+4) -> 0.4 | M107: =VLOOKUP($H107,Flow_All!$A$5:$P$204,3*($C$8-1)+2) -> 291.4983333 | N107: =VLOOKUP($H107,Flow_All!$A$5:$P$204,3*($C$8-1)+3) -> 297.89 | O107: =VLOOKUP($H107,Flow_All!$A$5:$P$204,3*($C$8-1)+4) -> 397.8716667 | Q107: 46.83333333 | R107: =VLOOKUP($Q107,Conc_All!$R$5:$AG$245,3*($C$8-1)+2) -> 0.36642 | S107: =VLOOKUP($Q107,Conc_All!$R$5:$AG$245,3*($C$8-1)+3) -> 0.4 | T107: =VLOOKUP($Q107,Conc_All!$R$5:$AG$245,3*($C$8-1)+4) -> 0.4 | V107: =VLOOKUP($Q107,Flow_All!$R$5:$AG$245,3*($C$8-1)+2) -> 0 | W107: =VLOOKUP($Q107,Flow_All!$R$5:$AG$245,3*($C$8-1)+3) -> 0 | X107: =VLOOKUP($Q107,Flow_All!$R$5:$AG$245,3*($C$8-1)+4) -> 0
H108: 84 | I108: =VLOOKUP($H108,Conc_All!$A$5:$P$204,3*($C$8-1)+2) -> 0.3054858333 | J108: =VLOOKUP($H108,Conc_All!$A$5:$P$204,3*($C$8-1)+3) -> 0.4 | K108: =VLOOKUP($H108,Conc_All!$A$5:$P$204,3*($C$8-1)+4) -> 0.4 | M108: =VLOOKUP($H108,Flow_All!$A$5:$P$204,3*($C$8-1)+2) -> 291.3875 | N108: =VLOOKUP($H108,Flow_All!$A$5:$P$204,3*($C$8-1)+3) -> 297.8775 | O108: =VLOOKUP($H108,Flow_All!$A$5:$P$204,3*($C$8-1)+4) -> 422.8725 | Q108: 46.91666667 | R108: =VLOOKUP($Q108,Conc_All!$R$5:$AG$245,3*($C$8-1)+2) -> 0.3665 | S108: =VLOOKUP($Q108,Conc_All!$R$5:$AG$245,3*($C$8-1)+3) -> 0.4 | T108: =VLOOKUP($Q108,Conc_All!$R$5:$AG$245,3*($C$8-1)+4) -> 0.4 | V108: =VLOOKUP($Q108,Flow_All!$R$5:$AG$245,3*($C$8-1)+2) -> 0 | W108: =VLOOKUP($Q108,Flow_All!$R$5:$AG$245,3*($C$8-1)+3) -> 0 | X108: =VLOOKUP($Q108,Flow_All!$R$5:$AG$245,3*($C$8-1)+4) -> 0
H109: 85 | I109: =VLOOKUP($H109,Conc_All!$A$5:$P$204,3*($C$8-1)+2) -> 0.3041108333 | J109: =VLOOKUP($H109,Conc_All!$A$5:$P$204,3*($C$8-1)+3) -> 0.4 | K109: =VLOOKUP($H109,Conc_All!$A$5:$P$204,3*($C$8-1)+4) -> 0.4 | M109: =VLOOKUP($H109,Flow_All!$A$5:$P$204,3*($C$8-1)+2) -> 291.6125 | N109: =VLOOKUP($H109,Flow_All!$A$5:$P$204,3*($C$8-1)+3) -> 297.93 | O109: =VLOOKUP($H109,Flow_All!$A$5:$P$204,3*($C$8-1)+4) -> 422.6691667 | Q109: 47 | R109: =VLOOKUP($Q109,Conc_All!$R$5:$AG$245,3*($C$8-1)+2) -> 0.36652 | S109: =VLOOKUP($Q109,Conc_All!$R$5:$AG$245,3*($C$8-1)+3) -> 0.4 | T109: =VLOOKUP($Q109,Conc_All!$R$5:$AG$245,3*($C$8-1)+4) -> 0.4 | V109: =VLOOKUP($Q109,Flow_All!$R$5:$AG$245,3*($C$8-1)+2) -> 0 | W109: =VLOOKUP($Q109,Flow_All!$R$5:$AG$245,3*($C$8-1)+3) -> 0 | X109: =VLOOKUP($Q109,Flow_All!$R$5:$AG$245,3*($C$8-1)+4) -> 0
H110: 86 | I110: =VLOOKUP($H110,Conc_All!$A$5:$P$204,3*($C$8-1)+2) -> 0.3027433333 | J110: =VLOOKUP($H110,Conc_All!$A$5:$P$204,3*($C$8-1)+3) -> 0.4 | K110: =VLOOKUP($H110,Conc_All!$A$5:$P$204,3*($C$8-1)+4) -> 0.4 | M110: =VLOOKUP($H110,Flow_All!$A$5:$P$204,3*($C$8-1)+2) -> 291.6983333 | N110: =VLOOKUP($H110,Flow_All!$A$5:$P$204,3*($C$8-1)+3) -> 297.9816667 | O110: =VLOOKUP($H110,Flow_All!$A$5:$P$204,3*($C$8-1)+4) -> 422.3575 | Q110: 47.08333333 | R110: =VLOOKUP($Q110,Conc_All!$R$5:$AG$245,3*($C$8-1)+2) -> 0.36643 | S110: =VLOOKUP($Q110,Conc_All!$R$5:$AG$245,3*($C$8-1)+3) -> 0.4 | T110: =VLOOKUP($Q110,Conc_All!$R$5:$AG$245,3*($C$8-1)+4) -> 0.4 | V110: =VLOOKUP($Q110,Flow_All!$R$5:$AG$245,3*($C$8-1)+2) -> 0 | W110: =VLOOKUP($Q110,Flow_All!$R$5:$AG$245,3*($C$8-1)+3) -> 0 | X110: =VLOOKUP($Q110,Flow_All!$R$5:$AG$245,3*($C$8-1)+4) -> 0
H111: 87 | I111: =VLOOKUP($H111,Conc_All!$A$5:$P$204,3*($C$8-1)+2) -> 0.301595 | J111: =VLOOKUP($H111,Conc_All!$A$5:$P$204,3*($C$8-1)+3) -> 0.4 | K111: =VLOOKUP($H111,Conc_All!$A$5:$P$204,3*($C$8-1)+4) -> 0.4 | M111: =VLOOKUP($H111,Flow_All!$A$5:$P$204,3*($C$8-1)+2) -> 291.5241667 | N111: =VLOOKUP($H111,Flow_All!$A$5:$P$204,3*($C$8-1)+3) -> 297.9491667 | O111: =VLOOKUP($H111,Flow_All!$A$5:$P$204,3*($C$8-1)+4) -> 397.8608333 | Q111: 47.16666667 | R111: =VLOOKUP($Q111,Conc_All!$R$5:$AG$245,3*($C$8-1)+2) -> 0.36642 | S111: =VLOOKUP($Q111,Conc_All!$R$5:$AG$245,3*($C$8-1)+3) -> 0.4 | T111: =VLOOKUP($Q111,Conc_All!$R$5:$AG$245,3*($C$8-1)+4) -> 0.4 | V111: =VLOOKUP($Q111,Flow_All!$R$5:$AG$245,3*($C$8-1)+2) -> 0 | W111: =VLOOKUP($Q111,Flow_All!$R$5:$AG$245,3*($C$8-1)+3) -> 0 | X111: =VLOOKUP($Q111,Flow_All!$R$5:$AG$245,3*($C$8-1)+4) -> 0
H112: 88 | I112: =VLOOKUP($H112,Conc_All!$A$5:$P$204,3*($C$8-1)+2) -> 0.300345 | J112: =VLOOKUP($H112,Conc_All!$A$5:$P$204,3*($C$8-1)+3) -> 0.4 | K112: =VLOOKUP($H112,Conc_All!$A$5:$P$204,3*($C$8-1)+4) -> 0.4 | M112: =VLOOKUP($H112,Flow_All!$A$5:$P$204,3*($C$8-1)+2) -> 291.5541667 | N112: =VLOOKUP($H112,Flow_All!$A$5:$P$204,3*($C$8-1)+3) -> 297.9133333 | O112: =VLOOKUP($H112,Flow_All!$A$5:$P$204,3*($C$8-1)+4) -> 422.3125 | Q112: 47.25 | R112: =VLOOKUP($Q112,Conc_All!$R$5:$AG$245,3*($C$8-1)+2) -> 0.36647 | S112: =VLOOKUP($Q112,Conc_All!$R$5:$AG$245,3*($C$8-1)+3) -> 0.4 | T112: =VLOOKUP($Q112,Conc_All!$R$5:$AG$245,3*($C$8-1)+4) -> 0.4 | V112: =VLOOKUP($Q112,Flow_All!$R$5:$AG$245,3*($C$8-1)+2) -> 0 | W112: =VLOOKUP($Q112,Flow_All!$R$5:$AG$245,3*($C$8-1)+3) -> 0 | X112: =VLOOKUP($Q112,Flow_All!$R$5:$AG$245,3*($C$8-1)+4) -> 0
H113: 89 | I113: =VLOOKUP($H113,Conc_All!$A$5:$P$204,3*($C$8-1)+2) -> 0.2990658333 | J113: =VLOOKUP($H113,Conc_All!$A$5:$P$204,3*($C$8-1)+3) -> 0.4 | K113: =VLOOKUP($H113,Conc_All!$A$5:$P$204,3*($C$8-1)+4) -> 0.4 | M113: =VLOOKUP($H113,Flow_All!$A$5:$P$204,3*($C$8-1)+2) -> 291.6258333 | N113: =VLOOKUP($H113,Flow_All!$A$5:$P$204,3*($C$8-1)+3) -> 297.9441667 | O113: =VLOOKUP($H113,Flow_All!$A$5:$P$204,3*($C$8-1)+4) -> 422.4191667 | Q113: 47.33333333 | R113: =VLOOKUP($Q113,Conc_All!$R$5:$AG$245,3*($C$8-1)+2) -> 0.36557 | S113: =VLOOKUP($Q113,Conc_All!$R$5:$AG$245,3*($C$8-1)+3) -> 0.4 | T113: =VLOOKUP($Q113,Conc_All!$R$5:$AG$245,3*($C$8-1)+4) -> 0.4 | V113: =VLOOKUP($Q113,Flow_All!$R$5:$AG$245,3*($C$8-1)+2) -> 0 | W113: =VLOOKUP($Q113,Flow_All!$R$5:$AG$245,3*($C$8-1)+3) -> 0 | X113: =VLOOKUP($Q113,Flow_All!$R$5:$AG$245,3*($C$8-1)+4) -> 0
H114: 90 | I114: =VLOOKUP($H114,Conc_All!$A$5:$P$204,3*($C$8-1)+2) -> 0.2971175 | J114: =VLOOKUP($H114,Conc_All!$A$5:$P$204,3*($C$8-1)+3) -> 0.4 | K114: =VLOOKUP($H114,Conc_All!$A$5:$P$204,3*($C$8-1)+4) -> 0.4 | M114: =VLOOKUP($H114,Flow_All!$A$5:$P$204,3*($C$8-1)+2) -> 291.9983333 | N114: =VLOOKUP($H114,Flow_All!$A$5:$P$204,3*($C$8-1)+3) -> 297.9216667 | O114: =VLOOKUP($H114,Flow_All!$A$5:$P$204,3*($C$8-1)+4) -> 446.3 | Q114: 47.41666667 | R114: =VLOOKUP($Q114,Conc_All!$R$5:$AG$245,3*($C$8-1)+2) -> 0.36553 | S114: =VLOOKUP($Q114,Conc_All!$R$5:$AG$245,3*($C$8-1)+3) -> 0.4 | T114: =VLOOKUP($Q114,Conc_All!$R$5:$AG$245,3*($C$8-1)+4) -> 0.4 | V114: =VLOOKUP($Q114,Flow_All!$R$5:$AG$245,3*($C$8-1)+2) -> 0 | W114: =VLOOKUP($Q114,Flow_All!$R$5:$AG$245,3*($C$8-1)+3) -> 0 | X114: =VLOOKUP($Q114,Flow_All!$R$5:$AG$245,3*($C$8-1)+4) -> 0
H115: 91 | I115: =VLOOKUP($H115,Conc_All!$A$5:$P$204,3*($C$8-1)+2) -> 0.2947366667 | J115: =VLOOKUP($H115,Conc_All!$A$5:$P$204,3*($C$8-1)+3) -> 0.4 | K115: =VLOOKUP($H115,Conc_All!$A$5:$P$204,3*($C$8-1)+4) -> 0.4 | M115: =VLOOKUP($H115,Flow_All!$A$5:$P$204,3*($C$8-1)+2) -> 291.9491667 | N115: =VLOOKUP($H115,Flow_All!$A$5:$P$204,3*($C$8-1)+3) -> 297.955 | O115: =VLOOKUP($H115,Flow_All!$A$5:$P$204,3*($C$8-1)+4) -> 422.425 | Q115: 47.5 | R115: =VLOOKUP($Q115,Conc_All!$R$5:$AG$245,3*($C$8-1)+2) -> 0.3654 | S115: =VLOOKUP($Q115,Conc_All!$R$5:$AG$245,3*($C$8-1)+3) -> 0.4 | T115: =VLOOKUP($Q115,Conc_All!$R$5:$AG$245,3*($C$8-1)+4) -> 0.4 | V115: =VLOOKUP($Q115,Flow_All!$R$5:$AG$245,3*($C$8-1)+2) -> 0 | W115: =VLOOKUP($Q115,Flow_All!$R$5:$AG$245,3*($C$8-1)+3) -> 0 | X115: =VLOOKUP($Q115,Flow_All!$R$5:$AG$245,3*($C$8-1)+4) -> 0
H116: 92 | I116: =VLOOKUP($H116,Conc_All!$A$5:$P$204,3*($C$8-1)+2) -> 0.2928266667 | J116: =VLOOKUP($H116,Conc_All!$A$5:$P$204,3*($C$8-1)+3) -> 0.4 | K116: =VLOOKUP($H116,Conc_All!$A$5:$P$204,3*($C$8-1)+4) -> 0.4 | M116: =VLOOKUP($H116,Flow_All!$A$5:$P$204,3*($C$8-1)+2) -> 291.7683333 | N116: =VLOOKUP($H116,Flow_All!$A$5:$P$204,3*($C$8-1)+3) -> 297.9908333 | O116: =VLOOKUP($H116,Flow_All!$A$5:$P$204,3*($C$8-1)+4) -> 443.7966667 | Q116: 47.58333333 | R116: =VLOOKUP($Q116,Conc_All!$R$5:$AG$245,3*($C$8-1)+2) -> 0.36525 | S116: =VLOOKUP($Q116,Conc_All!$R$5:$AG$245,3*($C$8-1)+3) -> 0.4 | T116: =VLOOKUP($Q116,Conc_All!$R$5:$AG$245,3*($C$8-1)+4) -> 0.4 | V116: =VLOOKUP($Q116,Flow_All!$R$5:$AG$245,3*($C$8-1)+2) -> 0 | W116: =VLOOKUP($Q116,Flow_All!$R$5:$AG$245,3*($C$8-1)+3) -> 0 | X116: =VLOOKUP($Q116,Flow_All!$R$5:$AG$245,3*($C$8-1)+4) -> 0
H117: 93 | I117: =VLOOKUP($H117,Conc_All!$A$5:$P$204,3*($C$8-1)+2) -> 0.2909425 | J117: =VLOOKUP($H117,Conc_All!$A$5:$P$204,3*($C$8-1)+3) -> 0.3991333333 | K117: =VLOOKUP($H117,Conc_All!$A$5:$P$204,3*($C$8-1)+4) -> 0.4 | M117: =VLOOKUP($H117,Flow_All!$A$5:$P$204,3*($C$8-1)+2) -> 291.8533333 | N117: =VLOOKUP($H117,Flow_All!$A$5:$P$204,3*($C$8-1)+3) -> 297.9541667 | O117: =VLOOKUP($H117,Flow_All!$A$5:$P$204,3*($C$8-1)+4) -> 423.0341667 | Q117: 47.66666667 | R117: =VLOOKUP($Q117,Conc_All!$R$5:$AG$245,3*($C$8-1)+2) -> 0.36497 | S117: =VLOOKUP($Q117,Conc_All!$R$5:$AG$245,3*($C$8-1)+3) -> 0.4 | T117: =VLOOKUP($Q117,Conc_All!$R$5:$AG$245,3*($C$8-1)+4) -> 0.4 | V117: =VLOOKUP($Q117,Flow_All!$R$5:$AG$245,3*($C$8-1)+2) -> 0 | W117: =VLOOKUP($Q117,Flow_All!$R$5:$AG$245,3*($C$8-1)+3) -> 0 | X117: =VLOOKUP($Q117,Flow_All!$R$5:$AG$245,3*($C$8-1)+4) -> 0
H118: 94 | I118: =VLOOKUP($H118,Conc_All!$A$5:$P$204,3*($C$8-1)+2) -> 0.2895725 | J118: =VLOOKUP($H118,Conc_All!$A$5:$P$204,3*($C$8-1)+3) -> 0.3973008333 | K118: =VLOOKUP($H118,Conc_All!$A$5:$P$204,3*($C$8-1)+4) -> 0.4 | M118: =VLOOKUP($H118,Flow_All!$A$5:$P$204,3*($C$8-1)+2) -> 291.405 | N118: =VLOOKUP($H118,Flow_All!$A$5:$P$204,3*($C$8-1)+3) -> 297.875 | O118: =VLOOKUP($H118,Flow_All!$A$5:$P$204,3*($C$8-1)+4) -> 422.795 | Q118: 47.75 | R118: =VLOOKUP($Q118,Conc_All!$R$5:$AG$245,3*($C$8-1)+2) -> 0.36436 | S118: =VLOOKUP($Q118,Conc_All!$R$5:$AG$245,3*($C$8-1)+3) -> 0.4 | T118: =VLOOKUP($Q118,Conc_All!$R$5:$AG$245,3*($C$8-1)+4) -> 0.4 | V118: =VLOOKUP($Q118,Flow_All!$R$5:$AG$245,3*($C$8-1)+2) -> 0 | W118: =VLOOKUP($Q118,Flow_All!$R$5:$AG$245,3*($C$8-1)+3) -> 0 | X118: =VLOOKUP($Q118,Flow_All!$R$5:$AG$245,3*($C$8-1)+4) -> 0
H119: 95 | I119: =VLOOKUP($H119,Conc_All!$A$5:$P$204,3*($C$8-1)+2) -> 0.2883525 | J119: =VLOOKUP($H119,Conc_All!$A$5:$P$204,3*($C$8-1)+3) -> 0.395735 | K119: =VLOOKUP($H119,Conc_All!$A$5:$P$204,3*($C$8-1)+4) -> 0.4 | M119: =VLOOKUP($H119,Flow_All!$A$5:$P$204,3*($C$8-1)+2) -> 291.9691667 | N119: =VLOOKUP($H119,Flow_All!$A$5:$P$204,3*($C$8-1)+3) -> 297.9208333 | O119: =VLOOKUP($H119,Flow_All!$A$5:$P$204,3*($C$8-1)+4) -> 410.0116667 | Q119: 47.83333333 | R119: =VLOOKUP($Q119,Conc_All!$R$5:$AG$245,3*($C$8-1)+2) -> 0.36396 | S119: =VLOOKUP($Q119,Conc_All!$R$5:$AG$245,3*($C$8-1)+3) -> 0.4 | T119: =VLOOKUP($Q119,Conc_All!$R$5:$AG$245,3*($C$8-1)+4) -> 0.4 | V119: =VLOOKUP($Q119,Flow_All!$R$5:$AG$245,3*($C$8-1)+2) -> 0 | W119: =VLOOKUP($Q119,Flow_All!$R$5:$AG$245,3*($C$8-1)+3) -> 0 | X119: =VLOOKUP($Q119,Flow_All!$R$5:$AG$245,3*($C$8-1)+4) -> 0
H120: 96 | I120: =VLOOKUP($H120,Conc_All!$A$5:$P$204,3*($C$8-1)+2) -> 0.2871041667 | J120: =VLOOKUP($H120,Conc_All!$A$5:$P$204,3*($C$8-1)+3) -> 0.3939933333 | K120: =VLOOKUP($H120,Conc_All!$A$5:$P$204,3*($C$8-1)+4) -> 0.4 | M120: =VLOOKUP($H120,Flow_All!$A$5:$P$204,3*($C$8-1)+2) -> 291.4225 | N120: =VLOOKUP($H120,Flow_All!$A$5:$P$204,3*($C$8-1)+3) -> 297.9016667 | O120: =VLOOKUP($H120,Flow_All!$A$5:$P$204,3*($C$8-1)+4) -> 422.975 | Q120: 47.91666667 | R120: =VLOOKUP($Q120,Conc_All!$R$5:$AG$245,3*($C$8-1)+2) -> 0.36392 | S120: =VLOOKUP($Q120,Conc_All!$R$5:$AG$245,3*($C$8-1)+3) -> 0.4 | T120: =VLOOKUP($Q120,Conc_All!$R$5:$AG$245,3*($C$8-1)+4) -> 0.4 | V120: =VLOOKUP($Q120,Flow_All!$R$5:$AG$245,3*($C$8-1)+2) -> 0 | W120: =VLOOKUP($Q120,Flow_All!$R$5:$AG$245,3*($C$8-1)+3) -> 0 | X120: =VLOOKUP($Q120,Flow_All!$R$5:$AG$245,3*($C$8-1)+4) -> 0
H121: 97 | I121: =VLOOKUP($H121,Conc_All!$A$5:$P$204,3*($C$8-1)+2) -> 0.2859491667 | J121: =VLOOKUP($H121,Conc_All!$A$5:$P$204,3*($C$8-1)+3) -> 0.3925125 | K121: =VLOOKUP($H121,Conc_All!$A$5:$P$204,3*($C$8-1)+4) -> 0.4 | M121: =VLOOKUP($H121,Flow_All!$A$5:$P$204,3*($C$8-1)+2) -> 291.29 | N121: =VLOOKUP($H121,Flow_All!$A$5:$P$204,3*($C$8-1)+3) -> 297.8791667 | O121: =VLOOKUP($H121,Flow_All!$A$5:$P$204,3*($C$8-1)+4) -> 446.04 | Q121: 48 | R121: =VLOOKUP($Q121,Conc_All!$R$5:$AG$245,3*($C$8-1)+2) -> 0.36371 | S121: =VLOOKUP($Q121,Conc_All!$R$5:$AG$245,3*($C$8-1)+3) -> 0.4 | T121: =VLOOKUP($Q121,Conc_All!$R$5:$AG$245,3*($C$8-1)+4) -> 0.4 | V121: =VLOOKUP($Q121,Flow_All!$R$5:$AG$245,3*($C$8-1)+2) -> 0 | W121: =VLOOKUP($Q121,Flow_All!$R$5:$AG$245,3*($C$8-1)+3) -> 0 | X121: =VLOOKUP($Q121,Flow_All!$R$5:$AG$245,3*($C$8-1)+4) -> 0
H122: 98 | I122: =VLOOKUP($H122,Conc_All!$A$5:$P$204,3*($C$8-1)+2) -> 0.28485 | J122: =VLOOKUP($H122,Conc_All!$A$5:$P$204,3*($C$8-1)+3) -> 0.3906033333 | K122: =VLOOKUP($H122,Conc_All!$A$5:$P$204,3*($C$8-1)+4) -> 0.4 | M122: =VLOOKUP($H122,Flow_All!$A$5:$P$204,3*($C$8-1)+2) -> 291.595 | N122: =VLOOKUP($H122,Flow_All!$A$5:$P$204,3*($C$8-1)+3) -> 297.9391667 | O122: =VLOOKUP($H122,Flow_All!$A$5:$P$204,3*($C$8-1)+4) -> 422.3283333 | Q122: 48.08333333 | R122: =VLOOKUP($Q122,Conc_All!$R$5:$AG$245,3*($C$8-1)+2) -> 0.36382 | S122: =VLOOKUP($Q122,Conc_All!$R$5:$AG$245,3*($C$8-1)+3) -> 0.4 | T122: =VLOOKUP($Q122,Conc_All!$R$5:$AG$245,3*($C$8-1)+4) -> 0.4 | V122: =VLOOKUP($Q122,Flow_All!$R$5:$AG$245,3*($C$8-1)+2) -> 0 | W122: =VLOOKUP($Q122,Flow_All!$R$5:$AG$245,3*($C$8-1)+3) -> 0 | X122: =VLOOKUP($Q122,Flow_All!$R$5:$AG$245,3*($C$8-1)+4) -> 0
H123: 99 | I123: =VLOOKUP($H123,Conc_All!$A$5:$P$204,3*($C$8-1)+2) -> 0.2841166667 | J123: =VLOOKUP($H123,Conc_All!$A$5:$P$204,3*($C$8-1)+3) -> 0.388225 | K123: =VLOOKUP($H123,Conc_All!$A$5:$P$204,3*($C$8-1)+4) -> 0.4 | M123: =VLOOKUP($H123,Flow_All!$A$5:$P$204,3*($C$8-1)+2) -> 291.4466667 | N123: =VLOOKUP($H123,Flow_All!$A$5:$P$204,3*($C$8-1)+3) -> 297.9183333 | O123: =VLOOKUP($H123,Flow_All!$A$5:$P$204,3*($C$8-1)+4) -> 422.9408333 | Q123: 48.16666667 | R123: =VLOOKUP($Q123,Conc_All!$R$5:$AG$245,3*($C$8-1)+2) -> 0.3638 | S123: =VLOOKUP($Q123,Conc_All!$R$5:$AG$245,3*($C$8-1)+3) -> 0.4 | T123: =VLOOKUP($Q123,Conc_All!$R$5:$AG$245,3*($C$8-1)+4) -> 0.4 | V123: =VLOOKUP($Q123,Flow_All!$R$5:$AG$245,3*($C$8-1)+2) -> 0 | W123: =VLOOKUP($Q123,Flow_All!$R$5:$AG$245,3*($C$8-1)+3) -> 0 | X123: =VLOOKUP($Q123,Flow_All!$R$5:$AG$245,3*($C$8-1)+4) -> 0
H124: 100 | I124: =VLOOKUP($H124,Conc_All!$A$5:$P$204,3*($C$8-1)+2) -> 0.2832991667 | J124: =VLOOKUP($H124,Conc_All!$A$5:$P$204,3*($C$8-1)+3) -> 0.3863216667 | K124: =VLOOKUP($H124,Conc_All!$A$5:$P$204,3*($C$8-1)+4) -> 0.4 | M124: =VLOOKUP($H124,Flow_All!$A$5:$P$204,3*($C$8-1)+2) -> 291.4941667 | N124: =VLOOKUP($H124,Flow_All!$A$5:$P$204,3*($C$8-1)+3) -> 297.8891667 | O124: =VLOOKUP($H124,Flow_All!$A$5:$P$204,3*($C$8-1)+4) -> 422.4591667 | Q124: 48.25 | R124: =VLOOKUP($Q124,Conc_All!$R$5:$AG$245,3*($C$8-1)+2) -> 0.36396 | S124: =VLOOKUP($Q124,Conc_All!$R$5:$AG$245,3*($C$8-1)+3) -> 0.4 | T124: =VLOOKUP($Q124,Conc_All!$R$5:$AG$245,3*($C$8-1)+4) -> 0.4 | V124: =VLOOKUP($Q124,Flow_All!$R$5:$AG$245,3*($C$8-1)+2) -> 0 | W124: =VLOOKUP($Q124,Flow_All!$R$5:$AG$245,3*($C$8-1)+3) -> 0 | X124: =VLOOKUP($Q124,Flow_All!$R$5:$AG$245,3*($C$8-1)+4) -> 0
H125: 101 | I125: =VLOOKUP($H125,Conc_All!$A$5:$P$204,3*($C$8-1)+2) -> 0.28197 | J125: =VLOOKUP($H125,Conc_All!$A$5:$P$204,3*($C$8-1)+3) -> 0.3846691667 | K125: =VLOOKUP($H125,Conc_All!$A$5:$P$204,3*($C$8-1)+4) -> 0.4 | M125: =VLOOKUP($H125,Flow_All!$A$5:$P$204,3*($C$8-1)+2) -> 291.7141667 | N125: =VLOOKUP($H125,Flow_All!$A$5:$P$204,3*($C$8-1)+3) -> 297.9233333 | O125: =VLOOKUP($H125,Flow_All!$A$5:$P$204,3*($C$8-1)+4) -> 431.815 | Q125: 48.33333333 | R125: =VLOOKUP($Q125,Conc_All!$R$5:$AG$245,3*($C$8-1)+2) -> 0.36274 | S125: =VLOOKUP($Q125,Conc_All!$R$5:$AG$245,3*($C$8-1)+3) -> 0.4 | T125: =VLOOKUP($Q125,Conc_All!$R$5:$AG$245,3*($C$8-1)+4) -> 0.4 | V125: =VLOOKUP($Q125,Flow_All!$R$5:$AG$245,3*($C$8-1)+2) -> 0 | W125: =VLOOKUP($Q125,Flow_All!$R$5:$AG$245,3*($C$8-1)+3) -> 0 | X125: =VLOOKUP($Q125,Flow_All!$R$5:$AG$245,3*($C$8-1)+4) -> 0
H126: 102 | I126: =VLOOKUP($H126,Conc_All!$A$5:$P$204,3*($C$8-1)+2) -> 0.2807133333 | J126: =VLOOKUP($H126,Conc_All!$A$5:$P$204,3*($C$8-1)+3) -> 0.3833325 | K126: =VLOOKUP($H126,Conc_All!$A$5:$P$204,3*($C$8-1)+4) -> 0.4 | M126: =VLOOKUP($H126,Flow_All!$A$5:$P$204,3*($C$8-1)+2) -> 291.9325 | N126: =VLOOKUP($H126,Flow_All!$A$5:$P$204,3*($C$8-1)+3) -> 297.9441667 | O126: =VLOOKUP($H126,Flow_All!$A$5:$P$204,3*($C$8-1)+4) -> 421.8125 | Q126: 48.41666667 | R126: =VLOOKUP($Q126,Conc_All!$R$5:$AG$245,3*($C$8-1)+2) -> 0.36257 | S126: =VLOOKUP($Q126,Conc_All!$R$5:$AG$245,3*($C$8-1)+3) -> 0.4 | T126: =VLOOKUP($Q126,Conc_All!$R$5:$AG$245,3*($C$8-1)+4) -> 0.4 | V126: =VLOOKUP($Q126,Flow_All!$R$5:$AG$245,3*($C$8-1)+2) -> 0 | W126: =VLOOKUP($Q126,Flow_All!$R$5:$AG$245,3*($C$8-1)+3) -> 0 | X126: =VLOOKUP($Q126,Flow_All!$R$5:$AG$245,3*($C$8-1)+4) -> 0
H127: 103 | I127: =VLOOKUP($H127,Conc_All!$A$5:$P$204,3*($C$8-1)+2) -> 0.2786708333 | J127: =VLOOKUP($H127,Conc_All!$A$5:$P$204,3*($C$8-1)+3) -> 0.3812008333 | K127: =VLOOKUP($H127,Conc_All!$A$5:$P$204,3*($C$8-1)+4) -> 0.4 | M127: =VLOOKUP($H127,Flow_All!$A$5:$P$204,3*($C$8-1)+2) -> 291.8091667 | N127: =VLOOKUP($H127,Flow_All!$A$5:$P$204,3*($C$8-1)+3) -> 297.9025 | O127: =VLOOKUP($H127,Flow_All!$A$5:$P$204,3*($C$8-1)+4) -> 397.2541667 | Q127: 48.5 | R127: =VLOOKUP($Q127,Conc_All!$R$5:$AG$245,3*($C$8-1)+2) -> 0.36244 | S127: =VLOOKUP($Q127,Conc_All!$R$5:$AG$245,3*($C$8-1)+3) -> 0.4 | T127: =VLOOKUP($Q127,Conc_All!$R$5:$AG$245,3*($C$8-1)+4) -> 0.4 | V127: =VLOOKUP($Q127,Flow_All!$R$5:$AG$245,3*($C$8-1)+2) -> 0 | W127: =VLOOKUP($Q127,Flow_All!$R$5:$AG$245,3*($C$8-1)+3) -> 0 | X127: =VLOOKUP($Q127,Flow_All!$R$5:$AG$245,3*($C$8-1)+4) -> 0
H128: 104 | I128: =VLOOKUP($H128,Conc_All!$A$5:$P$204,3*($C$8-1)+2) -> 0.2765466667 | J128: =VLOOKUP($H128,Conc_All!$A$5:$P$204,3*($C$8-1)+3) -> 0.37918 | K128: =VLOOKUP($H128,Conc_All!$A$5:$P$204,3*($C$8-1)+4) -> 0.4 | M128: =VLOOKUP($H128,Flow_All!$A$5:$P$204,3*($C$8-1)+2) -> 291.2433333 | N128: =VLOOKUP($H128,Flow_All!$A$5:$P$204,3*($C$8-1)+3) -> 297.8191667 | O128: =VLOOKUP($H128,Flow_All!$A$5:$P$204,3*($C$8-1)+4) -> 410.2233333 | Q128: 48.58333333 | R128: =VLOOKUP($Q128,Conc_All!$R$5:$AG$245,3*($C$8-1)+2) -> 0.36244 | S128: =VLOOKUP($Q128,Conc_All!$R$5:$AG$245,3*($C$8-1)+3) -> 0.4 | T128: =VLOOKUP($Q128,Conc_All!$R$5:$AG$245,3*($C$8-1)+4) -> 0.4 | V128: =VLOOKUP($Q128,Flow_All!$R$5:$AG$245,3*($C$8-1)+2) -> 0 | W128: =VLOOKUP($Q128,Flow_All!$R$5:$AG$245,3*($C$8-1)+3) -> 0 | X128: =VLOOKUP($Q128,Flow_All!$R$5:$AG$245,3*($C$8-1)+4) -> 0
H129: 105 | I129: =VLOOKUP($H129,Conc_All!$A$5:$P$204,3*($C$8-1)+2) -> 0.2749741667 | J129: =VLOOKUP($H129,Conc_All!$A$5:$P$204,3*($C$8-1)+3) -> 0.3770908333 | K129: =VLOOKUP($H129,Conc_All!$A$5:$P$204,3*($C$8-1)+4) -> 0.4 | M129: =VLOOKUP($H129,Flow_All!$A$5:$P$204,3*($C$8-1)+2) -> 291.1758333 | N129: =VLOOKUP($H129,Flow_All!$A$5:$P$204,3*($C$8-1)+3) -> 297.8566667 | O129: =VLOOKUP($H129,Flow_All!$A$5:$P$204,3*($C$8-1)+4) -> 409.6608333 | Q129: 48.66666667 | R129: =VLOOKUP($Q129,Conc_All!$R$5:$AG$245,3*($C$8-1)+2) -> 0.36221 | S129: =VLOOKUP($Q129,Conc_All!$R$5:$AG$245,3*($C$8-1)+3) -> 0.4 | T129: =VLOOKUP($Q129,Conc_All!$R$5:$AG$245,3*($C$8-1)+4) -> 0.4 | V129: =VLOOKUP($Q129,Flow_All!$R$5:$AG$245,3*($C$8-1)+2) -> 0 | W129: =VLOOKUP($Q129,Flow_All!$R$5:$AG$245,3*($C$8-1)+3) -> 0 | X129: =VLOOKUP($Q129,Flow_All!$R$5:$AG$245,3*($C$8-1)+4) -> 0
H130: 106 | I130: =VLOOKUP($H130,Conc_All!$A$5:$P$204,3*($C$8-1)+2) -> 0.27374 | J130: =VLOOKUP($H130,Conc_All!$A$5:$P$204,3*($C$8-1)+3) -> 0.3757208333 | K130: =VLOOKUP($H130,Conc_All!$A$5:$P$204,3*($C$8-1)+4) -> 0.4 | M130: =VLOOKUP($H130,Flow_All!$A$5:$P$204,3*($C$8-1)+2) -> 291.7216667 | N130: =VLOOKUP($H130,Flow_All!$A$5:$P$204,3*($C$8-1)+3) -> 297.9425 | O130: =VLOOKUP($H130,Flow_All!$A$5:$P$204,3*($C$8-1)+4) -> 421.5416667 | Q130: 48.75 | R130: =VLOOKUP($Q130,Conc_All!$R$5:$AG$245,3*($C$8-1)+2) -> 0.36156 | S130: =VLOOKUP($Q130,Conc_All!$R$5:$AG$245,3*($C$8-1)+3) -> 0.4 | T130: =VLOOKUP($Q130,Conc_All!$R$5:$AG$245,3*($C$8-1)+4) -> 0.4 | V130: =VLOOKUP($Q130,Flow_All!$R$5:$AG$245,3*($C$8-1)+2) -> 0 | W130: =VLOOKUP($Q130,Flow_All!$R$5:$AG$245,3*($C$8-1)+3) -> 0 | X130: =VLOOKUP($Q130,Flow_All!$R$5:$AG$245,3*($C$8-1)+4) -> 148.32
H131: 107 | I131: =VLOOKUP($H131,Conc_All!$A$5:$P$204,3*($C$8-1)+2) -> 0.2725016667 | J131: =VLOOKUP($H131,Conc_All!$A$5:$P$204,3*($C$8-1)+3) -> 0.3742483333 | K131: =VLOOKUP($H131,Conc_All!$A$5:$P$204,3*($C$8-1)+4) -> 0.4 | M131: =VLOOKUP($H131,Flow_All!$A$5:$P$204,3*($C$8-1)+2) -> 291.5191667 | N131: =VLOOKUP($H131,Flow_All!$A$5:$P$204,3*($C$8-1)+3) -> 297.935 | O131: =VLOOKUP($H131,Flow_All!$A$5:$P$204,3*($C$8-1)+4) -> 397.4416667 | Q131: 48.83333333 | R131: =VLOOKUP($Q131,Conc_All!$R$5:$AG$245,3*($C$8-1)+2) -> 0.36121 | S131: =VLOOKUP($Q131,Conc_All!$R$5:$AG$245,3*($C$8-1)+3) -> 0.4 | T131: =VLOOKUP($Q131,Conc_All!$R$5:$AG$245,3*($C$8-1)+4) -> 0.4 | V131: =VLOOKUP($Q131,Flow_All!$R$5:$AG$245,3*($C$8-1)+2) -> 0 | W131: =VLOOKUP($Q131,Flow_All!$R$5:$AG$245,3*($C$8-1)+3) -> 0 | X131: =VLOOKUP($Q131,Flow_All!$R$5:$AG$245,3*($C$8-1)+4) -> 295.36
H132: 108 | I132: =VLOOKUP($H132,Conc_All!$A$5:$P$204,3*($C$8-1)+2) -> 0.27099 | J132: =VLOOKUP($H132,Conc_All!$A$5:$P$204,3*($C$8-1)+3) -> 0.3730741667 | K132: =VLOOKUP($H132,Conc_All!$A$5:$P$204,3*($C$8-1)+4) -> 0.4 | M132: =VLOOKUP($H132,Flow_All!$A$5:$P$204,3*($C$8-1)+2) -> 291.3341667 | N132: =VLOOKUP($H132,Flow_All!$A$5:$P$204,3*($C$8-1)+3) -> 297.9 | O132: =VLOOKUP($H132,Flow_All!$A$5:$P$204,3*($C$8-1)+4) -> 422.5716667 | Q132: 48.91666667 | R132: =VLOOKUP($Q132,Conc_All!$R$5:$AG$245,3*($C$8-1)+2) -> 0.36137 | S132: =VLOOKUP($Q132,Conc_All!$R$5:$AG$245,3*($C$8-1)+3) -> 0.4 | T132: =VLOOKUP($Q132,Conc_All!$R$5:$AG$245,3*($C$8-1)+4) -> 0.4 | V132: =VLOOKUP($Q132,Flow_All!$R$5:$AG$245,3*($C$8-1)+2) -> 0 | W132: =VLOOKUP($Q132,Flow_All!$R$5:$AG$245,3*($C$8-1)+3) -> 0 | X132: =VLOOKUP($Q132,Flow_All!$R$5:$AG$245,3*($C$8-1)+4) -> 297.06
H133: 109 | I133: =VLOOKUP($H133,Conc_All!$A$5:$P$204,3*($C$8-1)+2) -> 0.2696358333 | J133: =VLOOKUP($H133,Conc_All!$A$5:$P$204,3*($C$8-1)+3) -> 0.3715458333 | K133: =VLOOKUP($H133,Conc_All!$A$5:$P$204,3*($C$8-1)+4) -> 0.4 | M133: =VLOOKUP($H133,Flow_All!$A$5:$P$204,3*($C$8-1)+2) -> 291.775 | N133: =VLOOKUP($H133,Flow_All!$A$5:$P$204,3*($C$8-1)+3) -> 297.9241667 | O133: =VLOOKUP($H133,Flow_All!$A$5:$P$204,3*($C$8-1)+4) -> 423.1625 | Q133: 49 | R133: =VLOOKUP($Q133,Conc_All!$R$5:$AG$245,3*($C$8-1)+2) -> 0.36141 | S133: =VLOOKUP($Q133,Conc_All!$R$5:$AG$245,3*($C$8-1)+3) -> 0.4 | T133: =VLOOKUP($Q133,Conc_All!$R$5:$AG$245,3*($C$8-1)+4) -> 0.4 | V133: =VLOOKUP($Q133,Flow_All!$R$5:$AG$245,3*($C$8-1)+2) -> 0 | W133: =VLOOKUP($Q133,Flow_All!$R$5:$AG$245,3*($C$8-1)+3) -> 0 | X133: =VLOOKUP($Q133,Flow_All!$R$5:$AG$245,3*($C$8-1)+4) -> 296.77
H134: 110 | I134: =VLOOKUP($H134,Conc_All!$A$5:$P$204,3*($C$8-1)+2) -> 0.2679866667 | J134: =VLOOKUP($H134,Conc_All!$A$5:$P$204,3*($C$8-1)+3) -> 0.3691825 | K134: =VLOOKUP($H134,Conc_All!$A$5:$P$204,3*($C$8-1)+4) -> 0.4 | M134: =VLOOKUP($H134,Flow_All!$A$5:$P$204,3*($C$8-1)+2) -> 292.0466667 | N134: =VLOOKUP($H134,Flow_All!$A$5:$P$204,3*($C$8-1)+3) -> 297.9758333 | O134: =VLOOKUP($H134,Flow_All!$A$5:$P$204,3*($C$8-1)+4) -> 423.3908333 | Q134: 49.08333333 | R134: =VLOOKUP($Q134,Conc_All!$R$5:$AG$245,3*($C$8-1)+2) -> 0.36141 | S134: =VLOOKUP($Q134,Conc_All!$R$5:$AG$245,3*($C$8-1)+3) -> 0.4 | T134: =VLOOKUP($Q134,Conc_All!$R$5:$AG$245,3*($C$8-1)+4) -> 0.4 | V134: =VLOOKUP($Q134,Flow_All!$R$5:$AG$245,3*($C$8-1)+2) -> 0 | W134: =VLOOKUP($Q134,Flow_All!$R$5:$AG$245,3*($C$8-1)+3) -> 0 | X134: =VLOOKUP($Q134,Flow_All!$R$5:$AG$245,3*($C$8-1)+4) -> 297.23
H135: 111 | I135: =VLOOKUP($H135,Conc_All!$A$5:$P$204,3*($C$8-1)+2) -> 0.2668666667 | J135: =VLOOKUP($H135,Conc_All!$A$5:$P$204,3*($C$8-1)+3) -> 0.366855 | K135: =VLOOKUP($H135,Conc_All!$A$5:$P$204,3*($C$8-1)+4) -> 0.4 | M135: =VLOOKUP($H135,Flow_All!$A$5:$P$204,3*($C$8-1)+2) -> 292.015 | N135: =VLOOKUP($H135,Flow_All!$A$5:$P$204,3*($C$8-1)+3) -> 297.9358333 | O135: =VLOOKUP($H135,Flow_All!$A$5:$P$204,3*($C$8-1)+4) -> 397.8733333 | Q135: 49.16666667 | R135: =VLOOKUP($Q135,Conc_All!$R$5:$AG$245,3*($C$8-1)+2) -> 0.36148 | S135: =VLOOKUP($Q135,Conc_All!$R$5:$AG$245,3*($C$8-1)+3) -> 0.4 | T135: =VLOOKUP($Q135,Conc_All!$R$5:$AG$245,3*($C$8-1)+4) -> 0.4 | V135: =VLOOKUP($Q135,Flow_All!$R$5:$AG$245,3*($C$8-1)+2) -> 0 | W135: =VLOOKUP($Q135,Flow_All!$R$5:$AG$245,3*($C$8-1)+3) -> 0 | X135: =VLOOKUP($Q135,Flow_All!$R$5:$AG$245,3*($C$8-1)+4) -> 296.08
H136: 112 | I136: =VLOOKUP($H136,Conc_All!$A$5:$P$204,3*($C$8-1)+2) -> 0.2658891667 | J136: =VLOOKUP($H136,Conc_All!$A$5:$P$204,3*($C$8-1)+3) -> 0.3648591667 | K136: =VLOOKUP($H136,Conc_All!$A$5:$P$204,3*($C$8-1)+4) -> 0.4 | M136: =VLOOKUP($H136,Flow_All!$A$5:$P$204,3*($C$8-1)+2) -> 291.0541667 | N136: =VLOOKUP($H136,Flow_All!$A$5:$P$204,3*($C$8-1)+3) -> 297.8783333 | O136: =VLOOKUP($H136,Flow_All!$A$5:$P$204,3*($C$8-1)+4) -> 422.6391667 | Q136: 49.25 | R136: =VLOOKUP($Q136,Conc_All!$R$5:$AG$245,3*($C$8-1)+2) -> 0.36155 | S136: =VLOOKUP($Q136,Conc_All!$R$5:$AG$245,3*($C$8-1)+3) -> 0.4 | T136: =VLOOKUP($Q136,Conc_All!$R$5:$AG$245,3*($C$8-1)+4) -> 0.4 | V136: =VLOOKUP($Q136,Flow_All!$R$5:$AG$245,3*($C$8-1)+2) -> 0 | W136: =VLOOKUP($Q136,Flow_All!$R$5:$AG$245,3*($C$8-1)+3) -> 0 | X136: =VLOOKUP($Q136,Flow_All!$R$5:$AG$245,3*($C$8-1)+4) -> 277.23
H137: 113 | I137: =VLOOKUP($H137,Conc_All!$A$5:$P$204,3*($C$8-1)+2) -> 0.2642066667 | J137: =VLOOKUP($H137,Conc_All!$A$5:$P$204,3*($C$8-1)+3) -> 0.3628391667 | K137: =VLOOKUP($H137,Conc_All!$A$5:$P$204,3*($C$8-1)+4) -> 0.4 | M137: =VLOOKUP($H137,Flow_All!$A$5:$P$204,3*($C$8-1)+2) -> 290.9091667 | N137: =VLOOKUP($H137,Flow_All!$A$5:$P$204,3*($C$8-1)+3) -> 297.92 | O137: =VLOOKUP($H137,Flow_All!$A$5:$P$204,3*($C$8-1)+4) -> 422.7391667 | Q137: 49.33333333 | R137: =VLOOKUP($Q137,Conc_All!$R$5:$AG$245,3*($C$8-1)+2) -> 0.36018 | S137: =VLOOKUP($Q137,Conc_All!$R$5:$AG$245,3*($C$8-1)+3) -> 0.4 | T137: =VLOOKUP($Q137,Conc_All!$R$5:$AG$245,3*($C$8-1)+4) -> 0.4 | V137: =VLOOKUP($Q137,Flow_All!$R$5:$AG$245,3*($C$8-1)+2) -> 0 | W137: =VLOOKUP($Q137,Flow_All!$R$5:$AG$245,3*($C$8-1)+3) -> 0 | X137: =VLOOKUP($Q137,Flow_All!$R$5:$AG$245,3*($C$8-1)+4) -> 294.66
H138: 114 | I138: =VLOOKUP($H138,Conc_All!$A$5:$P$204,3*($C$8-1)+2) -> 0.262675 | J138: =VLOOKUP($H138,Conc_All!$A$5:$P$204,3*($C$8-1)+3) -> 0.36112 | K138: =VLOOKUP($H138,Conc_All!$A$5:$P$204,3*($C$8-1)+4) -> 0.4 | M138: =VLOOKUP($H138,Flow_All!$A$5:$P$204,3*($C$8-1)+2) -> 291.5516667 | N138: =VLOOKUP($H138,Flow_All!$A$5:$P$204,3*($C$8-1)+3) -> 297.9508333 | O138: =VLOOKUP($H138,Flow_All!$A$5:$P$204,3*($C$8-1)+4) -> 445.5675 | Q138: 49.41666667 | R138: =VLOOKUP($Q138,Conc_All!$R$5:$AG$245,3*($C$8-1)+2) -> 0.35994 | S138: =VLOOKUP($Q138,Conc_All!$R$5:$AG$245,3*($C$8-1)+3) -> 0.4 | T138: =VLOOKUP($Q138,Conc_All!$R$5:$AG$245,3*($C$8-1)+4) -> 0.4 | V138: =VLOOKUP($Q138,Flow_All!$R$5:$AG$245,3*($C$8-1)+2) -> 0 | W138: =VLOOKUP($Q138,Flow_All!$R$5:$AG$245,3*($C$8-1)+3) -> 0 | X138: =VLOOKUP($Q138,Flow_All!$R$5:$AG$245,3*($C$8-1)+4) -> 295.02
H139: 115 | I139: =VLOOKUP($H139,Conc_All!$A$5:$P$204,3*($C$8-1)+2) -> 0.2610266667 | J139: =VLOOKUP($H139,Conc_All!$A$5:$P$204,3*($C$8-1)+3) -> 0.3596375 | K139: =VLOOKUP($H139,Conc_All!$A$5:$P$204,3*($C$8-1)+4) -> 0.4 | M139: =VLOOKUP($H139,Flow_All!$A$5:$P$204,3*($C$8-1)+2) -> 291.6175 | N139: =VLOOKUP($H139,Flow_All!$A$5:$P$204,3*($C$8-1)+3) -> 297.9158333 | O139: =VLOOKUP($H139,Flow_All!$A$5:$P$204,3*($C$8-1)+4) -> 423.0533333 | Q139: 49.5 | R139: =VLOOKUP($Q139,Conc_All!$R$5:$AG$245,3*($C$8-1)+2) -> 0.35994 | S139: =VLOOKUP($Q139,Conc_All!$R$5:$AG$245,3*($C$8-1)+3) -> 0.4 | T139: =VLOOKUP($Q139,Conc_All!$R$5:$AG$245,3*($C$8-1)+4) -> 0.4 | V139: =VLOOKUP($Q139,Flow_All!$R$5:$AG$245,3*($C$8-1)+2) -> 0 | W139: =VLOOKUP($Q139,Flow_All!$R$5:$AG$245,3*($C$8-1)+3) -> 0 | X139: =VLOOKUP($Q139,Flow_All!$R$5:$AG$245,3*($C$8-1)+4) -> 295.31
H140: 116 | I140: =VLOOKUP($H140,Conc_All!$A$5:$P$204,3*($C$8-1)+2) -> 0.2598258333 | J140: =VLOOKUP($H140,Conc_All!$A$5:$P$204,3*($C$8-1)+3) -> 0.3577491667 | K140: =VLOOKUP($H140,Conc_All!$A$5:$P$204,3*($C$8-1)+4) -> 0.4 | M140: =VLOOKUP($H140,Flow_All!$A$5:$P$204,3*($C$8-1)+2) -> 291.5983333 | N140: =VLOOKUP($H140,Flow_All!$A$5:$P$204,3*($C$8-1)+3) -> 297.9866667 | O140: =VLOOKUP($H140,Flow_All!$A$5:$P$204,3*($C$8-1)+4) -> 422.9408333 | Q140: 49.58333333 | R140: =VLOOKUP($Q140,Conc_All!$R$5:$AG$245,3*($C$8-1)+2) -> 0.35991 | S140: =VLOOKUP($Q140,Conc_All!$R$5:$AG$245,3*($C$8-1)+3) -> 0.4 | T140: =VLOOKUP($Q140,Conc_All!$R$5:$AG$245,3*($C$8-1)+4) -> 0.4 | V140: =VLOOKUP($Q140,Flow_All!$R$5:$AG$245,3*($C$8-1)+2) -> 0 | W140: =VLOOKUP($Q140,Flow_All!$R$5:$AG$245,3*($C$8-1)+3) -> 0 | X140: =VLOOKUP($Q140,Flow_All!$R$5:$AG$245,3*($C$8-1)+4) -> 294.46
H141: 117 | I141: =VLOOKUP($H141,Conc_All!$A$5:$P$204,3*($C$8-1)+2) -> 0.2588083333 | J141: =VLOOKUP($H141,Conc_All!$A$5:$P$204,3*($C$8-1)+3) -> 0.3552308333 | K141: =VLOOKUP($H141,Conc_All!$A$5:$P$204,3*($C$8-1)+4) -> 0.4 | M141: =VLOOKUP($H141,Flow_All!$A$5:$P$204,3*($C$8-1)+2) -> 291.7416667 | N141: =VLOOKUP($H141,Flow_All!$A$5:$P$204,3*($C$8-1)+3) -> 297.9358333 | O141: =VLOOKUP($H141,Flow_All!$A$5:$P$204,3*($C$8-1)+4) -> 397.6016667 | Q141: 49.66666667 | R141: =VLOOKUP($Q141,Conc_All!$R$5:$AG$245,3*($C$8-1)+2) -> 0.35986 | S141: =VLOOKUP($Q141,Conc_All!$R$5:$AG$245,3*($C$8-1)+3) -> 0.4 | T141: =VLOOKUP($Q141,Conc_All!$R$5:$AG$245,3*($C$8-1)+4) -> 0.4 | V141: =VLOOKUP($Q141,Flow_All!$R$5:$AG$245,3*($C$8-1)+2) -> 0 | W141: =VLOOKUP($Q141,Flow_All!$R$5:$AG$245,3*($C$8-1)+3) -> 0 | X141: =VLOOKUP($Q141,Flow_All!$R$5:$AG$245,3*($C$8-1)+4) -> 294.61
H142: 118 | I142: =VLOOKUP($H142,Conc_All!$A$5:$P$204,3*($C$8-1)+2) -> 0.2577758333 | J142: =VLOOKUP($H142,Conc_All!$A$5:$P$204,3*($C$8-1)+3) -> 0.3535533333 | K142: =VLOOKUP($H142,Conc_All!$A$5:$P$204,3*($C$8-1)+4) -> 0.4 | M142: =VLOOKUP($H142,Flow_All!$A$5:$P$204,3*($C$8-1)+2) -> 291.8691667 | N142: =VLOOKUP($H142,Flow_All!$A$5:$P$204,3*($C$8-1)+3) -> 297.9016667 | O142: =VLOOKUP($H142,Flow_All!$A$5:$P$204,3*($C$8-1)+4) -> 409.9166667 | Q142: 49.75 | R142: =VLOOKUP($Q142,Conc_All!$R$5:$AG$245,3*($C$8-1)+2) -> 0.35959 | S142: =VLOOKUP($Q142,Conc_All!$R$5:$AG$245,3*($C$8-1)+3) -> 0.4 | T142: =VLOOKUP($Q142,Conc_All!$R$5:$AG$245,3*($C$8-1)+4) -> 0.4 | V142: =VLOOKUP($Q142,Flow_All!$R$5:$AG$245,3*($C$8-1)+2) -> 0 | W142: =VLOOKUP($Q142,Flow_All!$R$5:$AG$245,3*($C$8-1)+3) -> 0 | X142: =VLOOKUP($Q142,Flow_All!$R$5:$AG$245,3*($C$8-1)+4) -> 296.56
H143: 119 | I143: =VLOOKUP($H143,Conc_All!$A$5:$P$204,3*($C$8-1)+2) -> 0.2568008333 | J143: =VLOOKUP($H143,Conc_All!$A$5:$P$204,3*($C$8-1)+3) -> 0.3523383333 | K143: =VLOOKUP($H143,Conc_All!$A$5:$P$204,3*($C$8-1)+4) -> 0.4 | M143: =VLOOKUP($H143,Flow_All!$A$5:$P$204,3*($C$8-1)+2) -> 291.9383333 | N143: =VLOOKUP($H143,Flow_All!$A$5:$P$204,3*($C$8-1)+3) -> 297.9541667 | O143: =VLOOKUP($H143,Flow_All!$A$5:$P$204,3*($C$8-1)+4) -> 395.8241667 | Q143: 49.83333333 | R143: =VLOOKUP($Q143,Conc_All!$R$5:$AG$245,3*($C$8-1)+2) -> 0.35924 | S143: =VLOOKUP($Q143,Conc_All!$R$5:$AG$245,3*($C$8-1)+3) -> 0.4 | T143: =VLOOKUP($Q143,Conc_All!$R$5:$AG$245,3*($C$8-1)+4) -> 0.4 | V143: =VLOOKUP($Q143,Flow_All!$R$5:$AG$245,3*($C$8-1)+2) -> 0 | W143: =VLOOKUP($Q143,Flow_All!$R$5:$AG$245,3*($C$8-1)+3) -> 0 | X143: =VLOOKUP($Q143,Flow_All!$R$5:$AG$245,3*($C$8-1)+4) -> 298.5
H144: 120 | I144: =VLOOKUP($H144,Conc_All!$A$5:$P$204,3*($C$8-1)+2) -> 0.2556458333 | J144: =VLOOKUP($H144,Conc_All!$A$5:$P$204,3*($C$8-1)+3) -> 0.3508108333 | K144: =VLOOKUP($H144,Conc_All!$A$5:$P$204,3*($C$8-1)+4) -> 0.4 | M144: =VLOOKUP($H144,Flow_All!$A$5:$P$204,3*($C$8-1)+2) -> 291.5791667 | N144: =VLOOKUP($H144,Flow_All!$A$5:$P$204,3*($C$8-1)+3) -> 297.8441667 | O144: =VLOOKUP($H144,Flow_All!$A$5:$P$204,3*($C$8-1)+4) -> 409.6091667 | Q144: 49.91666667 | R144: =VLOOKUP($Q144,Conc_All!$R$5:$AG$245,3*($C$8-1)+2) -> 0.35926 | S144: =VLOOKUP($Q144,Conc_All!$R$5:$AG$245,3*($C$8-1)+3) -> 0.4 | T144: =VLOOKUP($Q144,Conc_All!$R$5:$AG$245,3*($C$8-1)+4) -> 0.4 | V144: =VLOOKUP($Q144,Flow_All!$R$5:$AG$245,3*($C$8-1)+2) -> 0 | W144: =VLOOKUP($Q144,Flow_All!$R$5:$AG$245,3*($C$8-1)+3) -> 0 | X144: =VLOOKUP($Q144,Flow_All!$R$5:$AG$245,3*($C$8-1)+4) -> 299.07
H145: 121 | I145: =VLOOKUP($H145,Conc_All!$A$5:$P$204,3*($C$8-1)+2) -> 0.2543308333 | J145: =VLOOKUP($H145,Conc_All!$A$5:$P$204,3*($C$8-1)+3) -> 0.3488716667 | K145: =VLOOKUP($H145,Conc_All!$A$5:$P$204,3*($C$8-1)+4) -> 0.4 | M145: =VLOOKUP($H145,Flow_All!$A$5:$P$204,3*($C$8-1)+2) -> 291.7375 | N145: =VLOOKUP($H145,Flow_All!$A$5:$P$204,3*($C$8-1)+3) -> 297.9508333 | O145: =VLOOKUP($H145,Flow_All!$A$5:$P$204,3*($C$8-1)+4) -> 421.5775 | Q145: 50 | R145: =VLOOKUP($Q145,Conc_All!$R$5:$AG$245,3*($C$8-1)+2) -> 0.35922 | S145: =VLOOKUP($Q145,Conc_All!$R$5:$AG$245,3*($C$8-1)+3) -> 0.4 | T145: =VLOOKUP($Q145,Conc_All!$R$5:$AG$245,3*($C$8-1)+4) -> 0.4 | V145: =VLOOKUP($Q145,Flow_All!$R$5:$AG$245,3*($C$8-1)+2) -> 0 | W145: =VLOOKUP($Q145,Flow_All!$R$5:$AG$245,3*($C$8-1)+3) -> 0 | X145: =VLOOKUP($Q145,Flow_All!$R$5:$AG$245,3*($C$8-1)+4) -> 299.21
H146: 122 | I146: =VLOOKUP($H146,Conc_All!$A$5:$P$204,3*($C$8-1)+2) -> 0.25294 | J146: =VLOOKUP($H146,Conc_All!$A$5:$P$204,3*($C$8-1)+3) -> 0.3469491667 | K146: =VLOOKUP($H146,Conc_All!$A$5:$P$204,3*($C$8-1)+4) -> 0.4 | M146: =VLOOKUP($H146,Flow_All!$A$5:$P$204,3*($C$8-1)+2) -> 291.61 | N146: =VLOOKUP($H146,Flow_All!$A$5:$P$204,3*($C$8-1)+3) -> 297.95 | O146: =VLOOKUP($H146,Flow_All!$A$5:$P$204,3*($C$8-1)+4) -> 422.3166667 | Q146: 50.08333333 | R146: =VLOOKUP($Q146,Conc_All!$R$5:$AG$245,3*($C$8-1)+2) -> 0.35927 | S146: =VLOOKUP($Q146,Conc_All!$R$5:$AG$245,3*($C$8-1)+3) -> 0.4 | T146: =VLOOKUP($Q146,Conc_All!$R$5:$AG$245,3*($C$8-1)+4) -> 0.4 | V146: =VLOOKUP($Q146,Flow_All!$R$5:$AG$245,3*($C$8-1)+2) -> 0 | W146: =VLOOKUP($Q146,Flow_All!$R$5:$AG$245,3*($C$8-1)+3) -> 0 | X146: =VLOOKUP($Q146,Flow_All!$R$5:$AG$245,3*($C$8-1)+4) -> 299.29
H147: 123 | I147: =VLOOKUP($H147,Conc_All!$A$5:$P$204,3*($C$8-1)+2) -> 0.2517066667 | J147: =VLOOKUP($H147,Conc_All!$A$5:$P$204,3*($C$8-1)+3) -> 0.3452116667 | K147: =VLOOKUP($H147,Conc_All!$A$5:$P$204,3*($C$8-1)+4) -> 0.4 | M147: =VLOOKUP($H147,Flow_All!$A$5:$P$204,3*($C$8-1)+2) -> 291.2333333 | N147: =VLOOKUP($H147,Flow_All!$A$5:$P$204,3*($C$8-1)+3) -> 297.9025 | O147: =VLOOKUP($H147,Flow_All!$A$5:$P$204,3*($C$8-1)+4) -> 422.7716667 | Q147: 50.16666667 | R147: =VLOOKUP($Q147,Conc_All!$R$5:$AG$245,3*($C$8-1)+2) -> 0.35933 | S147: =VLOOKUP($Q147,Conc_All!$R$5:$AG$245,3*($C$8-1)+3) -> 0.4 | T147: =VLOOKUP($Q147,Conc_All!$R$5:$AG$245,3*($C$8-1)+4) -> 0.4 | V147: =VLOOKUP($Q147,Flow_All!$R$5:$AG$245,3*($C$8-1)+2) -> 0 | W147: =VLOOKUP($Q147,Flow_All!$R$5:$AG$245,3*($C$8-1)+3) -> 0 | X147: =VLOOKUP($Q147,Flow_All!$R$5:$AG$245,3*($C$8-1)+4) -> 299.06
H148: 124 | I148: =VLOOKUP($H148,Conc_All!$A$5:$P$204,3*($C$8-1)+2) -> 0.2504125 | J148: =VLOOKUP($H148,Conc_All!$A$5:$P$204,3*($C$8-1)+3) -> 0.34372 | K148: =VLOOKUP($H148,Conc_All!$A$5:$P$204,3*($C$8-1)+4) -> 0.4 | M148: =VLOOKUP($H148,Flow_All!$A$5:$P$204,3*($C$8-1)+2) -> 291.455 | N148: =VLOOKUP($H148,Flow_All!$A$5:$P$204,3*($C$8-1)+3) -> 297.9808333 | O148: =VLOOKUP($H148,Flow_All!$A$5:$P$204,3*($C$8-1)+4) -> 422.7491667 | Q148: 50.25 | R148: =VLOOKUP($Q148,Conc_All!$R$5:$AG$245,3*($C$8-1)+2) -> 0.35915 | S148: =VLOOKUP($Q148,Conc_All!$R$5:$AG$245,3*($C$8-1)+3) -> 0.4 | T148: =VLOOKUP($Q148,Conc_All!$R$5:$AG$245,3*($C$8-1)+4) -> 0.4 | V148: =VLOOKUP($Q148,Flow_All!$R$5:$AG$245,3*($C$8-1)+2) -> 0 | W148: =VLOOKUP($Q148,Flow_All!$R$5:$AG$245,3*($C$8-1)+3) -> 0 | X148: =VLOOKUP($Q148,Flow_All!$R$5:$AG$245,3*($C$8-1)+4) -> 297.98
H149: 125 | I149: =VLOOKUP($H149,Conc_All!$A$5:$P$204,3*($C$8-1)+2) -> 0.2493225 | J149: =VLOOKUP($H149,Conc_All!$A$5:$P$204,3*($C$8-1)+3) -> 0.3425633333 | K149: =VLOOKUP($H149,Conc_All!$A$5:$P$204,3*($C$8-1)+4) -> 0.4 | M149: =VLOOKUP($H149,Flow_All!$A$5:$P$204,3*($C$8-1)+2) -> 291.2641667 | N149: =VLOOKUP($H149,Flow_All!$A$5:$P$204,3*($C$8-1)+3) -> 297.93 | O149: =VLOOKUP($H149,Flow_All!$A$5:$P$204,3*($C$8-1)+4) -> 422.3716667 | Q149: 50.33333333 | R149: =VLOOKUP($Q149,Conc_All!$R$5:$AG$245,3*($C$8-1)+2) -> 0.35785 | S149: =VLOOKUP($Q149,Conc_All!$R$5:$AG$245,3*($C$8-1)+3) -> 0.4 | T149: =VLOOKUP($Q149,Conc_All!$R$5:$AG$245,3*($C$8-1)+4) -> 0.4 | V149: =VLOOKUP($Q149,Flow_All!$R$5:$AG$245,3*($C$8-1)+2) -> 0 | W149: =VLOOKUP($Q149,Flow_All!$R$5:$AG$245,3*($C$8-1)+3) -> 0 | X149: =VLOOKUP($Q149,Flow_All!$R$5:$AG$245,3*($C$8-1)+4) -> 297.89
H150: 126 | I150: =VLOOKUP($H150,Conc_All!$A$5:$P$204,3*($C$8-1)+2) -> 0.2481858333 | J150: =VLOOKUP($H150,Conc_All!$A$5:$P$204,3*($C$8-1)+3) -> 0.3411208333 | K150: =VLOOKUP($H150,Conc_All!$A$5:$P$204,3*($C$8-1)+4) -> 0.4 | M150: =VLOOKUP($H150,Flow_All!$A$5:$P$204,3*($C$8-1)+2) -> 291.3758333 | N150: =VLOOKUP($H150,Flow_All!$A$5:$P$204,3*($C$8-1)+3) -> 297.9875 | O150: =VLOOKUP($H150,Flow_All!$A$5:$P$204,3*($C$8-1)+4) -> 446.085 | Q150: 50.41666667 | R150: =VLOOKUP($Q150,Conc_All!$R$5:$AG$245,3*($C$8-1)+2) -> 0.35784 | S150: =VLOOKUP($Q150,Conc_All!$R$5:$AG$245,3*($C$8-1)+3) -> 0.4 | T150: =VLOOKUP($Q150,Conc_All!$R$5:$AG$245,3*($C$8-1)+4) -> 0.4 | V150: =VLOOKUP($Q150,Flow_All!$R$5:$AG$245,3*($C$8-1)+2) -> 0 | W150: =VLOOKUP($Q150,Flow_All!$R$5:$AG$245,3*($C$8-1)+3) -> 0 | X150: =VLOOKUP($Q150,Flow_All!$R$5:$AG$245,3*($C$8-1)+4) -> 297.43
H151: 127 | I151: =VLOOKUP($H151,Conc_All!$A$5:$P$204,3*($C$8-1)+2) -> 0.2471691667 | J151: =VLOOKUP($H151,Conc_All!$A$5:$P$204,3*($C$8-1)+3) -> 0.3395425 | K151: =VLOOKUP($H151,Conc_All!$A$5:$P$204,3*($C$8-1)+4) -> 0.4 | M151: =VLOOKUP($H151,Flow_All!$A$5:$P$204,3*($C$8-1)+2) -> 291.1391667 | N151: =VLOOKUP($H151,Flow_All!$A$5:$P$204,3*($C$8-1)+3) -> 297.8775 | O151: =VLOOKUP($H151,Flow_All!$A$5:$P$204,3*($C$8-1)+4) -> 422.1475 | Q151: 50.5 | R151: =VLOOKUP($Q151,Conc_All!$R$5:$AG$245,3*($C$8-1)+2) -> 0.35789 | S151: =VLOOKUP($Q151,Conc_All!$R$5:$AG$245,3*($C$8-1)+3) -> 0.4 | T151: =VLOOKUP($Q151,Conc_All!$R$5:$AG$245,3*($C$8-1)+4) -> 0.4 | V151: =VLOOKUP($Q151,Flow_All!$R$5:$AG$245,3*($C$8-1)+2) -> 0 | W151: =VLOOKUP($Q151,Flow_All!$R$5:$AG$245,3*($C$8-1)+3) -> 0 | X151: =VLOOKUP($Q151,Flow_All!$R$5:$AG$245,3*($C$8-1)+4) -> 297.46
H152: 128 | I152: =VLOOKUP($H152,Conc_All!$A$5:$P$204,3*($C$8-1)+2) -> 0.2458941667 | J152: =VLOOKUP($H152,Conc_All!$A$5:$P$204,3*($C$8-1)+3) -> 0.3379791667 | K152: =VLOOKUP($H152,Conc_All!$A$5:$P$204,3*($C$8-1)+4) -> 0.4 | M152: =VLOOKUP($H152,Flow_All!$A$5:$P$204,3*($C$8-1)+2) -> 290.7033333 | N152: =VLOOKUP($H152,Flow_All!$A$5:$P$204,3*($C$8-1)+3) -> 297.8533333 | O152: =VLOOKUP($H152,Flow_All!$A$5:$P$204,3*($C$8-1)+4) -> 397.85 | Q152: 50.58333333 | R152: =VLOOKUP($Q152,Conc_All!$R$5:$AG$245,3*($C$8-1)+2) -> 0.358 | S152: =VLOOKUP($Q152,Conc_All!$R$5:$AG$245,3*($C$8-1)+3) -> 0.4 | T152: =VLOOKUP($Q152,Conc_All!$R$5:$AG$245,3*($C$8-1)+4) -> 0.4 | V152: =VLOOKUP($Q152,Flow_All!$R$5:$AG$245,3*($C$8-1)+2) -> 0 | W152: =VLOOKUP($Q152,Flow_All!$R$5:$AG$245,3*($C$8-1)+3) -> 0 | X152: =VLOOKUP($Q152,Flow_All!$R$5:$AG$245,3*($C$8-1)+4) -> 297.45
H153: 129 | I153: =VLOOKUP($H153,Conc_All!$A$5:$P$204,3*($C$8-1)+2) -> 0.24471 | J153: =VLOOKUP($H153,Conc_All!$A$5:$P$204,3*($C$8-1)+3) -> 0.3364466667 | K153: =VLOOKUP($H153,Conc_All!$A$5:$P$204,3*($C$8-1)+4) -> 0.4 | M153: =VLOOKUP($H153,Flow_All!$A$5:$P$204,3*($C$8-1)+2) -> 291.2958333 | N153: =VLOOKUP($H153,Flow_All!$A$5:$P$204,3*($C$8-1)+3) -> 297.8575 | O153: =VLOOKUP($H153,Flow_All!$A$5:$P$204,3*($C$8-1)+4) -> 373.6083333 | Q153: 50.66666667 | R153: =VLOOKUP($Q153,Conc_All!$R$5:$AG$245,3*($C$8-1)+2) -> 0.35798 | S153: =VLOOKUP($Q153,Conc_All!$R$5:$AG$245,3*($C$8-1)+3) -> 0.4 | T153: =VLOOKUP($Q153,Conc_All!$R$5:$AG$245,3*($C$8-1)+4) -> 0.4 | V153: =VLOOKUP($Q153,Flow_All!$R$5:$AG$245,3*($C$8-1)+2) -> 0 | W153: =VLOOKUP($Q153,Flow_All!$R$5:$AG$245,3*($C$8-1)+3) -> 0 | X153: =VLOOKUP($Q153,Flow_All!$R$5:$AG$245,3*($C$8-1)+4) -> 297.28
H154: 130 | I154: =VLOOKUP($H154,Conc_All!$A$5:$P$204,3*($C$8-1)+2) -> 0.2434625 | J154: =VLOOKUP($H154,Conc_All!$A$5:$P$204,3*($C$8-1)+3) -> 0.3350141667 | K154: =VLOOKUP($H154,Conc_All!$A$5:$P$204,3*($C$8-1)+4) -> 0.4 | L154: =IF(ISNA(VLOOKUP($B$6,$A$25:$F$52,2,FALSE)),VLOOKUP($B$6,$A$25:$F$52,6,FALSE),VLOOKUP($B$6,$A$25:$F$52,2,FALSE)) ->  | M154: =VLOOKUP($H154,Flow_All!$A$5:$P$204,3*($C$8-1)+2) -> 291.22 | N154: =VLOOKUP($H154,Flow_All!$A$5:$P$204,3*($C$8-1)+3) -> 297.9175 | O154: =VLOOKUP($H154,Flow_All!$A$5:$P$204,3*($C$8-1)+4) -> 422.9816667 | Q154: 50.75 | R154: =VLOOKUP($Q154,Conc_All!$R$5:$AG$245,3*($C$8-1)+2) -> 0.35762 | S154: =VLOOKUP($Q154,Conc_All!$R$5:$AG$245,3*($C$8-1)+3) -> 0.4 | T154: =VLOOKUP($Q154,Conc_All!$R$5:$AG$245,3*($C$8-1)+4) -> 0.4 | U154: =IF(ISNA(VLOOKUP($B$6,$A$25:$F$52,2,FALSE)),VLOOKUP($B$6,$A$25:$F$52,6,FALSE),VLOOKUP($B$6,$A$25:$F$52,2,FALSE)) ->  | V154: =VLOOKUP($Q154,Flow_All!$R$5:$AG$245,3*($C$8-1)+2) -> 0 | W154: =VLOOKUP($Q154,Flow_All!$R$5:$AG$245,3*($C$8-1)+3) -> 0 | X154: =VLOOKUP($Q154,Flow_All!$R$5:$AG$245,3*($C$8-1)+4) -> 298.43
H155: 131 | I155: =VLOOKUP($H155,Conc_All!$A$5:$P$204,3*($C$8-1)+2) -> 0.242365 | J155: =VLOOKUP($H155,Conc_All!$A$5:$P$204,3*($C$8-1)+3) -> 0.3335141667 | K155: =VLOOKUP($H155,Conc_All!$A$5:$P$204,3*($C$8-1)+4) -> 0.4 | M155: =VLOOKUP($H155,Flow_All!$A$5:$P$204,3*($C$8-1)+2) -> 290.9675 | N155: =VLOOKUP($H155,Flow_All!$A$5:$P$204,3*($C$8-1)+3) -> 297.9725 | O155: =VLOOKUP($H155,Flow_All!$A$5:$P$204,3*($C$8-1)+4) -> 446.5425 | Q155: =Q154+1/12 -> 50.83333333 | R155: =VLOOKUP($Q155,Conc_All!$R$5:$AG$245,3*($C$8-1)+2) -> 0.3572 | S155: =VLOOKUP($Q155,Conc_All!$R$5:$AG$245,3*($C$8-1)+3) -> 0.4 | T155: =VLOOKUP($Q155,Conc_All!$R$5:$AG$245,3*($C$8-1)+4) -> 0.4 | V155: =VLOOKUP($Q155,Flow_All!$R$5:$AG$245,3*($C$8-1)+2) -> 0 | W155: =VLOOKUP($Q155,Flow_All!$R$5:$AG$245,3*($C$8-1)+3) -> 0 | X155: =VLOOKUP($Q155,Flow_All!$R$5:$AG$245,3*($C$8-1)+4) -> 299.21
H156: 132 | I156: =VLOOKUP($H156,Conc_All!$A$5:$P$204,3*($C$8-1)+2) -> 0.24108 | J156: =VLOOKUP($H156,Conc_All!$A$5:$P$204,3*($C$8-1)+3) -> 0.33185 | K156: =VLOOKUP($H156,Conc_All!$A$5:$P$204,3*($C$8-1)+4) -> 0.4 | M156: =VLOOKUP($H156,Flow_All!$A$5:$P$204,3*($C$8-1)+2) -> 291.0616667 | N156: =VLOOKUP($H156,Flow_All!$A$5:$P$204,3*($C$8-1)+3) -> 297.965 | O156: =VLOOKUP($H156,Flow_All!$A$5:$P$204,3*($C$8-1)+4) -> 446.4633333 | Q156: 50.91666667 | R156: =VLOOKUP($Q156,Conc_All!$R$5:$AG$245,3*($C$8-1)+2) -> 0.35716 | S156: =VLOOKUP($Q156,Conc_All!$R$5:$AG$245,3*($C$8-1)+3) -> 0.4 | T156: =VLOOKUP($Q156,Conc_All!$R$5:$AG$245,3*($C$8-1)+4) -> 0.4 | V156: =VLOOKUP($Q156,Flow_All!$R$5:$AG$245,3*($C$8-1)+2) -> 0 | W156: =VLOOKUP($Q156,Flow_All!$R$5:$AG$245,3*($C$8-1)+3) -> 0 | X156: =VLOOKUP($Q156,Flow_All!$R$5:$AG$245,3*($C$8-1)+4) -> 299.47
H157: 133 | I157: =VLOOKUP($H157,Conc_All!$A$5:$P$204,3*($C$8-1)+2) -> 0.2396341667 | J157: =VLOOKUP($H157,Conc_All!$A$5:$P$204,3*($C$8-1)+3) -> 0.3308 | K157: =VLOOKUP($H157,Conc_All!$A$5:$P$204,3*($C$8-1)+4) -> 0.4 | M157: =VLOOKUP($H157,Flow_All!$A$5:$P$204,3*($C$8-1)+2) -> 290.7641667 | N157: =VLOOKUP($H157,Flow_All!$A$5:$P$204,3*($C$8-1)+3) -> 297.98 | O157: =VLOOKUP($H157,Flow_All!$A$5:$P$204,3*($C$8-1)+4) -> 446.5608333 | Q157: 51 | R157: =VLOOKUP($Q157,Conc_All!$R$5:$AG$245,3*($C$8-1)+2) -> 0.35714 | S157: =VLOOKUP($Q157,Conc_All!$R$5:$AG$245,3*($C$8-1)+3) -> 0.4 | T157: =VLOOKUP($Q157,Conc_All!$R$5:$AG$245,3*($C$8-1)+4) -> 0.4 | V157: =VLOOKUP($Q157,Flow_All!$R$5:$AG$245,3*($C$8-1)+2) -> 0 | W157: =VLOOKUP($Q157,Flow_All!$R$5:$AG$245,3*($C$8-1)+3) -> 0 | X157: =VLOOKUP($Q157,Flow_All!$R$5:$AG$245,3*($C$8-1)+4) -> 299.54
H158: 134 | I158: =VLOOKUP($H158,Conc_All!$A$5:$P$204,3*($C$8-1)+2) -> 0.2384683333 | J158: =VLOOKUP($H158,Conc_All!$A$5:$P$204,3*($C$8-1)+3) -> 0.3291408333 | K158: =VLOOKUP($H158,Conc_All!$A$5:$P$204,3*($C$8-1)+4) -> 0.4 | M158: =VLOOKUP($H158,Flow_All!$A$5:$P$204,3*($C$8-1)+2) -> 290.6875 | N158: =VLOOKUP($H158,Flow_All!$A$5:$P$204,3*($C$8-1)+3) -> 297.9666667 | O158: =VLOOKUP($H158,Flow_All!$A$5:$P$204,3*($C$8-1)+4) -> 422.7308333 | Q158: 51.08333333 | R158: =VLOOKUP($Q158,Conc_All!$R$5:$AG$245,3*($C$8-1)+2) -> 0.35712 | S158: =VLOOKUP($Q158,Conc_All!$R$5:$AG$245,3*($C$8-1)+3) -> 0.4 | T158: =VLOOKUP($Q158,Conc_All!$R$5:$AG$245,3*($C$8-1)+4) -> 0.4 | V158: =VLOOKUP($Q158,Flow_All!$R$5:$AG$245,3*($C$8-1)+2) -> 0 | W158: =VLOOKUP($Q158,Flow_All!$R$5:$AG$245,3*($C$8-1)+3) -> 0 | X158: =VLOOKUP($Q158,Flow_All!$R$5:$AG$245,3*($C$8-1)+4) -> 299.59
H159: 135 | I159: =VLOOKUP($H159,Conc_All!$A$5:$P$204,3*($C$8-1)+2) -> 0.2372016667 | J159: =VLOOKUP($H159,Conc_All!$A$5:$P$204,3*($C$8-1)+3) -> 0.3272533333 | K159: =VLOOKUP($H159,Conc_All!$A$5:$P$204,3*($C$8-1)+4) -> 0.4 | M159: =VLOOKUP($H159,Flow_All!$A$5:$P$204,3*($C$8-1)+2) -> 290.9683333 | N159: =VLOOKUP($H159,Flow_All!$A$5:$P$204,3*($C$8-1)+3) -> 297.9258333 | O159: =VLOOKUP($H159,Flow_All!$A$5:$P$204,3*($C$8-1)+4) -> 422.6108333 | Q159: 51.16666667 | R159: =VLOOKUP($Q159,Conc_All!$R$5:$AG$245,3*($C$8-1)+2) -> 0.3571 | S159: =VLOOKUP($Q159,Conc_All!$R$5:$AG$245,3*($C$8-1)+3) -> 0.4 | T159: =VLOOKUP($Q159,Conc_All!$R$5:$AG$245,3*($C$8-1)+4) -> 0.4 | V159: =VLOOKUP($Q159,Flow_All!$R$5:$AG$245,3*($C$8-1)+2) -> 0 | W159: =VLOOKUP($Q159,Flow_All!$R$5:$AG$245,3*($C$8-1)+3) -> 0 | X159: =VLOOKUP($Q159,Flow_All!$R$5:$AG$245,3*($C$8-1)+4) -> 299.39
H160: 136 | I160: =VLOOKUP($H160,Conc_All!$A$5:$P$204,3*($C$8-1)+2) -> 0.2360475 | J160: =VLOOKUP($H160,Conc_All!$A$5:$P$204,3*($C$8-1)+3) -> 0.3259341667 | K160: =VLOOKUP($H160,Conc_All!$A$5:$P$204,3*($C$8-1)+4) -> 0.4 | M160: =VLOOKUP($H160,Flow_All!$A$5:$P$204,3*($C$8-1)+2) -> 291.3675 | N160: =VLOOKUP($H160,Flow_All!$A$5:$P$204,3*($C$8-1)+3) -> 297.8916667 | O160: =VLOOKUP($H160,Flow_All!$A$5:$P$204,3*($C$8-1)+4) -> 373.3991667 | Q160: 51.25 | R160: =VLOOKUP($Q160,Conc_All!$R$5:$AG$245,3*($C$8-1)+2) -> 0.35707 | S160: =VLOOKUP($Q160,Conc_All!$R$5:$AG$245,3*($C$8-1)+3) -> 0.4 | T160: =VLOOKUP($Q160,Conc_All!$R$5:$AG$245,3*($C$8-1)+4) -> 0.4 | V160: =VLOOKUP($Q160,Flow_All!$R$5:$AG$245,3*($C$8-1)+2) -> 0 | W160: =VLOOKUP($Q160,Flow_All!$R$5:$AG$245,3*($C$8-1)+3) -> 0 | X160: =VLOOKUP($Q160,Flow_All!$R$5:$AG$245,3*($C$8-1)+4) -> 298.58
H161: 137 | I161: =VLOOKUP($H161,Conc_All!$A$5:$P$204,3*($C$8-1)+2) -> 0.2350291667 | J161: =VLOOKUP($H161,Conc_All!$A$5:$P$204,3*($C$8-1)+3) -> 0.3242491667 | K161: =VLOOKUP($H161,Conc_All!$A$5:$P$204,3*($C$8-1)+4) -> 0.4 | M161: =VLOOKUP($H161,Flow_All!$A$5:$P$204,3*($C$8-1)+2) -> 291.2308333 | N161: =VLOOKUP($H161,Flow_All!$A$5:$P$204,3*($C$8-1)+3) -> 297.8433333 | O161: =VLOOKUP($H161,Flow_All!$A$5:$P$204,3*($C$8-1)+4) -> 373.2166667 | Q161: 51.33333333 | R161: =VLOOKUP($Q161,Conc_All!$R$5:$AG$245,3*($C$8-1)+2) -> 0.35605 | S161: =VLOOKUP($Q161,Conc_All!$R$5:$AG$245,3*($C$8-1)+3) -> 0.4 | T161: =VLOOKUP($Q161,Conc_All!$R$5:$AG$245,3*($C$8-1)+4) -> 0.4 | V161: =VLOOKUP($Q161,Flow_All!$R$5:$AG$245,3*($C$8-1)+2) -> 0 | W161: =VLOOKUP($Q161,Flow_All!$R$5:$AG$245,3*($C$8-1)+3) -> 0 | X161: =VLOOKUP($Q161,Flow_All!$R$5:$AG$245,3*($C$8-1)+4) -> 298.52
H162: 138 | I162: =VLOOKUP($H162,Conc_All!$A$5:$P$204,3*($C$8-1)+2) -> 0.2339441667 | J162: =VLOOKUP($H162,Conc_All!$A$5:$P$204,3*($C$8-1)+3) -> 0.32281 | K162: =VLOOKUP($H162,Conc_All!$A$5:$P$204,3*($C$8-1)+4) -> 0.4 | M162: =VLOOKUP($H162,Flow_All!$A$5:$P$204,3*($C$8-1)+2) -> 291.31 | N162: =VLOOKUP($H162,Flow_All!$A$5:$P$204,3*($C$8-1)+3) -> 297.8325 | O162: =VLOOKUP($H162,Flow_All!$A$5:$P$204,3*($C$8-1)+4) -> 422.3125 | Q162: 51.41666667 | R162: =VLOOKUP($Q162,Conc_All!$R$5:$AG$245,3*($C$8-1)+2) -> 0.35602 | S162: =VLOOKUP($Q162,Conc_All!$R$5:$AG$245,3*($C$8-1)+3) -> 0.4 | T162: =VLOOKUP($Q162,Conc_All!$R$5:$AG$245,3*($C$8-1)+4) -> 0.4 | V162: =VLOOKUP($Q162,Flow_All!$R$5:$AG$245,3*($C$8-1)+2) -> 0 | W162: =VLOOKUP($Q162,Flow_All!$R$5:$AG$245,3*($C$8-1)+3) -> 231.52 | X162: =VLOOKUP($Q162,Flow_All!$R$5:$AG$245,3*($C$8-1)+4) -> 298.22
H163: 139 | I163: =VLOOKUP($H163,Conc_All!$A$5:$P$204,3*($C$8-1)+2) -> 0.2326116667 | J163: =VLOOKUP($H163,Conc_All!$A$5:$P$204,3*($C$8-1)+3) -> 0.3217908333 | K163: =VLOOKUP($H163,Conc_All!$A$5:$P$204,3*($C$8-1)+4) -> 0.4 | M163: =VLOOKUP($H163,Flow_All!$A$5:$P$204,3*($C$8-1)+2) -> 291.67 | N163: =VLOOKUP($H163,Flow_All!$A$5:$P$204,3*($C$8-1)+3) -> 297.9383333 | O163: =VLOOKUP($H163,Flow_All!$A$5:$P$204,3*($C$8-1)+4) -> 409.4058333 | Q163: 51.5 | R163: =VLOOKUP($Q163,Conc_All!$R$5:$AG$245,3*($C$8-1)+2) -> 0.35594 | S163: =VLOOKUP($Q163,Conc_All!$R$5:$AG$245,3*($C$8-1)+3) -> 0.4 | T163: =VLOOKUP($Q163,Conc_All!$R$5:$AG$245,3*($C$8-1)+4) -> 0.4 | V163: =VLOOKUP($Q163,Flow_All!$R$5:$AG$245,3*($C$8-1)+2) -> 0 | W163: =VLOOKUP($Q163,Flow_All!$R$5:$AG$245,3*($C$8-1)+3) -> 148.99 | X163: =VLOOKUP($Q163,Flow_All!$R$5:$AG$245,3*($C$8-1)+4) -> 298.2
H164: 140 | I164: =VLOOKUP($H164,Conc_All!$A$5:$P$204,3*($C$8-1)+2) -> 0.2310791667 | J164: =VLOOKUP($H164,Conc_All!$A$5:$P$204,3*($C$8-1)+3) -> 0.3202233333 | K164: =VLOOKUP($H164,Conc_All!$A$5:$P$204,3*($C$8-1)+4) -> 0.4 | M164: =VLOOKUP($H164,Flow_All!$A$5:$P$204,3*($C$8-1)+2) -> 291.3875 | N164: =VLOOKUP($H164,Flow_All!$A$5:$P$204,3*($C$8-1)+3) -> 297.9225 | O164: =VLOOKUP($H164,Flow_All!$A$5:$P$204,3*($C$8-1)+4) -> 397.2441667 | Q164: 51.58333333 | R164: =VLOOKUP($Q164,Conc_All!$R$5:$AG$245,3*($C$8-1)+2) -> 0.35595 | S164: =VLOOKUP($Q164,Conc_All!$R$5:$AG$245,3*($C$8-1)+3) -> 0.4 | T164: =VLOOKUP($Q164,Conc_All!$R$5:$AG$245,3*($C$8-1)+4) -> 0.4 | V164: =VLOOKUP($Q164,Flow_All!$R$5:$AG$245,3*($C$8-1)+2) -> 0 | W164: =VLOOKUP($Q164,Flow_All!$R$5:$AG$245,3*($C$8-1)+3) -> 147.2 | X164: =VLOOKUP($Q164,Flow_All!$R$5:$AG$245,3*($C$8-1)+4) -> 298.04
H165: 141 | I165: =VLOOKUP($H165,Conc_All!$A$5:$P$204,3*($C$8-1)+2) -> 0.2299966667 | J165: =VLOOKUP($H165,Conc_All!$A$5:$P$204,3*($C$8-1)+3) -> 0.3184791667 | K165: =VLOOKUP($H165,Conc_All!$A$5:$P$204,3*($C$8-1)+4) -> 0.4 | M165: =VLOOKUP($H165,Flow_All!$A$5:$P$204,3*($C$8-1)+2) -> 291.5841667 | N165: =VLOOKUP($H165,Flow_All!$A$5:$P$204,3*($C$8-1)+3) -> 297.8233333 | O165: =VLOOKUP($H165,Flow_All!$A$5:$P$204,3*($C$8-1)+4) -> 397.7458333 | Q165: 51.66666667 | R165: =VLOOKUP($Q165,Conc_All!$R$5:$AG$245,3*($C$8-1)+2) -> 0.35581 | S165: =VLOOKUP($Q165,Conc_All!$R$5:$AG$245,3*($C$8-1)+3) -> 0.4 | T165: =VLOOKUP($Q165,Conc_All!$R$5:$AG$245,3*($C$8-1)+4) -> 0.4 | V165: =VLOOKUP($Q165,Flow_All!$R$5:$AG$245,3*($C$8-1)+2) -> 0 | W165: =VLOOKUP($Q165,Flow_All!$R$5:$AG$245,3*($C$8-1)+3) -> 146.49 | X165: =VLOOKUP($Q165,Flow_All!$R$5:$AG$245,3*($C$8-1)+4) -> 298.06
H166: 142 | I166: =VLOOKUP($H166,Conc_All!$A$5:$P$204,3*($C$8-1)+2) -> 0.2290308333 | J166: =VLOOKUP($H166,Conc_All!$A$5:$P$204,3*($C$8-1)+3) -> 0.316385 | K166: =VLOOKUP($H166,Conc_All!$A$5:$P$204,3*($C$8-1)+4) -> 0.4 | M166: =VLOOKUP($H166,Flow_All!$A$5:$P$204,3*($C$8-1)+2) -> 292.1308333 | N166: =VLOOKUP($H166,Flow_All!$A$5:$P$204,3*($C$8-1)+3) -> 297.9491667 | O166: =VLOOKUP($H166,Flow_All!$A$5:$P$204,3*($C$8-1)+4) -> 423.0033333 | Q166: 51.75 | R166: =VLOOKUP($Q166,Conc_All!$R$5:$AG$245,3*($C$8-1)+2) -> 0.35545 | S166: =VLOOKUP($Q166,Conc_All!$R$5:$AG$245,3*($C$8-1)+3) -> 0.4 | T166: =VLOOKUP($Q166,Conc_All!$R$5:$AG$245,3*($C$8-1)+4) -> 0.4 | V166: =VLOOKUP($Q166,Flow_All!$R$5:$AG$245,3*($C$8-1)+2) -> 0 | W166: =VLOOKUP($Q166,Flow_All!$R$5:$AG$245,3*($C$8-1)+3) -> 149.12 | X166: =VLOOKUP($Q166,Flow_All!$R$5:$AG$245,3*($C$8-1)+4) -> 298.59
H167: 143 | I167: =VLOOKUP($H167,Conc_All!$A$5:$P$204,3*($C$8-1)+2) -> 0.2279791667 | J167: =VLOOKUP($H167,Conc_All!$A$5:$P$204,3*($C$8-1)+3) -> 0.3146141667 | K167: =VLOOKUP($H167,Conc_All!$A$5:$P$204,3*($C$8-1)+4) -> 0.4 | M167: =VLOOKUP($H167,Flow_All!$A$5:$P$204,3*($C$8-1)+2) -> 291.5475 | N167: =VLOOKUP($H167,Flow_All!$A$5:$P$204,3*($C$8-1)+3) -> 297.85 | O167: =VLOOKUP($H167,Flow_All!$A$5:$P$204,3*($C$8-1)+4) -> 422.8208333 | Q167: 51.83333333 | R167: =VLOOKUP($Q167,Conc_All!$R$5:$AG$245,3*($C$8-1)+2) -> 0.35503 | S167: =VLOOKUP($Q167,Conc_All!$R$5:$AG$245,3*($C$8-1)+3) -> 0.4 | T167: =VLOOKUP($Q167,Conc_All!$R$5:$AG$245,3*($C$8-1)+4) -> 0.4 | V167: =VLOOKUP($Q167,Flow_All!$R$5:$AG$245,3*($C$8-1)+2) -> 0 | W167: =VLOOKUP($Q167,Flow_All!$R$5:$AG$245,3*($C$8-1)+3) -> 293.93 | X167: =VLOOKUP($Q167,Flow_All!$R$5:$AG$245,3*($C$8-1)+4) -> 299.33
H168: 144 | I168: =VLOOKUP($H168,Conc_All!$A$5:$P$204,3*($C$8-1)+2) -> 0.2266325 | J168: =VLOOKUP($H168,Conc_All!$A$5:$P$204,3*($C$8-1)+3) -> 0.3128233333 | K168: =VLOOKUP($H168,Conc_All!$A$5:$P$204,3*($C$8-1)+4) -> 0.4 | M168: =VLOOKUP($H168,Flow_All!$A$5:$P$204,3*($C$8-1)+2) -> 290.6391667 | N168: =VLOOKUP($H168,Flow_All!$A$5:$P$204,3*($C$8-1)+3) -> 297.8366667 | O168: =VLOOKUP($H168,Flow_All!$A$5:$P$204,3*($C$8-1)+4) -> 384.7958333 | Q168: 51.91666667 | R168: =VLOOKUP($Q168,Conc_All!$R$5:$AG$245,3*($C$8-1)+2) -> 0.35501 | S168: =VLOOKUP($Q168,Conc_All!$R$5:$AG$245,3*($C$8-1)+3) -> 0.4 | T168: =VLOOKUP($Q168,Conc_All!$R$5:$AG$245,3*($C$8-1)+4) -> 0.4 | V168: =VLOOKUP($Q168,Flow_All!$R$5:$AG$245,3*($C$8-1)+2) -> 0 | W168: =VLOOKUP($Q168,Flow_All!$R$5:$AG$245,3*($C$8-1)+3) -> 295.65 | X168: =VLOOKUP($Q168,Flow_All!$R$5:$AG$245,3*($C$8-1)+4) -> 299.56
H169: 145 | I169: =VLOOKUP($H169,Conc_All!$A$5:$P$204,3*($C$8-1)+2) -> 0.2253575 | J169: =VLOOKUP($H169,Conc_All!$A$5:$P$204,3*($C$8-1)+3) -> 0.3109266667 | K169: =VLOOKUP($H169,Conc_All!$A$5:$P$204,3*($C$8-1)+4) -> 0.4 | M169: =VLOOKUP($H169,Flow_All!$A$5:$P$204,3*($C$8-1)+2) -> 291.63 | N169: =VLOOKUP($H169,Flow_All!$A$5:$P$204,3*($C$8-1)+3) -> 297.8658333 | O169: =VLOOKUP($H169,Flow_All!$A$5:$P$204,3*($C$8-1)+4) -> 422.3825 | Q169: 52 | R169: =VLOOKUP($Q169,Conc_All!$R$5:$AG$245,3*($C$8-1)+2) -> 0.35499 | S169: =VLOOKUP($Q169,Conc_All!$R$5:$AG$245,3*($C$8-1)+3) -> 0.4 | T169: =VLOOKUP($Q169,Conc_All!$R$5:$AG$245,3*($C$8-1)+4) -> 0.4 | V169: =VLOOKUP($Q169,Flow_All!$R$5:$AG$245,3*($C$8-1)+2) -> 0 | W169: =VLOOKUP($Q169,Flow_All!$R$5:$AG$245,3*($C$8-1)+3) -> 296.17 | X169: =VLOOKUP($Q169,Flow_All!$R$5:$AG$245,3*($C$8-1)+4) -> 299.61
H170: 146 | I170: =VLOOKUP($H170,Conc_All!$A$5:$P$204,3*($C$8-1)+2) -> 0.2243008333 | J170: =VLOOKUP($H170,Conc_All!$A$5:$P$204,3*($C$8-1)+3) -> 0.3094025 | K170: =VLOOKUP($H170,Conc_All!$A$5:$P$204,3*($C$8-1)+4) -> 0.4 | M170: =VLOOKUP($H170,Flow_All!$A$5:$P$204,3*($C$8-1)+2) -> 291.7408333 | N170: =VLOOKUP($H170,Flow_All!$A$5:$P$204,3*($C$8-1)+3) -> 297.8525 | O170: =VLOOKUP($H170,Flow_All!$A$5:$P$204,3*($C$8-1)+4) -> 385.14 | Q170: 52.08333333 | R170: =VLOOKUP($Q170,Conc_All!$R$5:$AG$245,3*($C$8-1)+2) -> 0.35497 | S170: =VLOOKUP($Q170,Conc_All!$R$5:$AG$245,3*($C$8-1)+3) -> 0.4 | T170: =VLOOKUP($Q170,Conc_All!$R$5:$AG$245,3*($C$8-1)+4) -> 0.4 | V170: =VLOOKUP($Q170,Flow_All!$R$5:$AG$245,3*($C$8-1)+2) -> 0 | W170: =VLOOKUP($Q170,Flow_All!$R$5:$AG$245,3*($C$8-1)+3) -> 149.9 | X170: =VLOOKUP($Q170,Flow_All!$R$5:$AG$245,3*($C$8-1)+4) -> 299.66
H171: 147 | I171: =VLOOKUP($H171,Conc_All!$A$5:$P$204,3*($C$8-1)+2) -> 0.2230691667 | J171: =VLOOKUP($H171,Conc_All!$A$5:$P$204,3*($C$8-1)+3) -> 0.308395 | K171: =VLOOKUP($H171,Conc_All!$A$5:$P$204,3*($C$8-1)+4) -> 0.4 | M171: =VLOOKUP($H171,Flow_All!$A$5:$P$204,3*($C$8-1)+2) -> 291.59 | N171: =VLOOKUP($H171,Flow_All!$A$5:$P$204,3*($C$8-1)+3) -> 297.9408333 | O171: =VLOOKUP($H171,Flow_All!$A$5:$P$204,3*($C$8-1)+4) -> 408.6775 | Q171: 52.16666667 | R171: =VLOOKUP($Q171,Conc_All!$R$5:$AG$245,3*($C$8-1)+2) -> 0.35496 | S171: =VLOOKUP($Q171,Conc_All!$R$5:$AG$245,3*($C$8-1)+3) -> 0.4 | T171: =VLOOKUP($Q171,Conc_All!$R$5:$AG$245,3*($C$8-1)+4) -> 0.4 | V171: =VLOOKUP($Q171,Flow_All!$R$5:$AG$245,3*($C$8-1)+2) -> 0 | W171: =VLOOKUP($Q171,Flow_All!$R$5:$AG$245,3*($C$8-1)+3) -> 149.61 | X171: =VLOOKUP($Q171,Flow_All!$R$5:$AG$245,3*($C$8-1)+4) -> 299.52
H172: 148 | I172: =VLOOKUP($H172,Conc_All!$A$5:$P$204,3*($C$8-1)+2) -> 0.2216933333 | J172: =VLOOKUP($H172,Conc_All!$A$5:$P$204,3*($C$8-1)+3) -> 0.3068691667 | K172: =VLOOKUP($H172,Conc_All!$A$5:$P$204,3*($C$8-1)+4) -> 0.4 | M172: =VLOOKUP($H172,Flow_All!$A$5:$P$204,3*($C$8-1)+2) -> 291.4958333 | N172: =VLOOKUP($H172,Flow_All!$A$5:$P$204,3*($C$8-1)+3) -> 297.9291667 | O172: =VLOOKUP($H172,Flow_All!$A$5:$P$204,3*($C$8-1)+4) -> 397.8708333 | Q172: 52.25 | R172: =VLOOKUP($Q172,Conc_All!$R$5:$AG$245,3*($C$8-1)+2) -> 0.35494 | S172: =VLOOKUP($Q172,Conc_All!$R$5:$AG$245,3*($C$8-1)+3) -> 0.4 | T172: =VLOOKUP($Q172,Conc_All!$R$5:$AG$245,3*($C$8-1)+4) -> 0.4 | V172: =VLOOKUP($Q172,Flow_All!$R$5:$AG$245,3*($C$8-1)+2) -> 0 | W172: =VLOOKUP($Q172,Flow_All!$R$5:$AG$245,3*($C$8-1)+3) -> 148.81 | X172: =VLOOKUP($Q172,Flow_All!$R$5:$AG$245,3*($C$8-1)+4) -> 298.98
H173: 149 | I173: =VLOOKUP($H173,Conc_All!$A$5:$P$204,3*($C$8-1)+2) -> 0.2207558333 | J173: =VLOOKUP($H173,Conc_All!$A$5:$P$204,3*($C$8-1)+3) -> 0.3048675 | K173: =VLOOKUP($H173,Conc_All!$A$5:$P$204,3*($C$8-1)+4) -> 0.4 | M173: =VLOOKUP($H173,Flow_All!$A$5:$P$204,3*($C$8-1)+2) -> 291.27 | N173: =VLOOKUP($H173,Flow_All!$A$5:$P$204,3*($C$8-1)+3) -> 297.8533333 | O173: =VLOOKUP($H173,Flow_All!$A$5:$P$204,3*($C$8-1)+4) -> 409.9491667 | Q173: 52.33333333 | R173: =VLOOKUP($Q173,Conc_All!$R$5:$AG$245,3*($C$8-1)+2) -> 0.35409 | S173: =VLOOKUP($Q173,Conc_All!$R$5:$AG$245,3*($C$8-1)+3) -> 0.4 | T173: =VLOOKUP($Q173,Conc_All!$R$5:$AG$245,3*($C$8-1)+4) -> 0.4 | V173: =VLOOKUP($Q173,Flow_All!$R$5:$AG$245,3*($C$8-1)+2) -> 0 | W173: =VLOOKUP($Q173,Flow_All!$R$5:$AG$245,3*($C$8-1)+3) -> 292.54 | X173: =VLOOKUP($Q173,Flow_All!$R$5:$AG$245,3*($C$8-1)+4) -> 298.74
H174: 150 | I174: =VLOOKUP($H174,Conc_All!$A$5:$P$204,3*($C$8-1)+2) -> 0.21967 | J174: =VLOOKUP($H174,Conc_All!$A$5:$P$204,3*($C$8-1)+3) -> 0.3032458333 | K174: =VLOOKUP($H174,Conc_All!$A$5:$P$204,3*($C$8-1)+4) -> 0.4 | M174: =VLOOKUP($H174,Flow_All!$A$5:$P$204,3*($C$8-1)+2) -> 291.4083333 | N174: =VLOOKUP($H174,Flow_All!$A$5:$P$204,3*($C$8-1)+3) -> 297.8483333 | O174: =VLOOKUP($H174,Flow_All!$A$5:$P$204,3*($C$8-1)+4) -> 422.6358333 | Q174: 52.41666667 | R174: =VLOOKUP($Q174,Conc_All!$R$5:$AG$245,3*($C$8-1)+2) -> 0.35418 | S174: =VLOOKUP($Q174,Conc_All!$R$5:$AG$245,3*($C$8-1)+3) -> 0.4 | T174: =VLOOKUP($Q174,Conc_All!$R$5:$AG$245,3*($C$8-1)+4) -> 0.4 | V174: =VLOOKUP($Q174,Flow_All!$R$5:$AG$245,3*($C$8-1)+2) -> 0 | W174: =VLOOKUP($Q174,Flow_All!$R$5:$AG$245,3*($C$8-1)+3) -> 291.22 | X174: =VLOOKUP($Q174,Flow_All!$R$5:$AG$245,3*($C$8-1)+4) -> 298.46
H175: 151 | I175: =VLOOKUP($H175,Conc_All!$A$5:$P$204,3*($C$8-1)+2) -> 0.2184508333 | J175: =VLOOKUP($H175,Conc_All!$A$5:$P$204,3*($C$8-1)+3) -> 0.3018741667 | K175: =VLOOKUP($H175,Conc_All!$A$5:$P$204,3*($C$8-1)+4) -> 0.4 | M175: =VLOOKUP($H175,Flow_All!$A$5:$P$204,3*($C$8-1)+2) -> 291.2916667 | N175: =VLOOKUP($H175,Flow_All!$A$5:$P$204,3*($C$8-1)+3) -> 297.9133333 | O175: =VLOOKUP($H175,Flow_All!$A$5:$P$204,3*($C$8-1)+4) -> 422.3191667 | Q175: 52.5 | R175: =VLOOKUP($Q175,Conc_All!$R$5:$AG$245,3*($C$8-1)+2) -> 0.35427 | S175: =VLOOKUP($Q175,Conc_All!$R$5:$AG$245,3*($C$8-1)+3) -> 0.4 | T175: =VLOOKUP($Q175,Conc_All!$R$5:$AG$245,3*($C$8-1)+4) -> 0.4 | V175: =VLOOKUP($Q175,Flow_All!$R$5:$AG$245,3*($C$8-1)+2) -> 0 | W175: =VLOOKUP($Q175,Flow_All!$R$5:$AG$245,3*($C$8-1)+3) -> 291.1 | X175: =VLOOKUP($Q175,Flow_All!$R$5:$AG$245,3*($C$8-1)+4) -> 298.44
H176: 152 | I176: =VLOOKUP($H176,Conc_All!$A$5:$P$204,3*($C$8-1)+2) -> 0.21755 | J176: =VLOOKUP($H176,Conc_All!$A$5:$P$204,3*($C$8-1)+3) -> 0.30042 | K176: =VLOOKUP($H176,Conc_All!$A$5:$P$204,3*($C$8-1)+4) -> 0.4 | M176: =VLOOKUP($H176,Flow_All!$A$5:$P$204,3*($C$8-1)+2) -> 291.6633333 | N176: =VLOOKUP($H176,Flow_All!$A$5:$P$204,3*($C$8-1)+3) -> 297.9675 | O176: =VLOOKUP($H176,Flow_All!$A$5:$P$204,3*($C$8-1)+4) -> 422.3475 | Q176: 52.58333333 | R176: =VLOOKUP($Q176,Conc_All!$R$5:$AG$245,3*($C$8-1)+2) -> 0.35417 | S176: =VLOOKUP($Q176,Conc_All!$R$5:$AG$245,3*($C$8-1)+3) -> 0.4 | T176: =VLOOKUP($Q176,Conc_All!$R$5:$AG$245,3*($C$8-1)+4) -> 0.4 | V176: =VLOOKUP($Q176,Flow_All!$R$5:$AG$245,3*($C$8-1)+2) -> 0 | W176: =VLOOKUP($Q176,Flow_All!$R$5:$AG$245,3*($C$8-1)+3) -> 288.5 | X176: =VLOOKUP($Q176,Flow_All!$R$5:$AG$245,3*($C$8-1)+4) -> 298.34
H177: 153 | I177: =VLOOKUP($H177,Conc_All!$A$5:$P$204,3*($C$8-1)+2) -> 0.2163866667 | J177: =VLOOKUP($H177,Conc_All!$A$5:$P$204,3*($C$8-1)+3) -> 0.2989325 | K177: =VLOOKUP($H177,Conc_All!$A$5:$P$204,3*($C$8-1)+4) -> 0.4 | M177: =VLOOKUP($H177,Flow_All!$A$5:$P$204,3*($C$8-1)+2) -> 291.7016667 | N177: =VLOOKUP($H177,Flow_All!$A$5:$P$204,3*($C$8-1)+3) -> 297.92 | O177: =VLOOKUP($H177,Flow_All!$A$5:$P$204,3*($C$8-1)+4) -> 422.1516667 | Q177: 52.66666667 | R177: =VLOOKUP($Q177,Conc_All!$R$5:$AG$245,3*($C$8-1)+2) -> 0.35391 | S177: =VLOOKUP($Q177,Conc_All!$R$5:$AG$245,3*($C$8-1)+3) -> 0.4 | T177: =VLOOKUP($Q177,Conc_All!$R$5:$AG$245,3*($C$8-1)+4) -> 0.4 | V177: =VLOOKUP($Q177,Flow_All!$R$5:$AG$245,3*($C$8-1)+2) -> 0 | W177: =VLOOKUP($Q177,Flow_All!$R$5:$AG$245,3*($C$8-1)+3) -> 288.21 | X177: =VLOOKUP($Q177,Flow_All!$R$5:$AG$245,3*($C$8-1)+4) -> 298.34
H178: 154 | I178: =VLOOKUP($H178,Conc_All!$A$5:$P$204,3*($C$8-1)+2) -> 0.2154375 | J178: =VLOOKUP($H178,Conc_All!$A$5:$P$204,3*($C$8-1)+3) -> 0.2978141667 | K178: =VLOOKUP($H178,Conc_All!$A$5:$P$204,3*($C$8-1)+4) -> 0.4 | M178: =VLOOKUP($H178,Flow_All!$A$5:$P$204,3*($C$8-1)+2) -> 291.2408333 | N178: =VLOOKUP($H178,Flow_All!$A$5:$P$204,3*($C$8-1)+3) -> 297.89 | O178: =VLOOKUP($H178,Flow_All!$A$5:$P$204,3*($C$8-1)+4) -> 422.3091667 | Q178: 52.75 | R178: =VLOOKUP($Q178,Conc_All!$R$5:$AG$245,3*($C$8-1)+2) -> 0.35346 | S178: =VLOOKUP($Q178,Conc_All!$R$5:$AG$245,3*($C$8-1)+3) -> 0.4 | T178: =VLOOKUP($Q178,Conc_All!$R$5:$AG$245,3*($C$8-1)+4) -> 0.4 | V178: =VLOOKUP($Q178,Flow_All!$R$5:$AG$245,3*($C$8-1)+2) -> 0 | W178: =VLOOKUP($Q178,Flow_All!$R$5:$AG$245,3*($C$8-1)+3) -> 292.75 | X178: =VLOOKUP($Q178,Flow_All!$R$5:$AG$245,3*($C$8-1)+4) -> 298.9
H179: 155 | I179: =VLOOKUP($H179,Conc_All!$A$5:$P$204,3*($C$8-1)+2) -> 0.2147508333 | J179: =VLOOKUP($H179,Conc_All!$A$5:$P$204,3*($C$8-1)+3) -> 0.2965475 | K179: =VLOOKUP($H179,Conc_All!$A$5:$P$204,3*($C$8-1)+4) -> 0.4 | M179: =VLOOKUP($H179,Flow_All!$A$5:$P$204,3*($C$8-1)+2) -> 291.0458333 | N179: =VLOOKUP($H179,Flow_All!$A$5:$P$204,3*($C$8-1)+3) -> 297.8758333 | O179: =VLOOKUP($H179,Flow_All!$A$5:$P$204,3*($C$8-1)+4) -> 422.8633333 | Q179: 52.83333333 | R179: =VLOOKUP($Q179,Conc_All!$R$5:$AG$245,3*($C$8-1)+2) -> 0.35298 | S179: =VLOOKUP($Q179,Conc_All!$R$5:$AG$245,3*($C$8-1)+3) -> 0.4 | T179: =VLOOKUP($Q179,Conc_All!$R$5:$AG$245,3*($C$8-1)+4) -> 0.4 | V179: =VLOOKUP($Q179,Flow_All!$R$5:$AG$245,3*($C$8-1)+2) -> 0 | W179: =VLOOKUP($Q179,Flow_All!$R$5:$AG$245,3*($C$8-1)+3) -> 297.24 | X179: =VLOOKUP($Q179,Flow_All!$R$5:$AG$245,3*($C$8-1)+4) -> 299.5
H180: 156 | I180: =VLOOKUP($H180,Conc_All!$A$5:$P$204,3*($C$8-1)+2) -> 0.2139666667 | J180: =VLOOKUP($H180,Conc_All!$A$5:$P$204,3*($C$8-1)+3) -> 0.2951925 | K180: =VLOOKUP($H180,Conc_All!$A$5:$P$204,3*($C$8-1)+4) -> 0.4 | M180: =VLOOKUP($H180,Flow_All!$A$5:$P$204,3*($C$8-1)+2) -> 291.2416667 | N180: =VLOOKUP($H180,Flow_All!$A$5:$P$204,3*($C$8-1)+3) -> 297.8208333 | O180: =VLOOKUP($H180,Flow_All!$A$5:$P$204,3*($C$8-1)+4) -> 373.5908333 | Q180: 52.91666667 | R180: =VLOOKUP($Q180,Conc_All!$R$5:$AG$245,3*($C$8-1)+2) -> 0.35295 | S180: =VLOOKUP($Q180,Conc_All!$R$5:$AG$245,3*($C$8-1)+3) -> 0.4 | T180: =VLOOKUP($Q180,Conc_All!$R$5:$AG$245,3*($C$8-1)+4) -> 0.4 | V180: =VLOOKUP($Q180,Flow_All!$R$5:$AG$245,3*($C$8-1)+2) -> 0 | W180: =VLOOKUP($Q180,Flow_All!$R$5:$AG$245,3*($C$8-1)+3) -> 298.25 | X180: =VLOOKUP($Q180,Flow_All!$R$5:$AG$245,3*($C$8-1)+4) -> 299.65
H181: 157 | I181: =VLOOKUP($H181,Conc_All!$A$5:$P$204,3*($C$8-1)+2) -> 0.2131291667 | J181: =VLOOKUP($H181,Conc_All!$A$5:$P$204,3*($C$8-1)+3) -> 0.2935658333 | K181: =VLOOKUP($H181,Conc_All!$A$5:$P$204,3*($C$8-1)+4) -> 0.4 | M181: =VLOOKUP($H181,Flow_All!$A$5:$P$204,3*($C$8-1)+2) -> 290.9525 | N181: =VLOOKUP($H181,Flow_All!$A$5:$P$204,3*($C$8-1)+3) -> 297.8191667 | O181: =VLOOKUP($H181,Flow_All!$A$5:$P$204,3*($C$8-1)+4) -> 373.5283333 | Q181: 53 | R181: =VLOOKUP($Q181,Conc_All!$R$5:$AG$245,3*($C$8-1)+2) -> 0.35293 | S181: =VLOOKUP($Q181,Conc_All!$R$5:$AG$245,3*($C$8-1)+3) -> 0.4 | T181: =VLOOKUP($Q181,Conc_All!$R$5:$AG$245,3*($C$8-1)+4) -> 0.4 | V181: =VLOOKUP($Q181,Flow_All!$R$5:$AG$245,3*($C$8-1)+2) -> 0 | W181: =VLOOKUP($Q181,Flow_All!$R$5:$AG$245,3*($C$8-1)+3) -> 298.41 | X181: =VLOOKUP($Q181,Flow_All!$R$5:$AG$245,3*($C$8-1)+4) -> 299.71
H182: 158 | I182: =VLOOKUP($H182,Conc_All!$A$5:$P$204,3*($C$8-1)+2) -> 0.2120041667 | J182: =VLOOKUP($H182,Conc_All!$A$5:$P$204,3*($C$8-1)+3) -> 0.2923225 | K182: =VLOOKUP($H182,Conc_All!$A$5:$P$204,3*($C$8-1)+4) -> 0.4 | M182: =VLOOKUP($H182,Flow_All!$A$5:$P$204,3*($C$8-1)+2) -> 291.325 | N182: =VLOOKUP($H182,Flow_All!$A$5:$P$204,3*($C$8-1)+3) -> 297.7625 | O182: =VLOOKUP($H182,Flow_All!$A$5:$P$204,3*($C$8-1)+4) -> 397.0883333 | Q182: 53.08333333 | R182: =VLOOKUP($Q182,Conc_All!$R$5:$AG$245,3*($C$8-1)+2) -> 0.3529 | S182: =VLOOKUP($Q182,Conc_All!$R$5:$AG$245,3*($C$8-1)+3) -> 0.4 | T182: =VLOOKUP($Q182,Conc_All!$R$5:$AG$245,3*($C$8-1)+4) -> 0.4 | V182: =VLOOKUP($Q182,Flow_All!$R$5:$AG$245,3*($C$8-1)+2) -> 0 | W182: =VLOOKUP($Q182,Flow_All!$R$5:$AG$245,3*($C$8-1)+3) -> 298.51 | X182: =VLOOKUP($Q182,Flow_All!$R$5:$AG$245,3*($C$8-1)+4) -> 299.74
H183: 159 | I183: =VLOOKUP($H183,Conc_All!$A$5:$P$204,3*($C$8-1)+2) -> 0.2109275 | J183: =VLOOKUP($H183,Conc_All!$A$5:$P$204,3*($C$8-1)+3) -> 0.2910266667 | K183: =VLOOKUP($H183,Conc_All!$A$5:$P$204,3*($C$8-1)+4) -> 0.4 | M183: =VLOOKUP($H183,Flow_All!$A$5:$P$204,3*($C$8-1)+2) -> 291.3325 | N183: =VLOOKUP($H183,Flow_All!$A$5:$P$204,3*($C$8-1)+3) -> 297.9008333 | O183: =VLOOKUP($H183,Flow_All!$A$5:$P$204,3*($C$8-1)+4) -> 422.7958333 | Q183: 53.16666667 | R183: =VLOOKUP($Q183,Conc_All!$R$5:$AG$245,3*($C$8-1)+2) -> 0.35287 | S183: =VLOOKUP($Q183,Conc_All!$R$5:$AG$245,3*($C$8-1)+3) -> 0.4 | T183: =VLOOKUP($Q183,Conc_All!$R$5:$AG$245,3*($C$8-1)+4) -> 0.4 | V183: =VLOOKUP($Q183,Flow_All!$R$5:$AG$245,3*($C$8-1)+2) -> 0 | W183: =VLOOKUP($Q183,Flow_All!$R$5:$AG$245,3*($C$8-1)+3) -> 297.8 | X183: =VLOOKUP($Q183,Flow_All!$R$5:$AG$245,3*($C$8-1)+4) -> 299.64
H184: 160 | I184: =VLOOKUP($H184,Conc_All!$A$5:$P$204,3*($C$8-1)+2) -> 0.209935 | J184: =VLOOKUP($H184,Conc_All!$A$5:$P$204,3*($C$8-1)+3) -> 0.2897508333 | K184: =VLOOKUP($H184,Conc_All!$A$5:$P$204,3*($C$8-1)+4) -> 0.4 | M184: =VLOOKUP($H184,Flow_All!$A$5:$P$204,3*($C$8-1)+2) -> 291.6391667 | N184: =VLOOKUP($H184,Flow_All!$A$5:$P$204,3*($C$8-1)+3) -> 297.9016667 | O184: =VLOOKUP($H184,Flow_All!$A$5:$P$204,3*($C$8-1)+4) -> 421.5741667 | Q184: 53.25 | R184: =VLOOKUP($Q184,Conc_All!$R$5:$AG$245,3*($C$8-1)+2) -> 0.35285 | S184: =VLOOKUP($Q184,Conc_All!$R$5:$AG$245,3*($C$8-1)+3) -> 0.4 | T184: =VLOOKUP($Q184,Conc_All!$R$5:$AG$245,3*($C$8-1)+4) -> 0.4 | V184: =VLOOKUP($Q184,Flow_All!$R$5:$AG$245,3*($C$8-1)+2) -> 0 | W184: =VLOOKUP($Q184,Flow_All!$R$5:$AG$245,3*($C$8-1)+3) -> 294.04 | X184: =VLOOKUP($Q184,Flow_All!$R$5:$AG$245,3*($C$8-1)+4) -> 299.21
H185: 161 | I185: =VLOOKUP($H185,Conc_All!$A$5:$P$204,3*($C$8-1)+2) -> 0.2088558333 | J185: =VLOOKUP($H185,Conc_All!$A$5:$P$204,3*($C$8-1)+3) -> 0.2884866667 | K185: =VLOOKUP($H185,Conc_All!$A$5:$P$204,3*($C$8-1)+4) -> 0.4 | M185: =VLOOKUP($H185,Flow_All!$A$5:$P$204,3*($C$8-1)+2) -> 291.645 | N185: =VLOOKUP($H185,Flow_All!$A$5:$P$204,3*($C$8-1)+3) -> 297.9133333 | O185: =VLOOKUP($H185,Flow_All!$A$5:$P$204,3*($C$8-1)+4) -> 422.73 | Q185: 53.33333333 | R185: =VLOOKUP($Q185,Conc_All!$R$5:$AG$245,3*($C$8-1)+2) -> 0.35177 | S185: =VLOOKUP($Q185,Conc_All!$R$5:$AG$245,3*($C$8-1)+3) -> 0.4 | T185: =VLOOKUP($Q185,Conc_All!$R$5:$AG$245,3*($C$8-1)+4) -> 0.4 | V185: =VLOOKUP($Q185,Flow_All!$R$5:$AG$245,3*($C$8-1)+2) -> 0 | W185: =VLOOKUP($Q185,Flow_All!$R$5:$AG$245,3*($C$8-1)+3) -> 295.42 | X185: =VLOOKUP($Q185,Flow_All!$R$5:$AG$245,3*($C$8-1)+4) -> 299.07
H186: 162 | I186: =VLOOKUP($H186,Conc_All!$A$5:$P$204,3*($C$8-1)+2) -> 0.2078925 | J186: =VLOOKUP($H186,Conc_All!$A$5:$P$204,3*($C$8-1)+3) -> 0.2871016667 | K186: =VLOOKUP($H186,Conc_All!$A$5:$P$204,3*($C$8-1)+4) -> 0.4 | M186: =VLOOKUP($H186,Flow_All!$A$5:$P$204,3*($C$8-1)+2) -> 291.6258333 | N186: =VLOOKUP($H186,Flow_All!$A$5:$P$204,3*($C$8-1)+3) -> 297.9158333 | O186: =VLOOKUP($H186,Flow_All!$A$5:$P$204,3*($C$8-1)+4) -> 422.8308333 | Q186: 53.41666667 | R186: =VLOOKUP($Q186,Conc_All!$R$5:$AG$245,3*($C$8-1)+2) -> 0.35178 | S186: =VLOOKUP($Q186,Conc_All!$R$5:$AG$245,3*($C$8-1)+3) -> 0.4 | T186: =VLOOKUP($Q186,Conc_All!$R$5:$AG$245,3*($C$8-1)+4) -> 0.4 | V186: =VLOOKUP($Q186,Flow_All!$R$5:$AG$245,3*($C$8-1)+2) -> 0 | W186: =VLOOKUP($Q186,Flow_All!$R$5:$AG$245,3*($C$8-1)+3) -> 294.37 | X186: =VLOOKUP($Q186,Flow_All!$R$5:$AG$245,3*($C$8-1)+4) -> 298.8
H187: 163 | I187: =VLOOKUP($H187,Conc_All!$A$5:$P$204,3*($C$8-1)+2) -> 0.2068225 | J187: =VLOOKUP($H187,Conc_All!$A$5:$P$204,3*($C$8-1)+3) -> 0.2857425 | K187: =VLOOKUP($H187,Conc_All!$A$5:$P$204,3*($C$8-1)+4) -> 0.4 | M187: =VLOOKUP($H187,Flow_All!$A$5:$P$204,3*($C$8-1)+2) -> 291.3008333 | N187: =VLOOKUP($H187,Flow_All!$A$5:$P$204,3*($C$8-1)+3) -> 297.9525 | O187: =VLOOKUP($H187,Flow_All!$A$5:$P$204,3*($C$8-1)+4) -> 422.8566667 | Q187: 53.5 | R187: =VLOOKUP($Q187,Conc_All!$R$5:$AG$245,3*($C$8-1)+2) -> 0.35175 | S187: =VLOOKUP($Q187,Conc_All!$R$5:$AG$245,3*($C$8-1)+3) -> 0.4 | T187: =VLOOKUP($Q187,Conc_All!$R$5:$AG$245,3*($C$8-1)+4) -> 0.4 | V187: =VLOOKUP($Q187,Flow_All!$R$5:$AG$245,3*($C$8-1)+2) -> 0 | W187: =VLOOKUP($Q187,Flow_All!$R$5:$AG$245,3*($C$8-1)+3) -> 294.36 | X187: =VLOOKUP($Q187,Flow_All!$R$5:$AG$245,3*($C$8-1)+4) -> 298.8
H188: 164 | I188: =VLOOKUP($H188,Conc_All!$A$5:$P$204,3*($C$8-1)+2) -> 0.2058 | J188: =VLOOKUP($H188,Conc_All!$A$5:$P$204,3*($C$8-1)+3) -> 0.2841433333 | K188: =VLOOKUP($H188,Conc_All!$A$5:$P$204,3*($C$8-1)+4) -> 0.4 | M188: =VLOOKUP($H188,Flow_All!$A$5:$P$204,3*($C$8-1)+2) -> 291.6516667 | N188: =VLOOKUP($H188,Flow_All!$A$5:$P$204,3*($C$8-1)+3) -> 297.9333333 | O188: =VLOOKUP($H188,Flow_All!$A$5:$P$204,3*($C$8-1)+4) -> 423.1825 | Q188: 53.58333333 | R188: =VLOOKUP($Q188,Conc_All!$R$5:$AG$245,3*($C$8-1)+2) -> 0.35181 | S188: =VLOOKUP($Q188,Conc_All!$R$5:$AG$245,3*($C$8-1)+3) -> 0.4 | T188: =VLOOKUP($Q188,Conc_All!$R$5:$AG$245,3*($C$8-1)+4) -> 0.4 | V188: =VLOOKUP($Q188,Flow_All!$R$5:$AG$245,3*($C$8-1)+2) -> 0 | W188: =VLOOKUP($Q188,Flow_All!$R$5:$AG$245,3*($C$8-1)+3) -> 293.63 | X188: =VLOOKUP($Q188,Flow_All!$R$5:$AG$245,3*($C$8-1)+4) -> 298.68
H189: 165 | I189: =VLOOKUP($H189,Conc_All!$A$5:$P$204,3*($C$8-1)+2) -> 0.2049358333 | J189: =VLOOKUP($H189,Conc_All!$A$5:$P$204,3*($C$8-1)+3) -> 0.2826625 | K189: =VLOOKUP($H189,Conc_All!$A$5:$P$204,3*($C$8-1)+4) -> 0.4 | M189: =VLOOKUP($H189,Flow_All!$A$5:$P$204,3*($C$8-1)+2) -> 291.4058333 | N189: =VLOOKUP($H189,Flow_All!$A$5:$P$204,3*($C$8-1)+3) -> 297.9233333 | O189: =VLOOKUP($H189,Flow_All!$A$5:$P$204,3*($C$8-1)+4) -> 422.3625 | Q189: 53.66666667 | R189: =VLOOKUP($Q189,Conc_All!$R$5:$AG$245,3*($C$8-1)+2) -> 0.35172 | S189: =VLOOKUP($Q189,Conc_All!$R$5:$AG$245,3*($C$8-1)+3) -> 0.4 | T189: =VLOOKUP($Q189,Conc_All!$R$5:$AG$245,3*($C$8-1)+4) -> 0.4 | V189: =VLOOKUP($Q189,Flow_All!$R$5:$AG$245,3*($C$8-1)+2) -> 0 | W189: =VLOOKUP($Q189,Flow_All!$R$5:$AG$245,3*($C$8-1)+3) -> 293.32 | X189: =VLOOKUP($Q189,Flow_All!$R$5:$AG$245,3*($C$8-1)+4) -> 298.73
H190: 166 | I190: =VLOOKUP($H190,Conc_All!$A$5:$P$204,3*($C$8-1)+2) -> 0.204185 | J190: =VLOOKUP($H190,Conc_All!$A$5:$P$204,3*($C$8-1)+3) -> 0.2811975 | K190: =VLOOKUP($H190,Conc_All!$A$5:$P$204,3*($C$8-1)+4) -> 0.4 | M190: =VLOOKUP($H190,Flow_All!$A$5:$P$204,3*($C$8-1)+2) -> 291.4091667 | N190: =VLOOKUP($H190,Flow_All!$A$5:$P$204,3*($C$8-1)+3) -> 297.9166667 | O190: =VLOOKUP($H190,Flow_All!$A$5:$P$204,3*($C$8-1)+4) -> 422.8691667 | Q190: 53.75 | R190: =VLOOKUP($Q190,Conc_All!$R$5:$AG$245,3*($C$8-1)+2) -> 0.3514 | S190: =VLOOKUP($Q190,Conc_All!$R$5:$AG$245,3*($C$8-1)+3) -> 0.4 | T190: =VLOOKUP($Q190,Conc_All!$R$5:$AG$245,3*($C$8-1)+4) -> 0.4 | V190: =VLOOKUP($Q190,Flow_All!$R$5:$AG$245,3*($C$8-1)+2) -> 0 | W190: =VLOOKUP($Q190,Flow_All!$R$5:$AG$245,3*($C$8-1)+3) -> 295.9 | X190: =VLOOKUP($Q190,Flow_All!$R$5:$AG$245,3*($C$8-1)+4) -> 299.16
H191: 167 | I191: =VLOOKUP($H191,Conc_All!$A$5:$P$204,3*($C$8-1)+2) -> 0.2032075 | J191: =VLOOKUP($H191,Conc_All!$A$5:$P$204,3*($C$8-1)+3) -> 0.2800166667 | K191: =VLOOKUP($H191,Conc_All!$A$5:$P$204,3*($C$8-1)+4) -> 0.4 | M191: =VLOOKUP($H191,Flow_All!$A$5:$P$204,3*($C$8-1)+2) -> 291.3916667 | N191: =VLOOKUP($H191,Flow_All!$A$5:$P$204,3*($C$8-1)+3) -> 297.9508333 | O191: =VLOOKUP($H191,Flow_All!$A$5:$P$204,3*($C$8-1)+4) -> 432.0816667 | Q191: 53.83333333 | R191: =VLOOKUP($Q191,Conc_All!$R$5:$AG$245,3*($C$8-1)+2) -> 0.351 | S191: =VLOOKUP($Q191,Conc_All!$R$5:$AG$245,3*($C$8-1)+3) -> 0.4 | T191: =VLOOKUP($Q191,Conc_All!$R$5:$AG$245,3*($C$8-1)+4) -> 0.4 | V191: =VLOOKUP($Q191,Flow_All!$R$5:$AG$245,3*($C$8-1)+2) -> 0 | W191: =VLOOKUP($Q191,Flow_All!$R$5:$AG$245,3*($C$8-1)+3) -> 297.99 | X191: =VLOOKUP($Q191,Flow_All!$R$5:$AG$245,3*($C$8-1)+4) -> 299.56
H192: 168 | I192: =VLOOKUP($H192,Conc_All!$A$5:$P$204,3*($C$8-1)+2) -> 0.2024266667 | J192: =VLOOKUP($H192,Conc_All!$A$5:$P$204,3*($C$8-1)+3) -> 0.2783358333 | K192: =VLOOKUP($H192,Conc_All!$A$5:$P$204,3*($C$8-1)+4) -> 0.4 | M192: =VLOOKUP($H192,Flow_All!$A$5:$P$204,3*($C$8-1)+2) -> 291.065 | N192: =VLOOKUP($H192,Flow_All!$A$5:$P$204,3*($C$8-1)+3) -> 297.8891667 | O192: =VLOOKUP($H192,Flow_All!$A$5:$P$204,3*($C$8-1)+4) -> 398.0858333 | Q192: 53.91666667 | R192: =VLOOKUP($Q192,Conc_All!$R$5:$AG$245,3*($C$8-1)+2) -> 0.35098 | S192: =VLOOKUP($Q192,Conc_All!$R$5:$AG$245,3*($C$8-1)+3) -> 0.4 | T192: =VLOOKUP($Q192,Conc_All!$R$5:$AG$245,3*($C$8-1)+4) -> 0.4 | V192: =VLOOKUP($Q192,Flow_All!$R$5:$AG$245,3*($C$8-1)+2) -> 0 | W192: =VLOOKUP($Q192,Flow_All!$R$5:$AG$245,3*($C$8-1)+3) -> 298.7 | X192: =VLOOKUP($Q192,Flow_All!$R$5:$AG$245,3*($C$8-1)+4) -> 299.71
H193: 169 | I193: =VLOOKUP($H193,Conc_All!$A$5:$P$204,3*($C$8-1)+2) -> 0.2015083333 | J193: =VLOOKUP($H193,Conc_All!$A$5:$P$204,3*($C$8-1)+3) -> 0.276415 | K193: =VLOOKUP($H193,Conc_All!$A$5:$P$204,3*($C$8-1)+4) -> 0.4 | M193: =VLOOKUP($H193,Flow_All!$A$5:$P$204,3*($C$8-1)+2) -> 291.5675 | N193: =VLOOKUP($H193,Flow_All!$A$5:$P$204,3*($C$8-1)+3) -> 297.89 | O193: =VLOOKUP($H193,Flow_All!$A$5:$P$204,3*($C$8-1)+4) -> 397.9125 | Q193: 54 | R193: =VLOOKUP($Q193,Conc_All!$R$5:$AG$245,3*($C$8-1)+2) -> 0.35095 | S193: =VLOOKUP($Q193,Conc_All!$R$5:$AG$245,3*($C$8-1)+3) -> 0.4 | T193: =VLOOKUP($Q193,Conc_All!$R$5:$AG$245,3*($C$8-1)+4) -> 0.4 | V193: =VLOOKUP($Q193,Flow_All!$R$5:$AG$245,3*($C$8-1)+2) -> 0 | W193: =VLOOKUP($Q193,Flow_All!$R$5:$AG$245,3*($C$8-1)+3) -> 298.87 | X193: =VLOOKUP($Q193,Flow_All!$R$5:$AG$245,3*($C$8-1)+4) -> 299.73
H194: 170 | I194: =VLOOKUP($H194,Conc_All!$A$5:$P$204,3*($C$8-1)+2) -> 0.2004825 | J194: =VLOOKUP($H194,Conc_All!$A$5:$P$204,3*($C$8-1)+3) -> 0.2749725 | K194: =VLOOKUP($H194,Conc_All!$A$5:$P$204,3*($C$8-1)+4) -> 0.4 | M194: =VLOOKUP($H194,Flow_All!$A$5:$P$204,3*($C$8-1)+2) -> 291.7775 | N194: =VLOOKUP($H194,Flow_All!$A$5:$P$204,3*($C$8-1)+3) -> 297.9208333 | O194: =VLOOKUP($H194,Flow_All!$A$5:$P$204,3*($C$8-1)+4) -> 422.4816667 | Q194: 54.08333333 | R194: =VLOOKUP($Q194,Conc_All!$R$5:$AG$245,3*($C$8-1)+2) -> 0.35092 | S194: =VLOOKUP($Q194,Conc_All!$R$5:$AG$245,3*($C$8-1)+3) -> 0.4 | T194: =VLOOKUP($Q194,Conc_All!$R$5:$AG$245,3*($C$8-1)+4) -> 0.4 | V194: =VLOOKUP($Q194,Flow_All!$R$5:$AG$245,3*($C$8-1)+2) -> 0 | W194: =VLOOKUP($Q194,Flow_All!$R$5:$AG$245,3*($C$8-1)+3) -> 298.99 | X194: =VLOOKUP($Q194,Flow_All!$R$5:$AG$245,3*($C$8-1)+4) -> 299.77
H195: 171 | I195: =VLOOKUP($H195,Conc_All!$A$5:$P$204,3*($C$8-1)+2) -> 0.1995791667 | J195: =VLOOKUP($H195,Conc_All!$A$5:$P$204,3*($C$8-1)+3) -> 0.2739641667 | K195: =VLOOKUP($H195,Conc_All!$A$5:$P$204,3*($C$8-1)+4) -> 0.4 | M195: =VLOOKUP($H195,Flow_All!$A$5:$P$204,3*($C$8-1)+2) -> 291.6116667 | N195: =VLOOKUP($H195,Flow_All!$A$5:$P$204,3*($C$8-1)+3) -> 297.8758333 | O195: =VLOOKUP($H195,Flow_All!$A$5:$P$204,3*($C$8-1)+4) -> 422.5116667 | Q195: 54.16666667 | R195: =VLOOKUP($Q195,Conc_All!$R$5:$AG$245,3*($C$8-1)+2) -> 0.3509 | S195: =VLOOKUP($Q195,Conc_All!$R$5:$AG$245,3*($C$8-1)+3) -> 0.4 | T195: =VLOOKUP($Q195,Conc_All!$R$5:$AG$245,3*($C$8-1)+4) -> 0.4 | V195: =VLOOKUP($Q195,Flow_All!$R$5:$AG$245,3*($C$8-1)+2) -> 0 | W195: =VLOOKUP($Q195,Flow_All!$R$5:$AG$245,3*($C$8-1)+3) -> 298.55 | X195: =VLOOKUP($Q195,Flow_All!$R$5:$AG$245,3*($C$8-1)+4) -> 299.69
H196: 172 | I196: =VLOOKUP($H196,Conc_All!$A$5:$P$204,3*($C$8-1)+2) -> 0.198655 | J196: =VLOOKUP($H196,Conc_All!$A$5:$P$204,3*($C$8-1)+3) -> 0.2728558333 | K196: =VLOOKUP($H196,Conc_All!$A$5:$P$204,3*($C$8-1)+4) -> 0.4 | M196: =VLOOKUP($H196,Flow_All!$A$5:$P$204,3*($C$8-1)+2) -> 291.5958333 | N196: =VLOOKUP($H196,Flow_All!$A$5:$P$204,3*($C$8-1)+3) -> 297.8708333 | O196: =VLOOKUP($H196,Flow_All!$A$5:$P$204,3*($C$8-1)+4) -> 422.2841667 | Q196: 54.25 | R196: =VLOOKUP($Q196,Conc_All!$R$5:$AG$245,3*($C$8-1)+2) -> 0.35087 | S196: =VLOOKUP($Q196,Conc_All!$R$5:$AG$245,3*($C$8-1)+3) -> 0.4 | T196: =VLOOKUP($Q196,Conc_All!$R$5:$AG$245,3*($C$8-1)+4) -> 0.4 | V196: =VLOOKUP($Q196,Flow_All!$R$5:$AG$245,3*($C$8-1)+2) -> 0 | W196: =VLOOKUP($Q196,Flow_All!$R$5:$AG$245,3*($C$8-1)+3) -> 296.79 | X196: =VLOOKUP($Q196,Flow_All!$R$5:$AG$245,3*($C$8-1)+4) -> 299.36
H197: 173 | I197: =VLOOKUP($H197,Conc_All!$A$5:$P$204,3*($C$8-1)+2) -> 0.1975816667 | J197: =VLOOKUP($H197,Conc_All!$A$5:$P$204,3*($C$8-1)+3) -> 0.2713116667 | K197: =VLOOKUP($H197,Conc_All!$A$5:$P$204,3*($C$8-1)+4) -> 0.4 | M197: =VLOOKUP($H197,Flow_All!$A$5:$P$204,3*($C$8-1)+2) -> 291.6875 | N197: =VLOOKUP($H197,Flow_All!$A$5:$P$204,3*($C$8-1)+3) -> 297.9025 | O197: =VLOOKUP($H197,Flow_All!$A$5:$P$204,3*($C$8-1)+4) -> 422.7408333 | Q197: 54.33333333 | R197: =VLOOKUP($Q197,Conc_All!$R$5:$AG$245,3*($C$8-1)+2) -> 0.34962 | S197: =VLOOKUP($Q197,Conc_All!$R$5:$AG$245,3*($C$8-1)+3) -> 0.4 | T197: =VLOOKUP($Q197,Conc_All!$R$5:$AG$245,3*($C$8-1)+4) -> 0.4 | V197: =VLOOKUP($Q197,Flow_All!$R$5:$AG$245,3*($C$8-1)+2) -> 0 | W197: =VLOOKUP($Q197,Flow_All!$R$5:$AG$245,3*($C$8-1)+3) -> 296.49 | X197: =VLOOKUP($Q197,Flow_All!$R$5:$AG$245,3*($C$8-1)+4) -> 299.16
H198: 174 | I198: =VLOOKUP($H198,Conc_All!$A$5:$P$204,3*($C$8-1)+2) -> 0.1968 | J198: =VLOOKUP($H198,Conc_All!$A$5:$P$204,3*($C$8-1)+3) -> 0.2700425 | K198: =VLOOKUP($H198,Conc_All!$A$5:$P$204,3*($C$8-1)+4) -> 0.4 | M198: =VLOOKUP($H198,Flow_All!$A$5:$P$204,3*($C$8-1)+2) -> 291.2608333 | N198: =VLOOKUP($H198,Flow_All!$A$5:$P$204,3*($C$8-1)+3) -> 297.9491667 | O198: =VLOOKUP($H198,Flow_All!$A$5:$P$204,3*($C$8-1)+4) -> 409.6333333 | Q198: 54.41666667 | R198: =VLOOKUP($Q198,Conc_All!$R$5:$AG$245,3*($C$8-1)+2) -> 0.34941 | S198: =VLOOKUP($Q198,Conc_All!$R$5:$AG$245,3*($C$8-1)+3) -> 0.4 | T198: =VLOOKUP($Q198,Conc_All!$R$5:$AG$245,3*($C$8-1)+4) -> 0.4 | V198: =VLOOKUP($Q198,Flow_All!$R$5:$AG$245,3*($C$8-1)+2) -> 257.07 | W198: =VLOOKUP($Q198,Flow_All!$R$5:$AG$245,3*($C$8-1)+3) -> 295.75 | X198: =VLOOKUP($Q198,Flow_All!$R$5:$AG$245,3*($C$8-1)+4) -> 298.89
H199: 175 | I199: =VLOOKUP($H199,Conc_All!$A$5:$P$204,3*($C$8-1)+2) -> 0.1959291667 | J199: =VLOOKUP($H199,Conc_All!$A$5:$P$204,3*($C$8-1)+3) -> 0.2688008333 | K199: =VLOOKUP($H199,Conc_All!$A$5:$P$204,3*($C$8-1)+4) -> 0.4 | M199: =VLOOKUP($H199,Flow_All!$A$5:$P$204,3*($C$8-1)+2) -> 291.2783333 | N199: =VLOOKUP($H199,Flow_All!$A$5:$P$204,3*($C$8-1)+3) -> 297.8991667 | O199: =VLOOKUP($H199,Flow_All!$A$5:$P$204,3*($C$8-1)+4) -> 422.5808333 | Q199: 54.5 | R199: =VLOOKUP($Q199,Conc_All!$R$5:$AG$245,3*($C$8-1)+2) -> 0.34913 | S199: =VLOOKUP($Q199,Conc_All!$R$5:$AG$245,3*($C$8-1)+3) -> 0.4 | T199: =VLOOKUP($Q199,Conc_All!$R$5:$AG$245,3*($C$8-1)+4) -> 0.4 | V199: =VLOOKUP($Q199,Flow_All!$R$5:$AG$245,3*($C$8-1)+2) -> 147.21 | W199: =VLOOKUP($Q199,Flow_All!$R$5:$AG$245,3*($C$8-1)+3) -> 295.59 | X199: =VLOOKUP($Q199,Flow_All!$R$5:$AG$245,3*($C$8-1)+4) -> 298.86
H200: 176 | I200: =VLOOKUP($H200,Conc_All!$A$5:$P$204,3*($C$8-1)+2) -> 0.195155 | J200: =VLOOKUP($H200,Conc_All!$A$5:$P$204,3*($C$8-1)+3) -> 0.2671558333 | K200: =VLOOKUP($H200,Conc_All!$A$5:$P$204,3*($C$8-1)+4) -> 0.4 | M200: =VLOOKUP($H200,Flow_All!$A$5:$P$204,3*($C$8-1)+2) -> 291.5675 | N200: =VLOOKUP($H200,Flow_All!$A$5:$P$204,3*($C$8-1)+3) -> 297.885 | O200: =VLOOKUP($H200,Flow_All!$A$5:$P$204,3*($C$8-1)+4) -> 422.7791667 | Q200: 54.58333333 | R200: =VLOOKUP($Q200,Conc_All!$R$5:$AG$245,3*($C$8-1)+2) -> 0.34894 | S200: =VLOOKUP($Q200,Conc_All!$R$5:$AG$245,3*($C$8-1)+3) -> 0.4 | T200: =VLOOKUP($Q200,Conc_All!$R$5:$AG$245,3*($C$8-1)+4) -> 0.4 | V200: =VLOOKUP($Q200,Flow_All!$R$5:$AG$245,3*($C$8-1)+2) -> 144.21 | W200: =VLOOKUP($Q200,Flow_All!$R$5:$AG$245,3*($C$8-1)+3) -> 294.82 | X200: =VLOOKUP($Q200,Flow_All!$R$5:$AG$245,3*($C$8-1)+4) -> 298.83
H201: 177 | I201: =VLOOKUP($H201,Conc_All!$A$5:$P$204,3*($C$8-1)+2) -> 0.1943891667 | J201: =VLOOKUP($H201,Conc_All!$A$5:$P$204,3*($C$8-1)+3) -> 0.2657591667 | K201: =VLOOKUP($H201,Conc_All!$A$5:$P$204,3*($C$8-1)+4) -> 0.4 | M201: =VLOOKUP($H201,Flow_All!$A$5:$P$204,3*($C$8-1)+2) -> 291.4841667 | N201: =VLOOKUP($H201,Flow_All!$A$5:$P$204,3*($C$8-1)+3) -> 297.8925 | O201: =VLOOKUP($H201,Flow_All!$A$5:$P$204,3*($C$8-1)+4) -> 434.3191667 | Q201: 54.66666667 | R201: =VLOOKUP($Q201,Conc_All!$R$5:$AG$245,3*($C$8-1)+2) -> 0.34898 | S201: =VLOOKUP($Q201,Conc_All!$R$5:$AG$245,3*($C$8-1)+3) -> 0.4 | T201: =VLOOKUP($Q201,Conc_All!$R$5:$AG$245,3*($C$8-1)+4) -> 0.4 | V201: =VLOOKUP($Q201,Flow_All!$R$5:$AG$245,3*($C$8-1)+2) -> 143.51 | W201: =VLOOKUP($Q201,Flow_All!$R$5:$AG$245,3*($C$8-1)+3) -> 294.86 | X201: =VLOOKUP($Q201,Flow_All!$R$5:$AG$245,3*($C$8-1)+4) -> 298.86
H202: 178 | I202: =VLOOKUP($H202,Conc_All!$A$5:$P$204,3*($C$8-1)+2) -> 0.1934341667 | J202: =VLOOKUP($H202,Conc_All!$A$5:$P$204,3*($C$8-1)+3) -> 0.2645316667 | K202: =VLOOKUP($H202,Conc_All!$A$5:$P$204,3*($C$8-1)+4) -> 0.4 | M202: =VLOOKUP($H202,Flow_All!$A$5:$P$204,3*($C$8-1)+2) -> 291.3808333 | N202: =VLOOKUP($H202,Flow_All!$A$5:$P$204,3*($C$8-1)+3) -> 297.8916667 | O202: =VLOOKUP($H202,Flow_All!$A$5:$P$204,3*($C$8-1)+4) -> 398.2483333 | Q202: 54.75 | R202: =VLOOKUP($Q202,Conc_All!$R$5:$AG$245,3*($C$8-1)+2) -> 0.34886 | S202: =VLOOKUP($Q202,Conc_All!$R$5:$AG$245,3*($C$8-1)+3) -> 0.4 | T202: =VLOOKUP($Q202,Conc_All!$R$5:$AG$245,3*($C$8-1)+4) -> 0.4 | V202: =VLOOKUP($Q202,Flow_All!$R$5:$AG$245,3*($C$8-1)+2) -> 147.4 | W202: =VLOOKUP($Q202,Flow_All!$R$5:$AG$245,3*($C$8-1)+3) -> 296.64 | X202: =VLOOKUP($Q202,Flow_All!$R$5:$AG$245,3*($C$8-1)+4) -> 299.27
H203: 179 | I203: =VLOOKUP($H203,Conc_All!$A$5:$P$204,3*($C$8-1)+2) -> 0.1925375 | J203: =VLOOKUP($H203,Conc_All!$A$5:$P$204,3*($C$8-1)+3) -> 0.2634633333 | K203: =VLOOKUP($H203,Conc_All!$A$5:$P$204,3*($C$8-1)+4) -> 0.4 | M203: =VLOOKUP($H203,Flow_All!$A$5:$P$204,3*($C$8-1)+2) -> 291.3866667 | N203: =VLOOKUP($H203,Flow_All!$A$5:$P$204,3*($C$8-1)+3) -> 297.8433333 | O203: =VLOOKUP($H203,Flow_All!$A$5:$P$204,3*($C$8-1)+4) -> 422.7858333 | Q203: 54.83333333 | R203: =VLOOKUP($Q203,Conc_All!$R$5:$AG$245,3*($C$8-1)+2) -> 0.34857 | S203: =VLOOKUP($Q203,Conc_All!$R$5:$AG$245,3*($C$8-1)+3) -> 0.4 | T203: =VLOOKUP($Q203,Conc_All!$R$5:$AG$245,3*($C$8-1)+4) -> 0.4 | V203: =VLOOKUP($Q203,Flow_All!$R$5:$AG$245,3*($C$8-1)+2) -> 149.28 | W203: =VLOOKUP($Q203,Flow_All!$R$5:$AG$245,3*($C$8-1)+3) -> 298.43 | X203: =VLOOKUP($Q203,Flow_All!$R$5:$AG$245,3*($C$8-1)+4) -> 299.65
H204: 180 | I204: =VLOOKUP($H204,Conc_All!$A$5:$P$204,3*($C$8-1)+2) -> 0.19179 | J204: =VLOOKUP($H204,Conc_All!$A$5:$P$204,3*($C$8-1)+3) -> 0.2621866667 | K204: =VLOOKUP($H204,Conc_All!$A$5:$P$204,3*($C$8-1)+4) -> 0.4 | M204: =VLOOKUP($H204,Flow_All!$A$5:$P$204,3*($C$8-1)+2) -> 291.6083333 | N204: =VLOOKUP($H204,Flow_All!$A$5:$P$204,3*($C$8-1)+3) -> 297.9875 | O204: =VLOOKUP($H204,Flow_All!$A$5:$P$204,3*($C$8-1)+4) -> 423.0208333 | Q204: 54.91666667 | R204: =VLOOKUP($Q204,Conc_All!$R$5:$AG$245,3*($C$8-1)+2) -> 0.34857 | S204: =VLOOKUP($Q204,Conc_All!$R$5:$AG$245,3*($C$8-1)+3) -> 0.4 | T204: =VLOOKUP($Q204,Conc_All!$R$5:$AG$245,3*($C$8-1)+4) -> 0.4 | V204: =VLOOKUP($Q204,Flow_All!$R$5:$AG$245,3*($C$8-1)+2) -> 149.56 | W204: =VLOOKUP($Q204,Flow_All!$R$5:$AG$245,3*($C$8-1)+3) -> 299 | X204: =VLOOKUP($Q204,Flow_All!$R$5:$AG$245,3*($C$8-1)+4) -> 299.75
H205: 181 | I205: =VLOOKUP($H205,Conc_All!$A$5:$P$204,3*($C$8-1)+2) -> 0.1910483333 | J205: =VLOOKUP($H205,Conc_All!$A$5:$P$204,3*($C$8-1)+3) -> 0.2610916667 | K205: =VLOOKUP($H205,Conc_All!$A$5:$P$204,3*($C$8-1)+4) -> 0.4 | M205: =VLOOKUP($H205,Flow_All!$A$5:$P$204,3*($C$8-1)+2) -> 291.6316667 | N205: =VLOOKUP($H205,Flow_All!$A$5:$P$204,3*($C$8-1)+3) -> 297.9691667 | O205: =VLOOKUP($H205,Flow_All!$A$5:$P$204,3*($C$8-1)+4) -> 421.6358333 | Q205: 55 | R205: =VLOOKUP($Q205,Conc_All!$R$5:$AG$245,3*($C$8-1)+2) -> 0.34856 | S205: =VLOOKUP($Q205,Conc_All!$R$5:$AG$245,3*($C$8-1)+3) -> 0.4 | T205: =VLOOKUP($Q205,Conc_All!$R$5:$AG$245,3*($C$8-1)+4) -> 0.4 | V205: =VLOOKUP($Q205,Flow_All!$R$5:$AG$245,3*($C$8-1)+2) -> 149.31 | W205: =VLOOKUP($Q205,Flow_All!$R$5:$AG$245,3*($C$8-1)+3) -> 299.08 | X205: =VLOOKUP($Q205,Flow_All!$R$5:$AG$245,3*($C$8-1)+4) -> 299.78
H206: 182 | I206: =VLOOKUP($H206,Conc_All!$A$5:$P$204,3*($C$8-1)+2) -> 0.1901666667 | J206: =VLOOKUP($H206,Conc_All!$A$5:$P$204,3*($C$8-1)+3) -> 0.25973 | K206: =VLOOKUP($H206,Conc_All!$A$5:$P$204,3*($C$8-1)+4) -> 0.4 | M206: =VLOOKUP($H206,Flow_All!$A$5:$P$204,3*($C$8-1)+2) -> 292.0241667 | N206: =VLOOKUP($H206,Flow_All!$A$5:$P$204,3*($C$8-1)+3) -> 298.0158333 | O206: =VLOOKUP($H206,Flow_All!$A$5:$P$204,3*($C$8-1)+4) -> 422.7075 | Q206: 55.08333333 | R206: =VLOOKUP($Q206,Conc_All!$R$5:$AG$245,3*($C$8-1)+2) -> 0.34856 | S206: =VLOOKUP($Q206,Conc_All!$R$5:$AG$245,3*($C$8-1)+3) -> 0.4 | T206: =VLOOKUP($Q206,Conc_All!$R$5:$AG$245,3*($C$8-1)+4) -> 0.4 | V206: =VLOOKUP($Q206,Flow_All!$R$5:$AG$245,3*($C$8-1)+2) -> 149.03 | W206: =VLOOKUP($Q206,Flow_All!$R$5:$AG$245,3*($C$8-1)+3) -> 299.12 | X206: =VLOOKUP($Q206,Flow_All!$R$5:$AG$245,3*($C$8-1)+4) -> 299.79
H207: 183 | I207: =VLOOKUP($H207,Conc_All!$A$5:$P$204,3*($C$8-1)+2) -> 0.1892683333 | J207: =VLOOKUP($H207,Conc_All!$A$5:$P$204,3*($C$8-1)+3) -> 0.2582333333 | K207: =VLOOKUP($H207,Conc_All!$A$5:$P$204,3*($C$8-1)+4) -> 0.4 | M207: =VLOOKUP($H207,Flow_All!$A$5:$P$204,3*($C$8-1)+2) -> 291.7508333 | N207: =VLOOKUP($H207,Flow_All!$A$5:$P$204,3*($C$8-1)+3) -> 297.9858333 | O207: =VLOOKUP($H207,Flow_All!$A$5:$P$204,3*($C$8-1)+4) -> 422.6575 | Q207: 55.16666667 | R207: =VLOOKUP($Q207,Conc_All!$R$5:$AG$245,3*($C$8-1)+2) -> 0.34855 | S207: =VLOOKUP($Q207,Conc_All!$R$5:$AG$245,3*($C$8-1)+3) -> 0.4 | T207: =VLOOKUP($Q207,Conc_All!$R$5:$AG$245,3*($C$8-1)+4) -> 0.4 | V207: =VLOOKUP($Q207,Flow_All!$R$5:$AG$245,3*($C$8-1)+2) -> 148.41 | W207: =VLOOKUP($Q207,Flow_All!$R$5:$AG$245,3*($C$8-1)+3) -> 298.78 | X207: =VLOOKUP($Q207,Flow_All!$R$5:$AG$245,3*($C$8-1)+4) -> 299.72
H208: 184 | I208: =VLOOKUP($H208,Conc_All!$A$5:$P$204,3*($C$8-1)+2) -> 0.1885341667 | J208: =VLOOKUP($H208,Conc_All!$A$5:$P$204,3*($C$8-1)+3) -> 0.2566091667 | K208: =VLOOKUP($H208,Conc_All!$A$5:$P$204,3*($C$8-1)+4) -> 0.4 | M208: =VLOOKUP($H208,Flow_All!$A$5:$P$204,3*($C$8-1)+2) -> 290.745 | N208: =VLOOKUP($H208,Flow_All!$A$5:$P$204,3*($C$8-1)+3) -> 297.96 | O208: =VLOOKUP($H208,Flow_All!$A$5:$P$204,3*($C$8-1)+4) -> 444.4525 | Q208: 55.25 | R208: =VLOOKUP($Q208,Conc_All!$R$5:$AG$245,3*($C$8-1)+2) -> 0.34855 | S208: =VLOOKUP($Q208,Conc_All!$R$5:$AG$245,3*($C$8-1)+3) -> 0.4 | T208: =VLOOKUP($Q208,Conc_All!$R$5:$AG$245,3*($C$8-1)+4) -> 0.4 | V208: =VLOOKUP($Q208,Flow_All!$R$5:$AG$245,3*($C$8-1)+2) -> 146.17 | W208: =VLOOKUP($Q208,Flow_All!$R$5:$AG$245,3*($C$8-1)+3) -> 297.27 | X208: =VLOOKUP($Q208,Flow_All!$R$5:$AG$245,3*($C$8-1)+4) -> 299.41
... 57 more rows

Sheet Conc_All
B1: Values shown for constituent selected on PlotControl tab | S1: Values shown for constituent selected on PlotControl tab
B2: =PlotControl!$A$15 -> East Pit Lower Porewater | E2: =PlotControl!$A$16 -> East Pit Upper/Wetland Porewater | H2: =PlotControl!$A$17 -> West Pit | K2: =PlotControl!$A$18 -> Long-term WWTF Effluent | N2: =PlotControl!$A$19 -> Category 1 Stockpile Drainage | S2: =PlotControl!$A$15 -> East Pit Lower Porewater | V2: =PlotControl!$A$16 -> East Pit Upper/Wetland Porewater | Y2: =PlotControl!$A$17 -> West Pit | AB2: =PlotControl!$A$18 -> Long-term WWTF Effluent | AE2: =PlotControl!$A$19 -> Category 1 Stockpile Drainage
B3: Annual Project Results | E3: Annual Project Results | H3: Annual Project Results | K3: Annual Project Results | N3: Annual Project Results | S3: Monthly Project Results | V3: Monthly Project Results | Y3: Monthly Project Results | AB3: Monthly Project Results | AE3: Monthly Project Results
A4: Time | B4: P10 | C4: P50 | D4: P90 | E4: P10 | F4: P50 | G4: P90 | H4: P10 | I4: P50 | J4: P90 | K4: P10 | L4: P50 | M4: P90 | N4: P10 | O4: P50 | P4: P90 | R4: Time | S4: P10 | T4: P50 | U4: P90 | V4: P10 | W4: P50 | X4: P90 | Y4: P10 | Z4: P50 | AA4: P90 | AB4: P10 | AC4: P50 | AD4: P90 | AE4: P10 | AF4: P50 | AG4: P90
A5: 1 | B5: =IF(PlotControl!$B$4 = "Annual Max",MAX(OFFSET(EP_Pore_Conc!$C$10,12*($A5-1),4*(PlotControl!$C$6-1),12,1)),AVERAGE(OFFSET(EP_Pore_Conc!$C$10,12*($A5-1),4*(PlotControl!$C$6-1),12,1))) -> 0 | C5: =IF(PlotControl!$B$4 = "Annual Max",MAX(OFFSET(EP_Pore_Conc!$D$10,12*($A5-1),4*(PlotControl!$C$6-1),12,1)),AVERAGE(OFFSET(EP_Pore_Conc!$D$10,12*($A5-1),4*(PlotControl!$C$6-1),12,1))) -> 0 | D5: =IF(PlotControl!$B$4 = "Annual Max",MAX(OFFSET(EP_Pore_Conc!$E$10,12*($A5-1),4*(PlotControl!$C$6-1),12,1)),AVERAGE(OFFSET(EP_Pore_Conc!$E$10,12*($A5-1),4*(PlotControl!$C$6-1),12,1))) -> 0 | E5: =IF(PlotControl!$B$4 = "Annual Max",MAX(OFFSET(EP_Wetland_Conc!$C$10,12*($A5-1),4*(PlotControl!$C$6-1),12,1)),AVERAGE(OFFSET(EP_Wetland_Conc!$C$10,12*($A5-1),4*(PlotControl!$C$6-1),12,1))) -> 0 | F5: =IF(PlotControl!$B$4 = "Annual Max",MAX(OFFSET(EP_Wetland_Conc!$D$10,12*($A5-1),4*(PlotControl!$C$6-1),12,1)),AVERAGE(OFFSET(EP_Wetland_Conc!$D$10,12*($A5-1),4*(PlotControl!$C$6-1),12,1))) -> 0 | G5: =IF(PlotControl!$B$4 = "Annual Max",MAX(OFFSET(EP_Wetland_Conc!$E$10,12*($A5-1),4*(PlotControl!$C$6-1),12,1)),AVERAGE(OFFSET(EP_Wetland_Conc!$E$10,12*($A5-1),4*(PlotControl!$C$6-1),12,1))) -> 0 | H5: =IF(PlotControl!$B$4 = "Annual Max",MAX(OFFSET(WP_Conc!$C$10,12*($A5-1),4*(PlotControl!$C$6-1),12,1)),AVERAGE(OFFSET(WP_Conc!$C$10,12*($A5-1),4*(PlotControl!$C$6-1),12,1))) -> 0.3209941667 | I5: =IF(PlotControl!$B$4 = "Annual Max",MAX(OFFSET(WP_Conc!$D$10,12*($A5-1),4*(PlotControl!$C$6-1),12,1)),AVERAGE(OFFSET(WP_Conc!$D$10,12*($A5-1),4*(PlotControl!$C$6-1),12,1))) -> 0.3272741667 | J5: =IF(PlotControl!$B$4 = "Annual Max",MAX(OFFSET(WP_Conc!$E$10,12*($A5-1),4*(PlotControl!$C$6-1),12,1)),AVERAGE(OFFSET(WP_Conc!$E$10,12*($A5-1),4*(PlotControl!$C$6-1),12,1))) -> 0.3333333333 | K5: =IF(PlotControl!$B$4 = "Annual Max",MAX(OFFSET(WWTF_Outflow_Conc!$C$10,12*($A5-1),4*(PlotControl!$C$6-1),12,1)),AVERAGE(OFFSET(WWTF_Outflow_Conc!$C$10,12*($A5-1),4*(PlotControl!$C$6-1),12,1))) -> 0 | L5: =IF(PlotControl!$B$4 = "Annual Max",MAX(OFFSET(WWTF_Outflow_Conc!$D$10,12*($A5-1),4*(PlotControl!$C$6-1),12,1)),AVERAGE(OFFSET(WWTF_Outflow_Conc!$D$10,12*($A5-1),4*(PlotControl!$C$6-1),12,1))) -> 0 | M5: =IF(PlotControl!$B$4 = "Annual Max",MAX(OFFSET(WWTF_Outflow_Conc!$E$10,12*($A5-1),4*(PlotControl!$C$6-1),12,1)),AVERAGE(OFFSET(WWTF_Outflow_Conc!$E$10,12*($A5-1),4*(PlotControl!$C$6-1),12,1))) -> 0 | N5: =IF(PlotControl!$B$4 = "Annual Max",MAX(OFFSET(Cat1SP_Conc!$C$10,12*($A5-1),4*(PlotControl!$C$6-1),12,1)),AVERAGE(OFFSET(Cat1SP_Conc!$C$10,12*($A5-1),4*(PlotControl!$C$6-1),12,1))) -> 0.0070724 | O5: =IF(PlotControl!$B$4 = "Annual Max",MAX(OFFSET(Cat1SP_Conc!$D$10,12*($A5-1),4*(PlotControl!$C$6-1),12,1)),AVERAGE(OFFSET(Cat1SP_Conc!$D$10,12*($A5-1),4*(PlotControl!$C$6-1),12,1))) -> 0.1208269167 | P5: =IF(PlotControl!$B$4 = "Annual Max",MAX(OFFSET(Cat1SP_Conc!$E$10,12*($A5-1),4*(PlotControl!$C$6-1),12,1)),AVERAGE(OFFSET(Cat1SP_Conc!$E$10,12*($A5-1),4*(PlotControl!$C$6-1),12,1))) -> 0.3248741667 | R5: =PlotControl!$B$10 -> 40 | S5: =OFFSET(EP_Pore_Conc!$C$10,ROUND(12*$R5,0),4*(PlotControl!$C$6-1),1,1) -> 0.4 | T5: =OFFSET(EP_Pore_Conc!$D$10,ROUND(12*$R5,0),4*(PlotControl!$C$6-1),1,1) -> 0.4 | U5: =OFFSET(EP_Pore_Conc!$E$10,ROUND(12*$R5,0),4*(PlotControl!$C$6-1),1,1) -> 0.4 | V5: =OFFSET(EP_Wetland_Conc!$C$10,ROUND(12*$R5,0),4*(PlotControl!$C$6-1),1,1) -> 0.20744 | W5: =OFFSET(EP_Wetland_Conc!$D$10,ROUND(12*$R5,0),4*(PlotControl!$C$6-1),1,1) -> 0.4 | X5: =OFFSET(EP_Wetland_Conc!$E$10,ROUND(12*$R5,0),4*(PlotControl!$C$6-1),1,1) -> 0.4 | Y5: =OFFSET(WP_Conc!$C$10,ROUND(12*$R5,0),4*(PlotControl!$C$6-1),1,1) -> 0.38588 | Z5: =OFFSET(WP_Conc!$D$10,ROUND(12*$R5,0),4*(PlotControl!$C$6-1),1,1) -> 0.4 | AA5: =OFFSET(WP_Conc!$E$10,ROUND(12*$R5,0),4*(PlotControl!$C$6-1),1,1) -> 0.4 | AB5: =OFFSET(WWTF_Outflow_Conc!$C$10,ROUND(12*$R5,0),4*(PlotControl!$C$6-1),1,1) -> 0 | AC5: =OFFSET(WWTF_Outflow_Conc!$D$10,ROUND(12*$R5,0),4*(PlotControl!$C$6-1),1,1) -> 0 | AD5: =OFFSET(WWTF_Outflow_Conc!$E$10,ROUND(12*$R5,0),4*(PlotControl!$C$6-1),1,1) -> 0 | AE5: =OFFSET(Cat1SP_Conc!$C$10,ROUND(12*$R5,0),4*(PlotControl!$C$6-1),1,1) -> 0.39998 | AF5: =OFFSET(Cat1SP_Conc!$D$10,ROUND(12*$R5,0),4*(PlotControl!$C$6-1),1,1) -> 0.4 | AG5: =OFFSET(Cat1SP_Conc!$E$10,ROUND(12*$R5,0),4*(PlotControl!$C$6-1),1,1) -> 0.4
A6: 2 | B6: =IF(PlotControl!$B$4 = "Annual Max",MAX(OFFSET(EP_Pore_Conc!$C$10,12*($A6-1),4*(PlotControl!$C$6-1),12,1)),AVERAGE(OFFSET(EP_Pore_Conc!$C$10,12*($A6-1),4*(PlotControl!$C$6-1),12,1))) -> 0 | C6: =IF(PlotControl!$B$4 = "Annual Max",MAX(OFFSET(EP_Pore_Conc!$D$10,12*($A6-1),4*(PlotControl!$C$6-1),12,1)),AVERAGE(OFFSET(EP_Pore_Conc!$D$10,12*($A6-1),4*(PlotControl!$C$6-1),12,1))) -> 0 | D6: =IF(PlotControl!$B$4 = "Annual Max",MAX(OFFSET(EP_Pore_Conc!$E$10,12*($A6-1),4*(PlotControl!$C$6-1),12,1)),AVERAGE(OFFSET(EP_Pore_Conc!$E$10,12*($A6-1),4*(PlotControl!$C$6-1),12,1))) -> 0 | E6: =IF(PlotControl!$B$4 = "Annual Max",MAX(OFFSET(EP_Wetland_Conc!$C$10,12*($A6-1),4*(PlotControl!$C$6-1),12,1)),AVERAGE(OFFSET(EP_Wetland_Conc!$C$10,12*($A6-1),4*(PlotControl!$C$6-1),12,1))) -> 0 | F6: =IF(PlotControl!$B$4 = "Annual Max",MAX(OFFSET(EP_Wetland_Conc!$D$10,12*($A6-1),4*(PlotControl!$C$6-1),12,1)),AVERAGE(OFFSET(EP_Wetland_Conc!$D$10,12*($A6-1),4*(PlotControl!$C$6-1),12,1))) -> 0 | G6: =IF(PlotControl!$B$4 = "Annual Max",MAX(OFFSET(EP_Wetland_Conc!$E$10,12*($A6-1),4*(PlotControl!$C$6-1),12,1)),AVERAGE(OFFSET(EP_Wetland_Conc!$E$10,12*($A6-1),4*(PlotControl!$C$6-1),12,1))) -> 0 | H6: =IF(PlotControl!$B$4 = "Annual Max",MAX(OFFSET(WP_Conc!$C$10,12*($A6-1),4*(PlotControl!$C$6-1),12,1)),AVERAGE(OFFSET(WP_Conc!$C$10,12*($A6-1),4*(PlotControl!$C$6-1),12,1))) -> 0.3832375 | I6: =IF(PlotControl!$B$4 = "Annual Max",MAX(OFFSET(WP_Conc!$D$10,12*($A6-1),4*(PlotControl!$C$6-1),12,1)),AVERAGE(OFFSET(WP_Conc!$D$10,12*($A6-1),4*(PlotControl!$C$6-1),12,1))) -> 0.4 | J6: =IF(PlotControl!$B$4 = "Annual Max",MAX(OFFSET(WP_Conc!$E$10,12*($A6-1),4*(PlotControl!$C$6-1),12,1)),AVERAGE(OFFSET(WP_Conc!$E$10,12*($A6-1),4*(PlotControl!$C$6-1),12,1))) -> 0.4 | K6: =IF(PlotControl!$B$4 = "Annual Max",MAX(OFFSET(WWTF_Outflow_Conc!$C$10,12*($A6-1),4*(PlotControl!$C$6-1),12,1)),AVERAGE(OFFSET(WWTF_Outflow_Conc!$C$10,12*($A6-1),4*(PlotControl!$C$6-1),12,1))) -> 0 | L6: =IF(PlotControl!$B$4 = "Annual Max",MAX(OFFSET(WWTF_Outflow_Conc!$D$10,12*($A6-1),4*(PlotControl!$C$6-1),12,1)),AVERAGE(OFFSET(WWTF_Outflow_Conc!$D$10,12*($A6-1),4*(PlotControl!$C$6-1),12,1))) -> 0 | M6: =IF(PlotControl!$B$4 = "Annual Max",MAX(OFFSET(WWTF_Outflow_Conc!$E$10,12*($A6-1),4*(PlotControl!$C$6-1),12,1)),AVERAGE(OFFSET(WWTF_Outflow_Conc!$E$10,12*($A6-1),4*(PlotControl!$C$6-1),12,1))) -> 0 | N6: =IF(PlotControl!$B$4 = "Annual Max",MAX(OFFSET(Cat1SP_Conc!$C$10,12*($A6-1),4*(PlotControl!$C$6-1),12,1)),AVERAGE(OFFSET(Cat1SP_Conc!$C$10,12*($A6-1),4*(PlotControl!$C$6-1),12,1))) -> 0.03360075 | O6: =IF(PlotControl!$B$4 = "Annual Max",MAX(OFFSET(Cat1SP_Conc!$D$10,12*($A6-1),4*(PlotControl!$C$6-1),12,1)),AVERAGE(OFFSET(Cat1SP_Conc!$D$10,12*($A6-1),4*(PlotControl!$C$6-1),12,1))) -> 0.3773966667 | P6: =IF(PlotControl!$B$4 = "Annual Max",MAX(OFFSET(Cat1SP_Conc!$E$10,12*($A6-1),4*(PlotControl!$C$6-1),12,1)),AVERAGE(OFFSET(Cat1SP_Conc!$E$10,12*($A6-1),4*(PlotControl!$C$6-1),12,1))) -> 0.4 | R6: =R5+1/12 -> 40.08333333 | S6: =OFFSET(EP_Pore_Conc!$C$10,ROUND(12*$R6,0),4*(PlotControl!$C$6-1),1,1) -> 0.4 | T6: =OFFSET(EP_Pore_Conc!$D$10,ROUND(12*$R6,0),4*(PlotControl!$C$6-1),1,1) -> 0.4 | U6: =OFFSET(EP_Pore_Conc!$E$10,ROUND(12*$R6,0),4*(PlotControl!$C$6-1),1,1) -> 0.4 | V6: =OFFSET(EP_Wetland_Conc!$C$10,ROUND(12*$R6,0),4*(PlotControl!$C$6-1),1,1) -> 0.20797 | W6: =OFFSET(EP_Wetland_Conc!$D$10,ROUND(12*$R6,0),4*(PlotControl!$C$6-1),1,1) -> 0.4 | X6: =OFFSET(EP_Wetland_Conc!$E$10,ROUND(12*$R6,0),4*(PlotControl!$C$6-1),1,1) -> 0.4 | Y6: =OFFSET(WP_Conc!$C$10,ROUND(12*$R6,0),4*(PlotControl!$C$6-1),1,1) -> 0.38609 | Z6: =OFFSET(WP_Conc!$D$10,ROUND(12*$R6,0),4*(PlotControl!$C$6-1),1,1) -> 0.4 | AA6: =OFFSET(WP_Conc!$E$10,ROUND(12*$R6,0),4*(PlotControl!$C$6-1),1,1) -> 0.4 | AB6: =OFFSET(WWTF_Outflow_Conc!$C$10,ROUND(12*$R6,0),4*(PlotControl!$C$6-1),1,1) -> 0 | AC6: =OFFSET(WWTF_Outflow_Conc!$D$10,ROUND(12*$R6,0),4*(PlotControl!$C$6-1),1,1) -> 0 | AD6: =OFFSET(WWTF_Outflow_Conc!$E$10,ROUND(12*$R6,0),4*(PlotControl!$C$6-1),1,1) -> 0 | AE6: =OFFSET(Cat1SP_Conc!$C$10,ROUND(12*$R6,0),4*(PlotControl!$C$6-1),1,1) -> 0.39998 | AF6: =OFFSET(Cat1SP_Conc!$D$10,ROUND(12*$R6,0),4*(PlotControl!$C$6-1),1,1) -> 0.4 | AG6: =OFFSET(Cat1SP_Conc!$E$10,ROUND(12*$R6,0),4*(PlotControl!$C$6-1),1,1) -> 0.4
A7: 3 | B7: =IF(PlotControl!$B$4 = "Annual Max",MAX(OFFSET(EP_Pore_Conc!$C$10,12*($A7-1),4*(PlotControl!$C$6-1),12,1)),AVERAGE(OFFSET(EP_Pore_Conc!$C$10,12*($A7-1),4*(PlotControl!$C$6-1),12,1))) -> 0 | C7: =IF(PlotControl!$B$4 = "Annual Max",MAX(OFFSET(EP_Pore_Conc!$D$10,12*($A7-1),4*(PlotControl!$C$6-1),12,1)),AVERAGE(OFFSET(EP_Pore_Conc!$D$10,12*($A7-1),4*(PlotControl!$C$6-1),12,1))) -> 0 | D7: =IF(PlotControl!$B$4 = "Annual Max",MAX(OFFSET(EP_Pore_Conc!$E$10,12*($A7-1),4*(PlotControl!$C$6-1),12,1)),AVERAGE(OFFSET(EP_Pore_Conc!$E$10,12*($A7-1),4*(PlotControl!$C$6-1),12,1))) -> 0 | E7: =IF(PlotControl!$B$4 = "Annual Max",MAX(OFFSET(EP_Wetland_Conc!$C$10,12*($A7-1),4*(PlotControl!$C$6-1),12,1)),AVERAGE(OFFSET(EP_Wetland_Conc!$C$10,12*($A7-1),4*(PlotControl!$C$6-1),12,1))) -> 0 | F7: =IF(PlotControl!$B$4 = "Annual Max",MAX(OFFSET(EP_Wetland_Conc!$D$10,12*($A7-1),4*(PlotControl!$C$6-1),12,1)),AVERAGE(OFFSET(EP_Wetland_Conc!$D$10,12*($A7-1),4*(PlotControl!$C$6-1),12,1))) -> 0 | G7: =IF(PlotControl!$B$4 = "Annual Max",MAX(OFFSET(EP_Wetland_Conc!$E$10,12*($A7-1),4*(PlotControl!$C$6-1),12,1)),AVERAGE(OFFSET(EP_Wetland_Conc!$E$10,12*($A7-1),4*(PlotControl!$C$6-1),12,1))) -> 0 | H7: =IF(PlotControl!$B$4 = "Annual Max",MAX(OFFSET(WP_Conc!$C$10,12*($A7-1),4*(PlotControl!$C$6-1),12,1)),AVERAGE(OFFSET(WP_Conc!$C$10,12*($A7-1),4*(PlotControl!$C$6-1),12,1))) -> 0.3470391667 | I7: =IF(PlotControl!$B$4 = "Annual Max",MAX(OFFSET(WP_Conc!$D$10,12*($A7-1),4*(PlotControl!$C$6-1),12,1)),AVERAGE(OFFSET(WP_Conc!$D$10,12*($A7-1),4*(PlotControl!$C$6-1),12,1))) -> 0.3690908333 | J7: =IF(PlotControl!$B$4 = "Annual Max",MAX(OFFSET(WP_Conc!$E$10,12*($A7-1),4*(PlotControl!$C$6-1),12,1)),AVERAGE(OFFSET(WP_Conc!$E$10,12*($A7-1),4*(PlotControl!$C$6-1),12,1))) -> 0.3870291667 | K7: =IF(PlotControl!$B$4 = "Annual Max",MAX(OFFSET(WWTF_Outflow_Conc!$C$10,12*($A7-1),4*(PlotControl!$C$6-1),12,1)),AVERAGE(OFFSET(WWTF_Outflow_Conc!$C$10,12*($A7-1),4*(PlotControl!$C$6-1),12,1))) -> 0 | L7: =IF(PlotControl!$B$4 = "Annual Max",MAX(OFFSET(WWTF_Outflow_Conc!$D$10,12*($A7-1),4*(PlotControl!$C$6-1),12,1)),AVERAGE(OFFSET(WWTF_Outflow_Conc!$D$10,12*($A7-1),4*(PlotControl!$C$6-1),12,1))) -> 0 | M7: =IF(PlotControl!$B$4 = "Annual Max",MAX(OFFSET(WWTF_Outflow_Conc!$E$10,12*($A7-1),4*(PlotControl!$C$6-1),12,1)),AVERAGE(OFFSET(WWTF_Outflow_Conc!$E$10,12*($A7-1),4*(PlotControl!$C$6-1),12,1))) -> 0 | N7: =IF(PlotControl!$B$4 = "Annual Max",MAX(OFFSET(Cat1SP_Conc!$C$10,12*($A7-1),4*(PlotControl!$C$6-1),12,1)),AVERAGE(OFFSET(Cat1SP_Conc!$C$10,12*($A7-1),4*(PlotControl!$C$6-1),12,1))) -> 0.049139 | O7: =IF(PlotControl!$B$4 = "Annual Max",MAX(OFFSET(Cat1SP_Conc!$D$10,12*($A7-1),4*(PlotControl!$C$6-1),12,1)),AVERAGE(OFFSET(Cat1SP_Conc!$D$10,12*($A7-1),4*(PlotControl!$C$6-1),12,1))) -> 0.3948683333 | P7: =IF(PlotControl!$B$4 = "Annual Max",MAX(OFFSET(Cat1SP_Conc!$E$10,12*($A7-1),4*(PlotControl!$C$6-1),12,1)),AVERAGE(OFFSET(Cat1SP_Conc!$E$10,12*($A7-1),4*(PlotControl!$C$6-1),12,1))) -> 0.39521 | R7: =R6+1/12 -> 40.16666667 | S7: =OFFSET(EP_Pore_Conc!$C$10,ROUND(12*$R7,0),4*(PlotControl!$C$6-1),1,1) -> 0.4 | T7: =OFFSET(EP_Pore_Conc!$D$10,ROUND(12*$R7,0),4*(PlotControl!$C$6-1),1,1) -> 0.4 | U7: =OFFSET(EP_Pore_Conc!$E$10,ROUND(12*$R7,0),4*(PlotControl!$C$6-1),1,1) -> 0.4 | V7: =OFFSET(EP_Wetland_Conc!$C$10,ROUND(12*$R7,0),4*(PlotControl!$C$6-1),1,1) -> 0.20853 | W7: =OFFSET(EP_Wetland_Conc!$D$10,ROUND(12*$R7,0),4*(PlotControl!$C$6-1),1,1) -> 0.4 | X7: =OFFSET(EP_Wetland_Conc!$E$10,ROUND(12*$R7,0),4*(PlotControl!$C$6-1),1,1) -> 0.4 | Y7: =OFFSET(WP_Conc!$C$10,ROUND(12*$R7,0),4*(PlotControl!$C$6-1),1,1) -> 0.38618 | Z7: =OFFSET(WP_Conc!$D$10,ROUND(12*$R7,0),4*(PlotControl!$C$6-1),1,1) -> 0.4 | AA7: =OFFSET(WP_Conc!$E$10,ROUND(12*$R7,0),4*(PlotControl!$C$6-1),1,1) -> 0.4 | AB7: =OFFSET(WWTF_Outflow_Conc!$C$10,ROUND(12*$R7,0),4*(PlotControl!$C$6-1),1,1) -> 0 | AC7: =OFFSET(WWTF_Outflow_Conc!$D$10,ROUND(12*$R7,0),4*(PlotControl!$C$6-1),1,1) -> 0 | AD7: =OFFSET(WWTF_Outflow_Conc!$E$10,ROUND(12*$R7,0),4*(PlotControl!$C$6-1),1,1) -> 0 | AE7: =OFFSET(Cat1SP_Conc!$C$10,ROUND(12*$R7,0),4*(PlotControl!$C$6-1),1,1) -> 0.39998 | AF7: =OFFSET(Cat1SP_Conc!$D$10,ROUND(12*$R7,0),4*(PlotControl!$C$6-1),1,1) -> 0.4 | AG7: =OFFSET(Cat1SP_Conc!$E$10,ROUND(12*$R7,0),4*(PlotControl!$C$6-1),1,1) -> 0.4
A8: 4 | B8: =IF(PlotControl!$B$4 = "Annual Max",MAX(OFFSET(EP_Pore_Conc!$C$10,12*($A8-1),4*(PlotControl!$C$6-1),12,1)),AVERAGE(OFFSET(EP_Pore_Conc!$C$10,12*($A8-1),4*(PlotControl!$C$6-1),12,1))) -> 0 | C8: =IF(PlotControl!$B$4 = "Annual Max",MAX(OFFSET(EP_Pore_Conc!$D$10,12*($A8-1),4*(PlotControl!$C$6-1),12,1)),AVERAGE(OFFSET(EP_Pore_Conc!$D$10,12*($A8-1),4*(PlotControl!$C$6-1),12,1))) -> 0 | D8: =IF(PlotControl!$B$4 = "Annual Max",MAX(OFFSET(EP_Pore_Conc!$E$10,12*($A8-1),4*(PlotControl!$C$6-1),12,1)),AVERAGE(OFFSET(EP_Pore_Conc!$E$10,12*($A8-1),4*(PlotControl!$C$6-1),12,1))) -> 0 | E8: =IF(PlotControl!$B$4 = "Annual Max",MAX(OFFSET(EP_Wetland_Conc!$C$10,12*($A8-1),4*(PlotControl!$C$6-1),12,1)),AVERAGE(OFFSET(EP_Wetland_Conc!$C$10,12*($A8-1),4*(PlotControl!$C$6-1),12,1))) -> 0 | F8: =IF(PlotControl!$B$4 = "Annual Max",MAX(OFFSET(EP_Wetland_Conc!$D$10,12*($A8-1),4*(PlotControl!$C$6-1),12,1)),AVERAGE(OFFSET(EP_Wetland_Conc!$D$10,12*($A8-1),4*(PlotControl!$C$6-1),12,1))) -> 0 | G8: =IF(PlotControl!$B$4 = "Annual Max",MAX(OFFSET(EP_Wetland_Conc!$E$10,12*($A8-1),4*(PlotControl!$C$6-1),12,1)),AVERAGE(OFFSET(EP_Wetland_Conc!$E$10,12*($A8-1),4*(PlotControl!$C$6-1),12,1))) -> 0 | H8: =IF(PlotControl!$B$4 = "Annual Max",MAX(OFFSET(WP_Conc!$C$10,12*($A8-1),4*(PlotControl!$C$6-1),12,1)),AVERAGE(OFFSET(WP_Conc!$C$10,12*($A8-1),4*(PlotControl!$C$6-1),12,1))) -> 0.3352675 | I8: =IF(PlotControl!$B$4 = "Annual Max",MAX(OFFSET(WP_Conc!$D$10,12*($A8-1),4*(PlotControl!$C$6-1),12,1)),AVERAGE(OFFSET(WP_Conc!$D$10,12*($A8-1),4*(PlotControl!$C$6-1),12,1))) -> 0.3609033333 | J8: =IF(PlotControl!$B$4 = "Annual Max",MAX(OFFSET(WP_Conc!$E$10,12*($A8-1),4*(PlotControl!$C$6-1),12,1)),AVERAGE(OFFSET(WP_Conc!$E$10,12*($A8-1),4*(PlotControl!$C$6-1),12,1))) -> 0.3832533333 | K8: =IF(PlotControl!$B$4 = "Annual Max",MAX(OFFSET(WWTF_Outflow_Conc!$C$10,12*($A8-1),4*(PlotControl!$C$6-1),12,1)),AVERAGE(OFFSET(WWTF_Outflow_Conc!$C$10,12*($A8-1),4*(PlotControl!$C$6-1),12,1))) -> 0 | L8: =IF(PlotControl!$B$4 = "Annual Max",MAX(OFFSET(WWTF_Outflow_Conc!$D$10,12*($A8-1),4*(PlotControl!$C$6-1),12,1)),AVERAGE(OFFSET(WWTF_Outflow_Conc!$D$10,12*($A8-1),4*(PlotControl!$C$6-1),12,1))) -> 0 | M8: =IF(PlotControl!$B$4 = "Annual Max",MAX(OFFSET(WWTF_Outflow_Conc!$E$10,12*($A8-1),4*(PlotControl!$C$6-1),12,1)),AVERAGE(OFFSET(WWTF_Outflow_Conc!$E$10,12*($A8-1),4*(PlotControl!$C$6-1),12,1))) -> 0 | N8: =IF(PlotControl!$B$4 = "Annual Max",MAX(OFFSET(Cat1SP_Conc!$C$10,12*($A8-1),4*(PlotControl!$C$6-1),12,1)),AVERAGE(OFFSET(Cat1SP_Conc!$C$10,12*($A8-1),4*(PlotControl!$C$6-1),12,1))) -> 0.04948216667 | O8: =IF(PlotControl!$B$4 = "Annual Max",MAX(OFFSET(Cat1SP_Conc!$D$10,12*($A8-1),4*(PlotControl!$C$6-1),12,1)),AVERAGE(OFFSET(Cat1SP_Conc!$D$10,12*($A8-1),4*(PlotControl!$C$6-1),12,1))) -> 0.3955641667 | P8: =IF(PlotControl!$B$4 = "Annual Max",MAX(OFFSET(Cat1SP_Conc!$E$10,12*($A8-1),4*(PlotControl!$C$6-1),12,1)),AVERAGE(OFFSET(Cat1SP_Conc!$E$10,12*($A8-1),4*(PlotControl!$C$6-1),12,1))) -> 0.3958966667 | R8: 40.25 | S8: =OFFSET(EP_Pore_Conc!$C$10,ROUND(12*$R8,0),4*(PlotControl!$C$6-1),1,1) -> 0.4 | T8: =OFFSET(EP_Pore_Conc!$D$10,ROUND(12*$R8,0),4*(PlotControl!$C$6-1),1,1) -> 0.4 | U8: =OFFSET(EP_Pore_Conc!$E$10,ROUND(12*$R8,0),4*(PlotControl!$C$6-1),1,1) -> 0.4 | V8: =OFFSET(EP_Wetland_Conc!$C$10,ROUND(12*$R8,0),4*(PlotControl!$C$6-1),1,1) -> 0.21153 | W8: =OFFSET(EP_Wetland_Conc!$D$10,ROUND(12*$R8,0),4*(PlotControl!$C$6-1),1,1) -> 0.4 | X8: =OFFSET(EP_Wetland_Conc!$E$10,ROUND(12*$R8,0),4*(PlotControl!$C$6-1),1,1) -> 0.4 | Y8: =OFFSET(WP_Conc!$C$10,ROUND(12*$R8,0),4*(PlotControl!$C$6-1),1,1) -> 0.38617 | Z8: =OFFSET(WP_Conc!$D$10,ROUND(12*$R8,0),4*(PlotControl!$C$6-1),1,1) -> 0.4 | AA8: =OFFSET(WP_Conc!$E$10,ROUND(12*$R8,0),4*(PlotControl!$C$6-1),1,1) -> 0.4 | AB8: =OFFSET(WWTF_Outflow_Conc!$C$10,ROUND(12*$R8,0),4*(PlotControl!$C$6-1),1,1) -> 0 | AC8: =OFFSET(WWTF_Outflow_Conc!$D$10,ROUND(12*$R8,0),4*(PlotControl!$C$6-1),1,1) -> 0 | AD8: =OFFSET(WWTF_Outflow_Conc!$E$10,ROUND(12*$R8,0),4*(PlotControl!$C$6-1),1,1) -> 0 | AE8: =OFFSET(Cat1SP_Conc!$C$10,ROUND(12*$R8,0),4*(PlotControl!$C$6-1),1,1) -> 0.39998 | AF8: =OFFSET(Cat1SP_Conc!$D$10,ROUND(12*$R8,0),4*(PlotControl!$C$6-1),1,1) -> 0.4 | AG8: =OFFSET(Cat1SP_Conc!$E$10,ROUND(12*$R8,0),4*(PlotControl!$C$6-1),1,1) -> 0.4
A9: 5 | B9: =IF(PlotControl!$B$4 = "Annual Max",MAX(OFFSET(EP_Pore_Conc!$C$10,12*($A9-1),4*(PlotControl!$C$6-1),12,1)),AVERAGE(OFFSET(EP_Pore_Conc!$C$10,12*($A9-1),4*(PlotControl!$C$6-1),12,1))) -> 0 | C9: =IF(PlotControl!$B$4 = "Annual Max",MAX(OFFSET(EP_Pore_Conc!$D$10,12*($A9-1),4*(PlotControl!$C$6-1),12,1)),AVERAGE(OFFSET(EP_Pore_Conc!$D$10,12*($A9-1),4*(PlotControl!$C$6-1),12,1))) -> 0 | D9: =IF(PlotControl!$B$4 = "Annual Max",MAX(OFFSET(EP_Pore_Conc!$E$10,12*($A9-1),4*(PlotControl!$C$6-1),12,1)),AVERAGE(OFFSET(EP_Pore_Conc!$E$10,12*($A9-1),4*(PlotControl!$C$6-1),12,1))) -> 0 | E9: =IF(PlotControl!$B$4 = "Annual Max",MAX(OFFSET(EP_Wetland_Conc!$C$10,12*($A9-1),4*(PlotControl!$C$6-1),12,1)),AVERAGE(OFFSET(EP_Wetland_Conc!$C$10,12*($A9-1),4*(PlotControl!$C$6-1),12,1))) -> 0 | F9: =IF(PlotControl!$B$4 = "Annual Max",MAX(OFFSET(EP_Wetland_Conc!$D$10,12*($A9-1),4*(PlotControl!$C$6-1),12,1)),AVERAGE(OFFSET(EP_Wetland_Conc!$D$10,12*($A9-1),4*(PlotControl!$C$6-1),12,1))) -> 0 | G9: =IF(PlotControl!$B$4 = "Annual Max",MAX(OFFSET(EP_Wetland_Conc!$E$10,12*($A9-1),4*(PlotControl!$C$6-1),12,1)),AVERAGE(OFFSET(EP_Wetland_Conc!$E$10,12*($A9-1),4*(PlotControl!$C$6-1),12,1))) -> 0 | H9: =IF(PlotControl!$B$4 = "Annual Max",MAX(OFFSET(WP_Conc!$C$10,12*($A9-1),4*(PlotControl!$C$6-1),12,1)),AVERAGE(OFFSET(WP_Conc!$C$10,12*($A9-1),4*(PlotControl!$C$6-1),12,1))) -> 0.3277525 | I9: =IF(PlotControl!$B$4 = "Annual Max",MAX(OFFSET(WP_Conc!$D$10,12*($A9-1),4*(PlotControl!$C$6-1),12,1)),AVERAGE(OFFSET(WP_Conc!$D$10,12*($A9-1),4*(PlotControl!$C$6-1),12,1))) -> 0.3566525 | J9: =IF(PlotControl!$B$4 = "Annual Max",MAX(OFFSET(WP_Conc!$E$10,12*($A9-1),4*(PlotControl!$C$6-1),12,1)),AVERAGE(OFFSET(WP_Conc!$E$10,12*($A9-1),4*(PlotControl!$C$6-1),12,1))) -> 0.3815633333 | K9: =IF(PlotControl!$B$4 = "Annual Max",MAX(OFFSET(WWTF_Outflow_Conc!$C$10,12*($A9-1),4*(PlotControl!$C$6-1),12,1)),AVERAGE(OFFSET(WWTF_Outflow_Conc!$C$10,12*($A9-1),4*(PlotControl!$C$6-1),12,1))) -> 0 | L9: =IF(PlotControl!$B$4 = "Annual Max",MAX(OFFSET(WWTF_Outflow_Conc!$D$10,12*($A9-1),4*(PlotControl!$C$6-1),12,1)),AVERAGE(OFFSET(WWTF_Outflow_Conc!$D$10,12*($A9-1),4*(PlotControl!$C$6-1),12,1))) -> 0 | M9: =IF(PlotControl!$B$4 = "Annual Max",MAX(OFFSET(WWTF_Outflow_Conc!$E$10,12*($A9-1),4*(PlotControl!$C$6-1),12,1)),AVERAGE(OFFSET(WWTF_Outflow_Conc!$E$10,12*($A9-1),4*(PlotControl!$C$6-1),12,1))) -> 0 | N9: =IF(PlotControl!$B$4 = "Annual Max",MAX(OFFSET(Cat1SP_Conc!$C$10,12*($A9-1),4*(PlotControl!$C$6-1),12,1)),AVERAGE(OFFSET(Cat1SP_Conc!$C$10,12*($A9-1),4*(PlotControl!$C$6-1),12,1))) -> 0.04828825 | O9: =IF(PlotControl!$B$4 = "Annual Max",MAX(OFFSET(Cat1SP_Conc!$D$10,12*($A9-1),4*(PlotControl!$C$6-1),12,1)),AVERAGE(OFFSET(Cat1SP_Conc!$D$10,12*($A9-1),4*(PlotControl!$C$6-1),12,1))) -> 0.3964691667 | P9: =IF(PlotControl!$B$4 = "Annual Max",MAX(OFFSET(Cat1SP_Conc!$E$10,12*($A9-1),4*(PlotControl!$C$6-1),12,1)),AVERAGE(OFFSET(Cat1SP_Conc!$E$10,12*($A9-1),4*(PlotControl!$C$6-1),12,1))) -> 0.3967133333 | R9: 40.33333333 | S9: =OFFSET(EP_Pore_Conc!$C$10,ROUND(12*$R9,0),4*(PlotControl!$C$6-1),1,1) -> 0.4 | T9: =OFFSET(EP_Pore_Conc!$D$10,ROUND(12*$R9,0),4*(PlotControl!$C$6-1),1,1) -> 0.4 | U9: =OFFSET(EP_Pore_Conc!$E$10,ROUND(12*$R9,0),4*(PlotControl!$C$6-1),1,1) -> 0.4 | V9: =OFFSET(EP_Wetland_Conc!$C$10,ROUND(12*$R9,0),4*(PlotControl!$C$6-1),1,1) -> 0.19187 | W9: =OFFSET(EP_Wetland_Conc!$D$10,ROUND(12*$R9,0),4*(PlotControl!$C$6-1),1,1) -> 0.4 | X9: =OFFSET(EP_Wetland_Conc!$E$10,ROUND(12*$R9,0),4*(PlotControl!$C$6-1),1,1) -> 0.4 | Y9: =OFFSET(WP_Conc!$C$10,ROUND(12*$R9,0),4*(PlotControl!$C$6-1),1,1) -> 0.38371 | Z9: =OFFSET(WP_Conc!$D$10,ROUND(12*$R9,0),4*(PlotControl!$C$6-1),1,1) -> 0.4 | AA9: =OFFSET(WP_Conc!$E$10,ROUND(12*$R9,0),4*(PlotControl!$C$6-1),1,1) -> 0.4 | AB9: =OFFSET(WWTF_Outflow_Conc!$C$10,ROUND(12*$R9,0),4*(PlotControl!$C$6-1),1,1) -> 0 | AC9: =OFFSET(WWTF_Outflow_Conc!$D$10,ROUND(12*$R9,0),4*(PlotControl!$C$6-1),1,1) -> 0 | AD9: =OFFSET(WWTF_Outflow_Conc!$E$10,ROUND(12*$R9,0),4*(PlotControl!$C$6-1),1,1) -> 0 | AE9: =OFFSET(Cat1SP_Conc!$C$10,ROUND(12*$R9,0),4*(PlotControl!$C$6-1),1,1) -> 0.39998 | AF9: =OFFSET(Cat1SP_Conc!$D$10,ROUND(12*$R9,0),4*(PlotControl!$C$6-1),1,1) -> 0.4 | AG9: =OFFSET(Cat1SP_Conc!$E$10,ROUND(12*$R9,0),4*(PlotControl!$C$6-1),1,1) -> 0.4
A10: 6 | B10: =IF(PlotControl!$B$4 = "Annual Max",MAX(OFFSET(EP_Pore_Conc!$C$10,12*($A10-1),4*(PlotControl!$C$6-1),12,1)),AVERAGE(OFFSET(EP_Pore_Conc!$C$10,12*($A10-1),4*(PlotControl!$C$6-1),12,1))) -> 0 | C10: =IF(PlotControl!$B$4 = "Annual Max",MAX(OFFSET(EP_Pore_Conc!$D$10,12*($A10-1),4*(PlotControl!$C$6-1),12,1)),AVERAGE(OFFSET(EP_Pore_Conc!$D$10,12*($A10-1),4*(PlotControl!$C$6-1),12,1))) -> 0 | D10: =IF(PlotControl!$B$4 = "Annual Max",MAX(OFFSET(EP_Pore_Conc!$E$10,12*($A10-1),4*(PlotControl!$C$6-1),12,1)),AVERAGE(OFFSET(EP_Pore_Conc!$E$10,12*($A10-1),4*(PlotControl!$C$6-1),12,1))) -> 0 | E10: =IF(PlotControl!$B$4 = "Annual Max",MAX(OFFSET(EP_Wetland_Conc!$C$10,12*($A10-1),4*(PlotControl!$C$6-1),12,1)),AVERAGE(OFFSET(EP_Wetland_Conc!$C$10,12*($A10-1),4*(PlotControl!$C$6-1),12,1))) -> 0 | F10: =IF(PlotControl!$B$4 = "Annual Max",MAX(OFFSET(EP_Wetland_Conc!$D$10,12*($A10-1),4*(PlotControl!$C$6-1),12,1)),AVERAGE(OFFSET(EP_Wetland_Conc!$D$10,12*($A10-1),4*(PlotControl!$C$6-1),12,1))) -> 0 | G10: =IF(PlotControl!$B$4 = "Annual Max",MAX(OFFSET(EP_Wetland_Conc!$E$10,12*($A10-1),4*(PlotControl!$C$6-1),12,1)),AVERAGE(OFFSET(EP_Wetland_Conc!$E$10,12*($A10-1),4*(PlotControl!$C$6-1),12,1))) -> 0 | H10: =IF(PlotControl!$B$4 = "Annual Max",MAX(OFFSET(WP_Conc!$C$10,12*($A10-1),4*(PlotControl!$C$6-1),12,1)),AVERAGE(OFFSET(WP_Conc!$C$10,12*($A10-1),4*(PlotControl!$C$6-1),12,1))) -> 0.3265758333 | I10: =IF(PlotControl!$B$4 = "Annual Max",MAX(OFFSET(WP_Conc!$D$10,12*($A10-1),4*(PlotControl!$C$6-1),12,1)),AVERAGE(OFFSET(WP_Conc!$D$10,12*($A10-1),4*(PlotControl!$C$6-1),12,1))) -> 0.353905 | J10: =IF(PlotControl!$B$4 = "Annual Max",MAX(OFFSET(WP_Conc!$E$10,12*($A10-1),4*(PlotControl!$C$6-1),12,1)),AVERAGE(OFFSET(WP_Conc!$E$10,12*($A10-1),4*(PlotControl!$C$6-1),12,1))) -> 0.3781466667 | K10: =IF(PlotControl!$B$4 = "Annual Max",MAX(OFFSET(WWTF_Outflow_Conc!$C$10,12*($A10-1),4*(PlotControl!$C$6-1),12,1)),AVERAGE(OFFSET(WWTF_Outflow_Conc!$C$10,12*($A10-1),4*(PlotControl!$C$6-1),12,1))) -> 0 | L10: =IF(PlotControl!$B$4 = "Annual Max",MAX(OFFSET(WWTF_Outflow_Conc!$D$10,12*($A10-1),4*(PlotControl!$C$6-1),12,1)),AVERAGE(OFFSET(WWTF_Outflow_Conc!$D$10,12*($A10-1),4*(PlotControl!$C$6-1),12,1))) -> 0 | M10: =IF(PlotControl!$B$4 = "Annual Max",MAX(OFFSET(WWTF_Outflow_Conc!$E$10,12*($A10-1),4*(PlotControl!$C$6-1),12,1)),AVERAGE(OFFSET(WWTF_Outflow_Conc!$E$10,12*($A10-1),4*(PlotControl!$C$6-1),12,1))) -> 0 | N10: =IF(PlotControl!$B$4 = "Annual Max",MAX(OFFSET(Cat1SP_Conc!$C$10,12*($A10-1),4*(PlotControl!$C$6-1),12,1)),AVERAGE(OFFSET(Cat1SP_Conc!$C$10,12*($A10-1),4*(PlotControl!$C$6-1),12,1))) -> 0.05020841667 | O10: =IF(PlotControl!$B$4 = "Annual Max",MAX(OFFSET(Cat1SP_Conc!$D$10,12*($A10-1),4*(PlotControl!$C$6-1),12,1)),AVERAGE(OFFSET(Cat1SP_Conc!$D$10,12*($A10-1),4*(PlotControl!$C$6-1),12,1))) -> 0.3978366667 | P10: =IF(PlotControl!$B$4 = "Annual Max",MAX(OFFSET(Cat1SP_Conc!$E$10,12*($A10-1),4*(PlotControl!$C$6-1),12,1)),AVERAGE(OFFSET(Cat1SP_Conc!$E$10,12*($A10-1),4*(PlotControl!$C$6-1),12,1))) -> 0.3979933333 | R10: 40.41666667 | S10: =OFFSET(EP_Pore_Conc!$C$10,ROUND(12*$R10,0),4*(PlotControl!$C$6-1),1,1) -> 0.4 | T10: =OFFSET(EP_Pore_Conc!$D$10,ROUND(12*$R10,0),4*(PlotControl!$C$6-1),1,1) -> 0.4 | U10: =OFFSET(EP_Pore_Conc!$E$10,ROUND(12*$R10,0),4*(PlotControl!$C$6-1),1,1) -> 0.4 | V10: =OFFSET(EP_Wetland_Conc!$C$10,ROUND(12*$R10,0),4*(PlotControl!$C$6-1),1,1) -> 0.19327 | W10: =OFFSET(EP_Wetland_Conc!$D$10,ROUND(12*$R10,0),4*(PlotControl!$C$6-1),1,1) -> 0.4 | X10: =OFFSET(EP_Wetland_Conc!$E$10,ROUND(12*$R10,0),4*(PlotControl!$C$6-1),1,1) -> 0.4 | Y10: =OFFSET(WP_Conc!$C$10,ROUND(12*$R10,0),4*(PlotControl!$C$6-1),1,1) -> 0.38366 | Z10: =OFFSET(WP_Conc!$D$10,ROUND(12*$R10,0),4*(PlotControl!$C$6-1),1,1) -> 0.4 | AA10: =OFFSET(WP_Conc!$E$10,ROUND(12*$R10,0),4*(PlotControl!$C$6-1),1,1) -> 0.4 | AB10: =OFFSET(WWTF_Outflow_Conc!$C$10,ROUND(12*$R10,0),4*(PlotControl!$C$6-1),1,1) -> 0 | AC10: =OFFSET(WWTF_Outflow_Conc!$D$10,ROUND(12*$R10,0),4*(PlotControl!$C$6-1),1,1) -> 0 | AD10: =OFFSET(WWTF_Outflow_Conc!$E$10,ROUND(12*$R10,0),4*(PlotControl!$C$6-1),1,1) -> 0 | AE10: =OFFSET(Cat1SP_Conc!$C$10,ROUND(12*$R10,0),4*(PlotControl!$C$6-1),1,1) -> 0.39998 | AF10: =OFFSET(Cat1SP_Conc!$D$10,ROUND(12*$R10,0),4*(PlotControl!$C$6-1),1,1) -> 0.4 | AG10: =OFFSET(Cat1SP_Conc!$E$10,ROUND(12*$R10,0),4*(PlotControl!$C$6-1),1,1) -> 0.4
A11: 7 | B11: =IF(PlotControl!$B$4 = "Annual Max",MAX(OFFSET(EP_Pore_Conc!$C$10,12*($A11-1),4*(PlotControl!$C$6-1),12,1)),AVERAGE(OFFSET(EP_Pore_Conc!$C$10,12*($A11-1),4*(PlotControl!$C$6-1),12,1))) -> 0 | C11: =IF(PlotControl!$B$4 = "Annual Max",MAX(OFFSET(EP_Pore_Conc!$D$10,12*($A11-1),4*(PlotControl!$C$6-1),12,1)),AVERAGE(OFFSET(EP_Pore_Conc!$D$10,12*($A11-1),4*(PlotControl!$C$6-1),12,1))) -> 0 | D11: =IF(PlotControl!$B$4 = "Annual Max",MAX(OFFSET(EP_Pore_Conc!$E$10,12*($A11-1),4*(PlotControl!$C$6-1),12,1)),AVERAGE(OFFSET(EP_Pore_Conc!$E$10,12*($A11-1),4*(PlotControl!$C$6-1),12,1))) -> 0 | E11: =IF(PlotControl!$B$4 = "Annual Max",MAX(OFFSET(EP_Wetland_Conc!$C$10,12*($A11-1),4*(PlotControl!$C$6-1),12,1)),AVERAGE(OFFSET(EP_Wetland_Conc!$C$10,12*($A11-1),4*(PlotControl!$C$6-1),12,1))) -> 0 | F11: =IF(PlotControl!$B$4 = "Annual Max",MAX(OFFSET(EP_Wetland_Conc!$D$10,12*($A11-1),4*(PlotControl!$C$6-1),12,1)),AVERAGE(OFFSET(EP_Wetland_Conc!$D$10,12*($A11-1),4*(PlotControl!$C$6-1),12,1))) -> 0 | G11: =IF(PlotControl!$B$4 = "Annual Max",MAX(OFFSET(EP_Wetland_Conc!$E$10,12*($A11-1),4*(PlotControl!$C$6-1),12,1)),AVERAGE(OFFSET(EP_Wetland_Conc!$E$10,12*($A11-1),4*(PlotControl!$C$6-1),12,1))) -> 0 | H11: =IF(PlotControl!$B$4 = "Annual Max",MAX(OFFSET(WP_Conc!$C$10,12*($A11-1),4*(PlotControl!$C$6-1),12,1)),AVERAGE(OFFSET(WP_Conc!$C$10,12*($A11-1),4*(PlotControl!$C$6-1),12,1))) -> 0.324895 | I11: =IF(PlotControl!$B$4 = "Annual Max",MAX(OFFSET(WP_Conc!$D$10,12*($A11-1),4*(PlotControl!$C$6-1),12,1)),AVERAGE(OFFSET(WP_Conc!$D$10,12*($A11-1),4*(PlotControl!$C$6-1),12,1))) -> 0.34953 | J11: =IF(PlotControl!$B$4 = "Annual Max",MAX(OFFSET(WP_Conc!$E$10,12*($A11-1),4*(PlotControl!$C$6-1),12,1)),AVERAGE(OFFSET(WP_Conc!$E$10,12*($A11-1),4*(PlotControl!$C$6-1),12,1))) -> 0.3706883333 | K11: =IF(PlotControl!$B$4 = "Annual Max",MAX(OFFSET(WWTF_Outflow_Conc!$C$10,12*($A11-1),4*(PlotControl!$C$6-1),12,1)),AVERAGE(OFFSET(WWTF_Outflow_Conc!$C$10,12*($A11-1),4*(PlotControl!$C$6-1),12,1))) -> 0 | L11: =IF(PlotControl!$B$4 = "Annual Max",MAX(OFFSET(WWTF_Outflow_Conc!$D$10,12*($A11-1),4*(PlotControl!$C$6-1),12,1)),AVERAGE(OFFSET(WWTF_Outflow_Conc!$D$10,12*($A11-1),4*(PlotControl!$C$6-1),12,1))) -> 0 | M11: =IF(PlotControl!$B$4 = "Annual Max",MAX(OFFSET(WWTF_Outflow_Conc!$E$10,12*($A11-1),4*(PlotControl!$C$6-1),12,1)),AVERAGE(OFFSET(WWTF_Outflow_Conc!$E$10,12*($A11-1),4*(PlotControl!$C$6-1),12,1))) -> 0 | N11: =IF(PlotControl!$B$4 = "Annual Max",MAX(OFFSET(Cat1SP_Conc!$C$10,12*($A11-1),4*(PlotControl!$C$6-1),12,1)),AVERAGE(OFFSET(Cat1SP_Conc!$C$10,12*($A11-1),4*(PlotControl!$C$6-1),12,1))) -> 0.06856675 | O11: =IF(PlotControl!$B$4 = "Annual Max",MAX(OFFSET(Cat1SP_Conc!$D$10,12*($A11-1),4*(PlotControl!$C$6-1),12,1)),AVERAGE(OFFSET(Cat1SP_Conc!$D$10,12*($A11-1),4*(PlotControl!$C$6-1),12,1))) -> 0.3997625 | P11: =IF(PlotControl!$B$4 = "Annual Max",MAX(OFFSET(Cat1SP_Conc!$E$10,12*($A11-1),4*(PlotControl!$C$6-1),12,1)),AVERAGE(OFFSET(Cat1SP_Conc!$E$10,12*($A11-1),4*(PlotControl!$C$6-1),12,1))) -> 0.399795 | R11: 40.5 | S11: =OFFSET(EP_Pore_Conc!$C$10,ROUND(12*$R11,0),4*(PlotControl!$C$6-1),1,1) -> 0.4 | T11: =OFFSET(EP_Pore_Conc!$D$10,ROUND(12*$R11,0),4*(PlotControl!$C$6-1),1,1) -> 0.4 | U11: =OFFSET(EP_Pore_Conc!$E$10,ROUND(12*$R11,0),4*(PlotControl!$C$6-1),1,1) -> 0.4 | V11: =OFFSET(EP_Wetland_Conc!$C$10,ROUND(12*$R11,0),4*(PlotControl!$C$6-1),1,1) -> 0.19489 | W11: =OFFSET(EP_Wetland_Conc!$D$10,ROUND(12*$R11,0),4*(PlotControl!$C$6-1),1,1) -> 0.4 | X11: =OFFSET(EP_Wetland_Conc!$E$10,ROUND(12*$R11,0),4*(PlotControl!$C$6-1),1,1) -> 0.4 | Y11: =OFFSET(WP_Conc!$C$10,ROUND(12*$R11,0),4*(PlotControl!$C$6-1),1,1) -> 0.38335 | Z11: =OFFSET(WP_Conc!$D$10,ROUND(12*$R11,0),4*(PlotControl!$C$6-1),1,1) -> 0.4 | AA11: =OFFSET(WP_Conc!$E$10,ROUND(12*$R11,0),4*(PlotControl!$C$6-1),1,1) -> 0.4 | AB11: =OFFSET(WWTF_Outflow_Conc!$C$10,ROUND(12*$R11,0),4*(PlotControl!$C$6-1),1,1) -> 0 | AC11: =OFFSET(WWTF_Outflow_Conc!$D$10,ROUND(12*$R11,0),4*(PlotControl!$C$6-1),1,1) -> 0 | AD11: =OFFSET(WWTF_Outflow_Conc!$E$10,ROUND(12*$R11,0),4*(PlotControl!$C$6-1),1,1) -> 0 | AE11: =OFFSET(Cat1SP_Conc!$C$10,ROUND(12*$R11,0),4*(PlotControl!$C$6-1),1,1) -> 0.39999 | AF11: =OFFSET(Cat1SP_Conc!$D$10,ROUND(12*$R11,0),4*(PlotControl!$C$6-1),1,1) -> 0.4 | AG11: =OFFSET(Cat1SP_Conc!$E$10,ROUND(12*$R11,0),4*(PlotControl!$C$6-1),1,1) -> 0.4
A12: 8 | B12: =IF(PlotControl!$B$4 = "Annual Max",MAX(OFFSET(EP_Pore_Conc!$C$10,12*($A12-1),4*(PlotControl!$C$6-1),12,1)),AVERAGE(OFFSET(EP_Pore_Conc!$C$10,12*($A12-1),4*(PlotControl!$C$6-1),12,1))) -> 0 | C12: =IF(PlotControl!$B$4 = "Annual Max",MAX(OFFSET(EP_Pore_Conc!$D$10,12*($A12-1),4*(PlotControl!$C$6-1),12,1)),AVERAGE(OFFSET(EP_Pore_Conc!$D$10,12*($A12-1),4*(PlotControl!$C$6-1),12,1))) -> 0 | D12: =IF(PlotControl!$B$4 = "Annual Max",MAX(OFFSET(EP_Pore_Conc!$E$10,12*($A12-1),4*(PlotControl!$C$6-1),12,1)),AVERAGE(OFFSET(EP_Pore_Conc!$E$10,12*($A12-1),4*(PlotControl!$C$6-1),12,1))) -> 0 | E12: =IF(PlotControl!$B$4 = "Annual Max",MAX(OFFSET(EP_Wetland_Conc!$C$10,12*($A12-1),4*(PlotControl!$C$6-1),12,1)),AVERAGE(OFFSET(EP_Wetland_Conc!$C$10,12*($A12-1),4*(PlotControl!$C$6-1),12,1))) -> 0 | F12: =IF(PlotControl!$B$4 = "Annual Max",MAX(OFFSET(EP_Wetland_Conc!$D$10,12*($A12-1),4*(PlotControl!$C$6-1),12,1)),AVERAGE(OFFSET(EP_Wetland_Conc!$D$10,12*($A12-1),4*(PlotControl!$C$6-1),12,1))) -> 0 | G12: =IF(PlotControl!$B$4 = "Annual Max",MAX(OFFSET(EP_Wetland_Conc!$E$10,12*($A12-1),4*(PlotControl!$C$6-1),12,1)),AVERAGE(OFFSET(EP_Wetland_Conc!$E$10,12*($A12-1),4*(PlotControl!$C$6-1),12,1))) -> 0 | H12: =IF(PlotControl!$B$4 = "Annual Max",MAX(OFFSET(WP_Conc!$C$10,12*($A12-1),4*(PlotControl!$C$6-1),12,1)),AVERAGE(OFFSET(WP_Conc!$C$10,12*($A12-1),4*(PlotControl!$C$6-1),12,1))) -> 0.3217316667 | I12: =IF(PlotControl!$B$4 = "Annual Max",MAX(OFFSET(WP_Conc!$D$10,12*($A12-1),4*(PlotControl!$C$6-1),12,1)),AVERAGE(OFFSET(WP_Conc!$D$10,12*($A12-1),4*(PlotControl!$C$6-1),12,1))) -> 0.3449933333 | J12: =IF(PlotControl!$B$4 = "Annual Max",MAX(OFFSET(WP_Conc!$E$10,12*($A12-1),4*(PlotControl!$C$6-1),12,1)),AVERAGE(OFFSET(WP_Conc!$E$10,12*($A12-1),4*(PlotControl!$C$6-1),12,1))) -> 0.3626791667 | K12: =IF(PlotControl!$B$4 = "Annual Max",MAX(OFFSET(WWTF_Outflow_Conc!$C$10,12*($A12-1),4*(PlotControl!$C$6-1),12,1)),AVERAGE(OFFSET(WWTF_Outflow_Conc!$C$10,12*($A12-1),4*(PlotControl!$C$6-1),12,1))) -> 0 | L12: =IF(PlotControl!$B$4 = "Annual Max",MAX(OFFSET(WWTF_Outflow_Conc!$D$10,12*($A12-1),4*(PlotControl!$C$6-1),12,1)),AVERAGE(OFFSET(WWTF_Outflow_Conc!$D$10,12*($A12-1),4*(PlotControl!$C$6-1),12,1))) -> 0 | M12: =IF(PlotControl!$B$4 = "Annual Max",MAX(OFFSET(WWTF_Outflow_Conc!$E$10,12*($A12-1),4*(PlotControl!$C$6-1),12,1)),AVERAGE(OFFSET(WWTF_Outflow_Conc!$E$10,12*($A12-1),4*(PlotControl!$C$6-1),12,1))) -> 0 | N12: =IF(PlotControl!$B$4 = "Annual Max",MAX(OFFSET(Cat1SP_Conc!$C$10,12*($A12-1),4*(PlotControl!$C$6-1),12,1)),AVERAGE(OFFSET(Cat1SP_Conc!$C$10,12*($A12-1),4*(PlotControl!$C$6-1),12,1))) -> 0.06060783333 | O12: =IF(PlotControl!$B$4 = "Annual Max",MAX(OFFSET(Cat1SP_Conc!$D$10,12*($A12-1),4*(PlotControl!$C$6-1),12,1)),AVERAGE(OFFSET(Cat1SP_Conc!$D$10,12*($A12-1),4*(PlotControl!$C$6-1),12,1))) -> 0.4 | P12: =IF(PlotControl!$B$4 = "Annual Max",MAX(OFFSET(Cat1SP_Conc!$E$10,12*($A12-1),4*(PlotControl!$C$6-1),12,1)),AVERAGE(OFFSET(Cat1SP_Conc!$E$10,12*($A12-1),4*(PlotControl!$C$6-1),12,1))) -> 0.4 | R12: 40.58333333 | S12: =OFFSET(EP_Pore_Conc!$C$10,ROUND(12*$R12,0),4*(PlotControl!$C$6-1),1,1) -> 0.4 | T12: =OFFSET(EP_Pore_Conc!$D$10,ROUND(12*$R12,0),4*(PlotControl!$C$6-1),1,1) -> 0.4 | U12: =OFFSET(EP_Pore_Conc!$E$10,ROUND(12*$R12,0),4*(PlotControl!$C$6-1),1,1) -> 0.4 | V12: =OFFSET(EP_Wetland_Conc!$C$10,ROUND(12*$R12,0),4*(PlotControl!$C$6-1),1,1) -> 0.19611 | W12: =OFFSET(EP_Wetland_Conc!$D$10,ROUND(12*$R12,0),4*(PlotControl!$C$6-1),1,1) -> 0.4 | X12: =OFFSET(EP_Wetland_Conc!$E$10,ROUND(12*$R12,0),4*(PlotControl!$C$6-1),1,1) -> 0.4 | Y12: =OFFSET(WP_Conc!$C$10,ROUND(12*$R12,0),4*(PlotControl!$C$6-1),1,1) -> 0.38336 | Z12: =OFFSET(WP_Conc!$D$10,ROUND(12*$R12,0),4*(PlotControl!$C$6-1),1,1) -> 0.4 | AA12: =OFFSET(WP_Conc!$E$10,ROUND(12*$R12,0),4*(PlotControl!$C$6-1),1,1) -> 0.4 | AB12: =OFFSET(WWTF_Outflow_Conc!$C$10,ROUND(12*$R12,0),4*(PlotControl!$C$6-1),1,1) -> 0 | AC12: =OFFSET(WWTF_Outflow_Conc!$D$10,ROUND(12*$R12,0),4*(PlotControl!$C$6-1),1,1) -> 0 | AD12: =OFFSET(WWTF_Outflow_Conc!$E$10,ROUND(12*$R12,0),4*(PlotControl!$C$6-1),1,1) -> 0 | AE12: =OFFSET(Cat1SP_Conc!$C$10,ROUND(12*$R12,0),4*(PlotControl!$C$6-1),1,1) -> 0.39999 | AF12: =OFFSET(Cat1SP_Conc!$D$10,ROUND(12*$R12,0),4*(PlotControl!$C$6-1),1,1) -> 0.4 | AG12: =OFFSET(Cat1SP_Conc!$E$10,ROUND(12*$R12,0),4*(PlotControl!$C$6-1),1,1) -> 0.4
A13: 9 | B13: =IF(PlotControl!$B$4 = "Annual Max",MAX(OFFSET(EP_Pore_Conc!$C$10,12*($A13-1),4*(PlotControl!$C$6-1),12,1)),AVERAGE(OFFSET(EP_Pore_Conc!$C$10,12*($A13-1),4*(PlotControl!$C$6-1),12,1))) -> 0 | C13: =IF(PlotControl!$B$4 = "Annual Max",MAX(OFFSET(EP_Pore_Conc!$D$10,12*($A13-1),4*(PlotControl!$C$6-1),12,1)),AVERAGE(OFFSET(EP_Pore_Conc!$D$10,12*($A13-1),4*(PlotControl!$C$6-1),12,1))) -> 0 | D13: =IF(PlotControl!$B$4 = "Annual Max",MAX(OFFSET(EP_Pore_Conc!$E$10,12*($A13-1),4*(PlotControl!$C$6-1),12,1)),AVERAGE(OFFSET(EP_Pore_Conc!$E$10,12*($A13-1),4*(PlotControl!$C$6-1),12,1))) -> 0 | E13: =IF(PlotControl!$B$4 = "Annual Max",MAX(OFFSET(EP_Wetland_Conc!$C$10,12*($A13-1),4*(PlotControl!$C$6-1),12,1)),AVERAGE(OFFSET(EP_Wetland_Conc!$C$10,12*($A13-1),4*(PlotControl!$C$6-1),12,1))) -> 0 | F13: =IF(PlotControl!$B$4 = "Annual Max",MAX(OFFSET(EP_Wetland_Conc!$D$10,12*($A13-1),4*(PlotControl!$C$6-1),12,1)),AVERAGE(OFFSET(EP_Wetland_Conc!$D$10,12*($A13-1),4*(PlotControl!$C$6-1),12,1))) -> 0 | G13: =IF(PlotControl!$B$4 = "Annual Max",MAX(OFFSET(EP_Wetland_Conc!$E$10,12*($A13-1),4*(PlotControl!$C$6-1),12,1)),AVERAGE(OFFSET(EP_Wetland_Conc!$E$10,12*($A13-1),4*(PlotControl!$C$6-1),12,1))) -> 0 | H13: =IF(PlotControl!$B$4 = "Annual Max",MAX(OFFSET(WP_Conc!$C$10,12*($A13-1),4*(PlotControl!$C$6-1),12,1)),AVERAGE(OFFSET(WP_Conc!$C$10,12*($A13-1),4*(PlotControl!$C$6-1),12,1))) -> 0.3169908333 | I13: =IF(PlotControl!$B$4 = "Annual Max",MAX(OFFSET(WP_Conc!$D$10,12*($A13-1),4*(PlotControl!$C$6-1),12,1)),AVERAGE(OFFSET(WP_Conc!$D$10,12*($A13-1),4*(PlotControl!$C$6-1),12,1))) -> 0.34112 | J13: =IF(PlotControl!$B$4 = "Annual Max",MAX(OFFSET(WP_Conc!$E$10,12*($A13-1),4*(PlotControl!$C$6-1),12,1)),AVERAGE(OFFSET(WP_Conc!$E$10,12*($A13-1),4*(PlotControl!$C$6-1),12,1))) -> 0.3581916667 | K13: =IF(PlotControl!$B$4 = "Annual Max",MAX(OFFSET(WWTF_Outflow_Conc!$C$10,12*($A13-1),4*(PlotControl!$C$6-1),12,1)),AVERAGE(OFFSET(WWTF_Outflow_Conc!$C$10,12*($A13-1),4*(PlotControl!$C$6-1),12,1))) -> 0 | L13: =IF(PlotControl!$B$4 = "Annual Max",MAX(OFFSET(WWTF_Outflow_Conc!$D$10,12*($A13-1),4*(PlotControl!$C$6-1),12,1)),AVERAGE(OFFSET(WWTF_Outflow_Conc!$D$10,12*($A13-1),4*(PlotControl!$C$6-1),12,1))) -> 0 | M13: =IF(PlotControl!$B$4 = "Annual Max",MAX(OFFSET(WWTF_Outflow_Conc!$E$10,12*($A13-1),4*(PlotControl!$C$6-1),12,1)),AVERAGE(OFFSET(WWTF_Outflow_Conc!$E$10,12*($A13-1),4*(PlotControl!$C$6-1),12,1))) -> 0 | N13: =IF(PlotControl!$B$4 = "Annual Max",MAX(OFFSET(Cat1SP_Conc!$C$10,12*($A13-1),4*(PlotControl!$C$6-1),12,1)),AVERAGE(OFFSET(Cat1SP_Conc!$C$10,12*($A13-1),4*(PlotControl!$C$6-1),12,1))) -> 0.06941591667 | O13: =IF(PlotControl!$B$4 = "Annual Max",MAX(OFFSET(Cat1SP_Conc!$D$10,12*($A13-1),4*(PlotControl!$C$6-1),12,1)),AVERAGE(OFFSET(Cat1SP_Conc!$D$10,12*($A13-1),4*(PlotControl!$C$6-1),12,1))) -> 0.4 | P13: =IF(PlotControl!$B$4 = "Annual Max",MAX(OFFSET(Cat1SP_Conc!$E$10,12*($A13-1),4*(PlotControl!$C$6-1),12,1)),AVERAGE(OFFSET(Cat1SP_Conc!$E$10,12*($A13-1),4*(PlotControl!$C$6-1),12,1))) -> 0.4 | R13: 40.66666667 | S13: =OFFSET(EP_Pore_Conc!$C$10,ROUND(12*$R13,0),4*(PlotControl!$C$6-1),1,1) -> 0.4 | T13: =OFFSET(EP_Pore_Conc!$D$10,ROUND(12*$R13,0),4*(PlotControl!$C$6-1),1,1) -> 0.4 | U13: =OFFSET(EP_Pore_Conc!$E$10,ROUND(12*$R13,0),4*(PlotControl!$C$6-1),1,1) -> 0.4 | V13: =OFFSET(EP_Wetland_Conc!$C$10,ROUND(12*$R13,0),4*(PlotControl!$C$6-1),1,1) -> 0.19548 | W13: =OFFSET(EP_Wetland_Conc!$D$10,ROUND(12*$R13,0),4*(PlotControl!$C$6-1),1,1) -> 0.4 | X13: =OFFSET(EP_Wetland_Conc!$E$10,ROUND(12*$R13,0),4*(PlotControl!$C$6-1),1,1) -> 0.4 | Y13: =OFFSET(WP_Conc!$C$10,ROUND(12*$R13,0),4*(PlotControl!$C$6-1),1,1) -> 0.38306 | Z13: =OFFSET(WP_Conc!$D$10,ROUND(12*$R13,0),4*(PlotControl!$C$6-1),1,1) -> 0.4 | AA13: =OFFSET(WP_Conc!$E$10,ROUND(12*$R13,0),4*(PlotControl!$C$6-1),1,1) -> 0.4 | AB13: =OFFSET(WWTF_Outflow_Conc!$C$10,ROUND(12*$R13,0),4*(PlotControl!$C$6-1),1,1) -> 0 | AC13: =OFFSET(WWTF_Outflow_Conc!$D$10,ROUND(12*$R13,0),4*(PlotControl!$C$6-1),1,1) -> 0 | AD13: =OFFSET(WWTF_Outflow_Conc!$E$10,ROUND(12*$R13,0),4*(PlotControl!$C$6-1),1,1) -> 0 | AE13: =OFFSET(Cat1SP_Conc!$C$10,ROUND(12*$R13,0),4*(PlotControl!$C$6-1),1,1) -> 0.39999 | AF13: =OFFSET(Cat1SP_Conc!$D$10,ROUND(12*$R13,0),4*(PlotControl!$C$6-1),1,1) -> 0.4 | AG13: =OFFSET(Cat1SP_Conc!$E$10,ROUND(12*$R13,0),4*(PlotControl!$C$6-1),1,1) -> 0.4
A14: 10 | B14: =IF(PlotControl!$B$4 = "Annual Max",MAX(OFFSET(EP_Pore_Conc!$C$10,12*($A14-1),4*(PlotControl!$C$6-1),12,1)),AVERAGE(OFFSET(EP_Pore_Conc!$C$10,12*($A14-1),4*(PlotControl!$C$6-1),12,1))) -> 0 | C14: =IF(PlotControl!$B$4 = "Annual Max",MAX(OFFSET(EP_Pore_Conc!$D$10,12*($A14-1),4*(PlotControl!$C$6-1),12,1)),AVERAGE(OFFSET(EP_Pore_Conc!$D$10,12*($A14-1),4*(PlotControl!$C$6-1),12,1))) -> 0 | D14: =IF(PlotControl!$B$4 = "Annual Max",MAX(OFFSET(EP_Pore_Conc!$E$10,12*($A14-1),4*(PlotControl!$C$6-1),12,1)),AVERAGE(OFFSET(EP_Pore_Conc!$E$10,12*($A14-1),4*(PlotControl!$C$6-1),12,1))) -> 0 | E14: =IF(PlotControl!$B$4 = "Annual Max",MAX(OFFSET(EP_Wetland_Conc!$C$10,12*($A14-1),4*(PlotControl!$C$6-1),12,1)),AVERAGE(OFFSET(EP_Wetland_Conc!$C$10,12*($A14-1),4*(PlotControl!$C$6-1),12,1))) -> 0 | F14: =IF(PlotControl!$B$4 = "Annual Max",MAX(OFFSET(EP_Wetland_Conc!$D$10,12*($A14-1),4*(PlotControl!$C$6-1),12,1)),AVERAGE(OFFSET(EP_Wetland_Conc!$D$10,12*($A14-1),4*(PlotControl!$C$6-1),12,1))) -> 0 | G14: =IF(PlotControl!$B$4 = "Annual Max",MAX(OFFSET(EP_Wetland_Conc!$E$10,12*($A14-1),4*(PlotControl!$C$6-1),12,1)),AVERAGE(OFFSET(EP_Wetland_Conc!$E$10,12*($A14-1),4*(PlotControl!$C$6-1),12,1))) -> 0 | H14: =IF(PlotControl!$B$4 = "Annual Max",MAX(OFFSET(WP_Conc!$C$10,12*($A14-1),4*(PlotControl!$C$6-1),12,1)),AVERAGE(OFFSET(WP_Conc!$C$10,12*($A14-1),4*(PlotControl!$C$6-1),12,1))) -> 0.3119958333 | I14: =IF(PlotControl!$B$4 = "Annual Max",MAX(OFFSET(WP_Conc!$D$10,12*($A14-1),4*(PlotControl!$C$6-1),12,1)),AVERAGE(OFFSET(WP_Conc!$D$10,12*($A14-1),4*(PlotControl!$C$6-1),12,1))) -> 0.3377016667 | J14: =IF(PlotControl!$B$4 = "Annual Max",MAX(OFFSET(WP_Conc!$E$10,12*($A14-1),4*(PlotControl!$C$6-1),12,1)),AVERAGE(OFFSET(WP_Conc!$E$10,12*($A14-1),4*(PlotControl!$C$6-1),12,1))) -> 0.3533133333 | K14: =IF(PlotControl!$B$4 = "Annual Max",MAX(OFFSET(WWTF_Outflow_Conc!$C$10,12*($A14-1),4*(PlotControl!$C$6-1),12,1)),AVERAGE(OFFSET(WWTF_Outflow_Conc!$C$10,12*($A14-1),4*(PlotControl!$C$6-1),12,1))) -> 0 | L14: =IF(PlotControl!$B$4 = "Annual Max",MAX(OFFSET(WWTF_Outflow_Conc!$D$10,12*($A14-1),4*(PlotControl!$C$6-1),12,1)),AVERAGE(OFFSET(WWTF_Outflow_Conc!$D$10,12*($A14-1),4*(PlotControl!$C$6-1),12,1))) -> 0 | M14: =IF(PlotControl!$B$4 = "Annual Max",MAX(OFFSET(WWTF_Outflow_Conc!$E$10,12*($A14-1),4*(PlotControl!$C$6-1),12,1)),AVERAGE(OFFSET(WWTF_Outflow_Conc!$E$10,12*($A14-1),4*(PlotControl!$C$6-1),12,1))) -> 0 | N14: =IF(PlotControl!$B$4 = "Annual Max",MAX(OFFSET(Cat1SP_Conc!$C$10,12*($A14-1),4*(PlotControl!$C$6-1),12,1)),AVERAGE(OFFSET(Cat1SP_Conc!$C$10,12*($A14-1),4*(PlotControl!$C$6-1),12,1))) -> 0.07264125 | O14: =IF(PlotControl!$B$4 = "Annual Max",MAX(OFFSET(Cat1SP_Conc!$D$10,12*($A14-1),4*(PlotControl!$C$6-1),12,1)),AVERAGE(OFFSET(Cat1SP_Conc!$D$10,12*($A14-1),4*(PlotControl!$C$6-1),12,1))) -> 0.4 | P14: =IF(PlotControl!$B$4 = "Annual Max",MAX(OFFSET(Cat1SP_Conc!$E$10,12*($A14-1),4*(PlotControl!$C$6-1),12,1)),AVERAGE(OFFSET(Cat1SP_Conc!$E$10,12*($A14-1),4*(PlotControl!$C$6-1),12,1))) -> 0.4 | R14: 40.75 | S14: =OFFSET(EP_Pore_Conc!$C$10,ROUND(12*$R14,0),4*(PlotControl!$C$6-1),1,1) -> 0.4 | T14: =OFFSET(EP_Pore_Conc!$D$10,ROUND(12*$R14,0),4*(PlotControl!$C$6-1),1,1) -> 0.4 | U14: =OFFSET(EP_Pore_Conc!$E$10,ROUND(12*$R14,0),4*(PlotControl!$C$6-1),1,1) -> 0.4 | V14: =OFFSET(EP_Wetland_Conc!$C$10,ROUND(12*$R14,0),4*(PlotControl!$C$6-1),1,1) -> 0.19005 | W14: =OFFSET(EP_Wetland_Conc!$D$10,ROUND(12*$R14,0),4*(PlotControl!$C$6-1),1,1) -> 0.4 | X14: =OFFSET(EP_Wetland_Conc!$E$10,ROUND(12*$R14,0),4*(PlotControl!$C$6-1),1,1) -> 0.4 | Y14: =OFFSET(WP_Conc!$C$10,ROUND(12*$R14,0),4*(PlotControl!$C$6-1),1,1) -> 0.38247 | Z14: =OFFSET(WP_Conc!$D$10,ROUND(12*$R14,0),4*(PlotControl!$C$6-1),1,1) -> 0.4 | AA14: =OFFSET(WP_Conc!$E$10,ROUND(12*$R14,0),4*(PlotControl!$C$6-1),1,1) -> 0.4 | AB14: =OFFSET(WWTF_Outflow_Conc!$C$10,ROUND(12*$R14,0),4*(PlotControl!$C$6-1),1,1) -> 0 | AC14: =OFFSET(WWTF_Outflow_Conc!$D$10,ROUND(12*$R14,0),4*(PlotControl!$C$6-1),1,1) -> 0 | AD14: =OFFSET(WWTF_Outflow_Conc!$E$10,ROUND(12*$R14,0),4*(PlotControl!$C$6-1),1,1) -> 0 | AE14: =OFFSET(Cat1SP_Conc!$C$10,ROUND(12*$R14,0),4*(PlotControl!$C$6-1),1,1) -> 0.39999 | AF14: =OFFSET(Cat1SP_Conc!$D$10,ROUND(12*$R14,0),4*(PlotControl!$C$6-1),1,1) -> 0.4 | AG14: =OFFSET(Cat1SP_Conc!$E$10,ROUND(12*$R14,0),4*(PlotControl!$C$6-1),1,1) -> 0.4
A15: 11 | B15: =IF(PlotControl!$B$4 = "Annual Max",MAX(OFFSET(EP_Pore_Conc!$C$10,12*($A15-1),4*(PlotControl!$C$6-1),12,1)),AVERAGE(OFFSET(EP_Pore_Conc!$C$10,12*($A15-1),4*(PlotControl!$C$6-1),12,1))) -> 0.1666666667 | C15: =IF(PlotControl!$B$4 = "Annual Max",MAX(OFFSET(EP_Pore_Conc!$D$10,12*($A15-1),4*(PlotControl!$C$6-1),12,1)),AVERAGE(OFFSET(EP_Pore_Conc!$D$10,12*($A15-1),4*(PlotControl!$C$6-1),12,1))) -> 0.1666666667 | D15: =IF(PlotControl!$B$4 = "Annual Max",MAX(OFFSET(EP_Pore_Conc!$E$10,12*($A15-1),4*(PlotControl!$C$6-1),12,1)),AVERAGE(OFFSET(EP_Pore_Conc!$E$10,12*($A15-1),4*(PlotControl!$C$6-1),12,1))) -> 0.1666666667 | E15: =IF(PlotControl!$B$4 = "Annual Max",MAX(OFFSET(EP_Wetland_Conc!$C$10,12*($A15-1),4*(PlotControl!$C$6-1),12,1)),AVERAGE(OFFSET(EP_Wetland_Conc!$C$10,12*($A15-1),4*(PlotControl!$C$6-1),12,1))) -> 0 | F15: =IF(PlotControl!$B$4 = "Annual Max",MAX(OFFSET(EP_Wetland_Conc!$D$10,12*($A15-1),4*(PlotControl!$C$6-1),12,1)),AVERAGE(OFFSET(EP_Wetland_Conc!$D$10,12*($A15-1),4*(PlotControl!$C$6-1),12,1))) -> 0 | G15: =IF(PlotControl!$B$4 = "Annual Max",MAX(OFFSET(EP_Wetland_Conc!$E$10,12*($A15-1),4*(PlotControl!$C$6-1),12,1)),AVERAGE(OFFSET(EP_Wetland_Conc!$E$10,12*($A15-1),4*(PlotControl!$C$6-1),12,1))) -> 3.559583333e-09 | H15: =IF(PlotControl!$B$4 = "Annual Max",MAX(OFFSET(WP_Conc!$C$10,12*($A15-1),4*(PlotControl!$C$6-1),12,1)),AVERAGE(OFFSET(WP_Conc!$C$10,12*($A15-1),4*(PlotControl!$C$6-1),12,1))) -> 0.3107783333 | I15: =IF(PlotControl!$B$4 = "Annual Max",MAX(OFFSET(WP_Conc!$D$10,12*($A15-1),4*(PlotControl!$C$6-1),12,1)),AVERAGE(OFFSET(WP_Conc!$D$10,12*($A15-1),4*(PlotControl!$C$6-1),12,1))) -> 0.34093 | J15: =IF(PlotControl!$B$4 = "Annual Max",MAX(OFFSET(WP_Conc!$E$10,12*($A15-1),4*(PlotControl!$C$6-1),12,1)),AVERAGE(OFFSET(WP_Conc!$E$10,12*($A15-1),4*(PlotControl!$C$6-1),12,1))) -> 0.3545083333 | K15: =IF(PlotControl!$B$4 = "Annual Max",MAX(OFFSET(WWTF_Outflow_Conc!$C$10,12*($A15-1),4*(PlotControl!$C$6-1),12,1)),AVERAGE(OFFSET(WWTF_Outflow_Conc!$C$10,12*($A15-1),4*(PlotControl!$C$6-1),12,1))) -> 0 | L15: =IF(PlotControl!$B$4 = "Annual Max",MAX(OFFSET(WWTF_Outflow_Conc!$D$10,12*($A15-1),4*(PlotControl!$C$6-1),12,1)),AVERAGE(OFFSET(WWTF_Outflow_Conc!$D$10,12*($A15-1),4*(PlotControl!$C$6-1),12,1))) -> 0 | M15: =IF(PlotControl!$B$4 = "Annual Max",MAX(OFFSET(WWTF_Outflow_Conc!$E$10,12*($A15-1),4*(PlotControl!$C$6-1),12,1)),AVERAGE(OFFSET(WWTF_Outflow_Conc!$E$10,12*($A15-1),4*(PlotControl!$C$6-1),12,1))) -> 0 | N15: =IF(PlotControl!$B$4 = "Annual Max",MAX(OFFSET(Cat1SP_Conc!$C$10,12*($A15-1),4*(PlotControl!$C$6-1),12,1)),AVERAGE(OFFSET(Cat1SP_Conc!$C$10,12*($A15-1),4*(PlotControl!$C$6-1),12,1))) -> 0.08486041667 | O15: =IF(PlotControl!$B$4 = "Annual Max",MAX(OFFSET(Cat1SP_Conc!$D$10,12*($A15-1),4*(PlotControl!$C$6-1),12,1)),AVERAGE(OFFSET(Cat1SP_Conc!$D$10,12*($A15-1),4*(PlotControl!$C$6-1),12,1))) -> 0.4 | P15: =IF(PlotControl!$B$4 = "Annual Max",MAX(OFFSET(Cat1SP_Conc!$E$10,12*($A15-1),4*(PlotControl!$C$6-1),12,1)),AVERAGE(OFFSET(Cat1SP_Conc!$E$10,12*($A15-1),4*(PlotControl!$C$6-1),12,1))) -> 0.4 | R15: 40.83333333 | S15: =OFFSET(EP_Pore_Conc!$C$10,ROUND(12*$R15,0),4*(PlotControl!$C$6-1),1,1) -> 0.4 | T15: =OFFSET(EP_Pore_Conc!$D$10,ROUND(12*$R15,0),4*(PlotControl!$C$6-1),1,1) -> 0.4 | U15: =OFFSET(EP_Pore_Conc!$E$10,ROUND(12*$R15,0),4*(PlotControl!$C$6-1),1,1) -> 0.4 | V15: =OFFSET(EP_Wetland_Conc!$C$10,ROUND(12*$R15,0),4*(PlotControl!$C$6-1),1,1) -> 0.18328 | W15: =OFFSET(EP_Wetland_Conc!$D$10,ROUND(12*$R15,0),4*(PlotControl!$C$6-1),1,1) -> 0.4 | X15: =OFFSET(EP_Wetland_Conc!$E$10,ROUND(12*$R15,0),4*(PlotControl!$C$6-1),1,1) -> 0.4 | Y15: =OFFSET(WP_Conc!$C$10,ROUND(12*$R15,0),4*(PlotControl!$C$6-1),1,1) -> 0.38202 | Z15: =OFFSET(WP_Conc!$D$10,ROUND(12*$R15,0),4*(PlotControl!$C$6-1),1,1) -> 0.4 | AA15: =OFFSET(WP_Conc!$E$10,ROUND(12*$R15,0),4*(PlotControl!$C$6-1),1,1) -> 0.4 | AB15: =OFFSET(WWTF_Outflow_Conc!$C$10,ROUND(12*$R15,0),4*(PlotControl!$C$6-1),1,1) -> 0 | AC15: =OFFSET(WWTF_Outflow_Conc!$D$10,ROUND(12*$R15,0),4*(PlotControl!$C$6-1),1,1) -> 0 | AD15: =OFFSET(WWTF_Outflow_Conc!$E$10,ROUND(12*$R15,0),4*(PlotControl!$C$6-1),1,1) -> 0 | AE15: =OFFSET(Cat1SP_Conc!$C$10,ROUND(12*$R15,0),4*(PlotControl!$C$6-1),1,1) -> 0.39999 | AF15: =OFFSET(Cat1SP_Conc!$D$10,ROUND(12*$R15,0),4*(PlotControl!$C$6-1),1,1) -> 0.4 | AG15: =OFFSET(Cat1SP_Conc!$E$10,ROUND(12*$R15,0),4*(PlotControl!$C$6-1),1,1) -> 0.4
A16: 12 | B16: =IF(PlotControl!$B$4 = "Annual Max",MAX(OFFSET(EP_Pore_Conc!$C$10,12*($A16-1),4*(PlotControl!$C$6-1),12,1)),AVERAGE(OFFSET(EP_Pore_Conc!$C$10,12*($A16-1),4*(PlotControl!$C$6-1),12,1))) -> 0.4 | C16: =IF(PlotControl!$B$4 = "Annual Max",MAX(OFFSET(EP_Pore_Conc!$D$10,12*($A16-1),4*(PlotControl!$C$6-1),12,1)),AVERAGE(OFFSET(EP_Pore_Conc!$D$10,12*($A16-1),4*(PlotControl!$C$6-1),12,1))) -> 0.4 | D16: =IF(PlotControl!$B$4 = "Annual Max",MAX(OFFSET(EP_Pore_Conc!$E$10,12*($A16-1),4*(PlotControl!$C$6-1),12,1)),AVERAGE(OFFSET(EP_Pore_Conc!$E$10,12*($A16-1),4*(PlotControl!$C$6-1),12,1))) -> 0.4 | E16: =IF(PlotControl!$B$4 = "Annual Max",MAX(OFFSET(EP_Wetland_Conc!$C$10,12*($A16-1),4*(PlotControl!$C$6-1),12,1)),AVERAGE(OFFSET(EP_Wetland_Conc!$C$10,12*($A16-1),4*(PlotControl!$C$6-1),12,1))) -> 4.728808333e-09 | F16: =IF(PlotControl!$B$4 = "Annual Max",MAX(OFFSET(EP_Wetland_Conc!$D$10,12*($A16-1),4*(PlotControl!$C$6-1),12,1)),AVERAGE(OFFSET(EP_Wetland_Conc!$D$10,12*($A16-1),4*(PlotControl!$C$6-1),12,1))) -> 2.6563275e-08 | G16: =IF(PlotControl!$B$4 = "Annual Max",MAX(OFFSET(EP_Wetland_Conc!$E$10,12*($A16-1),4*(PlotControl!$C$6-1),12,1)),AVERAGE(OFFSET(EP_Wetland_Conc!$E$10,12*($A16-1),4*(PlotControl!$C$6-1),12,1))) -> 7.097083333e-08 | H16: =IF(PlotControl!$B$4 = "Annual Max",MAX(OFFSET(WP_Conc!$C$10,12*($A16-1),4*(PlotControl!$C$6-1),12,1)),AVERAGE(OFFSET(WP_Conc!$C$10,12*($A16-1),4*(PlotControl!$C$6-1),12,1))) -> 0.3022933333 | I16: =IF(PlotControl!$B$4 = "Annual Max",MAX(OFFSET(WP_Conc!$D$10,12*($A16-1),4*(PlotControl!$C$6-1),12,1)),AVERAGE(OFFSET(WP_Conc!$D$10,12*($A16-1),4*(PlotControl!$C$6-1),12,1))) -> 0.339885 | J16: =IF(PlotControl!$B$4 = "Annual Max",MAX(OFFSET(WP_Conc!$E$10,12*($A16-1),4*(PlotControl!$C$6-1),12,1)),AVERAGE(OFFSET(WP_Conc!$E$10,12*($A16-1),4*(PlotControl!$C$6-1),12,1))) -> 0.3529541667 | K16: =IF(PlotControl!$B$4 = "Annual Max",MAX(OFFSET(WWTF_Outflow_Conc!$C$10,12*($A16-1),4*(PlotControl!$C$6-1),12,1)),AVERAGE(OFFSET(WWTF_Outflow_Conc!$C$10,12*($A16-1),4*(PlotControl!$C$6-1),12,1))) -> 0 | L16: =IF(PlotControl!$B$4 = "Annual Max",MAX(OFFSET(WWTF_Outflow_Conc!$D$10,12*($A16-1),4*(PlotControl!$C$6-1),12,1)),AVERAGE(OFFSET(WWTF_Outflow_Conc!$D$10,12*($A16-1),4*(PlotControl!$C$6-1),12,1))) -> 0 | M16: =IF(PlotControl!$B$4 = "Annual Max",MAX(OFFSET(WWTF_Outflow_Conc!$E$10,12*($A16-1),4*(PlotControl!$C$6-1),12,1)),AVERAGE(OFFSET(WWTF_Outflow_Conc!$E$10,12*($A16-1),4*(PlotControl!$C$6-1),12,1))) -> 0 | N16: =IF(PlotControl!$B$4 = "Annual Max",MAX(OFFSET(Cat1SP_Conc!$C$10,12*($A16-1),4*(PlotControl!$C$6-1),12,1)),AVERAGE(OFFSET(Cat1SP_Conc!$C$10,12*($A16-1),4*(PlotControl!$C$6-1),12,1))) -> 0.1123219167 | O16: =IF(PlotControl!$B$4 = "Annual Max",MAX(OFFSET(Cat1SP_Conc!$D$10,12*($A16-1),4*(PlotControl!$C$6-1),12,1)),AVERAGE(OFFSET(Cat1SP_Conc!$D$10,12*($A16-1),4*(PlotControl!$C$6-1),12,1))) -> 0.4 | P16: =IF(PlotControl!$B$4 = "Annual Max",MAX(OFFSET(Cat1SP_Conc!$E$10,12*($A16-1),4*(PlotControl!$C$6-1),12,1)),AVERAGE(OFFSET(Cat1SP_Conc!$E$10,12*($A16-1),4*(PlotControl!$C$6-1),12,1))) -> 0.4 | R16: 40.91666667 | S16: =OFFSET(EP_Pore_Conc!$C$10,ROUND(12*$R16,0),4*(PlotControl!$C$6-1),1,1) -> 0.4 | T16: =OFFSET(EP_Pore_Conc!$D$10,ROUND(12*$R16,0),4*(PlotControl!$C$6-1),1,1) -> 0.4 | U16: =OFFSET(EP_Pore_Conc!$E$10,ROUND(12*$R16,0),4*(PlotControl!$C$6-1),1,1) -> 0.4 | V16: =OFFSET(EP_Wetland_Conc!$C$10,ROUND(12*$R16,0),4*(PlotControl!$C$6-1),1,1) -> 0.18496 | W16: =OFFSET(EP_Wetland_Conc!$D$10,ROUND(12*$R16,0),4*(PlotControl!$C$6-1),1,1) -> 0.4 | X16: =OFFSET(EP_Wetland_Conc!$E$10,ROUND(12*$R16,0),4*(PlotControl!$C$6-1),1,1) -> 0.4 | Y16: =OFFSET(WP_Conc!$C$10,ROUND(12*$R16,0),4*(PlotControl!$C$6-1),1,1) -> 0.38198 | Z16: =OFFSET(WP_Conc!$D$10,ROUND(12*$R16,0),4*(PlotControl!$C$6-1),1,1) -> 0.4 | AA16: =OFFSET(WP_Conc!$E$10,ROUND(12*$R16,0),4*(PlotControl!$C$6-1),1,1) -> 0.4 | AB16: =OFFSET(WWTF_Outflow_Conc!$C$10,ROUND(12*$R16,0),4*(PlotControl!$C$6-1),1,1) -> 0 | AC16: =OFFSET(WWTF_Outflow_Conc!$D$10,ROUND(12*$R16,0),4*(PlotControl!$C$6-1),1,1) -> 0 | AD16: =OFFSET(WWTF_Outflow_Conc!$E$10,ROUND(12*$R16,0),4*(PlotControl!$C$6-1),1,1) -> 0 | AE16: =OFFSET(Cat1SP_Conc!$C$10,ROUND(12*$R16,0),4*(PlotControl!$C$6-1),1,1) -> 0.39999 | AF16: =OFFSET(Cat1SP_Conc!$D$10,ROUND(12*$R16,0),4*(PlotControl!$C$6-1),1,1) -> 0.4 | AG16: =OFFSET(Cat1SP_Conc!$E$10,ROUND(12*$R16,0),4*(PlotControl!$C$6-1),1,1) -> 0.4
A17: 13 | B17: =IF(PlotControl!$B$4 = "Annual Max",MAX(OFFSET(EP_Pore_Conc!$C$10,12*($A17-1),4*(PlotControl!$C$6-1),12,1)),AVERAGE(OFFSET(EP_Pore_Conc!$C$10,12*($A17-1),4*(PlotControl!$C$6-1),12,1))) -> 0.4 | C17: =IF(PlotControl!$B$4 = "Annual Max",MAX(OFFSET(EP_Pore_Conc!$D$10,12*($A17-1),4*(PlotControl!$C$6-1),12,1)),AVERAGE(OFFSET(EP_Pore_Conc!$D$10,12*($A17-1),4*(PlotControl!$C$6-1),12,1))) -> 0.4 | D17: =IF(PlotControl!$B$4 = "Annual Max",MAX(OFFSET(EP_Pore_Conc!$E$10,12*($A17-1),4*(PlotControl!$C$6-1),12,1)),AVERAGE(OFFSET(EP_Pore_Conc!$E$10,12*($A17-1),4*(PlotControl!$C$6-1),12,1))) -> 0.4 | E17: =IF(PlotControl!$B$4 = "Annual Max",MAX(OFFSET(EP_Wetland_Conc!$C$10,12*($A17-1),4*(PlotControl!$C$6-1),12,1)),AVERAGE(OFFSET(EP_Wetland_Conc!$C$10,12*($A17-1),4*(PlotControl!$C$6-1),12,1))) -> 2.126025e-08 | F17: =IF(PlotControl!$B$4 = "Annual Max",MAX(OFFSET(EP_Wetland_Conc!$D$10,12*($A17-1),4*(PlotControl!$C$6-1),12,1)),AVERAGE(OFFSET(EP_Wetland_Conc!$D$10,12*($A17-1),4*(PlotControl!$C$6-1),12,1))) -> 6.635908333e-08 | G17: =IF(PlotControl!$B$4 = "Annual Max",MAX(OFFSET(EP_Wetland_Conc!$E$10,12*($A17-1),4*(PlotControl!$C$6-1),12,1)),AVERAGE(OFFSET(EP_Wetland_Conc!$E$10,12*($A17-1),4*(PlotControl!$C$6-1),12,1))) -> 1.508366667e-07 | H17: =IF(PlotControl!$B$4 = "Annual Max",MAX(OFFSET(WP_Conc!$C$10,12*($A17-1),4*(PlotControl!$C$6-1),12,1)),AVERAGE(OFFSET(WP_Conc!$C$10,12*($A17-1),4*(PlotControl!$C$6-1),12,1))) -> 0.28433525 | I17: =IF(PlotControl!$B$4 = "Annual Max",MAX(OFFSET(WP_Conc!$D$10,12*($A17-1),4*(PlotControl!$C$6-1),12,1)),AVERAGE(OFFSET(WP_Conc!$D$10,12*($A17-1),4*(PlotControl!$C$6-1),12,1))) -> 0.3376175 | J17: =IF(PlotControl!$B$4 = "Annual Max",MAX(OFFSET(WP_Conc!$E$10,12*($A17-1),4*(PlotControl!$C$6-1),12,1)),AVERAGE(OFFSET(WP_Conc!$E$10,12*($A17-1),4*(PlotControl!$C$6-1),12,1))) -> 0.3513475 | K17: =IF(PlotControl!$B$4 = "Annual Max",MAX(OFFSET(WWTF_Outflow_Conc!$C$10,12*($A17-1),4*(PlotControl!$C$6-1),12,1)),AVERAGE(OFFSET(WWTF_Outflow_Conc!$C$10,12*($A17-1),4*(PlotControl!$C$6-1),12,1))) -> 0 | L17: =IF(PlotControl!$B$4 = "Annual Max",MAX(OFFSET(WWTF_Outflow_Conc!$D$10,12*($A17-1),4*(PlotControl!$C$6-1),12,1)),AVERAGE(OFFSET(WWTF_Outflow_Conc!$D$10,12*($A17-1),4*(PlotControl!$C$6-1),12,1))) -> 0 | M17: =IF(PlotControl!$B$4 = "Annual Max",MAX(OFFSET(WWTF_Outflow_Conc!$E$10,12*($A17-1),4*(PlotControl!$C$6-1),12,1)),AVERAGE(OFFSET(WWTF_Outflow_Conc!$E$10,12*($A17-1),4*(PlotControl!$C$6-1),12,1))) -> 0 | N17: =IF(PlotControl!$B$4 = "Annual Max",MAX(OFFSET(Cat1SP_Conc!$C$10,12*($A17-1),4*(PlotControl!$C$6-1),12,1)),AVERAGE(OFFSET(Cat1SP_Conc!$C$10,12*($A17-1),4*(PlotControl!$C$6-1),12,1))) -> 0.09498608333 | O17: =IF(PlotControl!$B$4 = "Annual Max",MAX(OFFSET(Cat1SP_Conc!$D$10,12*($A17-1),4*(PlotControl!$C$6-1),12,1)),AVERAGE(OFFSET(Cat1SP_Conc!$D$10,12*($A17-1),4*(PlotControl!$C$6-1),12,1))) -> 0.4 | P17: =IF(PlotControl!$B$4 = "Annual Max",MAX(OFFSET(Cat1SP_Conc!$E$10,12*($A17-1),4*(PlotControl!$C$6-1),12,1)),AVERAGE(OFFSET(Cat1SP_Conc!$E$10,12*($A17-1),4*(PlotControl!$C$6-1),12,1))) -> 0.4 | R17: 41 | S17: =OFFSET(EP_Pore_Conc!$C$10,ROUND(12*$R17,0),4*(PlotControl!$C$6-1),1,1) -> 0.4 | T17: =OFFSET(EP_Pore_Conc!$D$10,ROUND(12*$R17,0),4*(PlotControl!$C$6-1),1,1) -> 0.4 | U17: =OFFSET(EP_Pore_Conc!$E$10,ROUND(12*$R17,0),4*(PlotControl!$C$6-1),1,1) -> 0.4 | V17: =OFFSET(EP_Wetland_Conc!$C$10,ROUND(12*$R17,0),4*(PlotControl!$C$6-1),1,1) -> 0.1862 | W17: =OFFSET(EP_Wetland_Conc!$D$10,ROUND(12*$R17,0),4*(PlotControl!$C$6-1),1,1) -> 0.4 | X17: =OFFSET(EP_Wetland_Conc!$E$10,ROUND(12*$R17,0),4*(PlotControl!$C$6-1),1,1) -> 0.4 | Y17: =OFFSET(WP_Conc!$C$10,ROUND(12*$R17,0),4*(PlotControl!$C$6-1),1,1) -> 0.38198 | Z17: =OFFSET(WP_Conc!$D$10,ROUND(12*$R17,0),4*(PlotControl!$C$6-1),1,1) -> 0.4 | AA17: =OFFSET(WP_Conc!$E$10,ROUND(12*$R17,0),4*(PlotControl!$C$6-1),1,1) -> 0.4 | AB17: =OFFSET(WWTF_Outflow_Conc!$C$10,ROUND(12*$R17,0),4*(PlotControl!$C$6-1),1,1) -> 0 | AC17: =OFFSET(WWTF_Outflow_Conc!$D$10,ROUND(12*$R17,0),4*(PlotControl!$C$6-1),1,1) -> 0 | AD17: =OFFSET(WWTF_Outflow_Conc!$E$10,ROUND(12*$R17,0),4*(PlotControl!$C$6-1),1,1) -> 0 | AE17: =OFFSET(Cat1SP_Conc!$C$10,ROUND(12*$R17,0),4*(PlotControl!$C$6-1),1,1) -> 0.39999 | AF17: =OFFSET(Cat1SP_Conc!$D$10,ROUND(12*$R17,0),4*(PlotControl!$C$6-1),1,1) -> 0.4 | AG17: =OFFSET(Cat1SP_Conc!$E$10,ROUND(12*$R17,0),4*(PlotControl!$C$6-1),1,1) -> 0.4
A18: 14 | B18: =IF(PlotControl!$B$4 = "Annual Max",MAX(OFFSET(EP_Pore_Conc!$C$10,12*($A18-1),4*(PlotControl!$C$6-1),12,1)),AVERAGE(OFFSET(EP_Pore_Conc!$C$10,12*($A18-1),4*(PlotControl!$C$6-1),12,1))) -> 0.4 | C18: =IF(PlotControl!$B$4 = "Annual Max",MAX(OFFSET(EP_Pore_Conc!$D$10,12*($A18-1),4*(PlotControl!$C$6-1),12,1)),AVERAGE(OFFSET(EP_Pore_Conc!$D$10,12*($A18-1),4*(PlotControl!$C$6-1),12,1))) -> 0.4 | D18: =IF(PlotControl!$B$4 = "Annual Max",MAX(OFFSET(EP_Pore_Conc!$E$10,12*($A18-1),4*(PlotControl!$C$6-1),12,1)),AVERAGE(OFFSET(EP_Pore_Conc!$E$10,12*($A18-1),4*(PlotControl!$C$6-1),12,1))) -> 0.4 | E18: =IF(PlotControl!$B$4 = "Annual Max",MAX(OFFSET(EP_Wetland_Conc!$C$10,12*($A18-1),4*(PlotControl!$C$6-1),12,1)),AVERAGE(OFFSET(EP_Wetland_Conc!$C$10,12*($A18-1),4*(PlotControl!$C$6-1),12,1))) -> 4.002191667e-08 | F18: =IF(PlotControl!$B$4 = "Annual Max",MAX(OFFSET(EP_Wetland_Conc!$D$10,12*($A18-1),4*(PlotControl!$C$6-1),12,1)),AVERAGE(OFFSET(EP_Wetland_Conc!$D$10,12*($A18-1),4*(PlotControl!$C$6-1),12,1))) -> 1.0467725e-07 | G18: =IF(PlotControl!$B$4 = "Annual Max",MAX(OFFSET(EP_Wetland_Conc!$E$10,12*($A18-1),4*(PlotControl!$C$6-1),12,1)),AVERAGE(OFFSET(EP_Wetland_Conc!$E$10,12*($A18-1),4*(PlotControl!$C$6-1),12,1))) -> 2.116125e-07 | H18: =IF(PlotControl!$B$4 = "Annual Max",MAX(OFFSET(WP_Conc!$C$10,12*($A18-1),4*(PlotControl!$C$6-1),12,1)),AVERAGE(OFFSET(WP_Conc!$C$10,12*($A18-1),4*(PlotControl!$C$6-1),12,1))) -> 0.2623631667 | I18: =IF(PlotControl!$B$4 = "Annual Max",MAX(OFFSET(WP_Conc!$D$10,12*($A18-1),4*(PlotControl!$C$6-1),12,1)),AVERAGE(OFFSET(WP_Conc!$D$10,12*($A18-1),4*(PlotControl!$C$6-1),12,1))) -> 0.33616 | J18: =IF(PlotControl!$B$4 = "Annual Max",MAX(OFFSET(WP_Conc!$E$10,12*($A18-1),4*(PlotControl!$C$6-1),12,1)),AVERAGE(OFFSET(WP_Conc!$E$10,12*($A18-1),4*(PlotControl!$C$6-1),12,1))) -> 0.3495266667 | K18: =IF(PlotControl!$B$4 = "Annual Max",MAX(OFFSET(WWTF_Outflow_Conc!$C$10,12*($A18-1),4*(PlotControl!$C$6-1),12,1)),AVERAGE(OFFSET(WWTF_Outflow_Conc!$C$10,12*($A18-1),4*(PlotControl!$C$6-1),12,1))) -> 0 | L18: =IF(PlotControl!$B$4 = "Annual Max",MAX(OFFSET(WWTF_Outflow_Conc!$D$10,12*($A18-1),4*(PlotControl!$C$6-1),12,1)),AVERAGE(OFFSET(WWTF_Outflow_Conc!$D$10,12*($A18-1),4*(PlotControl!$C$6-1),12,1))) -> 0 | M18: =IF(PlotControl!$B$4 = "Annual Max",MAX(OFFSET(WWTF_Outflow_Conc!$E$10,12*($A18-1),4*(PlotControl!$C$6-1),12,1)),AVERAGE(OFFSET(WWTF_Outflow_Conc!$E$10,12*($A18-1),4*(PlotControl!$C$6-1),12,1))) -> 0 | N18: =IF(PlotControl!$B$4 = "Annual Max",MAX(OFFSET(Cat1SP_Conc!$C$10,12*($A18-1),4*(PlotControl!$C$6-1),12,1)),AVERAGE(OFFSET(Cat1SP_Conc!$C$10,12*($A18-1),4*(PlotControl!$C$6-1),12,1))) -> 0.1124233333 | O18: =IF(PlotControl!$B$4 = "Annual Max",MAX(OFFSET(Cat1SP_Conc!$D$10,12*($A18-1),4*(PlotControl!$C$6-1),12,1)),AVERAGE(OFFSET(Cat1SP_Conc!$D$10,12*($A18-1),4*(PlotControl!$C$6-1),12,1))) -> 0.39996 | P18: =IF(PlotControl!$B$4 = "Annual Max",MAX(OFFSET(Cat1SP_Conc!$E$10,12*($A18-1),4*(PlotControl!$C$6-1),12,1)),AVERAGE(OFFSET(Cat1SP_Conc!$E$10,12*($A18-1),4*(PlotControl!$C$6-1),12,1))) -> 0.3999616667 | R18: 41.08333333 | S18: =OFFSET(EP_Pore_Conc!$C$10,ROUND(12*$R18,0),4*(PlotControl!$C$6-1),1,1) -> 0.4 | T18: =OFFSET(EP_Pore_Conc!$D$10,ROUND(12*$R18,0),4*(PlotControl!$C$6-1),1,1) -> 0.4 | U18: =OFFSET(EP_Pore_Conc!$E$10,ROUND(12*$R18,0),4*(PlotControl!$C$6-1),1,1) -> 0.4 | V18: =OFFSET(EP_Wetland_Conc!$C$10,ROUND(12*$R18,0),4*(PlotControl!$C$6-1),1,1) -> 0.18741 | W18: =OFFSET(EP_Wetland_Conc!$D$10,ROUND(12*$R18,0),4*(PlotControl!$C$6-1),1,1) -> 0.4 | X18: =OFFSET(EP_Wetland_Conc!$E$10,ROUND(12*$R18,0),4*(PlotControl!$C$6-1),1,1) -> 0.4 | Y18: =OFFSET(WP_Conc!$C$10,ROUND(12*$R18,0),4*(PlotControl!$C$6-1),1,1) -> 0.38207 | Z18: =OFFSET(WP_Conc!$D$10,ROUND(12*$R18,0),4*(PlotControl!$C$6-1),1,1) -> 0.4 | AA18: =OFFSET(WP_Conc!$E$10,ROUND(12*$R18,0),4*(PlotControl!$C$6-1),1,1) -> 0.4 | AB18: =OFFSET(WWTF_Outflow_Conc!$C$10,ROUND(12*$R18,0),4*(PlotControl!$C$6-1),1,1) -> 0 | AC18: =OFFSET(WWTF_Outflow_Conc!$D$10,ROUND(12*$R18,0),4*(PlotControl!$C$6-1),1,1) -> 0 | AD18: =OFFSET(WWTF_Outflow_Conc!$E$10,ROUND(12*$R18,0),4*(PlotControl!$C$6-1),1,1) -> 0 | AE18: =OFFSET(Cat1SP_Conc!$C$10,ROUND(12*$R18,0),4*(PlotControl!$C$6-1),1,1) -> 0.39999 | AF18: =OFFSET(Cat1SP_Conc!$D$10,ROUND(12*$R18,0),4*(PlotControl!$C$6-1),1,1) -> 0.4 | AG18: =OFFSET(Cat1SP_Conc!$E$10,ROUND(12*$R18,0),4*(PlotControl!$C$6-1),1,1) -> 0.4
A19: 15 | B19: =IF(PlotControl!$B$4 = "Annual Max",MAX(OFFSET(EP_Pore_Conc!$C$10,12*($A19-1),4*(PlotControl!$C$6-1),12,1)),AVERAGE(OFFSET(EP_Pore_Conc!$C$10,12*($A19-1),4*(PlotControl!$C$6-1),12,1))) -> 0.4 | C19: =IF(PlotControl!$B$4 = "Annual Max",MAX(OFFSET(EP_Pore_Conc!$D$10,12*($A19-1),4*(PlotControl!$C$6-1),12,1)),AVERAGE(OFFSET(EP_Pore_Conc!$D$10,12*($A19-1),4*(PlotControl!$C$6-1),12,1))) -> 0.4 | D19: =IF(PlotControl!$B$4 = "Annual Max",MAX(OFFSET(EP_Pore_Conc!$E$10,12*($A19-1),4*(PlotControl!$C$6-1),12,1)),AVERAGE(OFFSET(EP_Pore_Conc!$E$10,12*($A19-1),4*(PlotControl!$C$6-1),12,1))) -> 0.4 | E19: =IF(PlotControl!$B$4 = "Annual Max",MAX(OFFSET(EP_Wetland_Conc!$C$10,12*($A19-1),4*(PlotControl!$C$6-1),12,1)),AVERAGE(OFFSET(EP_Wetland_Conc!$C$10,12*($A19-1),4*(PlotControl!$C$6-1),12,1))) -> 5.566225e-08 | F19: =IF(PlotControl!$B$4 = "Annual Max",MAX(OFFSET(EP_Wetland_Conc!$D$10,12*($A19-1),4*(PlotControl!$C$6-1),12,1)),AVERAGE(OFFSET(EP_Wetland_Conc!$D$10,12*($A19-1),4*(PlotControl!$C$6-1),12,1))) -> 1.4044e-07 | G19: =IF(PlotControl!$B$4 = "Annual Max",MAX(OFFSET(EP_Wetland_Conc!$E$10,12*($A19-1),4*(PlotControl!$C$6-1),12,1)),AVERAGE(OFFSET(EP_Wetland_Conc!$E$10,12*($A19-1),4*(PlotControl!$C$6-1),12,1))) -> 2.708541667e-07 | H19: =IF(PlotControl!$B$4 = "Annual Max",MAX(OFFSET(WP_Conc!$C$10,12*($A19-1),4*(PlotControl!$C$6-1),12,1)),AVERAGE(OFFSET(WP_Conc!$C$10,12*($A19-1),4*(PlotControl!$C$6-1),12,1))) -> 0.25606225 | I19: =IF(PlotControl!$B$4 = "Annual Max",MAX(OFFSET(WP_Conc!$D$10,12*($A19-1),4*(PlotControl!$C$6-1),12,1)),AVERAGE(OFFSET(WP_Conc!$D$10,12*($A19-1),4*(PlotControl!$C$6-1),12,1))) -> 0.3353566667 | J19: =IF(PlotControl!$B$4 = "Annual Max",MAX(OFFSET(WP_Conc!$E$10,12*($A19-1),4*(PlotControl!$C$6-1),12,1)),AVERAGE(OFFSET(WP_Conc!$E$10,12*($A19-1),4*(PlotControl!$C$6-1),12,1))) -> 0.3483508333 | K19: =IF(PlotControl!$B$4 = "Annual Max",MAX(OFFSET(WWTF_Outflow_Conc!$C$10,12*($A19-1),4*(PlotControl!$C$6-1),12,1)),AVERAGE(OFFSET(WWTF_Outflow_Conc!$C$10,12*($A19-1),4*(PlotControl!$C$6-1),12,1))) -> 0 | L19: =IF(PlotControl!$B$4 = "Annual Max",MAX(OFFSET(WWTF_Outflow_Conc!$D$10,12*($A19-1),4*(PlotControl!$C$6-1),12,1)),AVERAGE(OFFSET(WWTF_Outflow_Conc!$D$10,12*($A19-1),4*(PlotControl!$C$6-1),12,1))) -> 0 | M19: =IF(PlotControl!$B$4 = "Annual Max",MAX(OFFSET(WWTF_Outflow_Conc!$E$10,12*($A19-1),4*(PlotControl!$C$6-1),12,1)),AVERAGE(OFFSET(WWTF_Outflow_Conc!$E$10,12*($A19-1),4*(PlotControl!$C$6-1),12,1))) -> 0 | N19: =IF(PlotControl!$B$4 = "Annual Max",MAX(OFFSET(Cat1SP_Conc!$C$10,12*($A19-1),4*(PlotControl!$C$6-1),12,1)),AVERAGE(OFFSET(Cat1SP_Conc!$C$10,12*($A19-1),4*(PlotControl!$C$6-1),12,1))) -> 0.09843341667 | O19: =IF(PlotControl!$B$4 = "Annual Max",MAX(OFFSET(Cat1SP_Conc!$D$10,12*($A19-1),4*(PlotControl!$C$6-1),12,1)),AVERAGE(OFFSET(Cat1SP_Conc!$D$10,12*($A19-1),4*(PlotControl!$C$6-1),12,1))) -> 0.3999525 | P19: =IF(PlotControl!$B$4 = "Annual Max",MAX(OFFSET(Cat1SP_Conc!$E$10,12*($A19-1),4*(PlotControl!$C$6-1),12,1)),AVERAGE(OFFSET(Cat1SP_Conc!$E$10,12*($A19-1),4*(PlotControl!$C$6-1),12,1))) -> 0.3999558333 | R19: 41.16666667 | S19: =OFFSET(EP_Pore_Conc!$C$10,ROUND(12*$R19,0),4*(PlotControl!$C$6-1),1,1) -> 0.4 | T19: =OFFSET(EP_Pore_Conc!$D$10,ROUND(12*$R19,0),4*(PlotControl!$C$6-1),1,1) -> 0.4 | U19: =OFFSET(EP_Pore_Conc!$E$10,ROUND(12*$R19,0),4*(PlotControl!$C$6-1),1,1) -> 0.4 | V19: =OFFSET(EP_Wetland_Conc!$C$10,ROUND(12*$R19,0),4*(PlotControl!$C$6-1),1,1) -> 0.18853 | W19: =OFFSET(EP_Wetland_Conc!$D$10,ROUND(12*$R19,0),4*(PlotControl!$C$6-1),1,1) -> 0.4 | X19: =OFFSET(EP_Wetland_Conc!$E$10,ROUND(12*$R19,0),4*(PlotControl!$C$6-1),1,1) -> 0.4 | Y19: =OFFSET(WP_Conc!$C$10,ROUND(12*$R19,0),4*(PlotControl!$C$6-1),1,1) -> 0.38204 | Z19: =OFFSET(WP_Conc!$D$10,ROUND(12*$R19,0),4*(PlotControl!$C$6-1),1,1) -> 0.4 | AA19: =OFFSET(WP_Conc!$E$10,ROUND(12*$R19,0),4*(PlotControl!$C$6-1),1,1) -> 0.4 | AB19: =OFFSET(WWTF_Outflow_Conc!$C$10,ROUND(12*$R19,0),4*(PlotControl!$C$6-1),1,1) -> 0 | AC19: =OFFSET(WWTF_Outflow_Conc!$D$10,ROUND(12*$R19,0),4*(PlotControl!$C$6-1),1,1) -> 0 | AD19: =OFFSET(WWTF_Outflow_Conc!$E$10,ROUND(12*$R19,0),4*(PlotControl!$C$6-1),1,1) -> 0 | AE19: =OFFSET(Cat1SP_Conc!$C$10,ROUND(12*$R19,0),4*(PlotControl!$C$6-1),1,1) -> 0.39999 | AF19: =OFFSET(Cat1SP_Conc!$D$10,ROUND(12*$R19,0),4*(PlotControl!$C$6-1),1,1) -> 0.4 | AG19: =OFFSET(Cat1SP_Conc!$E$10,ROUND(12*$R19,0),4*(PlotControl!$C$6-1),1,1) -> 0.4
A20: 16 | B20: =IF(PlotControl!$B$4 = "Annual Max",MAX(OFFSET(EP_Pore_Conc!$C$10,12*($A20-1),4*(PlotControl!$C$6-1),12,1)),AVERAGE(OFFSET(EP_Pore_Conc!$C$10,12*($A20-1),4*(PlotControl!$C$6-1),12,1))) -> 0.4 | C20: =IF(PlotControl!$B$4 = "Annual Max",MAX(OFFSET(EP_Pore_Conc!$D$10,12*($A20-1),4*(PlotControl!$C$6-1),12,1)),AVERAGE(OFFSET(EP_Pore_Conc!$D$10,12*($A20-1),4*(PlotControl!$C$6-1),12,1))) -> 0.4 | D20: =IF(PlotControl!$B$4 = "Annual Max",MAX(OFFSET(EP_Pore_Conc!$E$10,12*($A20-1),4*(PlotControl!$C$6-1),12,1)),AVERAGE(OFFSET(EP_Pore_Conc!$E$10,12*($A20-1),4*(PlotControl!$C$6-1),12,1))) -> 0.4 | E20: =IF(PlotControl!$B$4 = "Annual Max",MAX(OFFSET(EP_Wetland_Conc!$C$10,12*($A20-1),4*(PlotControl!$C$6-1),12,1)),AVERAGE(OFFSET(EP_Wetland_Conc!$C$10,12*($A20-1),4*(PlotControl!$C$6-1),12,1))) -> 6.639408333e-08 | F20: =IF(PlotControl!$B$4 = "Annual Max",MAX(OFFSET(EP_Wetland_Conc!$D$10,12*($A20-1),4*(PlotControl!$C$6-1),12,1)),AVERAGE(OFFSET(EP_Wetland_Conc!$D$10,12*($A20-1),4*(PlotControl!$C$6-1),12,1))) -> 1.674425e-07 | G20: =IF(PlotControl!$B$4 = "Annual Max",MAX(OFFSET(EP_Wetland_Conc!$E$10,12*($A20-1),4*(PlotControl!$C$6-1),12,1)),AVERAGE(OFFSET(EP_Wetland_Conc!$E$10,12*($A20-1),4*(PlotControl!$C$6-1),12,1))) -> 3.206966667e-07 | H20: =IF(PlotControl!$B$4 = "Annual Max",MAX(OFFSET(WP_Conc!$C$10,12*($A20-1),4*(PlotControl!$C$6-1),12,1)),AVERAGE(OFFSET(WP_Conc!$C$10,12*($A20-1),4*(PlotControl!$C$6-1),12,1))) -> 0.2558043333 | I20: =IF(PlotControl!$B$4 = "Annual Max",MAX(OFFSET(WP_Conc!$D$10,12*($A20-1),4*(PlotControl!$C$6-1),12,1)),AVERAGE(OFFSET(WP_Conc!$D$10,12*($A20-1),4*(PlotControl!$C$6-1),12,1))) -> 0.3342958333 | J20: =IF(PlotControl!$B$4 = "Annual Max",MAX(OFFSET(WP_Conc!$E$10,12*($A20-1),4*(PlotControl!$C$6-1),12,1)),AVERAGE(OFFSET(WP_Conc!$E$10,12*($A20-1),4*(PlotControl!$C$6-1),12,1))) -> 0.3468233333 | K20: =IF(PlotControl!$B$4 = "Annual Max",MAX(OFFSET(WWTF_Outflow_Conc!$C$10,12*($A20-1),4*(PlotControl!$C$6-1),12,1)),AVERAGE(OFFSET(WWTF_Outflow_Conc!$C$10,12*($A20-1),4*(PlotControl!$C$6-1),12,1))) -> 0 | L20: =IF(PlotControl!$B$4 = "Annual Max",MAX(OFFSET(WWTF_Outflow_Conc!$D$10,12*($A20-1),4*(PlotControl!$C$6-1),12,1)),AVERAGE(OFFSET(WWTF_Outflow_Conc!$D$10,12*($A20-1),4*(PlotControl!$C$6-1),12,1))) -> 0 | M20: =IF(PlotControl!$B$4 = "Annual Max",MAX(OFFSET(WWTF_Outflow_Conc!$E$10,12*($A20-1),4*(PlotControl!$C$6-1),12,1)),AVERAGE(OFFSET(WWTF_Outflow_Conc!$E$10,12*($A20-1),4*(PlotControl!$C$6-1),12,1))) -> 0 | N20: =IF(PlotControl!$B$4 = "Annual Max",MAX(OFFSET(Cat1SP_Conc!$C$10,12*($A20-1),4*(PlotControl!$C$6-1),12,1)),AVERAGE(OFFSET(Cat1SP_Conc!$C$10,12*($A20-1),4*(PlotControl!$C$6-1),12,1))) -> 0.08969566667 | O20: =IF(PlotControl!$B$4 = "Annual Max",MAX(OFFSET(Cat1SP_Conc!$D$10,12*($A20-1),4*(PlotControl!$C$6-1),12,1)),AVERAGE(OFFSET(Cat1SP_Conc!$D$10,12*($A20-1),4*(PlotControl!$C$6-1),12,1))) -> 0.3999508333 | P20: =IF(PlotControl!$B$4 = "Annual Max",MAX(OFFSET(Cat1SP_Conc!$E$10,12*($A20-1),4*(PlotControl!$C$6-1),12,1)),AVERAGE(OFFSET(Cat1SP_Conc!$E$10,12*($A20-1),4*(PlotControl!$C$6-1),12,1))) -> 0.3999533333 | R20: 41.25 | S20: =OFFSET(EP_Pore_Conc!$C$10,ROUND(12*$R20,0),4*(PlotControl!$C$6-1),1,1) -> 0.4 | T20: =OFFSET(EP_Pore_Conc!$D$10,ROUND(12*$R20,0),4*(PlotControl!$C$6-1),1,1) -> 0.4 | U20: =OFFSET(EP_Pore_Conc!$E$10,ROUND(12*$R20,0),4*(PlotControl!$C$6-1),1,1) -> 0.4 | V20: =OFFSET(EP_Wetland_Conc!$C$10,ROUND(12*$R20,0),4*(PlotControl!$C$6-1),1,1) -> 0.1898 | W20: =OFFSET(EP_Wetland_Conc!$D$10,ROUND(12*$R20,0),4*(PlotControl!$C$6-1),1,1) -> 0.4 | X20: =OFFSET(EP_Wetland_Conc!$E$10,ROUND(12*$R20,0),4*(PlotControl!$C$6-1),1,1) -> 0.4 | Y20: =OFFSET(WP_Conc!$C$10,ROUND(12*$R20,0),4*(PlotControl!$C$6-1),1,1) -> 0.38214 | Z20: =OFFSET(WP_Conc!$D$10,ROUND(12*$R20,0),4*(PlotControl!$C$6-1),1,1) -> 0.4 | AA20: =OFFSET(WP_Conc!$E$10,ROUND(12*$R20,0),4*(PlotControl!$C$6-1),1,1) -> 0.4 | AB20: =OFFSET(WWTF_Outflow_Conc!$C$10,ROUND(12*$R20,0),4*(PlotControl!$C$6-1),1,1) -> 0 | AC20: =OFFSET(WWTF_Outflow_Conc!$D$10,ROUND(12*$R20,0),4*(PlotControl!$C$6-1),1,1) -> 0 | AD20: =OFFSET(WWTF_Outflow_Conc!$E$10,ROUND(12*$R20,0),4*(PlotControl!$C$6-1),1,1) -> 0 | AE20: =OFFSET(Cat1SP_Conc!$C$10,ROUND(12*$R20,0),4*(PlotControl!$C$6-1),1,1) -> 0.39999 | AF20: =OFFSET(Cat1SP_Conc!$D$10,ROUND(12*$R20,0),4*(PlotControl!$C$6-1),1,1) -> 0.4 | AG20: =OFFSET(Cat1SP_Conc!$E$10,ROUND(12*$R20,0),4*(PlotControl!$C$6-1),1,1) -> 0.4
A21: 17 | B21: =IF(PlotControl!$B$4 = "Annual Max",MAX(OFFSET(EP_Pore_Conc!$C$10,12*($A21-1),4*(PlotControl!$C$6-1),12,1)),AVERAGE(OFFSET(EP_Pore_Conc!$C$10,12*($A21-1),4*(PlotControl!$C$6-1),12,1))) -> 0.4 | C21: =IF(PlotControl!$B$4 = "Annual Max",MAX(OFFSET(EP_Pore_Conc!$D$10,12*($A21-1),4*(PlotControl!$C$6-1),12,1)),AVERAGE(OFFSET(EP_Pore_Conc!$D$10,12*($A21-1),4*(PlotControl!$C$6-1),12,1))) -> 0.4 | D21: =IF(PlotControl!$B$4 = "Annual Max",MAX(OFFSET(EP_Pore_Conc!$E$10,12*($A21-1),4*(PlotControl!$C$6-1),12,1)),AVERAGE(OFFSET(EP_Pore_Conc!$E$10,12*($A21-1),4*(PlotControl!$C$6-1),12,1))) -> 0.4 | E21: =IF(PlotControl!$B$4 = "Annual Max",MAX(OFFSET(EP_Wetland_Conc!$C$10,12*($A21-1),4*(PlotControl!$C$6-1),12,1)),AVERAGE(OFFSET(EP_Wetland_Conc!$C$10,12*($A21-1),4*(PlotControl!$C$6-1),12,1))) -> 6.7033e-08 | F21: =IF(PlotControl!$B$4 = "Annual Max",MAX(OFFSET(EP_Wetland_Conc!$D$10,12*($A21-1),4*(PlotControl!$C$6-1),12,1)),AVERAGE(OFFSET(EP_Wetland_Conc!$D$10,12*($A21-1),4*(PlotControl!$C$6-1),12,1))) -> 1.6892e-07 | G21: =IF(PlotControl!$B$4 = "Annual Max",MAX(OFFSET(EP_Wetland_Conc!$E$10,12*($A21-1),4*(PlotControl!$C$6-1),12,1)),AVERAGE(OFFSET(EP_Wetland_Conc!$E$10,12*($A21-1),4*(PlotControl!$C$6-1),12,1))) -> 3.2305e-07 | H21: =IF(PlotControl!$B$4 = "Annual Max",MAX(OFFSET(WP_Conc!$C$10,12*($A21-1),4*(PlotControl!$C$6-1),12,1)),AVERAGE(OFFSET(WP_Conc!$C$10,12*($A21-1),4*(PlotControl!$C$6-1),12,1))) -> 0.25410625 | I21: =IF(PlotControl!$B$4 = "Annual Max",MAX(OFFSET(WP_Conc!$D$10,12*($A21-1),4*(PlotControl!$C$6-1),12,1)),AVERAGE(OFFSET(WP_Conc!$D$10,12*($A21-1),4*(PlotControl!$C$6-1),12,1))) -> 0.3339133333 | J21: =IF(PlotControl!$B$4 = "Annual Max",MAX(OFFSET(WP_Conc!$E$10,12*($A21-1),4*(PlotControl!$C$6-1),12,1)),AVERAGE(OFFSET(WP_Conc!$E$10,12*($A21-1),4*(PlotControl!$C$6-1),12,1))) -> 0.3468316667 | K21: =IF(PlotControl!$B$4 = "Annual Max",MAX(OFFSET(WWTF_Outflow_Conc!$C$10,12*($A21-1),4*(PlotControl!$C$6-1),12,1)),AVERAGE(OFFSET(WWTF_Outflow_Conc!$C$10,12*($A21-1),4*(PlotControl!$C$6-1),12,1))) -> 0 | L21: =IF(PlotControl!$B$4 = "Annual Max",MAX(OFFSET(WWTF_Outflow_Conc!$D$10,12*($A21-1),4*(PlotControl!$C$6-1),12,1)),AVERAGE(OFFSET(WWTF_Outflow_Conc!$D$10,12*($A21-1),4*(PlotControl!$C$6-1),12,1))) -> 0 | M21: =IF(PlotControl!$B$4 = "Annual Max",MAX(OFFSET(WWTF_Outflow_Conc!$E$10,12*($A21-1),4*(PlotControl!$C$6-1),12,1)),AVERAGE(OFFSET(WWTF_Outflow_Conc!$E$10,12*($A21-1),4*(PlotControl!$C$6-1),12,1))) -> 0 | N21: =IF(PlotControl!$B$4 = "Annual Max",MAX(OFFSET(Cat1SP_Conc!$C$10,12*($A21-1),4*(PlotControl!$C$6-1),12,1)),AVERAGE(OFFSET(Cat1SP_Conc!$C$10,12*($A21-1),4*(PlotControl!$C$6-1),12,1))) -> 0.1064771667 | O21: =IF(PlotControl!$B$4 = "Annual Max",MAX(OFFSET(Cat1SP_Conc!$D$10,12*($A21-1),4*(PlotControl!$C$6-1),12,1)),AVERAGE(OFFSET(Cat1SP_Conc!$D$10,12*($A21-1),4*(PlotControl!$C$6-1),12,1))) -> 0.3999491667 | P21: =IF(PlotControl!$B$4 = "Annual Max",MAX(OFFSET(Cat1SP_Conc!$E$10,12*($A21-1),4*(PlotControl!$C$6-1),12,1)),AVERAGE(OFFSET(Cat1SP_Conc!$E$10,12*($A21-1),4*(PlotControl!$C$6-1),12,1))) -> 0.3999516667 | R21: 41.33333333 | S21: =OFFSET(EP_Pore_Conc!$C$10,ROUND(12*$R21,0),4*(PlotControl!$C$6-1),1,1) -> 0.4 | T21: =OFFSET(EP_Pore_Conc!$D$10,ROUND(12*$R21,0),4*(PlotControl!$C$6-1),1,1) -> 0.4 | U21: =OFFSET(EP_Pore_Conc!$E$10,ROUND(12*$R21,0),4*(PlotControl!$C$6-1),1,1) -> 0.4 | V21: =OFFSET(EP_Wetland_Conc!$C$10,ROUND(12*$R21,0),4*(PlotControl!$C$6-1),1,1) -> 0.17007 | W21: =OFFSET(EP_Wetland_Conc!$D$10,ROUND(12*$R21,0),4*(PlotControl!$C$6-1),1,1) -> 0.4 | X21: =OFFSET(EP_Wetland_Conc!$E$10,ROUND(12*$R21,0),4*(PlotControl!$C$6-1),1,1) -> 0.4 | Y21: =OFFSET(WP_Conc!$C$10,ROUND(12*$R21,0),4*(PlotControl!$C$6-1),1,1) -> 0.38315 | Z21: =OFFSET(WP_Conc!$D$10,ROUND(12*$R21,0),4*(PlotControl!$C$6-1),1,1) -> 0.4 | AA21: =OFFSET(WP_Conc!$E$10,ROUND(12*$R21,0),4*(PlotControl!$C$6-1),1,1) -> 0.4 | AB21: =OFFSET(WWTF_Outflow_Conc!$C$10,ROUND(12*$R21,0),4*(PlotControl!$C$6-1),1,1) -> 0 | AC21: =OFFSET(WWTF_Outflow_Conc!$D$10,ROUND(12*$R21,0),4*(PlotControl!$C$6-1),1,1) -> 0 | AD21: =OFFSET(WWTF_Outflow_Conc!$E$10,ROUND(12*$R21,0),4*(PlotControl!$C$6-1),1,1) -> 0 | AE21: =OFFSET(Cat1SP_Conc!$C$10,ROUND(12*$R21,0),4*(PlotControl!$C$6-1),1,1) -> 0.39999 | AF21: =OFFSET(Cat1SP_Conc!$D$10,ROUND(12*$R21,0),4*(PlotControl!$C$6-1),1,1) -> 0.4 | AG21: =OFFSET(Cat1SP_Conc!$E$10,ROUND(12*$R21,0),4*(PlotControl!$C$6-1),1,1) -> 0.4
A22: 18 | B22: =IF(PlotControl!$B$4 = "Annual Max",MAX(OFFSET(EP_Pore_Conc!$C$10,12*($A22-1),4*(PlotControl!$C$6-1),12,1)),AVERAGE(OFFSET(EP_Pore_Conc!$C$10,12*($A22-1),4*(PlotControl!$C$6-1),12,1))) -> 0.4 | C22: =IF(PlotControl!$B$4 = "Annual Max",MAX(OFFSET(EP_Pore_Conc!$D$10,12*($A22-1),4*(PlotControl!$C$6-1),12,1)),AVERAGE(OFFSET(EP_Pore_Conc!$D$10,12*($A22-1),4*(PlotControl!$C$6-1),12,1))) -> 0.4 | D22: =IF(PlotControl!$B$4 = "Annual Max",MAX(OFFSET(EP_Pore_Conc!$E$10,12*($A22-1),4*(PlotControl!$C$6-1),12,1)),AVERAGE(OFFSET(EP_Pore_Conc!$E$10,12*($A22-1),4*(PlotControl!$C$6-1),12,1))) -> 0.4 | E22: =IF(PlotControl!$B$4 = "Annual Max",MAX(OFFSET(EP_Wetland_Conc!$C$10,12*($A22-1),4*(PlotControl!$C$6-1),12,1)),AVERAGE(OFFSET(EP_Wetland_Conc!$C$10,12*($A22-1),4*(PlotControl!$C$6-1),12,1))) -> 6.7033e-08 | F22: =IF(PlotControl!$B$4 = "Annual Max",MAX(OFFSET(EP_Wetland_Conc!$D$10,12*($A22-1),4*(PlotControl!$C$6-1),12,1)),AVERAGE(OFFSET(EP_Wetland_Conc!$D$10,12*($A22-1),4*(PlotControl!$C$6-1),12,1))) -> 1.6892e-07 | G22: =IF(PlotControl!$B$4 = "Annual Max",MAX(OFFSET(EP_Wetland_Conc!$E$10,12*($A22-1),4*(PlotControl!$C$6-1),12,1)),AVERAGE(OFFSET(EP_Wetland_Conc!$E$10,12*($A22-1),4*(PlotControl!$C$6-1),12,1))) -> 3.2305e-07 | H22: =IF(PlotControl!$B$4 = "Annual Max",MAX(OFFSET(WP_Conc!$C$10,12*($A22-1),4*(PlotControl!$C$6-1),12,1)),AVERAGE(OFFSET(WP_Conc!$C$10,12*($A22-1),4*(PlotControl!$C$6-1),12,1))) -> 0.2560740833 | I22: =IF(PlotControl!$B$4 = "Annual Max",MAX(OFFSET(WP_Conc!$D$10,12*($A22-1),4*(PlotControl!$C$6-1),12,1)),AVERAGE(OFFSET(WP_Conc!$D$10,12*($A22-1),4*(PlotControl!$C$6-1),12,1))) -> 0.3332916667 | J22: =IF(PlotControl!$B$4 = "Annual Max",MAX(OFFSET(WP_Conc!$E$10,12*($A22-1),4*(PlotControl!$C$6-1),12,1)),AVERAGE(OFFSET(WP_Conc!$E$10,12*($A22-1),4*(PlotControl!$C$6-1),12,1))) -> 0.3464083333 | K22: =IF(PlotControl!$B$4 = "Annual Max",MAX(OFFSET(WWTF_Outflow_Conc!$C$10,12*($A22-1),4*(PlotControl!$C$6-1),12,1)),AVERAGE(OFFSET(WWTF_Outflow_Conc!$C$10,12*($A22-1),4*(PlotControl!$C$6-1),12,1))) -> 0 | L22: =IF(PlotControl!$B$4 = "Annual Max",MAX(OFFSET(WWTF_Outflow_Conc!$D$10,12*($A22-1),4*(PlotControl!$C$6-1),12,1)),AVERAGE(OFFSET(WWTF_Outflow_Conc!$D$10,12*($A22-1),4*(PlotControl!$C$6-1),12,1))) -> 0 | M22: =IF(PlotControl!$B$4 = "Annual Max",MAX(OFFSET(WWTF_Outflow_Conc!$E$10,12*($A22-1),4*(PlotControl!$C$6-1),12,1)),AVERAGE(OFFSET(WWTF_Outflow_Conc!$E$10,12*($A22-1),4*(PlotControl!$C$6-1),12,1))) -> 0 | N22: =IF(PlotControl!$B$4 = "Annual Max",MAX(OFFSET(Cat1SP_Conc!$C$10,12*($A22-1),4*(PlotControl!$C$6-1),12,1)),AVERAGE(OFFSET(Cat1SP_Conc!$C$10,12*($A22-1),4*(PlotControl!$C$6-1),12,1))) -> 0.1183561667 | O22: =IF(PlotControl!$B$4 = "Annual Max",MAX(OFFSET(Cat1SP_Conc!$D$10,12*($A22-1),4*(PlotControl!$C$6-1),12,1)),AVERAGE(OFFSET(Cat1SP_Conc!$D$10,12*($A22-1),4*(PlotControl!$C$6-1),12,1))) -> 0.3999433333 | P22: =IF(PlotControl!$B$4 = "Annual Max",MAX(OFFSET(Cat1SP_Conc!$E$10,12*($A22-1),4*(PlotControl!$C$6-1),12,1)),AVERAGE(OFFSET(Cat1SP_Conc!$E$10,12*($A22-1),4*(PlotControl!$C$6-1),12,1))) -> 0.3999491667 | R22: 41.41666667 | S22: =OFFSET(EP_Pore_Conc!$C$10,ROUND(12*$R22,0),4*(PlotControl!$C$6-1),1,1) -> 0.4 | T22: =OFFSET(EP_Pore_Conc!$D$10,ROUND(12*$R22,0),4*(PlotControl!$C$6-1),1,1) -> 0.4 | U22: =OFFSET(EP_Pore_Conc!$E$10,ROUND(12*$R22,0),4*(PlotControl!$C$6-1),1,1) -> 0.4 | V22: =OFFSET(EP_Wetland_Conc!$C$10,ROUND(12*$R22,0),4*(PlotControl!$C$6-1),1,1) -> 0.17162 | W22: =OFFSET(EP_Wetland_Conc!$D$10,ROUND(12*$R22,0),4*(PlotControl!$C$6-1),1,1) -> 0.4 | X22: =OFFSET(EP_Wetland_Conc!$E$10,ROUND(12*$R22,0),4*(PlotControl!$C$6-1),1,1) -> 0.4 | Y22: =OFFSET(WP_Conc!$C$10,ROUND(12*$R22,0),4*(PlotControl!$C$6-1),1,1) -> 0.38274 | Z22: =OFFSET(WP_Conc!$D$10,ROUND(12*$R22,0),4*(PlotControl!$C$6-1),1,1) -> 0.4 | AA22: =OFFSET(WP_Conc!$E$10,ROUND(12*$R22,0),4*(PlotControl!$C$6-1),1,1) -> 0.4 | AB22: =OFFSET(WWTF_Outflow_Conc!$C$10,ROUND(12*$R22,0),4*(PlotControl!$C$6-1),1,1) -> 0 | AC22: =OFFSET(WWTF_Outflow_Conc!$D$10,ROUND(12*$R22,0),4*(PlotControl!$C$6-1),1,1) -> 0 | AD22: =OFFSET(WWTF_Outflow_Conc!$E$10,ROUND(12*$R22,0),4*(PlotControl!$C$6-1),1,1) -> 0 | AE22: =OFFSET(Cat1SP_Conc!$C$10,ROUND(12*$R22,0),4*(PlotControl!$C$6-1),1,1) -> 0.39999 | AF22: =OFFSET(Cat1SP_Conc!$D$10,ROUND(12*$R22,0),4*(PlotControl!$C$6-1),1,1) -> 0.4 | AG22: =OFFSET(Cat1SP_Conc!$E$10,ROUND(12*$R22,0),4*(PlotControl!$C$6-1),1,1) -> 0.4
A23: 19 | B23: =IF(PlotControl!$B$4 = "Annual Max",MAX(OFFSET(EP_Pore_Conc!$C$10,12*($A23-1),4*(PlotControl!$C$6-1),12,1)),AVERAGE(OFFSET(EP_Pore_Conc!$C$10,12*($A23-1),4*(PlotControl!$C$6-1),12,1))) -> 0.4 | C23: =IF(PlotControl!$B$4 = "Annual Max",MAX(OFFSET(EP_Pore_Conc!$D$10,12*($A23-1),4*(PlotControl!$C$6-1),12,1)),AVERAGE(OFFSET(EP_Pore_Conc!$D$10,12*($A23-1),4*(PlotControl!$C$6-1),12,1))) -> 0.4 | D23: =IF(PlotControl!$B$4 = "Annual Max",MAX(OFFSET(EP_Pore_Conc!$E$10,12*($A23-1),4*(PlotControl!$C$6-1),12,1)),AVERAGE(OFFSET(EP_Pore_Conc!$E$10,12*($A23-1),4*(PlotControl!$C$6-1),12,1))) -> 0.4 | E23: =IF(PlotControl!$B$4 = "Annual Max",MAX(OFFSET(EP_Wetland_Conc!$C$10,12*($A23-1),4*(PlotControl!$C$6-1),12,1)),AVERAGE(OFFSET(EP_Wetland_Conc!$C$10,12*($A23-1),4*(PlotControl!$C$6-1),12,1))) -> 6.7033e-08 | F23: =IF(PlotControl!$B$4 = "Annual Max",MAX(OFFSET(EP_Wetland_Conc!$D$10,12*($A23-1),4*(PlotControl!$C$6-1),12,1)),AVERAGE(OFFSET(EP_Wetland_Conc!$D$10,12*($A23-1),4*(PlotControl!$C$6-1),12,1))) -> 1.6892e-07 | G23: =IF(PlotControl!$B$4 = "Annual Max",MAX(OFFSET(EP_Wetland_Conc!$E$10,12*($A23-1),4*(PlotControl!$C$6-1),12,1)),AVERAGE(OFFSET(EP_Wetland_Conc!$E$10,12*($A23-1),4*(PlotControl!$C$6-1),12,1))) -> 3.2305e-07 | H23: =IF(PlotControl!$B$4 = "Annual Max",MAX(OFFSET(WP_Conc!$C$10,12*($A23-1),4*(PlotControl!$C$6-1),12,1)),AVERAGE(OFFSET(WP_Conc!$C$10,12*($A23-1),4*(PlotControl!$C$6-1),12,1))) -> 0.257151 | I23: =IF(PlotControl!$B$4 = "Annual Max",MAX(OFFSET(WP_Conc!$D$10,12*($A23-1),4*(PlotControl!$C$6-1),12,1)),AVERAGE(OFFSET(WP_Conc!$D$10,12*($A23-1),4*(PlotControl!$C$6-1),12,1))) -> 0.3334141667 | J23: =IF(PlotControl!$B$4 = "Annual Max",MAX(OFFSET(WP_Conc!$E$10,12*($A23-1),4*(PlotControl!$C$6-1),12,1)),AVERAGE(OFFSET(WP_Conc!$E$10,12*($A23-1),4*(PlotControl!$C$6-1),12,1))) -> 0.3471316667 | K23: =IF(PlotControl!$B$4 = "Annual Max",MAX(OFFSET(WWTF_Outflow_Conc!$C$10,12*($A23-1),4*(PlotControl!$C$6-1),12,1)),AVERAGE(OFFSET(WWTF_Outflow_Conc!$C$10,12*($A23-1),4*(PlotControl!$C$6-1),12,1))) -> 0 | L23: =IF(PlotControl!$B$4 = "Annual Max",MAX(OFFSET(WWTF_Outflow_Conc!$D$10,12*($A23-1),4*(PlotControl!$C$6-1),12,1)),AVERAGE(OFFSET(WWTF_Outflow_Conc!$D$10,12*($A23-1),4*(PlotControl!$C$6-1),12,1))) -> 0 | M23: =IF(PlotControl!$B$4 = "Annual Max",MAX(OFFSET(WWTF_Outflow_Conc!$E$10,12*($A23-1),4*(PlotControl!$C$6-1),12,1)),AVERAGE(OFFSET(WWTF_Outflow_Conc!$E$10,12*($A23-1),4*(PlotControl!$C$6-1),12,1))) -> 0 | N23: =IF(PlotControl!$B$4 = "Annual Max",MAX(OFFSET(Cat1SP_Conc!$C$10,12*($A23-1),4*(PlotControl!$C$6-1),12,1)),AVERAGE(OFFSET(Cat1SP_Conc!$C$10,12*($A23-1),4*(PlotControl!$C$6-1),12,1))) -> 0.1059466667 | O23: =IF(PlotControl!$B$4 = "Annual Max",MAX(OFFSET(Cat1SP_Conc!$D$10,12*($A23-1),4*(PlotControl!$C$6-1),12,1)),AVERAGE(OFFSET(Cat1SP_Conc!$D$10,12*($A23-1),4*(PlotControl!$C$6-1),12,1))) -> 0.3999341667 | P23: =IF(PlotControl!$B$4 = "Annual Max",MAX(OFFSET(Cat1SP_Conc!$E$10,12*($A23-1),4*(PlotControl!$C$6-1),12,1)),AVERAGE(OFFSET(Cat1SP_Conc!$E$10,12*($A23-1),4*(PlotControl!$C$6-1),12,1))) -> 0.3999425 | R23: 41.5 | S23: =OFFSET(EP_Pore_Conc!$C$10,ROUND(12*$R23,0),4*(PlotControl!$C$6-1),1,1) -> 0.4 | T23: =OFFSET(EP_Pore_Conc!$D$10,ROUND(12*$R23,0),4*(PlotControl!$C$6-1),1,1) -> 0.4 | U23: =OFFSET(EP_Pore_Conc!$E$10,ROUND(12*$R23,0),4*(PlotControl!$C$6-1),1,1) -> 0.4 | V23: =OFFSET(EP_Wetland_Conc!$C$10,ROUND(12*$R23,0),4*(PlotControl!$C$6-1),1,1) -> 0.17344 | W23: =OFFSET(EP_Wetland_Conc!$D$10,ROUND(12*$R23,0),4*(PlotControl!$C$6-1),1,1) -> 0.4 | X23: =OFFSET(EP_Wetland_Conc!$E$10,ROUND(12*$R23,0),4*(PlotControl!$C$6-1),1,1) -> 0.4 | Y23: =OFFSET(WP_Conc!$C$10,ROUND(12*$R23,0),4*(PlotControl!$C$6-1),1,1) -> 0.38253 | Z23: =OFFSET(WP_Conc!$D$10,ROUND(12*$R23,0),4*(PlotControl!$C$6-1),1,1) -> 0.4 | AA23: =OFFSET(WP_Conc!$E$10,ROUND(12*$R23,0),4*(PlotControl!$C$6-1),1,1) -> 0.4 | AB23: =OFFSET(WWTF_Outflow_Conc!$C$10,ROUND(12*$R23,0),4*(PlotControl!$C$6-1),1,1) -> 0 | AC23: =OFFSET(WWTF_Outflow_Conc!$D$10,ROUND(12*$R23,0),4*(PlotControl!$C$6-1),1,1) -> 0 | AD23: =OFFSET(WWTF_Outflow_Conc!$E$10,ROUND(12*$R23,0),4*(PlotControl!$C$6-1),1,1) -> 0 | AE23: =OFFSET(Cat1SP_Conc!$C$10,ROUND(12*$R23,0),4*(PlotControl!$C$6-1),1,1) -> 0.39999 | AF23: =OFFSET(Cat1SP_Conc!$D$10,ROUND(12*$R23,0),4*(PlotControl!$C$6-1),1,1) -> 0.4 | AG23: =OFFSET(Cat1SP_Conc!$E$10,ROUND(12*$R23,0),4*(PlotControl!$C$6-1),1,1) -> 0.4
A24: 20 | B24: =IF(PlotControl!$B$4 = "Annual Max",MAX(OFFSET(EP_Pore_Conc!$C$10,12*($A24-1),4*(PlotControl!$C$6-1),12,1)),AVERAGE(OFFSET(EP_Pore_Conc!$C$10,12*($A24-1),4*(PlotControl!$C$6-1),12,1))) -> 0.4 | C24: =IF(PlotControl!$B$4 = "Annual Max",MAX(OFFSET(EP_Pore_Conc!$D$10,12*($A24-1),4*(PlotControl!$C$6-1),12,1)),AVERAGE(OFFSET(EP_Pore_Conc!$D$10,12*($A24-1),4*(PlotControl!$C$6-1),12,1))) -> 0.4 | D24: =IF(PlotControl!$B$4 = "Annual Max",MAX(OFFSET(EP_Pore_Conc!$E$10,12*($A24-1),4*(PlotControl!$C$6-1),12,1)),AVERAGE(OFFSET(EP_Pore_Conc!$E$10,12*($A24-1),4*(PlotControl!$C$6-1),12,1))) -> 0.4 | E24: =IF(PlotControl!$B$4 = "Annual Max",MAX(OFFSET(EP_Wetland_Conc!$C$10,12*($A24-1),4*(PlotControl!$C$6-1),12,1)),AVERAGE(OFFSET(EP_Wetland_Conc!$C$10,12*($A24-1),4*(PlotControl!$C$6-1),12,1))) -> 0.1000000503 | F24: =IF(PlotControl!$B$4 = "Annual Max",MAX(OFFSET(EP_Wetland_Conc!$D$10,12*($A24-1),4*(PlotControl!$C$6-1),12,1)),AVERAGE(OFFSET(EP_Wetland_Conc!$D$10,12*($A24-1),4*(PlotControl!$C$6-1),12,1))) -> 0.1000001267 | G24: =IF(PlotControl!$B$4 = "Annual Max",MAX(OFFSET(EP_Wetland_Conc!$E$10,12*($A24-1),4*(PlotControl!$C$6-1),12,1)),AVERAGE(OFFSET(EP_Wetland_Conc!$E$10,12*($A24-1),4*(PlotControl!$C$6-1),12,1))) -> 0.1000002423 | H24: =IF(PlotControl!$B$4 = "Annual Max",MAX(OFFSET(WP_Conc!$C$10,12*($A24-1),4*(PlotControl!$C$6-1),12,1)),AVERAGE(OFFSET(WP_Conc!$C$10,12*($A24-1),4*(PlotControl!$C$6-1),12,1))) -> 0.2622844167 | I24: =IF(PlotControl!$B$4 = "Annual Max",MAX(OFFSET(WP_Conc!$D$10,12*($A24-1),4*(PlotControl!$C$6-1),12,1)),AVERAGE(OFFSET(WP_Conc!$D$10,12*($A24-1),4*(PlotControl!$C$6-1),12,1))) -> 0.3335083333 | J24: =IF(PlotControl!$B$4 = "Annual Max",MAX(OFFSET(WP_Conc!$E$10,12*($A24-1),4*(PlotControl!$C$6-1),12,1)),AVERAGE(OFFSET(WP_Conc!$E$10,12*($A24-1),4*(PlotControl!$C$6-1),12,1))) -> 0.352455 | K24: =IF(PlotControl!$B$4 = "Annual Max",MAX(OFFSET(WWTF_Outflow_Conc!$C$10,12*($A24-1),4*(PlotControl!$C$6-1),12,1)),AVERAGE(OFFSET(WWTF_Outflow_Conc!$C$10,12*($A24-1),4*(PlotControl!$C$6-1),12,1))) -> 0 | L24: =IF(PlotControl!$B$4 = "Annual Max",MAX(OFFSET(WWTF_Outflow_Conc!$D$10,12*($A24-1),4*(PlotControl!$C$6-1),12,1)),AVERAGE(OFFSET(WWTF_Outflow_Conc!$D$10,12*($A24-1),4*(PlotControl!$C$6-1),12,1))) -> 0 | M24: =IF(PlotControl!$B$4 = "Annual Max",MAX(OFFSET(WWTF_Outflow_Conc!$E$10,12*($A24-1),4*(PlotControl!$C$6-1),12,1)),AVERAGE(OFFSET(WWTF_Outflow_Conc!$E$10,12*($A24-1),4*(PlotControl!$C$6-1),12,1))) -> 0 | N24: =IF(PlotControl!$B$4 = "Annual Max",MAX(OFFSET(Cat1SP_Conc!$C$10,12*($A24-1),4*(PlotControl!$C$6-1),12,1)),AVERAGE(OFFSET(Cat1SP_Conc!$C$10,12*($A24-1),4*(PlotControl!$C$6-1),12,1))) -> 0.1224685833 | O24: =IF(PlotControl!$B$4 = "Annual Max",MAX(OFFSET(Cat1SP_Conc!$D$10,12*($A24-1),4*(PlotControl!$C$6-1),12,1)),AVERAGE(OFFSET(Cat1SP_Conc!$D$10,12*($A24-1),4*(PlotControl!$C$6-1),12,1))) -> 0.3999166667 | P24: =IF(PlotControl!$B$4 = "Annual Max",MAX(OFFSET(Cat1SP_Conc!$E$10,12*($A24-1),4*(PlotControl!$C$6-1),12,1)),AVERAGE(OFFSET(Cat1SP_Conc!$E$10,12*($A24-1),4*(PlotControl!$C$6-1),12,1))) -> 0.3999275 | R24: 41.58333333 | S24: =OFFSET(EP_Pore_Conc!$C$10,ROUND(12*$R24,0),4*(PlotControl!$C$6-1),1,1) -> 0.4 | T24: =OFFSET(EP_Pore_Conc!$D$10,ROUND(12*$R24,0),4*(PlotControl!$C$6-1),1,1) -> 0.4 | U24: =OFFSET(EP_Pore_Conc!$E$10,ROUND(12*$R24,0),4*(PlotControl!$C$6-1),1,1) -> 0.4 | V24: =OFFSET(EP_Wetland_Conc!$C$10,ROUND(12*$R24,0),4*(PlotControl!$C$6-1),1,1) -> 0.17689 | W24: =OFFSET(EP_Wetland_Conc!$D$10,ROUND(12*$R24,0),4*(PlotControl!$C$6-1),1,1) -> 0.4 | X24: =OFFSET(EP_Wetland_Conc!$E$10,ROUND(12*$R24,0),4*(PlotControl!$C$6-1),1,1) -> 0.4 | Y24: =OFFSET(WP_Conc!$C$10,ROUND(12*$R24,0),4*(PlotControl!$C$6-1),1,1) -> 0.38241 | Z24: =OFFSET(WP_Conc!$D$10,ROUND(12*$R24,0),4*(PlotControl!$C$6-1),1,1) -> 0.4 | AA24: =OFFSET(WP_Conc!$E$10,ROUND(12*$R24,0),4*(PlotControl!$C$6-1),1,1) -> 0.4 | AB24: =OFFSET(WWTF_Outflow_Conc!$C$10,ROUND(12*$R24,0),4*(PlotControl!$C$6-1),1,1) -> 0 | AC24: =OFFSET(WWTF_Outflow_Conc!$D$10,ROUND(12*$R24,0),4*(PlotControl!$C$6-1),1,1) -> 0 | AD24: =OFFSET(WWTF_Outflow_Conc!$E$10,ROUND(12*$R24,0),4*(PlotControl!$C$6-1),1,1) -> 0 | AE24: =OFFSET(Cat1SP_Conc!$C$10,ROUND(12*$R24,0),4*(PlotControl!$C$6-1),1,1) -> 0.39999 | AF24: =OFFSET(Cat1SP_Conc!$D$10,ROUND(12*$R24,0),4*(PlotControl!$C$6-1),1,1) -> 0.4 | AG24: =OFFSET(Cat1SP_Conc!$E$10,ROUND(12*$R24,0),4*(PlotControl!$C$6-1),1,1) -> 0.4
A25: 21 | B25: =IF(PlotControl!$B$4 = "Annual Max",MAX(OFFSET(EP_Pore_Conc!$C$10,12*($A25-1),4*(PlotControl!$C$6-1),12,1)),AVERAGE(OFFSET(EP_Pore_Conc!$C$10,12*($A25-1),4*(PlotControl!$C$6-1),12,1))) -> 0.4 | C25: =IF(PlotControl!$B$4 = "Annual Max",MAX(OFFSET(EP_Pore_Conc!$D$10,12*($A25-1),4*(PlotControl!$C$6-1),12,1)),AVERAGE(OFFSET(EP_Pore_Conc!$D$10,12*($A25-1),4*(PlotControl!$C$6-1),12,1))) -> 0.4 | D25: =IF(PlotControl!$B$4 = "Annual Max",MAX(OFFSET(EP_Pore_Conc!$E$10,12*($A25-1),4*(PlotControl!$C$6-1),12,1)),AVERAGE(OFFSET(EP_Pore_Conc!$E$10,12*($A25-1),4*(PlotControl!$C$6-1),12,1))) -> 0.4 | E25: =IF(PlotControl!$B$4 = "Annual Max",MAX(OFFSET(EP_Wetland_Conc!$C$10,12*($A25-1),4*(PlotControl!$C$6-1),12,1)),AVERAGE(OFFSET(EP_Wetland_Conc!$C$10,12*($A25-1),4*(PlotControl!$C$6-1),12,1))) -> 0.4 | F25: =IF(PlotControl!$B$4 = "Annual Max",MAX(OFFSET(EP_Wetland_Conc!$D$10,12*($A25-1),4*(PlotControl!$C$6-1),12,1)),AVERAGE(OFFSET(EP_Wetland_Conc!$D$10,12*($A25-1),4*(PlotControl!$C$6-1),12,1))) -> 0.4 | G25: =IF(PlotControl!$B$4 = "Annual Max",MAX(OFFSET(EP_Wetland_Conc!$E$10,12*($A25-1),4*(PlotControl!$C$6-1),12,1)),AVERAGE(OFFSET(EP_Wetland_Conc!$E$10,12*($A25-1),4*(PlotControl!$C$6-1),12,1))) -> 0.4 | H25: =IF(PlotControl!$B$4 = "Annual Max",MAX(OFFSET(WP_Conc!$C$10,12*($A25-1),4*(PlotControl!$C$6-1),12,1)),AVERAGE(OFFSET(WP_Conc!$C$10,12*($A25-1),4*(PlotControl!$C$6-1),12,1))) -> 0.4 | I25: =IF(PlotControl!$B$4 = "Annual Max",MAX(OFFSET(WP_Conc!$D$10,12*($A25-1),4*(PlotControl!$C$6-1),12,1)),AVERAGE(OFFSET(WP_Conc!$D$10,12*($A25-1),4*(PlotControl!$C$6-1),12,1))) -> 0.4 | J25: =IF(PlotControl!$B$4 = "Annual Max",MAX(OFFSET(WP_Conc!$E$10,12*($A25-1),4*(PlotControl!$C$6-1),12,1)),AVERAGE(OFFSET(WP_Conc!$E$10,12*($A25-1),4*(PlotControl!$C$6-1),12,1))) -> 0.4 | K25: =IF(PlotControl!$B$4 = "Annual Max",MAX(OFFSET(WWTF_Outflow_Conc!$C$10,12*($A25-1),4*(PlotControl!$C$6-1),12,1)),AVERAGE(OFFSET(WWTF_Outflow_Conc!$C$10,12*($A25-1),4*(PlotControl!$C$6-1),12,1))) -> 0 | L25: =IF(PlotControl!$B$4 = "Annual Max",MAX(OFFSET(WWTF_Outflow_Conc!$D$10,12*($A25-1),4*(PlotControl!$C$6-1),12,1)),AVERAGE(OFFSET(WWTF_Outflow_Conc!$D$10,12*($A25-1),4*(PlotControl!$C$6-1),12,1))) -> 0 | M25: =IF(PlotControl!$B$4 = "Annual Max",MAX(OFFSET(WWTF_Outflow_Conc!$E$10,12*($A25-1),4*(PlotControl!$C$6-1),12,1)),AVERAGE(OFFSET(WWTF_Outflow_Conc!$E$10,12*($A25-1),4*(PlotControl!$C$6-1),12,1))) -> 0 | N25: =IF(PlotControl!$B$4 = "Annual Max",MAX(OFFSET(Cat1SP_Conc!$C$10,12*($A25-1),4*(PlotControl!$C$6-1),12,1)),AVERAGE(OFFSET(Cat1SP_Conc!$C$10,12*($A25-1),4*(PlotControl!$C$6-1),12,1))) -> 0.1191691667 | O25: =IF(PlotControl!$B$4 = "Annual Max",MAX(OFFSET(Cat1SP_Conc!$D$10,12*($A25-1),4*(PlotControl!$C$6-1),12,1)),AVERAGE(OFFSET(Cat1SP_Conc!$D$10,12*($A25-1),4*(PlotControl!$C$6-1),12,1))) -> 0.3998558333 | P25: =IF(PlotControl!$B$4 = "Annual Max",MAX(OFFSET(Cat1SP_Conc!$E$10,12*($A25-1),4*(PlotControl!$C$6-1),12,1)),AVERAGE(OFFSET(Cat1SP_Conc!$E$10,12*($A25-1),4*(PlotControl!$C$6-1),12,1))) -> 0.3998808333 | R25: 41.66666667 | S25: =OFFSET(EP_Pore_Conc!$C$10,ROUND(12*$R25,0),4*(PlotControl!$C$6-1),1,1) -> 0.4 | T25: =OFFSET(EP_Pore_Conc!$D$10,ROUND(12*$R25,0),4*(PlotControl!$C$6-1),1,1) -> 0.4 | U25: =OFFSET(EP_Pore_Conc!$E$10,ROUND(12*$R25,0),4*(PlotControl!$C$6-1),1,1) -> 0.4 | V25: =OFFSET(EP_Wetland_Conc!$C$10,ROUND(12*$R25,0),4*(PlotControl!$C$6-1),1,1) -> 0.17521 | W25: =OFFSET(EP_Wetland_Conc!$D$10,ROUND(12*$R25,0),4*(PlotControl!$C$6-1),1,1) -> 0.4 | X25: =OFFSET(EP_Wetland_Conc!$E$10,ROUND(12*$R25,0),4*(PlotControl!$C$6-1),1,1) -> 0.4 | Y25: =OFFSET(WP_Conc!$C$10,ROUND(12*$R25,0),4*(PlotControl!$C$6-1),1,1) -> 0.38217 | Z25: =OFFSET(WP_Conc!$D$10,ROUND(12*$R25,0),4*(PlotControl!$C$6-1),1,1) -> 0.4 | AA25: =OFFSET(WP_Conc!$E$10,ROUND(12*$R25,0),4*(PlotControl!$C$6-1),1,1) -> 0.4 | AB25: =OFFSET(WWTF_Outflow_Conc!$C$10,ROUND(12*$R25,0),4*(PlotControl!$C$6-1),1,1) -> 0 | AC25: =OFFSET(WWTF_Outflow_Conc!$D$10,ROUND(12*$R25,0),4*(PlotControl!$C$6-1),1,1) -> 0 | AD25: =OFFSET(WWTF_Outflow_Conc!$E$10,ROUND(12*$R25,0),4*(PlotControl!$C$6-1),1,1) -> 0 | AE25: =OFFSET(Cat1SP_Conc!$C$10,ROUND(12*$R25,0),4*(PlotControl!$C$6-1),1,1) -> 0.39999 | AF25: =OFFSET(Cat1SP_Conc!$D$10,ROUND(12*$R25,0),4*(PlotControl!$C$6-1),1,1) -> 0.4 | AG25: =OFFSET(Cat1SP_Conc!$E$10,ROUND(12*$R25,0),4*(PlotControl!$C$6-1),1,1) -> 0.4
A26: 22 | B26: =IF(PlotControl!$B$4 = "Annual Max",MAX(OFFSET(EP_Pore_Conc!$C$10,12*($A26-1),4*(PlotControl!$C$6-1),12,1)),AVERAGE(OFFSET(EP_Pore_Conc!$C$10,12*($A26-1),4*(PlotControl!$C$6-1),12,1))) -> 0.4 | C26: =IF(PlotControl!$B$4 = "Annual Max",MAX(OFFSET(EP_Pore_Conc!$D$10,12*($A26-1),4*(PlotControl!$C$6-1),12,1)),AVERAGE(OFFSET(EP_Pore_Conc!$D$10,12*($A26-1),4*(PlotControl!$C$6-1),12,1))) -> 0.4 | D26: =IF(PlotControl!$B$4 = "Annual Max",MAX(OFFSET(EP_Pore_Conc!$E$10,12*($A26-1),4*(PlotControl!$C$6-1),12,1)),AVERAGE(OFFSET(EP_Pore_Conc!$E$10,12*($A26-1),4*(PlotControl!$C$6-1),12,1))) -> 0.4 | E26: =IF(PlotControl!$B$4 = "Annual Max",MAX(OFFSET(EP_Wetland_Conc!$C$10,12*($A26-1),4*(PlotControl!$C$6-1),12,1)),AVERAGE(OFFSET(EP_Wetland_Conc!$C$10,12*($A26-1),4*(PlotControl!$C$6-1),12,1))) -> 0.4 | F26: =IF(PlotControl!$B$4 = "Annual Max",MAX(OFFSET(EP_Wetland_Conc!$D$10,12*($A26-1),4*(PlotControl!$C$6-1),12,1)),AVERAGE(OFFSET(EP_Wetland_Conc!$D$10,12*($A26-1),4*(PlotControl!$C$6-1),12,1))) -> 0.4 | G26: =IF(PlotControl!$B$4 = "Annual Max",MAX(OFFSET(EP_Wetland_Conc!$E$10,12*($A26-1),4*(PlotControl!$C$6-1),12,1)),AVERAGE(OFFSET(EP_Wetland_Conc!$E$10,12*($A26-1),4*(PlotControl!$C$6-1),12,1))) -> 0.4 | H26: =IF(PlotControl!$B$4 = "Annual Max",MAX(OFFSET(WP_Conc!$C$10,12*($A26-1),4*(PlotControl!$C$6-1),12,1)),AVERAGE(OFFSET(WP_Conc!$C$10,12*($A26-1),4*(PlotControl!$C$6-1),12,1))) -> 0.4 | I26: =IF(PlotControl!$B$4 = "Annual Max",MAX(OFFSET(WP_Conc!$D$10,12*($A26-1),4*(PlotControl!$C$6-1),12,1)),AVERAGE(OFFSET(WP_Conc!$D$10,12*($A26-1),4*(PlotControl!$C$6-1),12,1))) -> 0.4 | J26: =IF(PlotControl!$B$4 = "Annual Max",MAX(OFFSET(WP_Conc!$E$10,12*($A26-1),4*(PlotControl!$C$6-1),12,1)),AVERAGE(OFFSET(WP_Conc!$E$10,12*($A26-1),4*(PlotControl!$C$6-1),12,1))) -> 0.4 | K26: =IF(PlotControl!$B$4 = "Annual Max",MAX(OFFSET(WWTF_Outflow_Conc!$C$10,12*($A26-1),4*(PlotControl!$C$6-1),12,1)),AVERAGE(OFFSET(WWTF_Outflow_Conc!$C$10,12*($A26-1),4*(PlotControl!$C$6-1),12,1))) -> 0 | L26: =IF(PlotControl!$B$4 = "Annual Max",MAX(OFFSET(WWTF_Outflow_Conc!$D$10,12*($A26-1),4*(PlotControl!$C$6-1),12,1)),AVERAGE(OFFSET(WWTF_Outflow_Conc!$D$10,12*($A26-1),4*(PlotControl!$C$6-1),12,1))) -> 0 | M26: =IF(PlotControl!$B$4 = "Annual Max",MAX(OFFSET(WWTF_Outflow_Conc!$E$10,12*($A26-1),4*(PlotControl!$C$6-1),12,1)),AVERAGE(OFFSET(WWTF_Outflow_Conc!$E$10,12*($A26-1),4*(PlotControl!$C$6-1),12,1))) -> 0 | N26: =IF(PlotControl!$B$4 = "Annual Max",MAX(OFFSET(Cat1SP_Conc!$C$10,12*($A26-1),4*(PlotControl!$C$6-1),12,1)),AVERAGE(OFFSET(Cat1SP_Conc!$C$10,12*($A26-1),4*(PlotControl!$C$6-1),12,1))) -> 0.1803375 | O26: =IF(PlotControl!$B$4 = "Annual Max",MAX(OFFSET(Cat1SP_Conc!$D$10,12*($A26-1),4*(PlotControl!$C$6-1),12,1)),AVERAGE(OFFSET(Cat1SP_Conc!$D$10,12*($A26-1),4*(PlotControl!$C$6-1),12,1))) -> 0.3997825 | P26: =IF(PlotControl!$B$4 = "Annual Max",MAX(OFFSET(Cat1SP_Conc!$E$10,12*($A26-1),4*(PlotControl!$C$6-1),12,1)),AVERAGE(OFFSET(Cat1SP_Conc!$E$10,12*($A26-1),4*(PlotControl!$C$6-1),12,1))) -> 0.39989 | R26: 41.75 | S26: =OFFSET(EP_Pore_Conc!$C$10,ROUND(12*$R26,0),4*(PlotControl!$C$6-1),1,1) -> 0.4 | T26: =OFFSET(EP_Pore_Conc!$D$10,ROUND(12*$R26,0),4*(PlotControl!$C$6-1),1,1) -> 0.4 | U26: =OFFSET(EP_Pore_Conc!$E$10,ROUND(12*$R26,0),4*(PlotControl!$C$6-1),1,1) -> 0.4 | V26: =OFFSET(EP_Wetland_Conc!$C$10,ROUND(12*$R26,0),4*(PlotControl!$C$6-1),1,1) -> 0.17142 | W26: =OFFSET(EP_Wetland_Conc!$D$10,ROUND(12*$R26,0),4*(PlotControl!$C$6-1),1,1) -> 0.4 | X26: =OFFSET(EP_Wetland_Conc!$E$10,ROUND(12*$R26,0),4*(PlotControl!$C$6-1),1,1) -> 0.4 | Y26: =OFFSET(WP_Conc!$C$10,ROUND(12*$R26,0),4*(PlotControl!$C$6-1),1,1) -> 0.38166 | Z26: =OFFSET(WP_Conc!$D$10,ROUND(12*$R26,0),4*(PlotControl!$C$6-1),1,1) -> 0.4 | AA26: =OFFSET(WP_Conc!$E$10,ROUND(12*$R26,0),4*(PlotControl!$C$6-1),1,1) -> 0.4 | AB26: =OFFSET(WWTF_Outflow_Conc!$C$10,ROUND(12*$R26,0),4*(PlotControl!$C$6-1),1,1) -> 0 | AC26: =OFFSET(WWTF_Outflow_Conc!$D$10,ROUND(12*$R26,0),4*(PlotControl!$C$6-1),1,1) -> 0 | AD26: =OFFSET(WWTF_Outflow_Conc!$E$10,ROUND(12*$R26,0),4*(PlotControl!$C$6-1),1,1) -> 0 | AE26: =OFFSET(Cat1SP_Conc!$C$10,ROUND(12*$R26,0),4*(PlotControl!$C$6-1),1,1) -> 0.39999 | AF26: =OFFSET(Cat1SP_Conc!$D$10,ROUND(12*$R26,0),4*(PlotControl!$C$6-1),1,1) -> 0.4 | AG26: =OFFSET(Cat1SP_Conc!$E$10,ROUND(12*$R26,0),4*(PlotControl!$C$6-1),1,1) -> 0.4
A27: 23 | B27: =IF(PlotControl!$B$4 = "Annual Max",MAX(OFFSET(EP_Pore_Conc!$C$10,12*($A27-1),4*(PlotControl!$C$6-1),12,1)),AVERAGE(OFFSET(EP_Pore_Conc!$C$10,12*($A27-1),4*(PlotControl!$C$6-1),12,1))) -> 0.4 | C27: =IF(PlotControl!$B$4 = "Annual Max",MAX(OFFSET(EP_Pore_Conc!$D$10,12*($A27-1),4*(PlotControl!$C$6-1),12,1)),AVERAGE(OFFSET(EP_Pore_Conc!$D$10,12*($A27-1),4*(PlotControl!$C$6-1),12,1))) -> 0.4 | D27: =IF(PlotControl!$B$4 = "Annual Max",MAX(OFFSET(EP_Pore_Conc!$E$10,12*($A27-1),4*(PlotControl!$C$6-1),12,1)),AVERAGE(OFFSET(EP_Pore_Conc!$E$10,12*($A27-1),4*(PlotControl!$C$6-1),12,1))) -> 0.4 | E27: =IF(PlotControl!$B$4 = "Annual Max",MAX(OFFSET(EP_Wetland_Conc!$C$10,12*($A27-1),4*(PlotControl!$C$6-1),12,1)),AVERAGE(OFFSET(EP_Wetland_Conc!$C$10,12*($A27-1),4*(PlotControl!$C$6-1),12,1))) -> 0.4 | F27: =IF(PlotControl!$B$4 = "Annual Max",MAX(OFFSET(EP_Wetland_Conc!$D$10,12*($A27-1),4*(PlotControl!$C$6-1),12,1)),AVERAGE(OFFSET(EP_Wetland_Conc!$D$10,12*($A27-1),4*(PlotControl!$C$6-1),12,1))) -> 0.4 | G27: =IF(PlotControl!$B$4 = "Annual Max",MAX(OFFSET(EP_Wetland_Conc!$E$10,12*($A27-1),4*(PlotControl!$C$6-1),12,1)),AVERAGE(OFFSET(EP_Wetland_Conc!$E$10,12*($A27-1),4*(PlotControl!$C$6-1),12,1))) -> 0.4 | H27: =IF(PlotControl!$B$4 = "Annual Max",MAX(OFFSET(WP_Conc!$C$10,12*($A27-1),4*(PlotControl!$C$6-1),12,1)),AVERAGE(OFFSET(WP_Conc!$C$10,12*($A27-1),4*(PlotControl!$C$6-1),12,1))) -> 0.4 | I27: =IF(PlotControl!$B$4 = "Annual Max",MAX(OFFSET(WP_Conc!$D$10,12*($A27-1),4*(PlotControl!$C$6-1),12,1)),AVERAGE(OFFSET(WP_Conc!$D$10,12*($A27-1),4*(PlotControl!$C$6-1),12,1))) -> 0.4 | J27: =IF(PlotControl!$B$4 = "Annual Max",MAX(OFFSET(WP_Conc!$E$10,12*($A27-1),4*(PlotControl!$C$6-1),12,1)),AVERAGE(OFFSET(WP_Conc!$E$10,12*($A27-1),4*(PlotControl!$C$6-1),12,1))) -> 0.4 | K27: =IF(PlotControl!$B$4 = "Annual Max",MAX(OFFSET(WWTF_Outflow_Conc!$C$10,12*($A27-1),4*(PlotControl!$C$6-1),12,1)),AVERAGE(OFFSET(WWTF_Outflow_Conc!$C$10,12*($A27-1),4*(PlotControl!$C$6-1),12,1))) -> 0 | L27: =IF(PlotControl!$B$4 = "Annual Max",MAX(OFFSET(WWTF_Outflow_Conc!$D$10,12*($A27-1),4*(PlotControl!$C$6-1),12,1)),AVERAGE(OFFSET(WWTF_Outflow_Conc!$D$10,12*($A27-1),4*(PlotControl!$C$6-1),12,1))) -> 0 | M27: =IF(PlotControl!$B$4 = "Annual Max",MAX(OFFSET(WWTF_Outflow_Conc!$E$10,12*($A27-1),4*(PlotControl!$C$6-1),12,1)),AVERAGE(OFFSET(WWTF_Outflow_Conc!$E$10,12*($A27-1),4*(PlotControl!$C$6-1),12,1))) -> 0 | N27: =IF(PlotControl!$B$4 = "Annual Max",MAX(OFFSET(Cat1SP_Conc!$C$10,12*($A27-1),4*(PlotControl!$C$6-1),12,1)),AVERAGE(OFFSET(Cat1SP_Conc!$C$10,12*($A27-1),4*(PlotControl!$C$6-1),12,1))) -> 0.2901016667 | O27: =IF(PlotControl!$B$4 = "Annual Max",MAX(OFFSET(Cat1SP_Conc!$D$10,12*($A27-1),4*(PlotControl!$C$6-1),12,1)),AVERAGE(OFFSET(Cat1SP_Conc!$D$10,12*($A27-1),4*(PlotControl!$C$6-1),12,1))) -> 0.39988 | P27: =IF(PlotControl!$B$4 = "Annual Max",MAX(OFFSET(Cat1SP_Conc!$E$10,12*($A27-1),4*(PlotControl!$C$6-1),12,1)),AVERAGE(OFFSET(Cat1SP_Conc!$E$10,12*($A27-1),4*(PlotControl!$C$6-1),12,1))) -> 0.39999 | R27: 41.83333333 | S27: =OFFSET(EP_Pore_Conc!$C$10,ROUND(12*$R27,0),4*(PlotControl!$C$6-1),1,1) -> 0.4 | T27: =OFFSET(EP_Pore_Conc!$D$10,ROUND(12*$R27,0),4*(PlotControl!$C$6-1),1,1) -> 0.4 | U27: =OFFSET(EP_Pore_Conc!$E$10,ROUND(12*$R27,0),4*(PlotControl!$C$6-1),1,1) -> 0.4 | V27: =OFFSET(EP_Wetland_Conc!$C$10,ROUND(12*$R27,0),4*(PlotControl!$C$6-1),1,1) -> 0.1659 | W27: =OFFSET(EP_Wetland_Conc!$D$10,ROUND(12*$R27,0),4*(PlotControl!$C$6-1),1,1) -> 0.4 | X27: =OFFSET(EP_Wetland_Conc!$E$10,ROUND(12*$R27,0),4*(PlotControl!$C$6-1),1,1) -> 0.4 | Y27: =OFFSET(WP_Conc!$C$10,ROUND(12*$R27,0),4*(PlotControl!$C$6-1),1,1) -> 0.38119 | Z27: =OFFSET(WP_Conc!$D$10,ROUND(12*$R27,0),4*(PlotControl!$C$6-1),1,1) -> 0.4 | AA27: =OFFSET(WP_Conc!$E$10,ROUND(12*$R27,0),4*(PlotControl!$C$6-1),1,1) -> 0.4 | AB27: =OFFSET(WWTF_Outflow_Conc!$C$10,ROUND(12*$R27,0),4*(PlotControl!$C$6-1),1,1) -> 0 | AC27: =OFFSET(WWTF_Outflow_Conc!$D$10,ROUND(12*$R27,0),4*(PlotControl!$C$6-1),1,1) -> 0 | AD27: =OFFSET(WWTF_Outflow_Conc!$E$10,ROUND(12*$R27,0),4*(PlotControl!$C$6-1),1,1) -> 0 | AE27: =OFFSET(Cat1SP_Conc!$C$10,ROUND(12*$R27,0),4*(PlotControl!$C$6-1),1,1) -> 0.39999 | AF27: =OFFSET(Cat1SP_Conc!$D$10,ROUND(12*$R27,0),4*(PlotControl!$C$6-1),1,1) -> 0.4 | AG27: =OFFSET(Cat1SP_Conc!$E$10,ROUND(12*$R27,0),4*(PlotControl!$C$6-1),1,1) -> 0.4
A28: 24 | B28: =IF(PlotControl!$B$4 = "Annual Max",MAX(OFFSET(EP_Pore_Conc!$C$10,12*($A28-1),4*(PlotControl!$C$6-1),12,1)),AVERAGE(OFFSET(EP_Pore_Conc!$C$10,12*($A28-1),4*(PlotControl!$C$6-1),12,1))) -> 0.4 | C28: =IF(PlotControl!$B$4 = "Annual Max",MAX(OFFSET(EP_Pore_Conc!$D$10,12*($A28-1),4*(PlotControl!$C$6-1),12,1)),AVERAGE(OFFSET(EP_Pore_Conc!$D$10,12*($A28-1),4*(PlotControl!$C$6-1),12,1))) -> 0.4 | D28: =IF(PlotControl!$B$4 = "Annual Max",MAX(OFFSET(EP_Pore_Conc!$E$10,12*($A28-1),4*(PlotControl!$C$6-1),12,1)),AVERAGE(OFFSET(EP_Pore_Conc!$E$10,12*($A28-1),4*(PlotControl!$C$6-1),12,1))) -> 0.4 | E28: =IF(PlotControl!$B$4 = "Annual Max",MAX(OFFSET(EP_Wetland_Conc!$C$10,12*($A28-1),4*(PlotControl!$C$6-1),12,1)),AVERAGE(OFFSET(EP_Wetland_Conc!$C$10,12*($A28-1),4*(PlotControl!$C$6-1),12,1))) -> 0.4 | F28: =IF(PlotControl!$B$4 = "Annual Max",MAX(OFFSET(EP_Wetland_Conc!$D$10,12*($A28-1),4*(PlotControl!$C$6-1),12,1)),AVERAGE(OFFSET(EP_Wetland_Conc!$D$10,12*($A28-1),4*(PlotControl!$C$6-1),12,1))) -> 0.4 | G28: =IF(PlotControl!$B$4 = "Annual Max",MAX(OFFSET(EP_Wetland_Conc!$E$10,12*($A28-1),4*(PlotControl!$C$6-1),12,1)),AVERAGE(OFFSET(EP_Wetland_Conc!$E$10,12*($A28-1),4*(PlotControl!$C$6-1),12,1))) -> 0.4 | H28: =IF(PlotControl!$B$4 = "Annual Max",MAX(OFFSET(WP_Conc!$C$10,12*($A28-1),4*(PlotControl!$C$6-1),12,1)),AVERAGE(OFFSET(WP_Conc!$C$10,12*($A28-1),4*(PlotControl!$C$6-1),12,1))) -> 0.4 | I28: =IF(PlotControl!$B$4 = "Annual Max",MAX(OFFSET(WP_Conc!$D$10,12*($A28-1),4*(PlotControl!$C$6-1),12,1)),AVERAGE(OFFSET(WP_Conc!$D$10,12*($A28-1),4*(PlotControl!$C$6-1),12,1))) -> 0.4 | J28: =IF(PlotControl!$B$4 = "Annual Max",MAX(OFFSET(WP_Conc!$E$10,12*($A28-1),4*(PlotControl!$C$6-1),12,1)),AVERAGE(OFFSET(WP_Conc!$E$10,12*($A28-1),4*(PlotControl!$C$6-1),12,1))) -> 0.4 | K28: =IF(PlotControl!$B$4 = "Annual Max",MAX(OFFSET(WWTF_Outflow_Conc!$C$10,12*($A28-1),4*(PlotControl!$C$6-1),12,1)),AVERAGE(OFFSET(WWTF_Outflow_Conc!$C$10,12*($A28-1),4*(PlotControl!$C$6-1),12,1))) -> 0 | L28: =IF(PlotControl!$B$4 = "Annual Max",MAX(OFFSET(WWTF_Outflow_Conc!$D$10,12*($A28-1),4*(PlotControl!$C$6-1),12,1)),AVERAGE(OFFSET(WWTF_Outflow_Conc!$D$10,12*($A28-1),4*(PlotControl!$C$6-1),12,1))) -> 0 | M28: =IF(PlotControl!$B$4 = "Annual Max",MAX(OFFSET(WWTF_Outflow_Conc!$E$10,12*($A28-1),4*(PlotControl!$C$6-1),12,1)),AVERAGE(OFFSET(WWTF_Outflow_Conc!$E$10,12*($A28-1),4*(PlotControl!$C$6-1),12,1))) -> 0 | N28: =IF(PlotControl!$B$4 = "Annual Max",MAX(OFFSET(Cat1SP_Conc!$C$10,12*($A28-1),4*(PlotControl!$C$6-1),12,1)),AVERAGE(OFFSET(Cat1SP_Conc!$C$10,12*($A28-1),4*(PlotControl!$C$6-1),12,1))) -> 0.3432683333 | O28: =IF(PlotControl!$B$4 = "Annual Max",MAX(OFFSET(Cat1SP_Conc!$D$10,12*($A28-1),4*(PlotControl!$C$6-1),12,1)),AVERAGE(OFFSET(Cat1SP_Conc!$D$10,12*($A28-1),4*(PlotControl!$C$6-1),12,1))) -> 0.3999408333 | P28: =IF(PlotControl!$B$4 = "Annual Max",MAX(OFFSET(Cat1SP_Conc!$E$10,12*($A28-1),4*(PlotControl!$C$6-1),12,1)),AVERAGE(OFFSET(Cat1SP_Conc!$E$10,12*($A28-1),4*(PlotControl!$C$6-1),12,1))) -> 0.4 | R28: 41.91666667 | S28: =OFFSET(EP_Pore_Conc!$C$10,ROUND(12*$R28,0),4*(PlotControl!$C$6-1),1,1) -> 0.4 | T28: =OFFSET(EP_Pore_Conc!$D$10,ROUND(12*$R28,0),4*(PlotControl!$C$6-1),1,1) -> 0.4 | U28: =OFFSET(EP_Pore_Conc!$E$10,ROUND(12*$R28,0),4*(PlotControl!$C$6-1),1,1) -> 0.4 | V28: =OFFSET(EP_Wetland_Conc!$C$10,ROUND(12*$R28,0),4*(PlotControl!$C$6-1),1,1) -> 0.16722 | W28: =OFFSET(EP_Wetland_Conc!$D$10,ROUND(12*$R28,0),4*(PlotControl!$C$6-1),1,1) -> 0.4 | X28: =OFFSET(EP_Wetland_Conc!$E$10,ROUND(12*$R28,0),4*(PlotControl!$C$6-1),1,1) -> 0.4 | Y28: =OFFSET(WP_Conc!$C$10,ROUND(12*$R28,0),4*(PlotControl!$C$6-1),1,1) -> 0.38127 | Z28: =OFFSET(WP_Conc!$D$10,ROUND(12*$R28,0),4*(PlotControl!$C$6-1),1,1) -> 0.4 | AA28: =OFFSET(WP_Conc!$E$10,ROUND(12*$R28,0),4*(PlotControl!$C$6-1),1,1) -> 0.4 | AB28: =OFFSET(WWTF_Outflow_Conc!$C$10,ROUND(12*$R28,0),4*(PlotControl!$C$6-1),1,1) -> 0 | AC28: =OFFSET(WWTF_Outflow_Conc!$D$10,ROUND(12*$R28,0),4*(PlotControl!$C$6-1),1,1) -> 0 | AD28: =OFFSET(WWTF_Outflow_Conc!$E$10,ROUND(12*$R28,0),4*(PlotControl!$C$6-1),1,1) -> 0 | AE28: =OFFSET(Cat1SP_Conc!$C$10,ROUND(12*$R28,0),4*(PlotControl!$C$6-1),1,1) -> 0.39999 | AF28: =OFFSET(Cat1SP_Conc!$D$10,ROUND(12*$R28,0),4*(PlotControl!$C$6-1),1,1) -> 0.4 | AG28: =OFFSET(Cat1SP_Conc!$E$10,ROUND(12*$R28,0),4*(PlotControl!$C$6-1),1,1) -> 0.4
A29: 25 | B29: =IF(PlotControl!$B$4 = "Annual Max",MAX(OFFSET(EP_Pore_Conc!$C$10,12*($A29-1),4*(PlotControl!$C$6-1),12,1)),AVERAGE(OFFSET(EP_Pore_Conc!$C$10,12*($A29-1),4*(PlotControl!$C$6-1),12,1))) -> 0.4 | C29: =IF(PlotControl!$B$4 = "Annual Max",MAX(OFFSET(EP_Pore_Conc!$D$10,12*($A29-1),4*(PlotControl!$C$6-1),12,1)),AVERAGE(OFFSET(EP_Pore_Conc!$D$10,12*($A29-1),4*(PlotControl!$C$6-1),12,1))) -> 0.4 | D29: =IF(PlotControl!$B$4 = "Annual Max",MAX(OFFSET(EP_Pore_Conc!$E$10,12*($A29-1),4*(PlotControl!$C$6-1),12,1)),AVERAGE(OFFSET(EP_Pore_Conc!$E$10,12*($A29-1),4*(PlotControl!$C$6-1),12,1))) -> 0.4 | E29: =IF(PlotControl!$B$4 = "Annual Max",MAX(OFFSET(EP_Wetland_Conc!$C$10,12*($A29-1),4*(PlotControl!$C$6-1),12,1)),AVERAGE(OFFSET(EP_Wetland_Conc!$C$10,12*($A29-1),4*(PlotControl!$C$6-1),12,1))) -> 0.4 | F29: =IF(PlotControl!$B$4 = "Annual Max",MAX(OFFSET(EP_Wetland_Conc!$D$10,12*($A29-1),4*(PlotControl!$C$6-1),12,1)),AVERAGE(OFFSET(EP_Wetland_Conc!$D$10,12*($A29-1),4*(PlotControl!$C$6-1),12,1))) -> 0.4 | G29: =IF(PlotControl!$B$4 = "Annual Max",MAX(OFFSET(EP_Wetland_Conc!$E$10,12*($A29-1),4*(PlotControl!$C$6-1),12,1)),AVERAGE(OFFSET(EP_Wetland_Conc!$E$10,12*($A29-1),4*(PlotControl!$C$6-1),12,1))) -> 0.4 | H29: =IF(PlotControl!$B$4 = "Annual Max",MAX(OFFSET(WP_Conc!$C$10,12*($A29-1),4*(PlotControl!$C$6-1),12,1)),AVERAGE(OFFSET(WP_Conc!$C$10,12*($A29-1),4*(PlotControl!$C$6-1),12,1))) -> 0.4 | I29: =IF(PlotControl!$B$4 = "Annual Max",MAX(OFFSET(WP_Conc!$D$10,12*($A29-1),4*(PlotControl!$C$6-1),12,1)),AVERAGE(OFFSET(WP_Conc!$D$10,12*($A29-1),4*(PlotControl!$C$6-1),12,1))) -> 0.4 | J29: =IF(PlotControl!$B$4 = "Annual Max",MAX(OFFSET(WP_Conc!$E$10,12*($A29-1),4*(PlotControl!$C$6-1),12,1)),AVERAGE(OFFSET(WP_Conc!$E$10,12*($A29-1),4*(PlotControl!$C$6-1),12,1))) -> 0.4 | K29: =IF(PlotControl!$B$4 = "Annual Max",MAX(OFFSET(WWTF_Outflow_Conc!$C$10,12*($A29-1),4*(PlotControl!$C$6-1),12,1)),AVERAGE(OFFSET(WWTF_Outflow_Conc!$C$10,12*($A29-1),4*(PlotControl!$C$6-1),12,1))) -> 0 | L29: =IF(PlotControl!$B$4 = "Annual Max",MAX(OFFSET(WWTF_Outflow_Conc!$D$10,12*($A29-1),4*(PlotControl!$C$6-1),12,1)),AVERAGE(OFFSET(WWTF_Outflow_Conc!$D$10,12*($A29-1),4*(PlotControl!$C$6-1),12,1))) -> 0 | M29: =IF(PlotControl!$B$4 = "Annual Max",MAX(OFFSET(WWTF_Outflow_Conc!$E$10,12*($A29-1),4*(PlotControl!$C$6-1),12,1)),AVERAGE(OFFSET(WWTF_Outflow_Conc!$E$10,12*($A29-1),4*(PlotControl!$C$6-1),12,1))) -> 0 | N29: =IF(PlotControl!$B$4 = "Annual Max",MAX(OFFSET(Cat1SP_Conc!$C$10,12*($A29-1),4*(PlotControl!$C$6-1),12,1)),AVERAGE(OFFSET(Cat1SP_Conc!$C$10,12*($A29-1),4*(PlotControl!$C$6-1),12,1))) -> 0.3715758333 | O29: =IF(PlotControl!$B$4 = "Annual Max",MAX(OFFSET(Cat1SP_Conc!$D$10,12*($A29-1),4*(PlotControl!$C$6-1),12,1)),AVERAGE(OFFSET(Cat1SP_Conc!$D$10,12*($A29-1),4*(PlotControl!$C$6-1),12,1))) -> 0.39997 | P29: =IF(PlotControl!$B$4 = "Annual Max",MAX(OFFSET(Cat1SP_Conc!$E$10,12*($A29-1),4*(PlotControl!$C$6-1),12,1)),AVERAGE(OFFSET(Cat1SP_Conc!$E$10,12*($A29-1),4*(PlotControl!$C$6-1),12,1))) -> 0.4 | R29: 42 | S29: =OFFSET(EP_Pore_Conc!$C$10,ROUND(12*$R29,0),4*(PlotControl!$C$6-1),1,1) -> 0.4 | T29: =OFFSET(EP_Pore_Conc!$D$10,ROUND(12*$R29,0),4*(PlotControl!$C$6-1),1,1) -> 0.4 | U29: =OFFSET(EP_Pore_Conc!$E$10,ROUND(12*$R29,0),4*(PlotControl!$C$6-1),1,1) -> 0.4 | V29: =OFFSET(EP_Wetland_Conc!$C$10,ROUND(12*$R29,0),4*(PlotControl!$C$6-1),1,1) -> 0.1682 | W29: =OFFSET(EP_Wetland_Conc!$D$10,ROUND(12*$R29,0),4*(PlotControl!$C$6-1),1,1) -> 0.4 | X29: =OFFSET(EP_Wetland_Conc!$E$10,ROUND(12*$R29,0),4*(PlotControl!$C$6-1),1,1) -> 0.4 | Y29: =OFFSET(WP_Conc!$C$10,ROUND(12*$R29,0),4*(PlotControl!$C$6-1),1,1) -> 0.38126 | Z29: =OFFSET(WP_Conc!$D$10,ROUND(12*$R29,0),4*(PlotControl!$C$6-1),1,1) -> 0.4 | AA29: =OFFSET(WP_Conc!$E$10,ROUND(12*$R29,0),4*(PlotControl!$C$6-1),1,1) -> 0.4 | AB29: =OFFSET(WWTF_Outflow_Conc!$C$10,ROUND(12*$R29,0),4*(PlotControl!$C$6-1),1,1) -> 0 | AC29: =OFFSET(WWTF_Outflow_Conc!$D$10,ROUND(12*$R29,0),4*(PlotControl!$C$6-1),1,1) -> 0 | AD29: =OFFSET(WWTF_Outflow_Conc!$E$10,ROUND(12*$R29,0),4*(PlotControl!$C$6-1),1,1) -> 0 | AE29: =OFFSET(Cat1SP_Conc!$C$10,ROUND(12*$R29,0),4*(PlotControl!$C$6-1),1,1) -> 0.39999 | AF29: =OFFSET(Cat1SP_Conc!$D$10,ROUND(12*$R29,0),4*(PlotControl!$C$6-1),1,1) -> 0.4 | AG29: =OFFSET(Cat1SP_Conc!$E$10,ROUND(12*$R29,0),4*(PlotControl!$C$6-1),1,1) -> 0.4
A30: 26 | B30: =IF(PlotControl!$B$4 = "Annual Max",MAX(OFFSET(EP_Pore_Conc!$C$10,12*($A30-1),4*(PlotControl!$C$6-1),12,1)),AVERAGE(OFFSET(EP_Pore_Conc!$C$10,12*($A30-1),4*(PlotControl!$C$6-1),12,1))) -> 0.4 | C30: =IF(PlotControl!$B$4 = "Annual Max",MAX(OFFSET(EP_Pore_Conc!$D$10,12*($A30-1),4*(PlotControl!$C$6-1),12,1)),AVERAGE(OFFSET(EP_Pore_Conc!$D$10,12*($A30-1),4*(PlotControl!$C$6-1),12,1))) -> 0.4 | D30: =IF(PlotControl!$B$4 = "Annual Max",MAX(OFFSET(EP_Pore_Conc!$E$10,12*($A30-1),4*(PlotControl!$C$6-1),12,1)),AVERAGE(OFFSET(EP_Pore_Conc!$E$10,12*($A30-1),4*(PlotControl!$C$6-1),12,1))) -> 0.4 | E30: =IF(PlotControl!$B$4 = "Annual Max",MAX(OFFSET(EP_Wetland_Conc!$C$10,12*($A30-1),4*(PlotControl!$C$6-1),12,1)),AVERAGE(OFFSET(EP_Wetland_Conc!$C$10,12*($A30-1),4*(PlotControl!$C$6-1),12,1))) -> 0.4 | F30: =IF(PlotControl!$B$4 = "Annual Max",MAX(OFFSET(EP_Wetland_Conc!$D$10,12*($A30-1),4*(PlotControl!$C$6-1),12,1)),AVERAGE(OFFSET(EP_Wetland_Conc!$D$10,12*($A30-1),4*(PlotControl!$C$6-1),12,1))) -> 0.4 | G30: =IF(PlotControl!$B$4 = "Annual Max",MAX(OFFSET(EP_Wetland_Conc!$E$10,12*($A30-1),4*(PlotControl!$C$6-1),12,1)),AVERAGE(OFFSET(EP_Wetland_Conc!$E$10,12*($A30-1),4*(PlotControl!$C$6-1),12,1))) -> 0.4 | H30: =IF(PlotControl!$B$4 = "Annual Max",MAX(OFFSET(WP_Conc!$C$10,12*($A30-1),4*(PlotControl!$C$6-1),12,1)),AVERAGE(OFFSET(WP_Conc!$C$10,12*($A30-1),4*(PlotControl!$C$6-1),12,1))) -> 0.4 | I30: =IF(PlotControl!$B$4 = "Annual Max",MAX(OFFSET(WP_Conc!$D$10,12*($A30-1),4*(PlotControl!$C$6-1),12,1)),AVERAGE(OFFSET(WP_Conc!$D$10,12*($A30-1),4*(PlotControl!$C$6-1),12,1))) -> 0.4 | J30: =IF(PlotControl!$B$4 = "Annual Max",MAX(OFFSET(WP_Conc!$E$10,12*($A30-1),4*(PlotControl!$C$6-1),12,1)),AVERAGE(OFFSET(WP_Conc!$E$10,12*($A30-1),4*(PlotControl!$C$6-1),12,1))) -> 0.4 | K30: =IF(PlotControl!$B$4 = "Annual Max",MAX(OFFSET(WWTF_Outflow_Conc!$C$10,12*($A30-1),4*(PlotControl!$C$6-1),12,1)),AVERAGE(OFFSET(WWTF_Outflow_Conc!$C$10,12*($A30-1),4*(PlotControl!$C$6-1),12,1))) -> 0 | L30: =IF(PlotControl!$B$4 = "Annual Max",MAX(OFFSET(WWTF_Outflow_Conc!$D$10,12*($A30-1),4*(PlotControl!$C$6-1),12,1)),AVERAGE(OFFSET(WWTF_Outflow_Conc!$D$10,12*($A30-1),4*(PlotControl!$C$6-1),12,1))) -> 0 | M30: =IF(PlotControl!$B$4 = "Annual Max",MAX(OFFSET(WWTF_Outflow_Conc!$E$10,12*($A30-1),4*(PlotControl!$C$6-1),12,1)),AVERAGE(OFFSET(WWTF_Outflow_Conc!$E$10,12*($A30-1),4*(PlotControl!$C$6-1),12,1))) -> 0 | N30: =IF(PlotControl!$B$4 = "Annual Max",MAX(OFFSET(Cat1SP_Conc!$C$10,12*($A30-1),4*(PlotControl!$C$6-1),12,1)),AVERAGE(OFFSET(Cat1SP_Conc!$C$10,12*($A30-1),4*(PlotControl!$C$6-1),12,1))) -> 0.3851433333 | O30: =IF(PlotControl!$B$4 = "Annual Max",MAX(OFFSET(Cat1SP_Conc!$D$10,12*($A30-1),4*(PlotControl!$C$6-1),12,1)),AVERAGE(OFFSET(Cat1SP_Conc!$D$10,12*($A30-1),4*(PlotControl!$C$6-1),12,1))) -> 0.3999858333 | P30: =IF(PlotControl!$B$4 = "Annual Max",MAX(OFFSET(Cat1SP_Conc!$E$10,12*($A30-1),4*(PlotControl!$C$6-1),12,1)),AVERAGE(OFFSET(Cat1SP_Conc!$E$10,12*($A30-1),4*(PlotControl!$C$6-1),12,1))) -> 0.4 | R30: 42.08333333 | S30: =OFFSET(EP_Pore_Conc!$C$10,ROUND(12*$R30,0),4*(PlotControl!$C$6-1),1,1) -> 0.4 | T30: =OFFSET(EP_Pore_Conc!$D$10,ROUND(12*$R30,0),4*(PlotControl!$C$6-1),1,1) -> 0.4 | U30: =OFFSET(EP_Pore_Conc!$E$10,ROUND(12*$R30,0),4*(PlotControl!$C$6-1),1,1) -> 0.4 | V30: =OFFSET(EP_Wetland_Conc!$C$10,ROUND(12*$R30,0),4*(PlotControl!$C$6-1),1,1) -> 0.1703 | W30: =OFFSET(EP_Wetland_Conc!$D$10,ROUND(12*$R30,0),4*(PlotControl!$C$6-1),1,1) -> 0.4 | X30: =OFFSET(EP_Wetland_Conc!$E$10,ROUND(12*$R30,0),4*(PlotControl!$C$6-1),1,1) -> 0.4 | Y30: =OFFSET(WP_Conc!$C$10,ROUND(12*$R30,0),4*(PlotControl!$C$6-1),1,1) -> 0.38127 | Z30: =OFFSET(WP_Conc!$D$10,ROUND(12*$R30,0),4*(PlotControl!$C$6-1),1,1) -> 0.4 | AA30: =OFFSET(WP_Conc!$E$10,ROUND(12*$R30,0),4*(PlotControl!$C$6-1),1,1) -> 0.4 | AB30: =OFFSET(WWTF_Outflow_Conc!$C$10,ROUND(12*$R30,0),4*(PlotControl!$C$6-1),1,1) -> 0 | AC30: =OFFSET(WWTF_Outflow_Conc!$D$10,ROUND(12*$R30,0),4*(PlotControl!$C$6-1),1,1) -> 0 | AD30: =OFFSET(WWTF_Outflow_Conc!$E$10,ROUND(12*$R30,0),4*(PlotControl!$C$6-1),1,1) -> 0 | AE30: =OFFSET(Cat1SP_Conc!$C$10,ROUND(12*$R30,0),4*(PlotControl!$C$6-1),1,1) -> 0.39999 | AF30: =OFFSET(Cat1SP_Conc!$D$10,ROUND(12*$R30,0),4*(PlotControl!$C$6-1),1,1) -> 0.4 | AG30: =OFFSET(Cat1SP_Conc!$E$10,ROUND(12*$R30,0),4*(PlotControl!$C$6-1),1,1) -> 0.4
A31: 27 | B31: =IF(PlotControl!$B$4 = "Annual Max",MAX(OFFSET(EP_Pore_Conc!$C$10,12*($A31-1),4*(PlotControl!$C$6-1),12,1)),AVERAGE(OFFSET(EP_Pore_Conc!$C$10,12*($A31-1),4*(PlotControl!$C$6-1),12,1))) -> 0.4 | C31: =IF(PlotControl!$B$4 = "Annual Max",MAX(OFFSET(EP_Pore_Conc!$D$10,12*($A31-1),4*(PlotControl!$C$6-1),12,1)),AVERAGE(OFFSET(EP_Pore_Conc!$D$10,12*($A31-1),4*(PlotControl!$C$6-1),12,1))) -> 0.4 | D31: =IF(PlotControl!$B$4 = "Annual Max",MAX(OFFSET(EP_Pore_Conc!$E$10,12*($A31-1),4*(PlotControl!$C$6-1),12,1)),AVERAGE(OFFSET(EP_Pore_Conc!$E$10,12*($A31-1),4*(PlotControl!$C$6-1),12,1))) -> 0.4 | E31: =IF(PlotControl!$B$4 = "Annual Max",MAX(OFFSET(EP_Wetland_Conc!$C$10,12*($A31-1),4*(PlotControl!$C$6-1),12,1)),AVERAGE(OFFSET(EP_Wetland_Conc!$C$10,12*($A31-1),4*(PlotControl!$C$6-1),12,1))) -> 0.4 | F31: =IF(PlotControl!$B$4 = "Annual Max",MAX(OFFSET(EP_Wetland_Conc!$D$10,12*($A31-1),4*(PlotControl!$C$6-1),12,1)),AVERAGE(OFFSET(EP_Wetland_Conc!$D$10,12*($A31-1),4*(PlotControl!$C$6-1),12,1))) -> 0.4 | G31: =IF(PlotControl!$B$4 = "Annual Max",MAX(OFFSET(EP_Wetland_Conc!$E$10,12*($A31-1),4*(PlotControl!$C$6-1),12,1)),AVERAGE(OFFSET(EP_Wetland_Conc!$E$10,12*($A31-1),4*(PlotControl!$C$6-1),12,1))) -> 0.4 | H31: =IF(PlotControl!$B$4 = "Annual Max",MAX(OFFSET(WP_Conc!$C$10,12*($A31-1),4*(PlotControl!$C$6-1),12,1)),AVERAGE(OFFSET(WP_Conc!$C$10,12*($A31-1),4*(PlotControl!$C$6-1),12,1))) -> 0.4 | I31: =IF(PlotControl!$B$4 = "Annual Max",MAX(OFFSET(WP_Conc!$D$10,12*($A31-1),4*(PlotControl!$C$6-1),12,1)),AVERAGE(OFFSET(WP_Conc!$D$10,12*($A31-1),4*(PlotControl!$C$6-1),12,1))) -> 0.4 | J31: =IF(PlotControl!$B$4 = "Annual Max",MAX(OFFSET(WP_Conc!$E$10,12*($A31-1),4*(PlotControl!$C$6-1),12,1)),AVERAGE(OFFSET(WP_Conc!$E$10,12*($A31-1),4*(PlotControl!$C$6-1),12,1))) -> 0.4 | K31: =IF(PlotControl!$B$4 = "Annual Max",MAX(OFFSET(WWTF_Outflow_Conc!$C$10,12*($A31-1),4*(PlotControl!$C$6-1),12,1)),AVERAGE(OFFSET(WWTF_Outflow_Conc!$C$10,12*($A31-1),4*(PlotControl!$C$6-1),12,1))) -> 0 | L31: =IF(PlotControl!$B$4 = "Annual Max",MAX(OFFSET(WWTF_Outflow_Conc!$D$10,12*($A31-1),4*(PlotControl!$C$6-1),12,1)),AVERAGE(OFFSET(WWTF_Outflow_Conc!$D$10,12*($A31-1),4*(PlotControl!$C$6-1),12,1))) -> 0 | M31: =IF(PlotControl!$B$4 = "Annual Max",MAX(OFFSET(WWTF_Outflow_Conc!$E$10,12*($A31-1),4*(PlotControl!$C$6-1),12,1)),AVERAGE(OFFSET(WWTF_Outflow_Conc!$E$10,12*($A31-1),4*(PlotControl!$C$6-1),12,1))) -> 0 | N31: =IF(PlotControl!$B$4 = "Annual Max",MAX(OFFSET(Cat1SP_Conc!$C$10,12*($A31-1),4*(PlotControl!$C$6-1),12,1)),AVERAGE(OFFSET(Cat1SP_Conc!$C$10,12*($A31-1),4*(PlotControl!$C$6-1),12,1))) -> 0.3925075 | O31: =IF(PlotControl!$B$4 = "Annual Max",MAX(OFFSET(Cat1SP_Conc!$D$10,12*($A31-1),4*(PlotControl!$C$6-1),12,1)),AVERAGE(OFFSET(Cat1SP_Conc!$D$10,12*($A31-1),4*(PlotControl!$C$6-1),12,1))) -> 0.3999933333 | P31: =IF(PlotControl!$B$4 = "Annual Max",MAX(OFFSET(Cat1SP_Conc!$E$10,12*($A31-1),4*(PlotControl!$C$6-1),12,1)),AVERAGE(OFFSET(Cat1SP_Conc!$E$10,12*($A31-1),4*(PlotControl!$C$6-1),12,1))) -> 0.4 | R31: 42.16666667 | S31: =OFFSET(EP_Pore_Conc!$C$10,ROUND(12*$R31,0),4*(PlotControl!$C$6-1),1,1) -> 0.4 | T31: =OFFSET(EP_Pore_Conc!$D$10,ROUND(12*$R31,0),4*(PlotControl!$C$6-1),1,1) -> 0.4 | U31: =OFFSET(EP_Pore_Conc!$E$10,ROUND(12*$R31,0),4*(PlotControl!$C$6-1),1,1) -> 0.4 | V31: =OFFSET(EP_Wetland_Conc!$C$10,ROUND(12*$R31,0),4*(PlotControl!$C$6-1),1,1) -> 0.17232 | W31: =OFFSET(EP_Wetland_Conc!$D$10,ROUND(12*$R31,0),4*(PlotControl!$C$6-1),1,1) -> 0.4 | X31: =OFFSET(EP_Wetland_Conc!$E$10,ROUND(12*$R31,0),4*(PlotControl!$C$6-1),1,1) -> 0.4 | Y31: =OFFSET(WP_Conc!$C$10,ROUND(12*$R31,0),4*(PlotControl!$C$6-1),1,1) -> 0.38128 | Z31: =OFFSET(WP_Conc!$D$10,ROUND(12*$R31,0),4*(PlotControl!$C$6-1),1,1) -> 0.4 | AA31: =OFFSET(WP_Conc!$E$10,ROUND(12*$R31,0),4*(PlotControl!$C$6-1),1,1) -> 0.4 | AB31: =OFFSET(WWTF_Outflow_Conc!$C$10,ROUND(12*$R31,0),4*(PlotControl!$C$6-1),1,1) -> 0 | AC31: =OFFSET(WWTF_Outflow_Conc!$D$10,ROUND(12*$R31,0),4*(PlotControl!$C$6-1),1,1) -> 0 | AD31: =OFFSET(WWTF_Outflow_Conc!$E$10,ROUND(12*$R31,0),4*(PlotControl!$C$6-1),1,1) -> 0 | AE31: =OFFSET(Cat1SP_Conc!$C$10,ROUND(12*$R31,0),4*(PlotControl!$C$6-1),1,1) -> 0.39999 | AF31: =OFFSET(Cat1SP_Conc!$D$10,ROUND(12*$R31,0),4*(PlotControl!$C$6-1),1,1) -> 0.4 | AG31: =OFFSET(Cat1SP_Conc!$E$10,ROUND(12*$R31,0),4*(PlotControl!$C$6-1),1,1) -> 0.4
A32: 28 | B32: =IF(PlotControl!$B$4 = "Annual Max",MAX(OFFSET(EP_Pore_Conc!$C$10,12*($A32-1),4*(PlotControl!$C$6-1),12,1)),AVERAGE(OFFSET(EP_Pore_Conc!$C$10,12*($A32-1),4*(PlotControl!$C$6-1),12,1))) -> 0.4 | C32: =IF(PlotControl!$B$4 = "Annual Max",MAX(OFFSET(EP_Pore_Conc!$D$10,12*($A32-1),4*(PlotControl!$C$6-1),12,1)),AVERAGE(OFFSET(EP_Pore_Conc!$D$10,12*($A32-1),4*(PlotControl!$C$6-1),12,1))) -> 0.4 | D32: =IF(PlotControl!$B$4 = "Annual Max",MAX(OFFSET(EP_Pore_Conc!$E$10,12*($A32-1),4*(PlotControl!$C$6-1),12,1)),AVERAGE(OFFSET(EP_Pore_Conc!$E$10,12*($A32-1),4*(PlotControl!$C$6-1),12,1))) -> 0.4 | E32: =IF(PlotControl!$B$4 = "Annual Max",MAX(OFFSET(EP_Wetland_Conc!$C$10,12*($A32-1),4*(PlotControl!$C$6-1),12,1)),AVERAGE(OFFSET(EP_Wetland_Conc!$C$10,12*($A32-1),4*(PlotControl!$C$6-1),12,1))) -> 0.4 | F32: =IF(PlotControl!$B$4 = "Annual Max",MAX(OFFSET(EP_Wetland_Conc!$D$10,12*($A32-1),4*(PlotControl!$C$6-1),12,1)),AVERAGE(OFFSET(EP_Wetland_Conc!$D$10,12*($A32-1),4*(PlotControl!$C$6-1),12,1))) -> 0.4 | G32: =IF(PlotControl!$B$4 = "Annual Max",MAX(OFFSET(EP_Wetland_Conc!$E$10,12*($A32-1),4*(PlotControl!$C$6-1),12,1)),AVERAGE(OFFSET(EP_Wetland_Conc!$E$10,12*($A32-1),4*(PlotControl!$C$6-1),12,1))) -> 0.4 | H32: =IF(PlotControl!$B$4 = "Annual Max",MAX(OFFSET(WP_Conc!$C$10,12*($A32-1),4*(PlotControl!$C$6-1),12,1)),AVERAGE(OFFSET(WP_Conc!$C$10,12*($A32-1),4*(PlotControl!$C$6-1),12,1))) -> 0.4 | I32: =IF(PlotControl!$B$4 = "Annual Max",MAX(OFFSET(WP_Conc!$D$10,12*($A32-1),4*(PlotControl!$C$6-1),12,1)),AVERAGE(OFFSET(WP_Conc!$D$10,12*($A32-1),4*(PlotControl!$C$6-1),12,1))) -> 0.4 | J32: =IF(PlotControl!$B$4 = "Annual Max",MAX(OFFSET(WP_Conc!$E$10,12*($A32-1),4*(PlotControl!$C$6-1),12,1)),AVERAGE(OFFSET(WP_Conc!$E$10,12*($A32-1),4*(PlotControl!$C$6-1),12,1))) -> 0.4 | K32: =IF(PlotControl!$B$4 = "Annual Max",MAX(OFFSET(WWTF_Outflow_Conc!$C$10,12*($A32-1),4*(PlotControl!$C$6-1),12,1)),AVERAGE(OFFSET(WWTF_Outflow_Conc!$C$10,12*($A32-1),4*(PlotControl!$C$6-1),12,1))) -> 0 | L32: =IF(PlotControl!$B$4 = "Annual Max",MAX(OFFSET(WWTF_Outflow_Conc!$D$10,12*($A32-1),4*(PlotControl!$C$6-1),12,1)),AVERAGE(OFFSET(WWTF_Outflow_Conc!$D$10,12*($A32-1),4*(PlotControl!$C$6-1),12,1))) -> 0 | M32: =IF(PlotControl!$B$4 = "Annual Max",MAX(OFFSET(WWTF_Outflow_Conc!$E$10,12*($A32-1),4*(PlotControl!$C$6-1),12,1)),AVERAGE(OFFSET(WWTF_Outflow_Conc!$E$10,12*($A32-1),4*(PlotControl!$C$6-1),12,1))) -> 0 | N32: =IF(PlotControl!$B$4 = "Annual Max",MAX(OFFSET(Cat1SP_Conc!$C$10,12*($A32-1),4*(PlotControl!$C$6-1),12,1)),AVERAGE(OFFSET(Cat1SP_Conc!$C$10,12*($A32-1),4*(PlotControl!$C$6-1),12,1))) -> 0.396395 | O32: =IF(PlotControl!$B$4 = "Annual Max",MAX(OFFSET(Cat1SP_Conc!$D$10,12*($A32-1),4*(PlotControl!$C$6-1),12,1)),AVERAGE(OFFSET(Cat1SP_Conc!$D$10,12*($A32-1),4*(PlotControl!$C$6-1),12,1))) -> 0.4 | P32: =IF(PlotControl!$B$4 = "Annual Max",MAX(OFFSET(Cat1SP_Conc!$E$10,12*($A32-1),4*(PlotControl!$C$6-1),12,1)),AVERAGE(OFFSET(Cat1SP_Conc!$E$10,12*($A32-1),4*(PlotControl!$C$6-1),12,1))) -> 0.4 | R32: 42.25 | S32: =OFFSET(EP_Pore_Conc!$C$10,ROUND(12*$R32,0),4*(PlotControl!$C$6-1),1,1) -> 0.4 | T32: =OFFSET(EP_Pore_Conc!$D$10,ROUND(12*$R32,0),4*(PlotControl!$C$6-1),1,1) -> 0.4 | U32: =OFFSET(EP_Pore_Conc!$E$10,ROUND(12*$R32,0),4*(PlotControl!$C$6-1),1,1) -> 0.4 | V32: =OFFSET(EP_Wetland_Conc!$C$10,ROUND(12*$R32,0),4*(PlotControl!$C$6-1),1,1) -> 0.17438 | W32: =OFFSET(EP_Wetland_Conc!$D$10,ROUND(12*$R32,0),4*(PlotControl!$C$6-1),1,1) -> 0.4 | X32: =OFFSET(EP_Wetland_Conc!$E$10,ROUND(12*$R32,0),4*(PlotControl!$C$6-1),1,1) -> 0.4 | Y32: =OFFSET(WP_Conc!$C$10,ROUND(12*$R32,0),4*(PlotControl!$C$6-1),1,1) -> 0.38126 | Z32: =OFFSET(WP_Conc!$D$10,ROUND(12*$R32,0),4*(PlotControl!$C$6-1),1,1) -> 0.4 | AA32: =OFFSET(WP_Conc!$E$10,ROUND(12*$R32,0),4*(PlotControl!$C$6-1),1,1) -> 0.4 | AB32: =OFFSET(WWTF_Outflow_Conc!$C$10,ROUND(12*$R32,0),4*(PlotControl!$C$6-1),1,1) -> 0 | AC32: =OFFSET(WWTF_Outflow_Conc!$D$10,ROUND(12*$R32,0),4*(PlotControl!$C$6-1),1,1) -> 0 | AD32: =OFFSET(WWTF_Outflow_Conc!$E$10,ROUND(12*$R32,0),4*(PlotControl!$C$6-1),1,1) -> 0 | AE32: =OFFSET(Cat1SP_Conc!$C$10,ROUND(12*$R32,0),4*(PlotControl!$C$6-1),1,1) -> 0.39999 | AF32: =OFFSET(Cat1SP_Conc!$D$10,ROUND(12*$R32,0),4*(PlotControl!$C$6-1),1,1) -> 0.4 | AG32: =OFFSET(Cat1SP_Conc!$E$10,ROUND(12*$R32,0),4*(PlotControl!$C$6-1),1,1) -> 0.4
A33: 29 | B33: =IF(PlotControl!$B$4 = "Annual Max",MAX(OFFSET(EP_Pore_Conc!$C$10,12*($A33-1),4*(PlotControl!$C$6-1),12,1)),AVERAGE(OFFSET(EP_Pore_Conc!$C$10,12*($A33-1),4*(PlotControl!$C$6-1),12,1))) -> 0.4 | C33: =IF(PlotControl!$B$4 = "Annual Max",MAX(OFFSET(EP_Pore_Conc!$D$10,12*($A33-1),4*(PlotControl!$C$6-1),12,1)),AVERAGE(OFFSET(EP_Pore_Conc!$D$10,12*($A33-1),4*(PlotControl!$C$6-1),12,1))) -> 0.4 | D33: =IF(PlotControl!$B$4 = "Annual Max",MAX(OFFSET(EP_Pore_Conc!$E$10,12*($A33-1),4*(PlotControl!$C$6-1),12,1)),AVERAGE(OFFSET(EP_Pore_Conc!$E$10,12*($A33-1),4*(PlotControl!$C$6-1),12,1))) -> 0.4 | E33: =IF(PlotControl!$B$4 = "Annual Max",MAX(OFFSET(EP_Wetland_Conc!$C$10,12*($A33-1),4*(PlotControl!$C$6-1),12,1)),AVERAGE(OFFSET(EP_Wetland_Conc!$C$10,12*($A33-1),4*(PlotControl!$C$6-1),12,1))) -> 0.4 | F33: =IF(PlotControl!$B$4 = "Annual Max",MAX(OFFSET(EP_Wetland_Conc!$D$10,12*($A33-1),4*(PlotControl!$C$6-1),12,1)),AVERAGE(OFFSET(EP_Wetland_Conc!$D$10,12*($A33-1),4*(PlotControl!$C$6-1),12,1))) -> 0.4 | G33: =IF(PlotControl!$B$4 = "Annual Max",MAX(OFFSET(EP_Wetland_Conc!$E$10,12*($A33-1),4*(PlotControl!$C$6-1),12,1)),AVERAGE(OFFSET(EP_Wetland_Conc!$E$10,12*($A33-1),4*(PlotControl!$C$6-1),12,1))) -> 0.4 | H33: =IF(PlotControl!$B$4 = "Annual Max",MAX(OFFSET(WP_Conc!$C$10,12*($A33-1),4*(PlotControl!$C$6-1),12,1)),AVERAGE(OFFSET(WP_Conc!$C$10,12*($A33-1),4*(PlotControl!$C$6-1),12,1))) -> 0.4 | I33: =IF(PlotControl!$B$4 = "Annual Max",MAX(OFFSET(WP_Conc!$D$10,12*($A33-1),4*(PlotControl!$C$6-1),12,1)),AVERAGE(OFFSET(WP_Conc!$D$10,12*($A33-1),4*(PlotControl!$C$6-1),12,1))) -> 0.4 | J33: =IF(PlotControl!$B$4 = "Annual Max",MAX(OFFSET(WP_Conc!$E$10,12*($A33-1),4*(PlotControl!$C$6-1),12,1)),AVERAGE(OFFSET(WP_Conc!$E$10,12*($A33-1),4*(PlotControl!$C$6-1),12,1))) -> 0.4 | K33: =IF(PlotControl!$B$4 = "Annual Max",MAX(OFFSET(WWTF_Outflow_Conc!$C$10,12*($A33-1),4*(PlotControl!$C$6-1),12,1)),AVERAGE(OFFSET(WWTF_Outflow_Conc!$C$10,12*($A33-1),4*(PlotControl!$C$6-1),12,1))) -> 0 | L33: =IF(PlotControl!$B$4 = "Annual Max",MAX(OFFSET(WWTF_Outflow_Conc!$D$10,12*($A33-1),4*(PlotControl!$C$6-1),12,1)),AVERAGE(OFFSET(WWTF_Outflow_Conc!$D$10,12*($A33-1),4*(PlotControl!$C$6-1),12,1))) -> 0 | M33: =IF(PlotControl!$B$4 = "Annual Max",MAX(OFFSET(WWTF_Outflow_Conc!$E$10,12*($A33-1),4*(PlotControl!$C$6-1),12,1)),AVERAGE(OFFSET(WWTF_Outflow_Conc!$E$10,12*($A33-1),4*(PlotControl!$C$6-1),12,1))) -> 0 | N33: =IF(PlotControl!$B$4 = "Annual Max",MAX(OFFSET(Cat1SP_Conc!$C$10,12*($A33-1),4*(PlotControl!$C$6-1),12,1)),AVERAGE(OFFSET(Cat1SP_Conc!$C$10,12*($A33-1),4*(PlotControl!$C$6-1),12,1))) -> 0.3981066667 | O33: =IF(PlotControl!$B$4 = "Annual Max",MAX(OFFSET(Cat1SP_Conc!$D$10,12*($A33-1),4*(PlotControl!$C$6-1),12,1)),AVERAGE(OFFSET(Cat1SP_Conc!$D$10,12*($A33-1),4*(PlotControl!$C$6-1),12,1))) -> 0.4 | P33: =IF(PlotControl!$B$4 = "Annual Max",MAX(OFFSET(Cat1SP_Conc!$E$10,12*($A33-1),4*(PlotControl!$C$6-1),12,1)),AVERAGE(OFFSET(Cat1SP_Conc!$E$10,12*($A33-1),4*(PlotControl!$C$6-1),12,1))) -> 0.4 | R33: 42.33333333 | S33: =OFFSET(EP_Pore_Conc!$C$10,ROUND(12*$R33,0),4*(PlotControl!$C$6-1),1,1) -> 0.4 | T33: =OFFSET(EP_Pore_Conc!$D$10,ROUND(12*$R33,0),4*(PlotControl!$C$6-1),1,1) -> 0.4 | U33: =OFFSET(EP_Pore_Conc!$E$10,ROUND(12*$R33,0),4*(PlotControl!$C$6-1),1,1) -> 0.4 | V33: =OFFSET(EP_Wetland_Conc!$C$10,ROUND(12*$R33,0),4*(PlotControl!$C$6-1),1,1) -> 0.15609 | W33: =OFFSET(EP_Wetland_Conc!$D$10,ROUND(12*$R33,0),4*(PlotControl!$C$6-1),1,1) -> 0.4 | X33: =OFFSET(EP_Wetland_Conc!$E$10,ROUND(12*$R33,0),4*(PlotControl!$C$6-1),1,1) -> 0.4 | Y33: =OFFSET(WP_Conc!$C$10,ROUND(12*$R33,0),4*(PlotControl!$C$6-1),1,1) -> 0.37983 | Z33: =OFFSET(WP_Conc!$D$10,ROUND(12*$R33,0),4*(PlotControl!$C$6-1),1,1) -> 0.4 | AA33: =OFFSET(WP_Conc!$E$10,ROUND(12*$R33,0),4*(PlotControl!$C$6-1),1,1) -> 0.4 | AB33: =OFFSET(WWTF_Outflow_Conc!$C$10,ROUND(12*$R33,0),4*(PlotControl!$C$6-1),1,1) -> 0 | AC33: =OFFSET(WWTF_Outflow_Conc!$D$10,ROUND(12*$R33,0),4*(PlotControl!$C$6-1),1,1) -> 0 | AD33: =OFFSET(WWTF_Outflow_Conc!$E$10,ROUND(12*$R33,0),4*(PlotControl!$C$6-1),1,1) -> 0 | AE33: =OFFSET(Cat1SP_Conc!$C$10,ROUND(12*$R33,0),4*(PlotControl!$C$6-1),1,1) -> 0.39999 | AF33: =OFFSET(Cat1SP_Conc!$D$10,ROUND(12*$R33,0),4*(PlotControl!$C$6-1),1,1) -> 0.4 | AG33: =OFFSET(Cat1SP_Conc!$E$10,ROUND(12*$R33,0),4*(PlotControl!$C$6-1),1,1) -> 0.4
A34: 30 | B34: =IF(PlotControl!$B$4 = "Annual Max",MAX(OFFSET(EP_Pore_Conc!$C$10,12*($A34-1),4*(PlotControl!$C$6-1),12,1)),AVERAGE(OFFSET(EP_Pore_Conc!$C$10,12*($A34-1),4*(PlotControl!$C$6-1),12,1))) -> 0.4 | C34: =IF(PlotControl!$B$4 = "Annual Max",MAX(OFFSET(EP_Pore_Conc!$D$10,12*($A34-1),4*(PlotControl!$C$6-1),12,1)),AVERAGE(OFFSET(EP_Pore_Conc!$D$10,12*($A34-1),4*(PlotControl!$C$6-1),12,1))) -> 0.4 | D34: =IF(PlotControl!$B$4 = "Annual Max",MAX(OFFSET(EP_Pore_Conc!$E$10,12*($A34-1),4*(PlotControl!$C$6-1),12,1)),AVERAGE(OFFSET(EP_Pore_Conc!$E$10,12*($A34-1),4*(PlotControl!$C$6-1),12,1))) -> 0.4 | E34: =IF(PlotControl!$B$4 = "Annual Max",MAX(OFFSET(EP_Wetland_Conc!$C$10,12*($A34-1),4*(PlotControl!$C$6-1),12,1)),AVERAGE(OFFSET(EP_Wetland_Conc!$C$10,12*($A34-1),4*(PlotControl!$C$6-1),12,1))) -> 0.4 | F34: =IF(PlotControl!$B$4 = "Annual Max",MAX(OFFSET(EP_Wetland_Conc!$D$10,12*($A34-1),4*(PlotControl!$C$6-1),12,1)),AVERAGE(OFFSET(EP_Wetland_Conc!$D$10,12*($A34-1),4*(PlotControl!$C$6-1),12,1))) -> 0.4 | G34: =IF(PlotControl!$B$4 = "Annual Max",MAX(OFFSET(EP_Wetland_Conc!$E$10,12*($A34-1),4*(PlotControl!$C$6-1),12,1)),AVERAGE(OFFSET(EP_Wetland_Conc!$E$10,12*($A34-1),4*(PlotControl!$C$6-1),12,1))) -> 0.4 | H34: =IF(PlotControl!$B$4 = "Annual Max",MAX(OFFSET(WP_Conc!$C$10,12*($A34-1),4*(PlotControl!$C$6-1),12,1)),AVERAGE(OFFSET(WP_Conc!$C$10,12*($A34-1),4*(PlotControl!$C$6-1),12,1))) -> 0.4 | I34: =IF(PlotControl!$B$4 = "Annual Max",MAX(OFFSET(WP_Conc!$D$10,12*($A34-1),4*(PlotControl!$C$6-1),12,1)),AVERAGE(OFFSET(WP_Conc!$D$10,12*($A34-1),4*(PlotControl!$C$6-1),12,1))) -> 0.4 | J34: =IF(PlotControl!$B$4 = "Annual Max",MAX(OFFSET(WP_Conc!$E$10,12*($A34-1),4*(PlotControl!$C$6-1),12,1)),AVERAGE(OFFSET(WP_Conc!$E$10,12*($A34-1),4*(PlotControl!$C$6-1),12,1))) -> 0.4 | K34: =IF(PlotControl!$B$4 = "Annual Max",MAX(OFFSET(WWTF_Outflow_Conc!$C$10,12*($A34-1),4*(PlotControl!$C$6-1),12,1)),AVERAGE(OFFSET(WWTF_Outflow_Conc!$C$10,12*($A34-1),4*(PlotControl!$C$6-1),12,1))) -> 0 | L34: =IF(PlotControl!$B$4 = "Annual Max",MAX(OFFSET(WWTF_Outflow_Conc!$D$10,12*($A34-1),4*(PlotControl!$C$6-1),12,1)),AVERAGE(OFFSET(WWTF_Outflow_Conc!$D$10,12*($A34-1),4*(PlotControl!$C$6-1),12,1))) -> 0 | M34: =IF(PlotControl!$B$4 = "Annual Max",MAX(OFFSET(WWTF_Outflow_Conc!$E$10,12*($A34-1),4*(PlotControl!$C$6-1),12,1)),AVERAGE(OFFSET(WWTF_Outflow_Conc!$E$10,12*($A34-1),4*(PlotControl!$C$6-1),12,1))) -> 0 | N34: =IF(PlotControl!$B$4 = "Annual Max",MAX(OFFSET(Cat1SP_Conc!$C$10,12*($A34-1),4*(PlotControl!$C$6-1),12,1)),AVERAGE(OFFSET(Cat1SP_Conc!$C$10,12*($A34-1),4*(PlotControl!$C$6-1),12,1))) -> 0.3989991667 | O34: =IF(PlotControl!$B$4 = "Annual Max",MAX(OFFSET(Cat1SP_Conc!$D$10,12*($A34-1),4*(PlotControl!$C$6-1),12,1)),AVERAGE(OFFSET(Cat1SP_Conc!$D$10,12*($A34-1),4*(PlotControl!$C$6-1),12,1))) -> 0.4 | P34: =IF(PlotControl!$B$4 = "Annual Max",MAX(OFFSET(Cat1SP_Conc!$E$10,12*($A34-1),4*(PlotControl!$C$6-1),12,1)),AVERAGE(OFFSET(Cat1SP_Conc!$E$10,12*($A34-1),4*(PlotControl!$C$6-1),12,1))) -> 0.4 | R34: 42.41666667 | S34: =OFFSET(EP_Pore_Conc!$C$10,ROUND(12*$R34,0),4*(PlotControl!$C$6-1),1,1) -> 0.4 | T34: =OFFSET(EP_Pore_Conc!$D$10,ROUND(12*$R34,0),4*(PlotControl!$C$6-1),1,1) -> 0.4 | U34: =OFFSET(EP_Pore_Conc!$E$10,ROUND(12*$R34,0),4*(PlotControl!$C$6-1),1,1) -> 0.4 | V34: =OFFSET(EP_Wetland_Conc!$C$10,ROUND(12*$R34,0),4*(PlotControl!$C$6-1),1,1) -> 0.15836 | W34: =OFFSET(EP_Wetland_Conc!$D$10,ROUND(12*$R34,0),4*(PlotControl!$C$6-1),1,1) -> 0.4 | X34: =OFFSET(EP_Wetland_Conc!$E$10,ROUND(12*$R34,0),4*(PlotControl!$C$6-1),1,1) -> 0.4 | Y34: =OFFSET(WP_Conc!$C$10,ROUND(12*$R34,0),4*(PlotControl!$C$6-1),1,1) -> 0.37988 | Z34: =OFFSET(WP_Conc!$D$10,ROUND(12*$R34,0),4*(PlotControl!$C$6-1),1,1) -> 0.4 | AA34: =OFFSET(WP_Conc!$E$10,ROUND(12*$R34,0),4*(PlotControl!$C$6-1),1,1) -> 0.4 | AB34: =OFFSET(WWTF_Outflow_Conc!$C$10,ROUND(12*$R34,0),4*(PlotControl!$C$6-1),1,1) -> 0 | AC34: =OFFSET(WWTF_Outflow_Conc!$D$10,ROUND(12*$R34,0),4*(PlotControl!$C$6-1),1,1) -> 0 | AD34: =OFFSET(WWTF_Outflow_Conc!$E$10,ROUND(12*$R34,0),4*(PlotControl!$C$6-1),1,1) -> 0 | AE34: =OFFSET(Cat1SP_Conc!$C$10,ROUND(12*$R34,0),4*(PlotControl!$C$6-1),1,1) -> 0.39999 | AF34: =OFFSET(Cat1SP_Conc!$D$10,ROUND(12*$R34,0),4*(PlotControl!$C$6-1),1,1) -> 0.4 | AG34: =OFFSET(Cat1SP_Conc!$E$10,ROUND(12*$R34,0),4*(PlotControl!$C$6-1),1,1) -> 0.4
A35: 31 | B35: =IF(PlotControl!$B$4 = "Annual Max",MAX(OFFSET(EP_Pore_Conc!$C$10,12*($A35-1),4*(PlotControl!$C$6-1),12,1)),AVERAGE(OFFSET(EP_Pore_Conc!$C$10,12*($A35-1),4*(PlotControl!$C$6-1),12,1))) -> 0.4 | C35: =IF(PlotControl!$B$4 = "Annual Max",MAX(OFFSET(EP_Pore_Conc!$D$10,12*($A35-1),4*(PlotControl!$C$6-1),12,1)),AVERAGE(OFFSET(EP_Pore_Conc!$D$10,12*($A35-1),4*(PlotControl!$C$6-1),12,1))) -> 0.4 | D35: =IF(PlotControl!$B$4 = "Annual Max",MAX(OFFSET(EP_Pore_Conc!$E$10,12*($A35-1),4*(PlotControl!$C$6-1),12,1)),AVERAGE(OFFSET(EP_Pore_Conc!$E$10,12*($A35-1),4*(PlotControl!$C$6-1),12,1))) -> 0.4 | E35: =IF(PlotControl!$B$4 = "Annual Max",MAX(OFFSET(EP_Wetland_Conc!$C$10,12*($A35-1),4*(PlotControl!$C$6-1),12,1)),AVERAGE(OFFSET(EP_Wetland_Conc!$C$10,12*($A35-1),4*(PlotControl!$C$6-1),12,1))) -> 0.4 | F35: =IF(PlotControl!$B$4 = "Annual Max",MAX(OFFSET(EP_Wetland_Conc!$D$10,12*($A35-1),4*(PlotControl!$C$6-1),12,1)),AVERAGE(OFFSET(EP_Wetland_Conc!$D$10,12*($A35-1),4*(PlotControl!$C$6-1),12,1))) -> 0.4 | G35: =IF(PlotControl!$B$4 = "Annual Max",MAX(OFFSET(EP_Wetland_Conc!$E$10,12*($A35-1),4*(PlotControl!$C$6-1),12,1)),AVERAGE(OFFSET(EP_Wetland_Conc!$E$10,12*($A35-1),4*(PlotControl!$C$6-1),12,1))) -> 0.4 | H35: =IF(PlotControl!$B$4 = "Annual Max",MAX(OFFSET(WP_Conc!$C$10,12*($A35-1),4*(PlotControl!$C$6-1),12,1)),AVERAGE(OFFSET(WP_Conc!$C$10,12*($A35-1),4*(PlotControl!$C$6-1),12,1))) -> 0.4 | I35: =IF(PlotControl!$B$4 = "Annual Max",MAX(OFFSET(WP_Conc!$D$10,12*($A35-1),4*(PlotControl!$C$6-1),12,1)),AVERAGE(OFFSET(WP_Conc!$D$10,12*($A35-1),4*(PlotControl!$C$6-1),12,1))) -> 0.4 | J35: =IF(PlotControl!$B$4 = "Annual Max",MAX(OFFSET(WP_Conc!$E$10,12*($A35-1),4*(PlotControl!$C$6-1),12,1)),AVERAGE(OFFSET(WP_Conc!$E$10,12*($A35-1),4*(PlotControl!$C$6-1),12,1))) -> 0.4 | K35: =IF(PlotControl!$B$4 = "Annual Max",MAX(OFFSET(WWTF_Outflow_Conc!$C$10,12*($A35-1),4*(PlotControl!$C$6-1),12,1)),AVERAGE(OFFSET(WWTF_Outflow_Conc!$C$10,12*($A35-1),4*(PlotControl!$C$6-1),12,1))) -> 0 | L35: =IF(PlotControl!$B$4 = "Annual Max",MAX(OFFSET(WWTF_Outflow_Conc!$D$10,12*($A35-1),4*(PlotControl!$C$6-1),12,1)),AVERAGE(OFFSET(WWTF_Outflow_Conc!$D$10,12*($A35-1),4*(PlotControl!$C$6-1),12,1))) -> 0 | M35: =IF(PlotControl!$B$4 = "Annual Max",MAX(OFFSET(WWTF_Outflow_Conc!$E$10,12*($A35-1),4*(PlotControl!$C$6-1),12,1)),AVERAGE(OFFSET(WWTF_Outflow_Conc!$E$10,12*($A35-1),4*(PlotControl!$C$6-1),12,1))) -> 0 | N35: =IF(PlotControl!$B$4 = "Annual Max",MAX(OFFSET(Cat1SP_Conc!$C$10,12*($A35-1),4*(PlotControl!$C$6-1),12,1)),AVERAGE(OFFSET(Cat1SP_Conc!$C$10,12*($A35-1),4*(PlotControl!$C$6-1),12,1))) -> 0.3995116667 | O35: =IF(PlotControl!$B$4 = "Annual Max",MAX(OFFSET(Cat1SP_Conc!$D$10,12*($A35-1),4*(PlotControl!$C$6-1),12,1)),AVERAGE(OFFSET(Cat1SP_Conc!$D$10,12*($A35-1),4*(PlotControl!$C$6-1),12,1))) -> 0.4 | P35: =IF(PlotControl!$B$4 = "Annual Max",MAX(OFFSET(Cat1SP_Conc!$E$10,12*($A35-1),4*(PlotControl!$C$6-1),12,1)),AVERAGE(OFFSET(Cat1SP_Conc!$E$10,12*($A35-1),4*(PlotControl!$C$6-1),12,1))) -> 0.4 | R35: 42.5 | S35: =OFFSET(EP_Pore_Conc!$C$10,ROUND(12*$R35,0),4*(PlotControl!$C$6-1),1,1) -> 0.4 | T35: =OFFSET(EP_Pore_Conc!$D$10,ROUND(12*$R35,0),4*(PlotControl!$C$6-1),1,1) -> 0.4 | U35: =OFFSET(EP_Pore_Conc!$E$10,ROUND(12*$R35,0),4*(PlotControl!$C$6-1),1,1) -> 0.4 | V35: =OFFSET(EP_Wetland_Conc!$C$10,ROUND(12*$R35,0),4*(PlotControl!$C$6-1),1,1) -> 0.16004 | W35: =OFFSET(EP_Wetland_Conc!$D$10,ROUND(12*$R35,0),4*(PlotControl!$C$6-1),1,1) -> 0.4 | X35: =OFFSET(EP_Wetland_Conc!$E$10,ROUND(12*$R35,0),4*(PlotControl!$C$6-1),1,1) -> 0.4 | Y35: =OFFSET(WP_Conc!$C$10,ROUND(12*$R35,0),4*(PlotControl!$C$6-1),1,1) -> 0.37974 | Z35: =OFFSET(WP_Conc!$D$10,ROUND(12*$R35,0),4*(PlotControl!$C$6-1),1,1) -> 0.4 | AA35: =OFFSET(WP_Conc!$E$10,ROUND(12*$R35,0),4*(PlotControl!$C$6-1),1,1) -> 0.4 | AB35: =OFFSET(WWTF_Outflow_Conc!$C$10,ROUND(12*$R35,0),4*(PlotControl!$C$6-1),1,1) -> 0 | AC35: =OFFSET(WWTF_Outflow_Conc!$D$10,ROUND(12*$R35,0),4*(PlotControl!$C$6-1),1,1) -> 0 | AD35: =OFFSET(WWTF_Outflow_Conc!$E$10,ROUND(12*$R35,0),4*(PlotControl!$C$6-1),1,1) -> 0 | AE35: =OFFSET(Cat1SP_Conc!$C$10,ROUND(12*$R35,0),4*(PlotControl!$C$6-1),1,1) -> 0.39999 | AF35: =OFFSET(Cat1SP_Conc!$D$10,ROUND(12*$R35,0),4*(PlotControl!$C$6-1),1,1) -> 0.4 | AG35: =OFFSET(Cat1SP_Conc!$E$10,ROUND(12*$R35,0),4*(PlotControl!$C$6-1),1,1) -> 0.4
A36: 32 | B36: =IF(PlotControl!$B$4 = "Annual Max",MAX(OFFSET(EP_Pore_Conc!$C$10,12*($A36-1),4*(PlotControl!$C$6-1),12,1)),AVERAGE(OFFSET(EP_Pore_Conc!$C$10,12*($A36-1),4*(PlotControl!$C$6-1),12,1))) -> 0.4 | C36: =IF(PlotControl!$B$4 = "Annual Max",MAX(OFFSET(EP_Pore_Conc!$D$10,12*($A36-1),4*(PlotControl!$C$6-1),12,1)),AVERAGE(OFFSET(EP_Pore_Conc!$D$10,12*($A36-1),4*(PlotControl!$C$6-1),12,1))) -> 0.4 | D36: =IF(PlotControl!$B$4 = "Annual Max",MAX(OFFSET(EP_Pore_Conc!$E$10,12*($A36-1),4*(PlotControl!$C$6-1),12,1)),AVERAGE(OFFSET(EP_Pore_Conc!$E$10,12*($A36-1),4*(PlotControl!$C$6-1),12,1))) -> 0.4 | E36: =IF(PlotControl!$B$4 = "Annual Max",MAX(OFFSET(EP_Wetland_Conc!$C$10,12*($A36-1),4*(PlotControl!$C$6-1),12,1)),AVERAGE(OFFSET(EP_Wetland_Conc!$C$10,12*($A36-1),4*(PlotControl!$C$6-1),12,1))) -> 0.4 | F36: =IF(PlotControl!$B$4 = "Annual Max",MAX(OFFSET(EP_Wetland_Conc!$D$10,12*($A36-1),4*(PlotControl!$C$6-1),12,1)),AVERAGE(OFFSET(EP_Wetland_Conc!$D$10,12*($A36-1),4*(PlotControl!$C$6-1),12,1))) -> 0.4 | G36: =IF(PlotControl!$B$4 = "Annual Max",MAX(OFFSET(EP_Wetland_Conc!$E$10,12*($A36-1),4*(PlotControl!$C$6-1),12,1)),AVERAGE(OFFSET(EP_Wetland_Conc!$E$10,12*($A36-1),4*(PlotControl!$C$6-1),12,1))) -> 0.4 | H36: =IF(PlotControl!$B$4 = "Annual Max",MAX(OFFSET(WP_Conc!$C$10,12*($A36-1),4*(PlotControl!$C$6-1),12,1)),AVERAGE(OFFSET(WP_Conc!$C$10,12*($A36-1),4*(PlotControl!$C$6-1),12,1))) -> 0.4 | I36: =IF(PlotControl!$B$4 = "Annual Max",MAX(OFFSET(WP_Conc!$D$10,12*($A36-1),4*(PlotControl!$C$6-1),12,1)),AVERAGE(OFFSET(WP_Conc!$D$10,12*($A36-1),4*(PlotControl!$C$6-1),12,1))) -> 0.4 | J36: =IF(PlotControl!$B$4 = "Annual Max",MAX(OFFSET(WP_Conc!$E$10,12*($A36-1),4*(PlotControl!$C$6-1),12,1)),AVERAGE(OFFSET(WP_Conc!$E$10,12*($A36-1),4*(PlotControl!$C$6-1),12,1))) -> 0.4 | K36: =IF(PlotControl!$B$4 = "Annual Max",MAX(OFFSET(WWTF_Outflow_Conc!$C$10,12*($A36-1),4*(PlotControl!$C$6-1),12,1)),AVERAGE(OFFSET(WWTF_Outflow_Conc!$C$10,12*($A36-1),4*(PlotControl!$C$6-1),12,1))) -> 0 | L36: =IF(PlotControl!$B$4 = "Annual Max",MAX(OFFSET(WWTF_Outflow_Conc!$D$10,12*($A36-1),4*(PlotControl!$C$6-1),12,1)),AVERAGE(OFFSET(WWTF_Outflow_Conc!$D$10,12*($A36-1),4*(PlotControl!$C$6-1),12,1))) -> 0 | M36: =IF(PlotControl!$B$4 = "Annual Max",MAX(OFFSET(WWTF_Outflow_Conc!$E$10,12*($A36-1),4*(PlotControl!$C$6-1),12,1)),AVERAGE(OFFSET(WWTF_Outflow_Conc!$E$10,12*($A36-1),4*(PlotControl!$C$6-1),12,1))) -> 0 | N36: =IF(PlotControl!$B$4 = "Annual Max",MAX(OFFSET(Cat1SP_Conc!$C$10,12*($A36-1),4*(PlotControl!$C$6-1),12,1)),AVERAGE(OFFSET(Cat1SP_Conc!$C$10,12*($A36-1),4*(PlotControl!$C$6-1),12,1))) -> 0.3997583333 | O36: =IF(PlotControl!$B$4 = "Annual Max",MAX(OFFSET(Cat1SP_Conc!$D$10,12*($A36-1),4*(PlotControl!$C$6-1),12,1)),AVERAGE(OFFSET(Cat1SP_Conc!$D$10,12*($A36-1),4*(PlotControl!$C$6-1),12,1))) -> 0.4 | P36: =IF(PlotControl!$B$4 = "Annual Max",MAX(OFFSET(Cat1SP_Conc!$E$10,12*($A36-1),4*(PlotControl!$C$6-1),12,1)),AVERAGE(OFFSET(Cat1SP_Conc!$E$10,12*($A36-1),4*(PlotControl!$C$6-1),12,1))) -> 0.4 | R36: 42.58333333 | S36: =OFFSET(EP_Pore_Conc!$C$10,ROUND(12*$R36,0),4*(PlotControl!$C$6-1),1,1) -> 0.4 | T36: =OFFSET(EP_Pore_Conc!$D$10,ROUND(12*$R36,0),4*(PlotControl!$C$6-1),1,1) -> 0.4 | U36: =OFFSET(EP_Pore_Conc!$E$10,ROUND(12*$R36,0),4*(PlotControl!$C$6-1),1,1) -> 0.4 | V36: =OFFSET(EP_Wetland_Conc!$C$10,ROUND(12*$R36,0),4*(PlotControl!$C$6-1),1,1) -> 0.16222 | W36: =OFFSET(EP_Wetland_Conc!$D$10,ROUND(12*$R36,0),4*(PlotControl!$C$6-1),1,1) -> 0.4 | X36: =OFFSET(EP_Wetland_Conc!$E$10,ROUND(12*$R36,0),4*(PlotControl!$C$6-1),1,1) -> 0.4 | Y36: =OFFSET(WP_Conc!$C$10,ROUND(12*$R36,0),4*(PlotControl!$C$6-1),1,1) -> 0.37942 | Z36: =OFFSET(WP_Conc!$D$10,ROUND(12*$R36,0),4*(PlotControl!$C$6-1),1,1) -> 0.4 | AA36: =OFFSET(WP_Conc!$E$10,ROUND(12*$R36,0),4*(PlotControl!$C$6-1),1,1) -> 0.4 | AB36: =OFFSET(WWTF_Outflow_Conc!$C$10,ROUND(12*$R36,0),4*(PlotControl!$C$6-1),1,1) -> 0 | AC36: =OFFSET(WWTF_Outflow_Conc!$D$10,ROUND(12*$R36,0),4*(PlotControl!$C$6-1),1,1) -> 0 | AD36: =OFFSET(WWTF_Outflow_Conc!$E$10,ROUND(12*$R36,0),4*(PlotControl!$C$6-1),1,1) -> 0 | AE36: =OFFSET(Cat1SP_Conc!$C$10,ROUND(12*$R36,0),4*(PlotControl!$C$6-1),1,1) -> 0.39999 | AF36: =OFFSET(Cat1SP_Conc!$D$10,ROUND(12*$R36,0),4*(PlotControl!$C$6-1),1,1) -> 0.4 | AG36: =OFFSET(Cat1SP_Conc!$E$10,ROUND(12*$R36,0),4*(PlotControl!$C$6-1),1,1) -> 0.4
